Workbook

Sheet TrombiUrgence (hidden)
B1: Trombinoscope Urgence Pédiatrie
F3: Édition du | G3: =NOW() -> 2023-01-01T15:16:38.710
A4: RichardALEXANDRE.jpg
A5: _nondispo.jpg
A6: _blanc.jpg | B6: =IF(ISNA(MATCH(B7&" "&B8,bdBR!$A:$A,FALSE))=TRUE,"",MATCH(B7&" "&B8,bdBR!$A:$A,FALSE)) -> 2 | D6: =IF(ISNA(MATCH(D7&" "&D8,bdBR!$A:$A,FALSE))=TRUE,"",MATCH(D7&" "&D8,bdBR!$A:$A,FALSE)) ->  | F6: =IF(ISNA(MATCH(F7&" "&F8,bdBR!$A:$A,FALSE))=TRUE,"",MATCH(F7&" "&F8,bdBR!$A:$A,FALSE)) -> 5 | H6: =IF(ISNA(MATCH(H7&" "&H8,bdBR!$A:$A,FALSE))=TRUE,"",MATCH(H7&" "&H8,bdBR!$A:$A,FALSE)) -> 9 | J6: 6 | L6: 7 | N6: 8 | P6: 9
B7: Anne-Marie | D7: Annie | F7: Brigitte | H7: Claudine
B8: SERGENT | D8: THOLONIAT | F8: BOSCHAT | H8: ARCELIN
A9: FALSE | B9: =IF(B6="","",INDIRECT("bdBR!G"&B6)) -> 623855728 | D9: =IF(D6="","",INDIRECT("bdBR!G"&D6)) ->  | F9: =IF(F6="","",INDIRECT("bdBR!G"&F6)) -> 609346456 | H9: =IF(H6="","",INDIRECT("bdBR!G"&H6)) -> 631970229
B10: =IF(B6="","",INDIRECT("bdBR!H"&B6)) -> am.sergent@gmail.com | D10: =IF(D6="","",INDIRECT("bdBR!H"&D6)) ->  | F10: =IF(F6="","",INDIRECT("bdBR!H"&F6)) -> brigitte.boschat@neuf.fr | H10: =IF(H6="","",INDIRECT("bdBR!H"&H6)) -> claudine.arcelin@yahoo.fr
B11: Lundi 14h00>16h00 | D11: Mercredi 14h00>16h00 | F11: Jeudi 14h00>16h00 | H11: Jeudi 14h00>16h00
B14: =IF(ISNA(MATCH(B15&" "&B16,bdBR!$A:$A,FALSE))=TRUE,"",MATCH(B15&" "&B16,bdBR!$A:$A,FALSE)) ->  | D14: =IF(ISNA(MATCH(D15&" "&D16,bdBR!$A:$A,FALSE))=TRUE,"",MATCH(D15&" "&D16,bdBR!$A:$A,FALSE)) -> 15 | F14: =IF(ISNA(MATCH(F15&" "&F16,bdBR!$A:$A,FALSE))=TRUE,"",MATCH(F15&" "&F16,bdBR!$A:$A,FALSE)) ->  | H14: =IF(ISNA(MATCH(H15&" "&H16,bdBR!$A:$A,FALSE))=TRUE,"",MATCH(H15&" "&H16,bdBR!$A:$A,FALSE)) ->  | L14: 15 | N14: 16 | P14: 17
B15: Élisabeth | D15: Jean-Noël | F15: Marie-Noëlle
B16: LEROUX | D16: CERISAY | F16: WROBEL
B17: =IF(B14="","",INDIRECT("bdBR!G"&B14)) ->  | D17: =IF(D14="","",INDIRECT("bdBR!G"&D14)) -> 618111217 | F17: =IF(F14="","",INDIRECT("bdBR!G"&F14)) ->  | H17: =IF(H14="","",INDIRECT("bdBR!G"&H14)) -> 
B18: =IF(B14="","",INDIRECT("bdBR!H"&B14)) ->  | D18: =IF(D14="","",INDIRECT("bdBR!H"&D14)) -> jean-noel.cerisay@cegetel.net | F18: =IF(F14="","",INDIRECT("bdBR!H"&F14)) ->  | H18: =IF(H14="","",INDIRECT("bdBR!H"&H14)) -> 
B19: Samedi 14h00>16h00 | D19: Mardi 14h00>16h00 | F19: Lundi 14h00>16h00
B22: =IF(ISNA(MATCH(B23&" "&B24,bdBR!$A:$A,FALSE))=TRUE," ",MATCH(B23&" "&B24,bdBR!$A:$A,FALSE)) ->  | D22: =IF(ISNA(MATCH(D23&" "&D24,bdBR!$A:$A,FALSE))=TRUE," ",MATCH(D23&" "&D24,bdBR!$A:$A,FALSE)) ->  | F22: =IF(ISNA(MATCH(F23&" "&F24,bdBR!$A:$A,FALSE))=TRUE," ",MATCH(F23&" "&F24,bdBR!$A:$A,FALSE)) ->  | H22: =IF(ISNA(MATCH(H23&" "&H24,bdBR!$A:$A,FALSE))=TRUE," ",MATCH(H23&" "&H24,bdBR!$A:$A,FALSE)) ->  | J22: 22 | L22: 23 | N22: 24

Sheet Accueil
A1: 2022 | B1: ="nous sommes le "& IF(DAY(A2)<10,"0","")& DAY(A2)&"/"& IF(MONTH(A2)<10,"0","")&MONTH(A2)&"/"&YEAR(A2) -> nous sommes le 01/01/2023 | P1: Notes
A2: =TODAY() -> 2023-01-01 | B2: ="année "& TEXT(A1,0) -> année 2022 | P2: >NonVenu -création auto pdf jpg pour site >StatBr comment tab se fait ? Si démission en gris
A3: TRUE
A4: FALSE
A5: =IF(YEAR(A2)=A1,MONTH(A2),12) -> 12 | B5: PLANIFICATION DES INTERVENTIONS
A6: =IF(YEAR(A2)<>A1,"N", IF(MONTH(A2)=1,"C",INDIRECT("paramètres!C"&A5))) -> N
B7: RichardALEXANDRE.jpg
A8: =MAX(A24:A49) -> 51
A9: FALSE
A10: TRUE
P12: Menu
A15: =paramètres!D22-1 -> 32 | C15: =A15&" Blouses Roses dont "&COUNTIF(bdBR!D:D,"F")&" femmes "&COUNTIF(bdBR!D:D,"M")&" hommes et " & COUNTIF(bdBR!Y:Y,0)& " retraités(es)" -> 32 Blouses Roses dont 28 femmes 4 hommes et 22 retraités(es)
A16: U50 | C16: ="avec une moyenne d'âge de "&paramètres!D20&IF(paramètres!D22-COUNTIF(bdBR!E:E,">0")-1=0,""," mais date manquante : "&paramètres!D22-COUNTIF(bdBR!E:E,">0")-1) -> avec une moyenne d'âge de 62 ans 2 mois
C17: ="+jeune : " & INDIRECT("BdBr!A" & MATCH(MIN(INDIRECT("BdBr!Z2:Z"&A15+1)),bdBR!Z:Z,FALSE) ) &" "& INT(MIN(INDIRECT("BdBr!Z2:Z"&A15+1))) &" ans " & IF(LEN( MIN(INDIRECT("BdBr!Z2:Z"&A15+1)) )=4, RIGHT(MIN(INDIRECT("BdBr!Z2:Z"&A15+1)),1), RIGHT(MIN(INDIRECT("BdBr!Z2:Z"&A15+1)),2) )& " mois"&" +agé(e) : "&INDIRECT("BdBr!A" & MATCH(MAX(INDIRECT("BdBr!Z2:Z"&A15+1)),bdBR!Z:Z,FALSE) ) &" "& INT(MAX(INDIRECT("BdBr!Z2:Z"&A15+1))) &" ans " & IF(LEN( MAX(INDIRECT("BdBr!Z2:Z"&A15+1)) )=4, RIGHT(MAX(INDIRECT("BdBr!Z2:Z"&A15+1)),1), RIGHT(MAX(INDIRECT("BdBr!Z2:Z"&A15+1)),2) )& " mois" -> +jeune : Clara GÉRARD 30 ans 7 mois +agé(e) : Josiane VANDER MEERSCHE 75 ans 4 mois | P17: =IF(A6=0,"","à fin " & IF(YEAR(A2)<>A1,"Décembre",INDIRECT(A6&"19"))) -> à fin Décembre
C18: Janv. | D18: Févr. | E18: Mars | F18: Avr. | G18: Mai | H18: Juin | I18: Juil. | J18: Août | K18: Sept. | L18: Oct. | M18: Nov. | N18: Déc. | P18: Total | R18: Nb perm. | S18: Moyenne/Perm
C19: Janvier | D19: Février | E19: Mars | F19: Avril | G19: Mai | H19: Juin | I19: Juillet | J19: Août | K19: Septembre | L19: Octobre | M19: Novembre | N19: Décembre | P19: Bénéf. | Q19: B.Roses | S19: Bénéf. | T19: B.Roses
J20: FALSE
B21: Total Bénéficiaires | C21: =IF(C24="",0,C24)+IF(C26="",0,C26)+IF(C28="",0,C28)+IF(C30="",0,C30)+IF(C32="",0,C32)+IF(C34="",0,C34)+IF(C36="",0,C36)+IF(C40="",0,C40)+IF(C42="",0,C42)+IF(C46="",0,C46)+IF(C48="",0,C48) -> 153 | D21: 136 | E21: 310 | F21: 296 | G21: 571 | H21: 347 | I21: 238 | J21: 199 | K21: 354 | L21: 375 | M21: 442 | N21: 345 | O21: Total Bénéficiaires | P21: =SUM(INDIRECT("C"&ROW()&":N"&ROW())) -> 3766 | R21: =SUM(R24:R49) -> 556 | S21: =IF(R21=0,"",P21/R21) -> 6.773381295
B22: Total Blouses Roses | C22: =IF(C25="",0,C25)+IF(C27="",0,C27)+IF(C29="",0,C29)+IF(C31="",0,C31)+IF(C33="",0,C33)+IF(C35="",0,C35)+IF(C37="",0,C37)+IF(C41="",0,C41)+IF(C43="",0,C43)+IF(C47="",0,C47)+IF(C49="",0,C49) -> 61 | D22: 62 | E22: 98 | F22: 66 | G22: 98 | H22: 85 | I22: 54 | J22: 54 | K22: 68 | L22: 68 | M22: 91 | N22: 71 | O22: Total Blouses Roses | Q22: =SUM(INDIRECT("C"&ROW()&":"&$A$6&ROW())) -> 876 | T22: =IF(R21=0,"",Q22/R21) -> 1.575539568
J23: FALSE
A24: =IF(B24<>" ",ROW()+2,"") -> 26 | B24: =INDIRECT("BdCréneaux!R"&(ROW()/2)-10) -> Arche 16h30>18h30 | C24: =IF(INDIRECT(C$19&"_récap!$D$"&ROW()-16)=0,"", INDIRECT(C$19&"_récap!$D$"&ROW()-16)) -> 42 | D24: =IF(INDIRECT(D$19&"_récap!$D$"&ROW()-16)=0,"", INDIRECT(D$19&"_récap!$D$"&ROW()-16)) -> 46 | E24: 17 | F24: 4 | G24: 12 | H24: 20 | I24: 22 | J24: 16 | K24: 21 | L24: 38 | M24: 30 | N24: 39 | O24: =B24 -> Arche 16h30>18h30 | P24: =SUM(INDIRECT("C"&ROW()&":N"&ROW())) -> 307 | R24: =IF(B24="","",IF($A$5>1,janvier_récap!E8,0)+IF($A$5>2,février_récap!E8,0)+IF($A$5>3,mars_récap!E8,0)+IF($A$5>4,avril_récap!E8,0)+IF($A$5>5,mai_récap!E8,0)+IF($A$5>6,juin_récap!E8,0)+IF($A$5>7,juillet_récap!E8,0)+IF($A$5>8,août_récap!E8,0)+IF($A$5>9,septembre_récap!E8,0)+IF($A$5>10,octobre_récap!E8,0)+IF($A$5>11,novembre_récap!E8,0)+IF($A$5>12,décembre_récap!E8,0)) -> 66 | S24: =IF(OR(B24="",R24=0),"",P24/R24) -> 4.651515152
A25: 27 | C25: 18 | D25: 21 | E25: 10 | F25: 2 | G25: =IF(INDIRECT(G$19&"_récap!$D$"&ROW()-16)=0,"", INDIRECT(G$19&"_récap!$D$"&ROW()-16)) -> 6 | H25: 9 | I25: 7 | J25: 4 | K25: 6 | L25: 10 | M25: 9 | N25: 15 | Q25: =IF($A$6=0,"",SUM(INDIRECT("C"&ROW()&":"&$A$6&ROW()))) -> 117 | T25: =IF(OR(B24="",R24=0),"",Q25/R24) -> 1.772727273
A26: 28 | B26: =INDIRECT("BdCréneaux!R"&(ROW()/2)-10) -> Arche 14h00>16h00 | F26: 3 | G26: 9 | H26: 6 | I26: 2 | J26: 14 | K26: 12 | L26: 15 | M26: 10 | N26: 7 | O26: =B26 -> Arche 14h00>16h00 | P26: =SUM(INDIRECT("C"&ROW()&":N"&ROW())) -> 78 | R26: =IF(B26="","",IF($A$5>1,janvier_récap!E10,0)+IF($A$5>2,février_récap!E10,0)+IF($A$5>3,mars_récap!E10,0)+IF($A$5>4,avril_récap!E10,0)+IF($A$5>5,mai_récap!E10,0)+IF($A$5>6,juin_récap!E10,0)+IF($A$5>7,juillet_récap!E10,0)+IF($A$5>8,août_récap!E10,0)+IF($A$5>9,septembre_récap!E10,0)+IF($A$5>10,octobre_récap!E10,0)+IF($A$5>11,novembre_récap!E10,0)+IF($A$5>12,décembre_récap!E10,0)) -> 22 | S26: =IF(OR(B26="",R26=0),"",P26/R26) -> 3.545454545
A27: 29 | F27: 2 | G27: =IF(INDIRECT(G$19&"_récap!$D$"&ROW()-16)=0,"", INDIRECT(G$19&"_récap!$D$"&ROW()-16)) -> 3 | H27: 2 | I27: 2 | J27: 3 | K27: 4 | L27: 4 | M27: 3 | N27: 2 | Q27: =IF($A$6=0,"",SUM(INDIRECT("C"&ROW()&":"&$A$6&ROW()))) -> 25 | T27: =IF(OR(B26="",R26=0),"",Q27/R26) -> 1.136363636
A28: 30 | B28: =INDIRECT("BdCréneaux!R"&(ROW()/2)-10) -> Consult.Pédia.Chirurgie 10h00>12h00 | C28: 9 | F28: 7 | H28: 7 | J28: 16 | O28: =B28 -> Consult.Pédia.Chirurgie 10h00>12h00 | P28: =SUM(INDIRECT("C"&ROW()&":N"&ROW())) -> 39 | R28: =IF(B28="","",IF($A$5>1,janvier_récap!E12,0)+IF($A$5>2,février_récap!E12,0)+IF($A$5>3,mars_récap!E12,0)+IF($A$5>4,avril_récap!E12,0)+IF($A$5>5,mai_récap!E12,0)+IF($A$5>6,juin_récap!E12,0)+IF($A$5>7,juillet_récap!E12,0)+IF($A$5>8,août_récap!E12,0)+IF($A$5>9,septembre_récap!E12,0)+IF($A$5>10,octobre_récap!E12,0)+IF($A$5>11,novembre_récap!E12,0)+IF($A$5>12,décembre_récap!E12,0)) -> 8 | S28: =IF(OR(B28="",R28=0),"",P28/R28) -> 4.875
A29: 31 | C29: 2 | D29: 4 | F29: 1 | G29: =IF(INDIRECT(G$19&"_récap!$D$"&ROW()-16)=0,"", INDIRECT(G$19&"_récap!$D$"&ROW()-16)) ->  | H29: 1 | J29: 3 | Q29: =IF($A$6=0,"",SUM(INDIRECT("C"&ROW()&":"&$A$6&ROW()))) -> 11 | T29: =IF(OR(B28="",R28=0),"",Q29/R28) -> 1.375
A30: 32 | B30: =INDIRECT("BdCréneaux!R"&(ROW()/2)-10) -> Consult.Pédia.Chirurgie 14h00>16h00 | C30: 18 | D30: 13 | E30: 48 | F30: 50 | G30: 56 | H30: 28 | I30: 13 | J30: 26 | K30: 39 | L30: 58 | M30: 56 | N30: 45 | O30: =B30 -> Consult.Pédia.Chirurgie 14h00>16h00 | P30: =SUM(INDIRECT("C"&ROW()&":N"&ROW())) -> 450 | R30: =IF(B30="","",IF($A$5>1,janvier_récap!E14,0)+IF($A$5>2,février_récap!E14,0)+IF($A$5>3,mars_récap!E14,0)+IF($A$5>4,avril_récap!E14,0)+IF($A$5>5,mai_récap!E14,0)+IF($A$5>6,juin_récap!E14,0)+IF($A$5>7,juillet_récap!E14,0)+IF($A$5>8,août_récap!E14,0)+IF($A$5>9,septembre_récap!E14,0)+IF($A$5>10,octobre_récap!E14,0)+IF($A$5>11,novembre_récap!E14,0)+IF($A$5>12,décembre_récap!E14,0)) -> 61 | S30: =IF(OR(B30="",R30=0),"",P30/R30) -> 7.37704918
A31: 33 | C31: 9 | D31: 8 | E31: 12 | F31: 10 | G31: =IF(INDIRECT(G$19&"_récap!$D$"&ROW()-16)=0,"", INDIRECT(G$19&"_récap!$D$"&ROW()-16)) -> 15 | H31: 8 | I31: 4 | J31: 7 | K31: 9 | L31: 7 | M31: 14 | N31: 11 | Q31: =IF($A$6=0,"",SUM(INDIRECT("C"&ROW()&":"&$A$6&ROW()))) -> 114 | T31: =IF(OR(B30="",R30=0),"",Q31/R30) -> 1.868852459
A32: 34 | B32: =INDIRECT("BdCréneaux!R"&(ROW()/2)-10) -> Hôpital Jour 14h00>16h00 | C32: 11 | D32: 5 | E32: 13 | F32: 7 | G32: 8 | K32: 10 | L32: 6 | M32: 4 | N32: 8 | O32: =B32 -> Hôpital Jour 14h00>16h00 | P32: =SUM(INDIRECT("C"&ROW()&":N"&ROW())) -> 72 | R32: =IF(B32="","",IF($A$5>1,janvier_récap!E16,0)+IF($A$5>2,février_récap!E16,0)+IF($A$5>3,mars_récap!E16,0)+IF($A$5>4,avril_récap!E16,0)+IF($A$5>5,mai_récap!E16,0)+IF($A$5>6,juin_récap!E16,0)+IF($A$5>7,juillet_récap!E16,0)+IF($A$5>8,août_récap!E16,0)+IF($A$5>9,septembre_récap!E16,0)+IF($A$5>10,octobre_récap!E16,0)+IF($A$5>11,novembre_récap!E16,0)+IF($A$5>12,décembre_récap!E16,0)) -> 41 | S32: =IF(OR(B32="",R32=0),"",P32/R32) -> 1.756097561
A33: 35 | C33: 8 | D33: 7 | E33: 10 | F33: 4 | G33: =IF(INDIRECT(G$19&"_récap!$D$"&ROW()-16)=0,"", INDIRECT(G$19&"_récap!$D$"&ROW()-16)) -> 4 | H33: 10 | I33: 8 | J33: 5 | K33: 3 | L33: 2 | M33: 3 | N33: 4 | Q33: =IF($A$6=0,"",SUM(INDIRECT("C"&ROW()&":"&$A$6&ROW()))) -> 68 | T33: =IF(OR(B32="",R32=0),"",Q33/R32) -> 1.658536585
A34: 36 | B34: Consult.Pédia. Médecine 10h00>12h00 | C34: 17 | D34: 17 | E34: 34 | F34: 26 | G34: 34 | H34: 32 | I34: 31 | J34: 6 | K34: 46 | L34: 23 | M34: 55 | N34: 15 | O34: =B34 -> Consult.Pédia. Médecine 10h00>12h00 | P34: =SUM(INDIRECT("C"&ROW()&":N"&ROW())) -> 336 | R34: =IF(B34="","",IF($A$5>1,janvier_récap!E18,0)+IF($A$5>2,février_récap!E18,0)+IF($A$5>3,mars_récap!E18,0)+IF($A$5>4,avril_récap!E18,0)+IF($A$5>5,mai_récap!E18,0)+IF($A$5>6,juin_récap!E18,0)+IF($A$5>7,juillet_récap!E18,0)+IF($A$5>8,août_récap!E18,0)+IF($A$5>9,septembre_récap!E18,0)+IF($A$5>10,octobre_récap!E18,0)+IF($A$5>11,novembre_récap!E18,0)+IF($A$5>12,décembre_récap!E18,0)) -> 39 | S34: =IF(OR(B34="",R34=0),"",P34/R34) -> 8.615384615
A35: 37 | C35: 4 | D35: 4 | E35: 6 | F35: 6 | G35: =IF(INDIRECT(G$19&"_récap!$D$"&ROW()-16)=0,"", INDIRECT(G$19&"_récap!$D$"&ROW()-16)) -> 8 | H35: 6 | I35: 3 | J35: 4 | K35: 7 | L35: 6 | M35: 7 | N35: 5 | Q35: =IF($A$6=0,"",SUM(INDIRECT("C"&ROW()&":"&$A$6&ROW()))) -> 66 | T35: =IF(OR(B34="",R34=0),"",Q35/R34) -> 1.692307692
A36: 38 | B36: =INDIRECT("BdCréneaux!R"&(ROW()/2)-10) -> Consult.Pédia. Médecine 14h00>16h00 | C36: 28 | D36: 26 | E36: 31 | F36: 32 | G36: 49 | H36: 29 | I36: 27 | J36: 10 | K36: 41 | L36: 38 | M36: 31 | N36: 23 | O36: =INDIRECT("BdCréneaux!R"&(ROW()/2)-10) -> Consult.Pédia. Médecine 14h00>16h00 | P36: =SUM(INDIRECT("C"&ROW()&":N"&ROW())) -> 365 | R36: =IF(B36="","",IF($A$5>1,janvier_récap!E20,0)+IF($A$5>2,février_récap!E20,0)+IF($A$5>3,mars_récap!E20,0)+IF($A$5>4,avril_récap!E20,0)+IF($A$5>5,mai_récap!E20,0)+IF($A$5>6,juin_récap!E20,0)+IF($A$5>7,juillet_récap!E20,0)+IF($A$5>8,août_récap!E20,0)+IF($A$5>9,septembre_récap!E20,0)+IF($A$5>10,octobre_récap!E20,0)+IF($A$5>11,novembre_récap!E20,0)+IF($A$5>12,décembre_récap!E20,0)) -> 41 | S36: =IF(OR(B36="",R36=0),"",P36/R36) -> 8.902439024
A37: 39 | C37: 7 | D37: 7 | E37: 7 | F37: 7 | G37: =IF(INDIRECT(G$19&"_récap!$D$"&ROW()-16)=0,"", INDIRECT(G$19&"_récap!$D$"&ROW()-16)) -> 9 | H37: 6 | I37: 3 | J37: 3 | K37: 6 | L37: 7 | M37: =IF(INDIRECT(M$19&"_récap!$D$"&ROW()-16)=0,"", INDIRECT(M$19&"_récap!$D$"&ROW()-16)) -> 7 | N37: =IF(INDIRECT(N$19&"_récap!$D$"&ROW()-16)=0,"", INDIRECT(N$19&"_récap!$D$"&ROW()-16)) -> 4 | Q37: =IF($A$6=0,"",SUM(INDIRECT("C"&ROW()&":"&$A$6&ROW()))) -> 73 | T37: =IF(OR(B36="",R36=0),"",Q37/R36) -> 1.780487805
A38: =IF(B38<>" ",ROW()+2,"") -> 40 | B38: =INDIRECT("BdCréneaux!R"&(ROW()/2)-10) -> Pédiatrie 16h00>18h00 | C38: 26 | D38: 20 | E38: 17 | F38: 20 | G38: 36 | H38: 22 | I38: 3 | K38: 8 | L38: 9 | M38: 11 | N38: 9 | O38: =INDIRECT("BdCréneaux!R"&(ROW()/2)-10) -> Pédiatrie 16h00>18h00 | P38: =SUM(INDIRECT("C"&ROW()&":N"&ROW())) -> 181 | R38: =IF(B38="","",IF($A$5>1,janvier_récap!E22,0)+IF($A$5>2,février_récap!E22,0)+IF($A$5>3,mars_récap!E22,0)+IF($A$5>4,avril_récap!E22,0)+IF($A$5>5,mai_récap!E22,0)+IF($A$5>6,juin_récap!E22,0)+IF($A$5>7,juillet_récap!E22,0)+IF($A$5>8,août_récap!E22,0)+IF($A$5>9,septembre_récap!E22,0)+IF($A$5>10,octobre_récap!E22,0)+IF($A$5>11,novembre_récap!E22,0)+IF($A$5>12,décembre_récap!E22,0)) -> 44 | S38: =IF(OR(B38="",R38=0),"",P38/R38) -> 4.113636364
A39: =IF(B39<>" ",ROW()+2,"") -> 41 | C39: 14 | D39: =IF(INDIRECT(D$19&"_récap!$D$"&ROW()-16)=0,"", INDIRECT(D$19&"_récap!$D$"&ROW()-16)) -> 11 | E39: 5 | F39: 9 | G39: 6 | H39: 5 | I39: 3 | J39: 3 | K39: 4 | L39: 6 | M39: 5 | N39: 7 | Q39: =IF($A$6=0,"",SUM(INDIRECT("C"&ROW()&":"&$A$6&ROW()))) -> 78 | T39: =IF(OR(B38="",R38=0),"",Q39/R38) -> 1.772727273
A40: 42 | B40: =INDIRECT("BdCréneaux!R"&(ROW()/2)-10) -> Pédiatrie 14h00>16h00 | C40: 11 | E40: 70 | F40: 47 | G40: 65 | H40: 59 | I40: 7 | K40: 14 | L40: 15 | M40: 19 | N40: 12 | O40: =INDIRECT("BdCréneaux!R"&(ROW()/2)-10) -> Pédiatrie 14h00>16h00 | P40: =SUM(INDIRECT("C"&ROW()&":N"&ROW())) -> 319 | R40: =IF(B40="","",IF($A$5>1,janvier_récap!E24,0)+IF($A$5>2,février_récap!E22,0)+IF($A$5>3,mars_récap!E22,0)+IF($A$5>4,avril_récap!E22,0)+IF($A$5>5,mai_récap!E22,0)+IF($A$5>6,juin_récap!E22,0)+IF($A$5>7,juillet_récap!E22,0)+IF($A$5>8,août_récap!E22,0)+IF($A$5>9,septembre_récap!E22,0)+IF($A$5>10,octobre_récap!E22,0)+IF($A$5>11,novembre_récap!E22,0)+IF($A$5>12,décembre_récap!E22,0)) -> 36 | S40: =IF(OR(B40="",R40=0),"",P40/R40) -> 8.861111111
A41: 43 | C41: 1 | D41: 1 | E41: 16 | F41: 11 | G41: 6 | H41: 13 | I41: 2 | J41: 1 | K41: 6 | L41: 7 | M41: 9 | N41: 6 | Q41: =IF($A$6=0,"",SUM(INDIRECT("C"&ROW()&":"&$A$6&ROW()))) -> 79 | T41: =IF(OR(B40="",R40=0),"",Q41/R40) -> 2.194444444
A42: 44 | B42: =INDIRECT("BdCréneaux!R"&(ROW()/2)-10) -> Urgence Pédia. 14h00>16h00 | C42: 17 | D42: =IF(INDIRECT(D$19&"_récap!$D$"&ROW()-16)=0,"", INDIRECT(D$19&"_récap!$D$"&ROW()-16)) -> 29 | E42: 57 | F42: 44 | G42: 97 | H42: 80 | I42: 35 | J42: 30 | K42: 49 | L42: 65 | M42: 85 | N42: 38 | O42: =INDIRECT("BdCréneaux!R"&(ROW()/2)-10) -> Urgence Pédia. 14h00>16h00 | P42: =SUM(INDIRECT("C"&ROW()&":N"&ROW())) -> 626 | R42: =IF(B42="","",IF($A$5>1,janvier_récap!E26,0)+IF($A$5>2,février_récap!E24,0)+IF($A$5>3,mars_récap!E24,0)+IF($A$5>4,avril_récap!E24,0)+IF($A$5>5,mai_récap!E24,0)+IF($A$5>6,juin_récap!E24,0)+IF($A$5>7,juillet_récap!E24,0)+IF($A$5>8,août_récap!E24,0)+IF($A$5>9,septembre_récap!E24,0)+IF($A$5>10,octobre_récap!E24,0)+IF($A$5>11,novembre_récap!E24,0)+IF($A$5>12,décembre_récap!E24,0)) -> 50 | S42: =IF(OR(B42="",R42=0),"",P42/R42) -> 12.52
A43: 45 | C43: 12 | D43: 10 | E43: 23 | F43: 14 | G43: =IF(INDIRECT(G$19&"_récap!$D$"&ROW()-16)=0,"", INDIRECT(G$19&"_récap!$D$"&ROW()-16)) -> 23 | H43: 19 | I43: 15 | J43: 14 | K43: 16 | L43: 15 | M43: 22 | N43: 9 | Q43: =IF($A$6=0,"",SUM(INDIRECT("C"&ROW()&":"&$A$6&ROW()))) -> 192 | T43: =IF(OR(B42="",R42=0),"",Q43/R42) -> 3.84
A44: 46 | B44: =INDIRECT("BdCréneaux!R"&(ROW()/2)-10) -> Urgence Pédia. 16h00>18h00 | D44: 3 | E44: 11 | F44: 11 | G44: 14 | H44: 23 | K44: 13 | L44: 12 | M44: 14 | N44: 13 | O44: =INDIRECT("BdCréneaux!R"&(ROW()/2)-10) -> Urgence Pédia. 16h00>18h00 | P44: =SUM(INDIRECT("C"&ROW()&":N"&ROW())) -> 114 | R44: =IF(B44="","",IF($A$5>1,janvier_récap!E28,0)+IF($A$5>2,février_récap!E26,0)+IF($A$5>3,mars_récap!E26,0)+IF($A$5>4,avril_récap!E26,0)+IF($A$5>5,mai_récap!E26,0)+IF($A$5>6,juin_récap!E26,0)+IF($A$5>7,juillet_récap!E26,0)+IF($A$5>8,août_récap!E26,0)+IF($A$5>9,septembre_récap!E26,0)+IF($A$5>10,octobre_récap!E26,0)+IF($A$5>11,novembre_récap!E26,0)+IF($A$5>12,décembre_récap!E26,0)) -> 120 | S44: =IF(OR(B44="",R44=0),"",P44/R44) -> 0.95
A45: 47 | C45: 9 | D45: 4 | E45: 10 | F45: 5 | G45: =IF(INDIRECT(G$19&"_récap!$D$"&ROW()-16)=0,"", INDIRECT(G$19&"_récap!$D$"&ROW()-16)) -> 4 | H45: 10 | I45: 2 | K45: 6 | L45: 6 | M45: 6 | N45: 5 | Q45: =IF($A$6=0,"",SUM(INDIRECT("C"&ROW()&":"&$A$6&ROW()))) -> 67 | T45: =IF(OR(B44="",R44=0),"",Q45/R44) -> 0.5583333333
A46: 48 | B46: =INDIRECT("BdCréneaux!R"&(ROW()/2)-10) -> Ehpad Léonard de Vinci 14h00>16h00 | E46: 40 | F46: 76 | G46: 241 | H46: 86 | I46: 101 | J46: 81 | K46: 122 | L46: 117 | M46: 152 | N46: 158 | O46: =INDIRECT("BdCréneaux!R"&(ROW()/2)-10) -> Ehpad Léonard de Vinci 14h00>16h00 | P46: =SUM(INDIRECT("C"&ROW()&":N"&ROW())) -> 1174 | R46: =IF(B46="","",IF($A$5>1,janvier_récap!E30,0)+IF($A$5>2,février_récap!E28,0)+IF($A$5>3,mars_récap!E28,0)+IF($A$5>4,avril_récap!E28,0)+IF($A$5>5,mai_récap!E28,0)+IF($A$5>6,juin_récap!E28,0)+IF($A$5>7,juillet_récap!E28,0)+IF($A$5>8,août_récap!E28,0)+IF($A$5>9,septembre_récap!E28,0)+IF($A$5>10,octobre_récap!E28,0)+IF($A$5>11,novembre_récap!E28,0)+IF($A$5>12,décembre_récap!E28,0)) -> 28 | S46: =IF(OR(B46="",R46=0),"",P46/R46) -> 41.92857143
A47: 49 | E47: 14 | F47: 9 | G47: =IF(INDIRECT(G$19&"_récap!$D$"&ROW()-16)=0,"", INDIRECT(G$19&"_récap!$D$"&ROW()-16)) -> 24 | H47: 11 | I47: 10 | J47: 10 | K47: 11 | L47: 10 | M47: 17 | N47: 15 | Q47: =IF($A$6=0,"",SUM(INDIRECT("C"&ROW()&":"&$A$6&ROW()))) -> 131 | T47: =IF(OR(B46="",R46=0),"",Q47/R46) -> 4.678571429
A48: 50 | B48: =INDIRECT("BdCréneaux!R"&(ROW()/2)-10) ->  | O48: =B48 ->  | S48: =IF(OR(B48="",R48=0),"",P48/R48) -> 
A49: 51 | G49: =IF(INDIRECT(G$19&"_récap!$D$"&ROW()-16)=0,"", INDIRECT(G$19&"_récap!$D$"&ROW()-16)) ->  | T49: =IF(OR(B48="",R48=0),"",Q49/R48) -> 

Sheet janvier (hidden)
A1: 32lig50 | D1: janvier | M1: =Accueil!$A$1 -> 2022 | P1: =IF(A4=0,"0",SUM(AI:AI)) -> 29 | Q1: =" Blouse(s) Rose(s)" -> Blouse(s) Rose(s) | AT1: ='Vacances Scolaires'!E4 -> 2022-01-01 | AU1: ='Vacances Scolaires'!G4 -> 2022-01-02
A2: 1
A3: =MATCH(D1,paramètres!E2:E13,FALSE) -> 1 | AD3: Lun | AE3: =IF(OR(R6="",Z6=""),"",IF(INDIRECT("BdCréneaux!S"&MATCH($R$6&" "&$Z$6,BdCréneaux!R$1:R$16,FALSE))=0,"",INDIRECT("BdCréneaux!S"&MATCH($R$6&" "&$Z$6,BdCréneaux!R$1:R$16,FALSE)))) -> 
A4: =IF(MATCH("zzz",INDIRECT("B3:B"&500),1)+3<=24,0,MATCH("zzz",INDIRECT("B3:B"&500),1)+3) -> 95 | AD4: Mar | AE4: =IF(OR(R6="",Z6=""),"",IF(INDIRECT("BdCréneaux!T"&MATCH($R$6&" "&$Z$6,BdCréneaux!R$1:R$16,FALSE))=0,"", INDIRECT("BdCréneaux!T"&MATCH($R$6&" "&$Z$6,BdCréneaux!R$1:R$16,FALSE)))) -> 
A5: =IF(A4=0,0, IF(ISNA(MATCH(G6,INDIRECT("B24:B"&A4),FALSE))=TRUE,0,MATCH(G6,INDIRECT("B24:B"&A4),FALSE)+23) ) -> 0 | AD5: Mer | AE5: =IF(OR(R6="",Z6=""),"",IF(INDIRECT("BdCréneaux!U"&MATCH($R$6&" "&$Z$6,BdCréneaux!R$1:R$16,FALSE))=0,"", INDIRECT("BdCréneaux!U"&MATCH($R$6&" "&$Z$6,BdCréneaux!R$1:R$16,FALSE)))) -> 
A6: mois | AD6: Jeu | AE6: =IF(OR(R6="",Z6=""),"",IF(INDIRECT("BdCréneaux!V"&MATCH($R$6&" "&$Z$6,BdCréneaux!R$1:R$16,FALSE))=0,"", INDIRECT("BdCréneaux!V"&MATCH($R$6&" "&$Z$6,BdCréneaux!R$1:R$16,FALSE)))) -> 
A7: =SEARCH("lig",A1,1) -> 3 | G7: Sélection de la Blouse Rose | R7: Lieu | Z7: Créneau horaire | AD7: Ven | AE7: =IF(OR(R6="",Z6=""),"",IF(INDIRECT("BdCréneaux!W"&MATCH($R$6&" "&$Z$6,BdCréneaux!R$1:R$16,FALSE))=0,"", INDIRECT("BdCréneaux!W"&MATCH($R$6&" "&$Z$6,BdCréneaux!R$1:R$16,FALSE)))) -> 
A8: =IF(VALUE(LEFT(A1,A7-1))>26,CHAR(INT((VALUE(LEFT(A1,A7-1))-1)/26)+64)&CHAR(VALUE(LEFT(A1,A7-1))-( INT((VALUE(LEFT(A1,A7-1))-1)/26)*26)+64),CHAR(VALUE(LEFT(A1,A7-1))+64)) -> AF | AD8: Sam | AE8: =IF(OR(R6="",Z6=""),"",IF(INDIRECT("BdCréneaux!X"&MATCH($R$6&" "&$Z$6,BdCréneaux!R$1:R$16,FALSE))=0,"", INDIRECT("BdCréneaux!X"&MATCH($R$6&" "&$Z$6,BdCréneaux!R$1:R$16,FALSE)))) -> 
A9: =IF(DAY(MATCH(MAX(D21:AH21),D21:AH21,0))+3>26,CHAR(INT((DAY(MATCH(MAX(D21:AH21),D21:AH21,0))+3-1)/26)+64)&CHAR(DAY(MATCH(MAX(D21:AH21),D21:AH21,0))+3-( INT((DAY(MATCH(MAX(D21:AH21),D21:AH21,0))+3-1)/26)*26)+64),CHAR(DAY(MATCH(MAX(D21:AH21),D21:AH21,0))+3+64)) -> AH | AD9: Dim | AE9: =IF(OR(R6="",Z6=""),"",IF(INDIRECT("BdCréneaux!Y"&MATCH($R$6&" "&$Z$6,BdCréneaux!R$1:R$16,FALSE))=0,"",INDIRECT("BdCréneaux!Y"&MATCH($R$6&" "&$Z$6,BdCréneaux!R$1:R$16,FALSE)))) -> 
A10: =BdCréneaux!AA3 -> 44
A11: Richard ALEXANDRE
A12: =IF(ISNA(MATCH(A11,bdBR!A:A,FALSE))=TRUE,"", IF(INDIRECT("bdBR!L"&MATCH(A11,bdBR!A:A,FALSE))="Stagiaire","s ","")) -> 
A13: FALSE
A14: Richard ALEXANDRE
A15: =IF( ISNA(MATCH(A14,NonVenu!B:B,FALSE))=TRUE,0,MATCH(A14,NonVenu!B:B,FALSE)) -> 40 | C15: =IF(OR(R6="",Z6=""),"",INDIRECT("BdCréneaux!L"&MATCH($R$6&" "&$Z$6,BdCréneaux!R$1:R$16,FALSE))) ->  | D15: ="Récapitulatif du nombre de Blouse Rose par jour " & IF(R6<>0,"pour "&R6&" "&Z6,"") -> Récapitulatif du nombre de Blouse Rose par jour
A16: C | C16: =SUM(D16:AH17) -> 0 | D16: =IF(D21="","",IF(OR($R6="",$Z6="",$A$4=0),"", IF(INDIRECT($D$1&"_fermé!"&D18 &MATCH($C$15,INDIRECT($D$1&"_fermé!$A:$A"),FALSE) )="R","R", IF(INDIRECT($D$1&"_fermé!"&D18 &MATCH($C$15,INDIRECT($D$1&"_fermé!$A:$A"),FALSE) )="X","X", IF(COUNTIF(INDIRECT(D$18&"24:"&D$18&$A$4),$C15)=0,".",COUNTIF(INDIRECT(D$18&"24:"&D$18&$A$4),$C15) ) ) ))) ->  | E16: =IF(E21="","",IF(OR($R6="",$Z6="",$A$4=0),"", IF(INDIRECT($D$1&"_fermé!"&E18 &MATCH($C$15,INDIRECT($D$1&"_fermé!$A:$A"),FALSE) )="R","R", IF(INDIRECT($D$1&"_fermé!"&E18 &MATCH($C$15,INDIRECT($D$1&"_fermé!$A:$A"),FALSE) )="X","X", IF(COUNTIF(INDIRECT(E$18&"24:"&E$18&$A$4),$C15)=0,".",COUNTIF(INDIRECT(E$18&"24:"&E$18&$A$4),$C15) ) ) ))) -> 
D18: D | E18: E | F18: F | G18: G | H18: H | I18: I | J18: J | K18: K | L18: L | M18: M | N18: N | O18: O | P18: P | Q18: Q | R18: R | S18: S | T18: T | U18: U | V18: V | W18: W | X18: X | Y18: Y | Z18: Z | AA18: AA | AB18: AB | AC18: AC | AD18: AD | AE18: AE | AF18: AF | AG18: AG | AH18: AH
D20: =IF(D21="","",IF(INT(((D21-(IF(WEEKDAY(DATE(YEAR(D21),1,1),2)=1,DATE(YEAR(D21),1,1),DATE(YEAR(D21),1,1)+8-WEEKDAY(DATE(YEAR(D21),1,1),2))))/7))+IF(WEEKDAY(DATE(YEAR(D21),1,1),2)>1, IF(WEEKDAY(DATE(YEAR(D21),1,1),2)<5,2,1),1) =0,"", INT(((D21-(IF(WEEKDAY(DATE(YEAR(D21),1,1),2)=1,DATE(YEAR(D21),1,1),DATE(YEAR(D21),1,1)+8-WEEKDAY(DATE(YEAR(D21),1,1),2))))/7))+IF(WEEKDAY(DATE(YEAR(D21),1,1),2)>1, IF(WEEKDAY(DATE(YEAR(D21),1,1),2)<5,2,1),1) )) ->  | E20: =IF(E21="","",INT(((E21-(IF(WEEKDAY(DATE(YEAR(E21),1,1),2)=1,DATE(YEAR(E21),1,1),DATE(YEAR(E21),1,1)+8-WEEKDAY(DATE(YEAR(E21),1,1),2))))/7))+IF(WEEKDAY(DATE(YEAR(E21),1,1),2)>1, IF(WEEKDAY(DATE(YEAR(E21),1,1),2)<5,2,1),1) ) -> 0 | F20: =IF(F21="","",INT(((F21-(IF(WEEKDAY(DATE(YEAR(F21),1,1),2)=1,DATE(YEAR(F21),1,1),DATE(YEAR(F21),1,1)+8-WEEKDAY(DATE(YEAR(F21),1,1),2))))/7))+IF(WEEKDAY(DATE(YEAR(F21),1,1),2)>1, IF(WEEKDAY(DATE(YEAR(F21),1,1),2)<5,2,1),1) ) -> 1 | G20: 1 | H20: 1 | I20: 1 | J20: 1 | K20: 1 | L20: 1 | M20: 2 | N20: 2 | O20: 2 | P20: 2 | Q20: 2 | R20: 2 | S20: 2 | T20: 3 | U20: 3 | V20: 3 | W20: 3 | X20: 3 | Y20: 3 | Z20: 3 | AA20: 4 | AB20: 4 | AC20: 4 | AD20: 4 | AE20: 4 | AF20: 4 | AG20: 4 | AH20: 5
D21: =DATE(Accueil!A1,A2,1) -> 2022-01-01 | E21: =D21+1 -> 2022-01-02 | F21: 2022-01-03 | G21: 2022-01-04 | H21: 2022-01-05 | I21: 2022-01-06 | J21: 2022-01-07 | K21: 2022-01-08 | L21: 2022-01-09 | M21: 2022-01-10 | N21: 2022-01-11 | O21: 2022-01-12 | P21: 2022-01-13 | Q21: 2022-01-14 | R21: 2022-01-15 | S21: 2022-01-16 | T21: 2022-01-17 | U21: 2022-01-18 | V21: 2022-01-19 | W21: 2022-01-20 | X21: 2022-01-21 | Y21: =IF(MONTH(X21+1)<>MONTH(X21),"",X21+1) -> 2022-01-22 | Z21: =IF(MONTH(Y21+1)<>MONTH(Y21),"",Y21+1) -> 2022-01-23 | AA21: =IF(MONTH(Z21+1)<>MONTH(Z21),"",Z21+1) -> 2022-01-24 | AB21: =IF(AA21="","",IF(MONTH(AA21+1)<>MONTH(AA21),"",AA21+1)) -> 2022-01-25 | AC21: 2022-01-26 | AD21: 2022-01-27 | AE21: 2022-01-28 | AF21: 2022-01-29 | AG21: 2022-01-30 | AH21: 2022-01-31
D22: =IF(D21="","",LEFT(INDIRECT("paramètres!B"& TEXT(WEEKDAY(D21,2)+1,0)),2)) -> Sa | E22: =IF(E21="","",LEFT(INDIRECT("paramètres!B"& TEXT(WEEKDAY(E21,2)+1,0)),2)) -> Di | F22: Lu | G22: Ma | H22: Me | I22: Je | J22: Ve | K22: Sa | L22: Di | M22: Lu | N22: Ma | O22: Me | P22: Je | Q22: Ve | R22: Sa | S22: Di | T22: Lu | U22: Ma | V22: Me | W22: Je | X22: Ve | Y22: Sa | Z22: Di | AA22: Lu | AB22: Ma | AC22: Me | AD22: Je | AE22: Ve | AF22: Sa | AG22: Di | AH22: Lu
B23: f férié vs vac.scol. | D23: =IF(D21="","", IF(LOOKUP(D21,'Vacances Scolaires'!$B$4:$B$16)=D21=TRUE,"f",IF(AND(D21>=$AT$1,D21<=$AU$1),"vs","") )) -> f | E23: =IF(E21="","", IF(LOOKUP(E21,'Vacances Scolaires'!$B$4:$B$16)=E21=TRUE,"f",IF(AND(E21>=$AT$1,E21<=$AU$1),"vs","") )) -> vs | F23: =IF(F21="","", IF(LOOKUP(F21,'Vacances Scolaires'!$B$4:$B$16)=F21=TRUE,"f",IF(AND(F21>=$AT$1,F21<=$AU$1),"vs","") )) ->  | G23: =IF(G21="","", IF(LOOKUP(G21,'Vacances Scolaires'!$B$4:$B$16)=G21=TRUE,"f",IF(AND(G21>=$AT$1,G21<=$AU$1),"vs","") )) ->  | H23: =IF(H21="","", IF(LOOKUP(H21,'Vacances Scolaires'!$B$4:$B$16)=H21=TRUE,"f",IF(AND(H21>=$AT$1,H21<=$AU$1),"vs","") )) ->  | I23: =IF(I21="","", IF(LOOKUP(I21,'Vacances Scolaires'!$B$4:$B$16)=I21=TRUE,"f",IF(AND(I21>=$AT$1,I21<=$AU$1),"vs","") )) ->  | J23: =IF(J21="","", IF(LOOKUP(J21,'Vacances Scolaires'!$B$4:$B$16)=J21=TRUE,"f",IF(AND(J21>=$AT$1,J21<=$AU$1),"vs","") )) ->  | K23: =IF(K21="","", IF(LOOKUP(K21,'Vacances Scolaires'!$B$4:$B$16)=K21=TRUE,"f",IF(AND(K21>=$AT$1,K21<=$AU$1),"vs","") )) ->  | L23: =IF(L21="","", IF(LOOKUP(L21,'Vacances Scolaires'!$B$4:$B$16)=L21=TRUE,"f",IF(AND(L21>=$AT$1,L21<=$AU$1),"vs","") )) ->  | M23: =IF(M21="","", IF(LOOKUP(M21,'Vacances Scolaires'!$B$4:$B$16)=M21=TRUE,"f",IF(AND(M21>=$AT$1,M21<=$AU$1),"vs","") )) ->  | N23: =IF(N21="","", IF(LOOKUP(N21,'Vacances Scolaires'!$B$4:$B$16)=N21=TRUE,"f",IF(AND(N21>=$AT$1,N21<=$AU$1),"vs","") )) ->  | O23: =IF(O21="","", IF(LOOKUP(O21,'Vacances Scolaires'!$B$4:$B$16)=O21=TRUE,"f",IF(AND(O21>=$AT$1,O21<=$AU$1),"vs","") )) ->  | P23: =IF(P21="","", IF(LOOKUP(P21,'Vacances Scolaires'!$B$4:$B$16)=P21=TRUE,"f",IF(AND(P21>=$AT$1,P21<=$AU$1),"vs","") )) ->  | Q23: =IF(Q21="","", IF(LOOKUP(Q21,'Vacances Scolaires'!$B$4:$B$16)=Q21=TRUE,"f",IF(AND(Q21>=$AT$1,Q21<=$AU$1),"vs","") )) ->  | R23: =IF(R21="","", IF(LOOKUP(R21,'Vacances Scolaires'!$B$4:$B$16)=R21=TRUE,"f",IF(AND(R21>=$AT$1,R21<=$AU$1),"vs","") )) ->  | S23: =IF(S21="","", IF(LOOKUP(S21,'Vacances Scolaires'!$B$4:$B$16)=S21=TRUE,"f",IF(AND(S21>=$AT$1,S21<=$AU$1),"vs","") )) ->  | T23: =IF(T21="","", IF(LOOKUP(T21,'Vacances Scolaires'!$B$4:$B$16)=T21=TRUE,"f",IF(AND(T21>=$AT$1,T21<=$AU$1),"vs","") )) ->  | U23: =IF(U21="","", IF(LOOKUP(U21,'Vacances Scolaires'!$B$4:$B$16)=U21=TRUE,"f",IF(AND(U21>=$AT$1,U21<=$AU$1),"vs","") )) ->  | V23: =IF(V21="","", IF(LOOKUP(V21,'Vacances Scolaires'!$B$4:$B$16)=V21=TRUE,"f",IF(AND(V21>=$AT$1,V21<=$AU$1),"vs","") )) ->  | W23: =IF(W21="","", IF(LOOKUP(W21,'Vacances Scolaires'!$B$4:$B$16)=W21=TRUE,"f",IF(AND(W21>=$AT$1,W21<=$AU$1),"vs","") )) ->  | X23: =IF(X21="","", IF(LOOKUP(X21,'Vacances Scolaires'!$B$4:$B$16)=X21=TRUE,"f",IF(AND(X21>=$AT$1,X21<=$AU$1),"vs","") )) ->  | Y23: =IF(Y21="","", IF(LOOKUP(Y21,'Vacances Scolaires'!$B$4:$B$16)=Y21=TRUE,"f",IF(AND(Y21>=$AT$1,Y21<=$AU$1),"vs","") )) ->  | Z23: =IF(Z21="","", IF(LOOKUP(Z21,'Vacances Scolaires'!$B$4:$B$16)=Z21=TRUE,"f",IF(AND(Z21>=$AT$1,Z21<=$AU$1),"vs","") )) ->  | AA23: =IF(AA21="","", IF(LOOKUP(AA21,'Vacances Scolaires'!$B$4:$B$16)=AA21=TRUE,"f",IF(AND(AA21>=$AT$1,AA21<=$AU$1),"vs","") )) ->  | AB23: =IF(AB21="","", IF(LOOKUP(AB21,'Vacances Scolaires'!$B$4:$B$16)=AB21=TRUE,"f",IF(AND(AB21>=$AT$1,AB21<=$AU$1),"vs","") )) ->  | AC23: =IF(AC21="","", IF(LOOKUP(AC21,'Vacances Scolaires'!$B$4:$B$16)=AC21=TRUE,"f",IF(AND(AC21>=$AT$1,AC21<=$AU$1),"vs","") )) ->  | AD23: =IF(AD21="","", IF(LOOKUP(AD21,'Vacances Scolaires'!$B$4:$B$16)=AD21=TRUE,"f",IF(AND(AD21>=$AT$1,AD21<=$AU$1),"vs","") )) ->  | AE23: =IF(AE21="","", IF(LOOKUP(AE21,'Vacances Scolaires'!$B$4:$B$16)=AE21=TRUE,"f",IF(AND(AE21>=$AT$1,AE21<=$AU$1),"vs","") )) ->  | AF23: =IF(AF21="","", IF(LOOKUP(AF21,'Vacances Scolaires'!$B$4:$B$16)=AF21=TRUE,"f",IF(AND(AF21>=$AT$1,AF21<=$AU$1),"vs","") )) ->  | AG23: =IF(AG21="","", IF(LOOKUP(AG21,'Vacances Scolaires'!$B$4:$B$16)=AG21=TRUE,"f",IF(AND(AG21>=$AT$1,AG21<=$AU$1),"vs","") )) ->  | AH23: =IF(AH21="","", IF(LOOKUP(AH21,'Vacances Scolaires'!$B$4:$B$16)=AH21=TRUE,"f",IF(AND(AH21>=$AT$1,AH21<=$AU$1),"vs","") )) -> 
A24: =ROW() -> 24 | B24: Annick RAMIER | U24: M2 | AB24: M2 | AI24: =IF(COUNTA(D24:AH25)>0,1,0) -> 1
A25: =ROW() -> 25
A26: =ROW() -> 26 | B26: Annie OLLIVIER | AI26: =IF(COUNTA(D26:AH27)>0,1,0) -> 0
A27: =ROW() -> 27
A28: =ROW() -> 28 | B28: Brigitte BOSCHAT | I28: U2 | P28: U2 | V28: U1 | W28: U2 | AD28: U2 | AI28: =IF(COUNTA(D28:AH29)>0,1,0) -> 1
A29: =ROW() -> 29
A30: =ROW() -> 30 | B30: Chantal VALLÉE | V30: H1 | X30: H1 | AC30: H1 | AE30: H1 | AI30: =IF(COUNTA(D30:AH31)>0,1,0) -> 1
A31: =ROW() -> 31
A32: =ROW() -> 32 | B32: Christine COSTA | H32: P1 | O32: P1 | V32: P1 | AC32: P1 | AI32: =IF(COUNTA(D32:AH33)>0,1,0) -> 1
A33: =ROW() -> 33
A34: =ROW() -> 34 | B34: Chrystèle NAZARIN | U34: A1 | V34: A1 | AI34: =IF(COUNTA(D34:AH35)>0,1,0) -> 1
A35: =ROW() -> 35
A36: =ROW() -> 36 | B36: Clara GÉRARD | Q36: C1 | AI36: =IF(COUNTA(D36:AH37)>0,1,0) -> 1
A37: =ROW() -> 37
A38: =ROW() -> 38 | B38: Claudine ARCELIN | I38: U2 | P38: U2 | W38: U2 | AC38: U1 | AD38: U2 | AI38: =IF(COUNTA(D38:AH39)>0,1,0) -> 1
A39: =ROW() -> 39
A40: =ROW() -> 40 | B40: Élisabeth LEROUX | K40: U1 | R40: U1 | Y40: U1 | AF40: U1 | AI40: =IF(COUNTA(D40:AH41)>0,1,0) -> 1
A41: =ROW() -> 41
A42: =ROW() -> 42 | B42: Evelyne CERISAY | M42: C2 | N42: U1 | T42: C2 | AA42: C2 | AI42: =IF(COUNTA(D42:AH43)>0,1,0) -> 1
A43: =ROW() -> 43
A44: =ROW() -> 44 | B44: Françoise GOUJON-MAILLARD | AI44: =IF(COUNTA(D44:AH45)>0,1,0) -> 0
A45: =ROW() -> 45
A46: =ROW() -> 46 | B46: Isabelle FOUGERAY | G46: M1 | U46: M1 | AB46: M1 | AI46: =IF(COUNTA(D46:AH47)>0,1,0) -> 1
A47: =ROW() -> 47
A48: =ROW() -> 48 | B48: Jean-Noël CERISAY | G48: A1 | N48: A1 | P48: A1 | AB48: A1 | AI48: =IF(COUNTA(D48:AH49)>0,1,0) -> 1
A49: =ROW() -> 49 | G49: U1 | N49: U1
A50: =ROW() -> 50 | B50: Jean-Pascal BOULEUX | K50: P1 | R50: P1 | Y50: P1 | AF50: P2 | AI50: =IF(COUNTA(D50:AH51)>0,1,0) -> 1
A51: =ROW() -> 51
A52: =ROW() -> 52 | B52: Josiane VANDER MEERSCHE | G52: A1 | AI52: =IF(COUNTA(D52:AH53)>0,1,0) -> 1
A53: =ROW() -> 53
A54: =ROW() -> 54 | B54: Liliane SOULAÏMANA | J54: C1 | AI54: =IF(COUNTA(D54:AH55)>0,1,0) -> 1
A55: =ROW() -> 55
A56: =ROW() -> 56 | B56: Marie-Paule BRULON | G56: M2 | N56: M2 | U56: M2 | AB56: M2 | AI56: =IF(COUNTA(D56:AH57)>0,1,0) -> 1
A57: =ROW() -> 57
A58: =ROW() -> 58 | B58: Martine LEPINAY | AE58: P1 | AI58: =IF(COUNTA(D58:AH59)>0,1,0) -> 1
A59: =ROW() -> 59
A60: =ROW() -> 60 | B60: Martine LOIRÉ | AI60: =IF(COUNTA(D60:AH61)>0,1,0) -> 0
A61: =ROW() -> 61
A62: =ROW() -> 62 | B62: Muriel COMPERE | M62: C2 | T62: C2 | AA62: C2 | AH62: C2 | AI62: =IF(COUNTA(D62:AH63)>0,1,0) -> 1
A63: =ROW() -> 63
A64: =ROW() -> 64 | B64: Richard ALEXANDRE | F64: A1 | P64: A1 | T64: A1 | W64: A1 | AA64: A1 | AE64: A1 | AH64: A1 | AI64: =IF(COUNTA(D64:AH65)>0,1,0) -> 1
A65: =ROW() -> 65
A66: =ROW() -> 66 | B66: Samia DERRAZ | AI66: =IF(COUNTA(D66:AH67)>0,1,0) -> 0
A67: =ROW() -> 67
A68: =ROW() -> 68 | B68: Sandrine LOISEAU | AI68: =IF(COUNTA(D68:AH69)>0,1,0) -> 0
A69: =ROW() -> 69
A70: =ROW() -> 70 | B70: Teresa VADILLO | AI70: =IF(COUNTA(D70:AH71)>0,1,0) -> 0
A71: =ROW() -> 71
A72: =ROW() -> 72 | B72: Thérèse HEUZARD | H72: P1 | O72: P1 | V72: P1 | AC72: P1 | AI72: =IF(COUNTA(D72:AH73)>0,1,0) -> 1
A73: =ROW() -> 73
A74: =ROW() -> 74 | B74: Valérie CAURET | J74: A1 | AI74: =IF(COUNTA(D74:AH75)>0,1,0) -> 1
A75: =ROW() -> 75
A76: =ROW() -> 76 | B76: Véronique PRADEL | J76: A1 | AI76: =IF(COUNTA(D76:AH77)>0,1,0) -> 1
A77: =ROW() -> 77
A78: =ROW() -> 78 | B78: Janine SIEPER | V78: U1 | AC78: U1 | AI78: =IF(COUNTA(D78:AH79)>0,1,0) -> 1
A79: =ROW() -> 79
A80: =ROW() -> 80 | B80: Aline CHAINTRON | U80: A1 | AA80: C2 | AC80: H1 | AI80: =IF(COUNTA(D80:AH81)>0,1,0) -> 1
A81: =ROW() -> 81
A82: =ROW() -> 82 | B82: Patrick UGUEN | Q82: P1 | V82: A1 | AI82: =IF(COUNTA(D82:AH83)>0,1,0) -> 1
A83: =ROW() -> 83
A84: =ROW() -> 84 | B84: Danielle GAUVRIT | W84: U2 | AH84: C2 | AI84: =IF(COUNTA(D84:AH85)>0,1,0) -> 1
A85: =ROW() -> 85
A86: =ROW() -> 86 | B86: Marion LEBOEUF | R86: P1 | V86: H1 | AI86: =IF(COUNTA(D86:AH87)>0,1,0) -> 1
A87: =ROW() -> 87
A88: =ROW() -> 88 | B88: Éléna PESLIER | U88: M2 | AI88: =IF(COUNTA(D88:AH89)>0,1,0) -> 1
A89: =ROW() -> 89
A90: =ROW() -> 90 | B90: Pascale DAVID | N90: U1 | U90: M1 | AI90: =IF(COUNTA(D90:AH91)>0,1,0) -> 1
A91: =ROW() -> 91
A92: =ROW() -> 92 | B92: Marie-Line COURTEVILLE | X92: H1 | AE92: H1 | AI92: =IF(COUNTA(D92:AH93)>0,1,0) -> 1
A93: =ROW() -> 93
A94: =ROW() -> 94 | B94: Marie-France BILLON | AI94: =IF(COUNTA(D94:AH95)>0,1,0) -> 0
A95: =ROW() -> 95

Sheet janvier_récap (hidden)
D1: ="Récapitulatif " &A3& " "&Accueil!$A$1 -> Récapitulatif janvier 2022 | R1: =IF(A4=0,"0", (A4-23)/2) & " Blouse(s) Rose(s)" -> 36 Blouse(s) Rose(s) | AT1: ='Vacances Scolaires'!E4 -> 2022-01-01 | AU1: ='Vacances Scolaires'!G4 -> 2022-01-02
A2: 1
A3: janvier | F3: =IF(F4="","",IF(INT(((F4-(IF(WEEKDAY(DATE(YEAR(F4),1,1),2)=1,DATE(YEAR(F4),1,1),DATE(YEAR(F4),1,1)+8-WEEKDAY(DATE(YEAR(F4),1,1),2))))/7))+IF(WEEKDAY(DATE(YEAR(F4),1,1),2)>1, IF(WEEKDAY(DATE(YEAR(F4),1,1),2)<5,2,1),1) =0,"", INT(((F4-(IF(WEEKDAY(DATE(YEAR(F4),1,1),2)=1,DATE(YEAR(F4),1,1),DATE(YEAR(F4),1,1)+8-WEEKDAY(DATE(YEAR(F4),1,1),2))))/7))+IF(WEEKDAY(DATE(YEAR(F4),1,1),2)>1, IF(WEEKDAY(DATE(YEAR(F4),1,1),2)<5,2,1),1) )) ->  | G3: =IF(G4="","",INT(((G4-(IF(WEEKDAY(DATE(YEAR(G4),1,1),2)=1,DATE(YEAR(G4),1,1),DATE(YEAR(G4),1,1)+8-WEEKDAY(DATE(YEAR(G4),1,1),2))))/7))+IF(WEEKDAY(DATE(YEAR(G4),1,1),2)>1, IF(WEEKDAY(DATE(YEAR(G4),1,1),2)<5,2,1),1) ) -> 0 | H3: =IF(H4="","",INT(((H4-(IF(WEEKDAY(DATE(YEAR(H4),1,1),2)=1,DATE(YEAR(H4),1,1),DATE(YEAR(H4),1,1)+8-WEEKDAY(DATE(YEAR(H4),1,1),2))))/7))+IF(WEEKDAY(DATE(YEAR(H4),1,1),2)>1, IF(WEEKDAY(DATE(YEAR(H4),1,1),2)<5,2,1),1) ) -> 1 | I3: 1 | J3: 1 | K3: 1 | L3: 1 | M3: 1 | N3: 1 | O3: 2 | P3: 2 | Q3: 2 | R3: 2 | S3: 2 | T3: 2 | U3: 2 | V3: 3 | W3: 3 | X3: 3 | Y3: 3 | Z3: 3 | AA3: 3 | AB3: 3 | AC3: 4 | AD3: 4 | AE3: 4 | AF3: 4 | AG3: 4 | AH3: 4 | AI3: 4 | AJ3: 5
A4: =INDIRECT(A3&"!A4") -> 95 | D4: Totaux | F4: =DATE(Accueil!A1,A2,1) -> 2022-01-01 | G4: =F4+1 -> 2022-01-02 | H4: 2022-01-03 | I4: 2022-01-04 | J4: 2022-01-05 | K4: 2022-01-06 | L4: 2022-01-07 | M4: 2022-01-08 | N4: 2022-01-09 | O4: 2022-01-10 | P4: 2022-01-11 | Q4: 2022-01-12 | R4: 2022-01-13 | S4: 2022-01-14 | T4: 2022-01-15 | U4: 2022-01-16 | V4: 2022-01-17 | W4: 2022-01-18 | X4: 2022-01-19 | Y4: 2022-01-20 | Z4: 2022-01-21 | AA4: =IF(MONTH(Z4+1)<>MONTH(Z4),"",Z4+1) -> 2022-01-22 | AB4: =IF(MONTH(AA4+1)<>MONTH(AA4),"",AA4+1) -> 2022-01-23 | AC4: =IF(MONTH(AB4+1)<>MONTH(AB4),"",AB4+1) -> 2022-01-24 | AD4: =IF(AC4="","",IF(MONTH(AC4+1)<>MONTH(AC4),"",AC4+1)) -> 2022-01-25 | AE4: 2022-01-26 | AF4: 2022-01-27 | AG4: 2022-01-28 | AH4: 2022-01-29 | AI4: 2022-01-30 | AJ4: 2022-01-31
A5: dernière ligne | D5: =IF(D8 = "",0,D8)+IF(D10 = "",0,D10)+IF(D12 = "",0,D12)+IF(D14 = "",0,D14)+IF(D16 = "",0,D16)+IF(D18 = "",0,D18)+IF(D20 = "",0,D20)+IF(D24 = "",0,D24)+IF(D26 = "",0,D26)+IF(D28 = "",0,D28)+IF(D30 = "",0,D30)+IF(D32 = "",0,D32)+IF(D34 = "",0,D34)+IF(D36= "",0,D36)+IF(D38 = "",0,D38) -> 153 | E5: =IF(E8 = "",0,E8)+IF(E10 = "",0,E10)+IF(E12 = "",0,E12)+IF(E14 = "",0,E14)+IF(E16 = "",0,E16)+IF(E18 = "",0,E18)+IF(E20 = "",0,E20)+IF(E24 = "",0,E24)+IF(E26 = "",0,E26)+IF(E28 = "",0,E28)+IF(E30 = "",0,E30)+IF(E32 = "",0,E32)+IF(E34 = "",0,E34)+IF(E36= "",0,E36)+IF(E38 = "",0,E38) -> 43 | F5: =IF(F4="","",LEFT(INDIRECT("paramètres!B"& TEXT(WEEKDAY(F4,2)+1,0)),2)) -> Sa | G5: =IF(G4="","",LEFT(INDIRECT("paramètres!B"& TEXT(WEEKDAY(G4,2)+1,0)),2)) -> Di | H5: Lu | I5: Ma | J5: Me | K5: Je | L5: Ve | M5: Sa | N5: Di | O5: Lu | P5: Ma | Q5: Me | R5: Je | S5: Ve | T5: Sa | U5: Di | V5: Lu | W5: Ma | X5: Me | Y5: Je | Z5: Ve | AA5: Sa | AB5: Di | AC5: Lu | AD5: Ma | AE5: Me | AF5: Je | AG5: Ve | AH5: Sa | AI5: Di | AJ5: Lu
B6: f férié vs vac.scol. | D6: =IF(D9 = "",0,D9)+IF(D11 = "",0,D11)+IF(D13 = "",0,D13)+IF(D15 = "",0,D15)+IF(D17 = "",0,D17)+IF(D19 = "",0,D19)+IF(D21 = "",0,D21)+IF(D25 = "",0,D25)+IF(D27 = "",0,D27)+IF(D29 = "",0,D29)+IF(D31 = "",0,D31)+IF(D33 = "",0,D33)+IF(D35 = "",0,D35)+IF(D37= "",0,D37)+IF(D39 = "",0,D39) -> 70 | F6: =IF(F4="","", IF(LOOKUP(F4,'Vacances Scolaires'!$B$4:$B$16)=F4=TRUE,"f",IF(AND(F4>=$AT$1,F4<=$AU$1),"vs","") )) -> f | G6: =IF(G4="","", IF(LOOKUP(G4,'Vacances Scolaires'!$B$4:$B$16)=G4=TRUE,"f",IF(AND(G4>=$AT$1,G4<=$AU$1),"vs","") )) -> vs | H6: =IF(H4="","", IF(LOOKUP(H4,'Vacances Scolaires'!$B$4:$B$16)=H4=TRUE,"f",IF(AND(H4>=$AT$1,H4<=$AU$1),"vs","") )) ->  | I6: =IF(I4="","", IF(LOOKUP(I4,'Vacances Scolaires'!$B$4:$B$16)=I4=TRUE,"f",IF(AND(I4>=$AT$1,I4<=$AU$1),"vs","") )) ->  | J6: =IF(J4="","", IF(LOOKUP(J4,'Vacances Scolaires'!$B$4:$B$16)=J4=TRUE,"f",IF(AND(J4>=$AT$1,J4<=$AU$1),"vs","") )) ->  | K6: =IF(K4="","", IF(LOOKUP(K4,'Vacances Scolaires'!$B$4:$B$16)=K4=TRUE,"f",IF(AND(K4>=$AT$1,K4<=$AU$1),"vs","") )) ->  | L6: =IF(L4="","", IF(LOOKUP(L4,'Vacances Scolaires'!$B$4:$B$16)=L4=TRUE,"f",IF(AND(L4>=$AT$1,L4<=$AU$1),"vs","") )) ->  | M6: =IF(M4="","", IF(LOOKUP(M4,'Vacances Scolaires'!$B$4:$B$16)=M4=TRUE,"f",IF(AND(M4>=$AT$1,M4<=$AU$1),"vs","") )) ->  | N6: =IF(N4="","", IF(LOOKUP(N4,'Vacances Scolaires'!$B$4:$B$16)=N4=TRUE,"f",IF(AND(N4>=$AT$1,N4<=$AU$1),"vs","") )) ->  | O6: =IF(O4="","", IF(LOOKUP(O4,'Vacances Scolaires'!$B$4:$B$16)=O4=TRUE,"f",IF(AND(O4>=$AT$1,O4<=$AU$1),"vs","") )) ->  | P6: =IF(P4="","", IF(LOOKUP(P4,'Vacances Scolaires'!$B$4:$B$16)=P4=TRUE,"f",IF(AND(P4>=$AT$1,P4<=$AU$1),"vs","") )) ->  | Q6: =IF(Q4="","", IF(LOOKUP(Q4,'Vacances Scolaires'!$B$4:$B$16)=Q4=TRUE,"f",IF(AND(Q4>=$AT$1,Q4<=$AU$1),"vs","") )) ->  | R6: =IF(R4="","", IF(LOOKUP(R4,'Vacances Scolaires'!$B$4:$B$16)=R4=TRUE,"f",IF(AND(R4>=$AT$1,R4<=$AU$1),"vs","") )) ->  | S6: =IF(S4="","", IF(LOOKUP(S4,'Vacances Scolaires'!$B$4:$B$16)=S4=TRUE,"f",IF(AND(S4>=$AT$1,S4<=$AU$1),"vs","") )) ->  | T6: =IF(T4="","", IF(LOOKUP(T4,'Vacances Scolaires'!$B$4:$B$16)=T4=TRUE,"f",IF(AND(T4>=$AT$1,T4<=$AU$1),"vs","") )) ->  | U6: =IF(U4="","", IF(LOOKUP(U4,'Vacances Scolaires'!$B$4:$B$16)=U4=TRUE,"f",IF(AND(U4>=$AT$1,U4<=$AU$1),"vs","") )) ->  | V6: =IF(V4="","", IF(LOOKUP(V4,'Vacances Scolaires'!$B$4:$B$16)=V4=TRUE,"f",IF(AND(V4>=$AT$1,V4<=$AU$1),"vs","") )) ->  | W6: =IF(W4="","", IF(LOOKUP(W4,'Vacances Scolaires'!$B$4:$B$16)=W4=TRUE,"f",IF(AND(W4>=$AT$1,W4<=$AU$1),"vs","") )) ->  | X6: =IF(X4="","", IF(LOOKUP(X4,'Vacances Scolaires'!$B$4:$B$16)=X4=TRUE,"f",IF(AND(X4>=$AT$1,X4<=$AU$1),"vs","") )) ->  | Y6: =IF(Y4="","", IF(LOOKUP(Y4,'Vacances Scolaires'!$B$4:$B$16)=Y4=TRUE,"f",IF(AND(Y4>=$AT$1,Y4<=$AU$1),"vs","") )) ->  | Z6: =IF(Z4="","", IF(LOOKUP(Z4,'Vacances Scolaires'!$B$4:$B$16)=Z4=TRUE,"f",IF(AND(Z4>=$AT$1,Z4<=$AU$1),"vs","") )) ->  | AA6: =IF(AA4="","", IF(LOOKUP(AA4,'Vacances Scolaires'!$B$4:$B$16)=AA4=TRUE,"f",IF(AND(AA4>=$AT$1,AA4<=$AU$1),"vs","") )) ->  | AB6: =IF(AB4="","", IF(LOOKUP(AB4,'Vacances Scolaires'!$B$4:$B$16)=AB4=TRUE,"f",IF(AND(AB4>=$AT$1,AB4<=$AU$1),"vs","") )) ->  | AC6: =IF(AC4="","", IF(LOOKUP(AC4,'Vacances Scolaires'!$B$4:$B$16)=AC4=TRUE,"f",IF(AND(AC4>=$AT$1,AC4<=$AU$1),"vs","") )) ->  | AD6: =IF(AD4="","", IF(LOOKUP(AD4,'Vacances Scolaires'!$B$4:$B$16)=AD4=TRUE,"f",IF(AND(AD4>=$AT$1,AD4<=$AU$1),"vs","") )) ->  | AE6: =IF(AE4="","", IF(LOOKUP(AE4,'Vacances Scolaires'!$B$4:$B$16)=AE4=TRUE,"f",IF(AND(AE4>=$AT$1,AE4<=$AU$1),"vs","") )) ->  | AF6: =IF(AF4="","", IF(LOOKUP(AF4,'Vacances Scolaires'!$B$4:$B$16)=AF4=TRUE,"f",IF(AND(AF4>=$AT$1,AF4<=$AU$1),"vs","") )) ->  | AG6: =IF(AG4="","", IF(LOOKUP(AG4,'Vacances Scolaires'!$B$4:$B$16)=AG4=TRUE,"f",IF(AND(AG4>=$AT$1,AG4<=$AU$1),"vs","") )) ->  | AH6: =IF(AH4="","", IF(LOOKUP(AH4,'Vacances Scolaires'!$B$4:$B$16)=AH4=TRUE,"f",IF(AND(AH4>=$AT$1,AH4<=$AU$1),"vs","") )) ->  | AI6: =IF(AI4="","", IF(LOOKUP(AI4,'Vacances Scolaires'!$B$4:$B$16)=AI4=TRUE,"f",IF(AND(AI4>=$AT$1,AI4<=$AU$1),"vs","") )) ->  | AJ6: =IF(AJ4="","", IF(LOOKUP(AJ4,'Vacances Scolaires'!$B$4:$B$16)=AJ4=TRUE,"f",IF(AND(AJ4>=$AT$1,AJ4<=$AU$1),"vs","") )) -> 
F7: D | G7: E | H7: F | I7: G | J7: H | K7: I | L7: J | M7: K | N7: L | O7: M | P7: N | Q7: O | R7: P | S7: Q | T7: R | U7: S | V7: T | W7: U | X7: V | Y7: W | Z7: X | AA7: Y | AB7: Z | AC7: AA | AD7: AB | AE7: AC | AF7: AD | AG7: AE | AH7: AF | AI7: AG | AJ7: AH
A8: =(BdCréneaux!A1*2)+8 -> 32 | B8: =IF(INDIRECT("BdCréneaux!J"&(ROW()-4)/2)="","",INDIRECT("BdCréneaux!F"&MATCH(INDIRECT("BdCréneaux!J"&(ROW()-4)/2),BdCréneaux!E:E,FALSE))) -> Arche | C8: =IF(INDIRECT("BdCréneaux!J"&(ROW()-4)/2)="","",INDIRECT("BdCréneaux!J"&(ROW()-4)/2)&INDIRECT("BdCréneaux!K"&(ROW()-4)/2)) -> A1 | D8: =IF(SUM(F8:AJ8)=0,"", SUM(F8:AJ8)) -> 42 | E8: =IF(C8 ="","",COUNTIFS(INDIRECT("F"&ROW()+1&":"&$A$9&ROW()+1),"<>.")) -> 13 | H8: 1 | I8: 5 | K8: 2 | L8: 6 | P8: 6 | R8: 3 | V8: 3 | W8: 2 | X8: 2 | Y8: 1 | AC8: 1 | AD8: 5 | AG8: 3 | AJ8: 2
A9: =IF(DAY(MATCH(MAX(F4:AJ4),F4:AJ4,0))+5>26,CHAR(INT((DAY(MATCH(MAX(F4:AJ4),F4:AJ4,0))+5-1)/26)+64)&CHAR(DAY(MATCH(MAX(F4:AJ4),F4:AJ4,0))+5-( INT((DAY(MATCH(MAX(F4:AJ4),F4:AJ4,0))+5-1)/26)*26)+64),CHAR(DAY(MATCH(MAX(F4:AJ4),F4:AJ4,0))+5+64)) -> AJ | B9: =INDIRECT("BdCréneaux!P"&(ROW()-5)/2)& " "&INDIRECT("BdCréneaux!Q"&(ROW()-5)/2) -> 16h30>18h30 sauf Sam Dim | D9: =IF(SUM(F9:AJ9)=0,"", SUM(F9:AJ9)) -> 18 | F9: =IF(OR($F$4="",$C8=""),"",IF($A$4=0,".",IF(COUNTIF(INDIRECT($A$3&"!"&F$7&"24:"&F$7&$A$4),$C8)=0,".",COUNTIF(INDIRECT($A$3&"!"&F$7&"24:"&F$7&$A$4),$C8)))) -> . | G9: =IF(OR($F$4="",$C8=""),"",IF($A$4=0,".",IF(COUNTIF(INDIRECT($A$3&"!"&G$7&"24:"&G$7&$A$4),$C8)=0,".",COUNTIF(INDIRECT($A$3&"!"&G$7&"24:"&G$7&$A$4),$C8)))) -> . | H9: 1 | I9: 2 | J9: . | K9: . | L9: 2 | M9: . | N9: . | O9: . | P9: 1 | Q9: . | R9: 2 | S9: . | T9: . | U9: . | V9: 1 | W9: 2 | X9: 2 | Y9: 1 | Z9: . | AA9: . | AB9: . | AC9: 1 | AD9: 1 | AE9: . | AF9: . | AG9: 1 | AH9: . | AI9: . | AJ9: 1
B10: =IF(INDIRECT("BdCréneaux!J"&(ROW()-4)/2)="","",INDIRECT("BdCréneaux!F"&MATCH(INDIRECT("BdCréneaux!J"&(ROW()-4)/2),BdCréneaux!E:E,FALSE))) -> Arche | C10: =IF(INDIRECT("BdCréneaux!J"&(ROW()-4)/2)="","",INDIRECT("BdCréneaux!J"&(ROW()-4)/2)&INDIRECT("BdCréneaux!K"&(ROW()-4)/2)) -> A2 | D10: =IF(SUM(F10:AJ10)=0,"", SUM(F10:AJ10)) ->  | E10: =IF(C10 ="","",COUNTIFS(INDIRECT("F"&ROW()+1&":"&$A$9&ROW()+1),"<>.")) -> 0
B11: =INDIRECT("BdCréneaux!P"&(ROW()-5)/2)& " "&INDIRECT("BdCréneaux!Q"&(ROW()-5)/2) -> 14h00>16h00 Sam | D11: =IF(SUM(F11:AJ11)=0,"", SUM(F11:AJ11)) ->  | F11: =IF(OR($F$4="",$C10=""),"",IF($A$4=0,".",IF(COUNTIF(INDIRECT($A$3&"!"&F$7&"24:"&F$7&$A$4),$C10)=0,".",COUNTIF(INDIRECT($A$3&"!"&F$7&"24:"&F$7&$A$4),$C10)))) -> . | G11: =IF(OR($F$4="",$C10=""),"",IF($A$4=0,".",IF(COUNTIF(INDIRECT($A$3&"!"&G$7&"24:"&G$7&$A$4),$C10)=0,".",COUNTIF(INDIRECT($A$3&"!"&G$7&"24:"&G$7&$A$4),$C10)))) -> . | H11: . | I11: . | J11: . | K11: . | L11: . | M11: . | N11: . | O11: . | P11: . | Q11: . | R11: . | S11: . | T11: . | U11: . | V11: . | W11: . | X11: . | Y11: . | Z11: . | AA11: . | AB11: . | AC11: . | AD11: . | AE11: . | AF11: . | AG11: . | AH11: . | AI11: . | AJ11: .
B12: =IF(INDIRECT("BdCréneaux!J"&(ROW()-4)/2)="","",INDIRECT("BdCréneaux!F"&MATCH(INDIRECT("BdCréneaux!J"&(ROW()-4)/2),BdCréneaux!E:E,FALSE))) -> Consult.Pédia.Chirurgie | C12: =IF(INDIRECT("BdCréneaux!J"&(ROW()-4)/2)="","",INDIRECT("BdCréneaux!J"&(ROW()-4)/2)&INDIRECT("BdCréneaux!K"&(ROW()-4)/2)) -> C1 | D12: =IF(SUM(F12:AJ12)=0,"", SUM(F12:AJ12)) -> 9 | E12: =IF(C12 ="","",COUNTIFS(INDIRECT("F"&ROW()+1&":"&$A$9&ROW()+1),"<>.")) -> 2 | L12: 2 | S12: 7
B13: =INDIRECT("BdCréneaux!P"&(ROW()-5)/2)& " "&INDIRECT("BdCréneaux!Q"&(ROW()-5)/2) -> 10h00>12h00 Mar Ven | D13: =IF(SUM(F13:AJ13)=0,"", SUM(F13:AJ13)) -> 2 | F13: =IF(OR($F$4="",$C12=""),"",IF($A$4=0,".",IF(COUNTIF(INDIRECT($A$3&"!"&F$7&"24:"&F$7&$A$4),$C12)=0,".",COUNTIF(INDIRECT($A$3&"!"&F$7&"24:"&F$7&$A$4),$C12)))) -> . | G13: =IF(OR($F$4="",$C12=""),"",IF($A$4=0,".",IF(COUNTIF(INDIRECT($A$3&"!"&G$7&"24:"&G$7&$A$4),$C12)=0,".",COUNTIF(INDIRECT($A$3&"!"&G$7&"24:"&G$7&$A$4),$C12)))) -> . | H13: . | I13: . | J13: . | K13: . | L13: 1 | M13: . | N13: . | O13: . | P13: . | Q13: . | R13: . | S13: 1 | T13: . | U13: . | V13: . | W13: . | X13: . | Y13: . | Z13: . | AA13: . | AB13: . | AC13: . | AD13: . | AE13: . | AF13: . | AG13: . | AH13: . | AI13: . | AJ13: .
B14: =IF(INDIRECT("BdCréneaux!J"&(ROW()-4)/2)="","",INDIRECT("BdCréneaux!F"&MATCH(INDIRECT("BdCréneaux!J"&(ROW()-4)/2),BdCréneaux!E:E,FALSE))) -> Consult.Pédia.Chirurgie | C14: =IF(INDIRECT("BdCréneaux!J"&(ROW()-4)/2)="","",INDIRECT("BdCréneaux!J"&(ROW()-4)/2)&INDIRECT("BdCréneaux!K"&(ROW()-4)/2)) -> C2 | D14: =IF(SUM(F14:AJ14)=0,"", SUM(F14:AJ14)) -> 18 | E14: =IF(C14 ="","",COUNTIFS(INDIRECT("F"&ROW()+1&":"&$A$9&ROW()+1),"<>.")) -> 4 | O14: 3 | V14: 7 | AC14: 5 | AJ14: 3
B15: =INDIRECT("BdCréneaux!P"&(ROW()-5)/2)& " "&INDIRECT("BdCréneaux!Q"&(ROW()-5)/2) -> 14h00>16h00 sauf Ven Sam Dim | D15: =IF(SUM(F15:AJ15)=0,"", SUM(F15:AJ15)) -> 9 | F15: =IF(OR($F$4="",$C14=""),"",IF($A$4=0,".",IF(COUNTIF(INDIRECT($A$3&"!"&F$7&"24:"&F$7&$A$4),$C14)=0,".",COUNTIF(INDIRECT($A$3&"!"&F$7&"24:"&F$7&$A$4),$C14)))) -> . | G15: =IF(OR($F$4="",$C14=""),"",IF($A$4=0,".",IF(COUNTIF(INDIRECT($A$3&"!"&G$7&"24:"&G$7&$A$4),$C14)=0,".",COUNTIF(INDIRECT($A$3&"!"&G$7&"24:"&G$7&$A$4),$C14)))) -> . | H15: . | I15: . | J15: . | K15: . | L15: . | M15: . | N15: . | O15: 2 | P15: . | Q15: . | R15: . | S15: . | T15: . | U15: . | V15: 2 | W15: . | X15: . | Y15: . | Z15: . | AA15: . | AB15: . | AC15: 3 | AD15: . | AE15: . | AF15: . | AG15: . | AH15: . | AI15: . | AJ15: 2
B16: =IF(INDIRECT("BdCréneaux!J"&(ROW()-4)/2)="","",INDIRECT("BdCréneaux!F"&MATCH(INDIRECT("BdCréneaux!J"&(ROW()-4)/2),BdCréneaux!E:E,FALSE))) -> Hôpital Jour | C16: =IF(INDIRECT("BdCréneaux!J"&(ROW()-4)/2)="","",INDIRECT("BdCréneaux!J"&(ROW()-4)/2)&INDIRECT("BdCréneaux!K"&(ROW()-4)/2)) -> H1 | D16: =IF(SUM(F16:AJ16)=0,"", SUM(F16:AJ16)) -> 11 | E16: =IF(C16 ="","",COUNTIFS(INDIRECT("F"&ROW()+1&":"&$A$9&ROW()+1),"<>.")) -> 4 | X16: 0 | Z16: 4 | AE16: 4 | AG16: 3
B17: =INDIRECT("BdCréneaux!P"&(ROW()-5)/2)& " "&INDIRECT("BdCréneaux!Q"&(ROW()-5)/2) -> 14h00>16h00 Mer Ven | D17: =IF(SUM(F17:AJ17)=0,"", SUM(F17:AJ17)) -> 8 | F17: =IF(OR($F$4="",$C16=""),"",IF($A$4=0,".",IF(COUNTIF(INDIRECT($A$3&"!"&F$7&"24:"&F$7&$A$4),$C16)=0,".",COUNTIF(INDIRECT($A$3&"!"&F$7&"24:"&F$7&$A$4),$C16)))) -> . | G17: =IF(OR($F$4="",$C16=""),"",IF($A$4=0,".",IF(COUNTIF(INDIRECT($A$3&"!"&G$7&"24:"&G$7&$A$4),$C16)=0,".",COUNTIF(INDIRECT($A$3&"!"&G$7&"24:"&G$7&$A$4),$C16)))) -> . | H17: . | I17: . | J17: . | K17: . | L17: . | M17: . | N17: . | O17: . | P17: . | Q17: . | R17: . | S17: . | T17: . | U17: . | V17: . | W17: . | X17: 2 | Y17: . | Z17: 2 | AA17: . | AB17: . | AC17: . | AD17: . | AE17: 2 | AF17: . | AG17: 2 | AH17: . | AI17: . | AJ17: .
B18: =IF(INDIRECT("BdCréneaux!J"&(ROW()-4)/2)="","",INDIRECT("BdCréneaux!F"&MATCH(INDIRECT("BdCréneaux!J"&(ROW()-4)/2),BdCréneaux!E:E,FALSE))) -> Consult.Pédia. Médecine | C18: =IF(INDIRECT("BdCréneaux!J"&(ROW()-4)/2)="","",INDIRECT("BdCréneaux!J"&(ROW()-4)/2)&INDIRECT("BdCréneaux!K"&(ROW()-4)/2)) -> M1 | D18: =IF(SUM(F18:AJ18)=0,"", SUM(F18:AJ18)) -> 17 | E18: =IF(C18 ="","",COUNTIFS(INDIRECT("F"&ROW()+1&":"&$A$9&ROW()+1),"<>.")) -> 3 | I18: 5 | W18: 12
B19: =INDIRECT("BdCréneaux!P"&(ROW()-5)/2)& " "&INDIRECT("BdCréneaux!Q"&(ROW()-5)/2) -> 10h00>12h00 Mar Mer Ven | D19: =IF(SUM(F19:AJ19)=0,"", SUM(F19:AJ19)) -> 4 | F19: =IF(OR($F$4="",$C18=""),"",IF($A$4=0,".",IF(COUNTIF(INDIRECT($A$3&"!"&F$7&"24:"&F$7&$A$4),$C18)=0,".",COUNTIF(INDIRECT($A$3&"!"&F$7&"24:"&F$7&$A$4),$C18)))) -> . | G19: =IF(OR($F$4="",$C18=""),"",IF($A$4=0,".",IF(COUNTIF(INDIRECT($A$3&"!"&G$7&"24:"&G$7&$A$4),$C18)=0,".",COUNTIF(INDIRECT($A$3&"!"&G$7&"24:"&G$7&$A$4),$C18)))) -> . | H19: . | I19: 1 | J19: . | K19: . | L19: . | M19: . | N19: . | O19: . | P19: . | Q19: . | R19: . | S19: . | T19: . | U19: . | V19: . | W19: 2 | X19: . | Y19: . | Z19: . | AA19: . | AB19: . | AC19: . | AD19: 1 | AE19: . | AF19: . | AG19: . | AH19: . | AI19: . | AJ19: .
B20: =IF(INDIRECT("BdCréneaux!J"&(ROW()-4)/2)="","",INDIRECT("BdCréneaux!F"&MATCH(INDIRECT("BdCréneaux!J"&(ROW()-4)/2),BdCréneaux!E:E,FALSE))) -> Consult.Pédia. Médecine | C20: =IF(INDIRECT("BdCréneaux!J"&(ROW()-4)/2)="","",INDIRECT("BdCréneaux!J"&(ROW()-4)/2)&INDIRECT("BdCréneaux!K"&(ROW()-4)/2)) -> M2 | D20: =IF(SUM(F20:AJ20)=0,"", SUM(F20:AJ20)) -> 28 | E20: =IF(C20 ="","",COUNTIFS(INDIRECT("F"&ROW()+1&":"&$A$9&ROW()+1),"<>.")) -> 4 | I20: 6 | P20: 6 | W20: 6 | AD20: 10
B21: =INDIRECT("BdCréneaux!P"&(ROW()-5)/2)& " "&INDIRECT("BdCréneaux!Q"&(ROW()-5)/2) -> 14h00>16h00 sauf Jeu Sam Dim | D21: =IF(SUM(F21:AJ21)=0,"", SUM(F21:AJ21)) -> 7 | F21: =IF(OR($F$4="",$C20=""),"",IF($A$4=0,".",IF(COUNTIF(INDIRECT($A$3&"!"&F$7&"24:"&F$7&$A$4),$C20)=0,".",COUNTIF(INDIRECT($A$3&"!"&F$7&"24:"&F$7&$A$4),$C20)))) -> . | G21: =IF(OR($F$4="",$C20=""),"",IF($A$4=0,".",IF(COUNTIF(INDIRECT($A$3&"!"&G$7&"24:"&G$7&$A$4),$C20)=0,".",COUNTIF(INDIRECT($A$3&"!"&G$7&"24:"&G$7&$A$4),$C20)))) -> . | H21: . | I21: 1 | J21: . | K21: . | L21: . | M21: . | N21: . | O21: . | P21: 1 | Q21: . | R21: . | S21: . | T21: . | U21: . | V21: . | W21: 3 | X21: . | Y21: . | Z21: . | AA21: . | AB21: . | AC21: . | AD21: 2 | AE21: . | AF21: . | AG21: . | AH21: . | AI21: . | AJ21: .
B22: =IF(INDIRECT("BdCréneaux!J"&(ROW()-4)/2)="","",INDIRECT("BdCréneaux!F"&MATCH(INDIRECT("BdCréneaux!J"&(ROW()-4)/2),BdCréneaux!E:E,FALSE))) -> Pédiatrie | C22: =IF(INDIRECT("BdCréneaux!J"&(ROW()-4)/2)="","",INDIRECT("BdCréneaux!J"&(ROW()-4)/2)&INDIRECT("BdCréneaux!K"&(ROW()-4)/2)) -> P1 | D22: =IF(SUM(F22:AJ22)=0,"", SUM(F22:AJ22)) -> 26 | E22: =IF(C22 ="","",COUNTIFS(INDIRECT("F"&ROW()+1&":"&$A$9&ROW()+1),"<>.")) -> 9 | J22: 3 | M22: 3 | Q22: 1 | S22: 0 | T22: 1 | X22: 6 | AA22: 3 | AE22: 6 | AG22: 3
B23: =INDIRECT("BdCréneaux!P"&(ROW()-5)/2)& " "&INDIRECT("BdCréneaux!Q"&(ROW()-5)/2) -> 16h00>18h00 Ven | D23: =IF(SUM(F23:AJ23)=0,"", SUM(F23:AJ23)) -> 14 | F23: =IF(OR($F$4="",$C22=""),"",IF($A$4=0,".",IF(COUNTIF(INDIRECT($A$3&"!"&F$7&"24:"&F$7&$A$4),$C22)=0,".",COUNTIF(INDIRECT($A$3&"!"&F$7&"24:"&F$7&$A$4),$C22)))) -> . | G23: =IF(OR($F$4="",$C22=""),"",IF($A$4=0,".",IF(COUNTIF(INDIRECT($A$3&"!"&G$7&"24:"&G$7&$A$4),$C22)=0,".",COUNTIF(INDIRECT($A$3&"!"&G$7&"24:"&G$7&$A$4),$C22)))) -> . | H23: . | I23: . | J23: 2 | K23: . | L23: . | M23: 1 | N23: . | O23: . | P23: . | Q23: 2 | R23: . | S23: 1 | T23: 2 | U23: . | V23: . | W23: . | X23: 2 | Y23: . | Z23: . | AA23: 1 | AB23: . | AC23: . | AD23: . | AE23: 2 | AF23: . | AG23: 1 | AH23: . | AI23: . | AJ23: .
B24: =IF(INDIRECT("BdCréneaux!J"&(ROW()-4)/2)="","",INDIRECT("BdCréneaux!F"&MATCH(INDIRECT("BdCréneaux!J"&(ROW()-4)/2),BdCréneaux!E:E,FALSE))) -> Pédiatrie | C24: =IF(INDIRECT("BdCréneaux!J"&(ROW()-4)/2)="","",INDIRECT("BdCréneaux!J"&(ROW()-4)/2)&INDIRECT("BdCréneaux!K"&(ROW()-4)/2)) -> P2 | D24: =IF(SUM(F24:AJ24)=0,"", SUM(F24:AJ24)) -> 11 | E24: =IF(C24 ="","",COUNTIFS(INDIRECT("F"&ROW()+1&":"&$A$9&ROW()+1),"<>.")) -> 1 | I24: 0 | M24: 1 | P24: 1 | T24: 0 | X24: 1 | AA24: 1 | AE24: 5 | AH24: 2
B25: =INDIRECT("BdCréneaux!P"&(ROW()-5)/2)& " "&INDIRECT("BdCréneaux!Q"&(ROW()-5)/2) -> 14h00>16h00 Mer Sam | D25: =IF(SUM(F25:AJ25)=0,"", SUM(F25:AJ25)) -> 1 | F25: =IF(OR($F$4="",$C24=""),"",IF($A$4=0,".",IF(COUNTIF(INDIRECT($A$3&"!"&F$7&"24:"&F$7&$A$4),$C24)=0,".",COUNTIF(INDIRECT($A$3&"!"&F$7&"24:"&F$7&$A$4),$C24)))) -> . | G25: =IF(OR($F$4="",$C24=""),"",IF($A$4=0,".",IF(COUNTIF(INDIRECT($A$3&"!"&G$7&"24:"&G$7&$A$4),$C24)=0,".",COUNTIF(INDIRECT($A$3&"!"&G$7&"24:"&G$7&$A$4),$C24)))) -> . | H25: . | I25: . | J25: . | K25: . | L25: . | M25: . | N25: . | O25: . | P25: . | Q25: . | R25: . | S25: . | T25: . | U25: . | V25: . | W25: . | X25: . | Y25: . | Z25: . | AA25: . | AB25: . | AC25: . | AD25: . | AE25: . | AF25: . | AG25: . | AH25: 1 | AI25: . | AJ25: .
B26: =IF(INDIRECT("BdCréneaux!J"&(ROW()-4)/2)="","",INDIRECT("BdCréneaux!F"&MATCH(INDIRECT("BdCréneaux!J"&(ROW()-4)/2),BdCréneaux!E:E,FALSE))) -> Urgence Pédia. | C26: =IF(INDIRECT("BdCréneaux!J"&(ROW()-4)/2)="","",INDIRECT("BdCréneaux!J"&(ROW()-4)/2)&INDIRECT("BdCréneaux!K"&(ROW()-4)/2)) -> U1 | D26: =IF(SUM(F26:AJ26)=0,"", SUM(F26:AJ26)) -> 17 | E26: =IF(C26 ="","",COUNTIFS(INDIRECT("F"&ROW()+1&":"&$A$9&ROW()+1),"<>.")) -> 8 | K26: 4 | R26: 5 | Y26: 4 | AF26: 4
B27: =INDIRECT("BdCréneaux!P"&(ROW()-5)/2)& " "&INDIRECT("BdCréneaux!Q"&(ROW()-5)/2) -> 14h00>16h00 sauf Jeu Dim | D27: =IF(SUM(F27:AJ27)=0,"", SUM(F27:AJ27)) -> 12 | F27: =IF(OR($F$4="",$C26=""),"",IF($A$4=0,".",IF(COUNTIF(INDIRECT($A$3&"!"&F$7&"24:"&F$7&$A$4),$C26)=0,".",COUNTIF(INDIRECT($A$3&"!"&F$7&"24:"&F$7&$A$4),$C26)))) -> . | G27: . | H27: . | I27: 1 | J27: . | K27: . | L27: . | M27: 1 | N27: . | O27: . | P27: 3 | Q27: . | R27: . | S27: . | T27: 1 | U27: . | V27: . | W27: . | X27: 2 | Y27: . | Z27: . | AA27: 1 | AB27: . | AC27: . | AD27: . | AE27: 2 | AF27: . | AG27: . | AH27: 1 | AI27: . | AJ27: .
B28: =IF(INDIRECT("BdCréneaux!J"&(ROW()-4)/2)="","",INDIRECT("BdCréneaux!F"&MATCH(INDIRECT("BdCréneaux!J"&(ROW()-4)/2),BdCréneaux!E:E,FALSE))) -> Urgence Pédia. | C28: =IF(INDIRECT("BdCréneaux!J"&(ROW()-4)/2)="","",INDIRECT("BdCréneaux!J"&(ROW()-4)/2)&INDIRECT("BdCréneaux!K"&(ROW()-4)/2)) -> U2 | D28: =IF(SUM(F28:AJ28)=0,"", SUM(F28:AJ28)) ->  | E28: =IF(C28 ="","",COUNTIFS(INDIRECT("F"&ROW()+1&":"&$A$9&ROW()+1),"<>.")) -> 4
B29: =INDIRECT("BdCréneaux!P"&(ROW()-5)/2)& " "&INDIRECT("BdCréneaux!Q"&(ROW()-5)/2) -> 16h00>18h00 Jeu | D29: =IF(SUM(F29:AJ29)=0,"", SUM(F29:AJ29)) -> 9 | F29: =IF(OR($F$4="",$C28=""),"",IF($A$4=0,".",IF(COUNTIF(INDIRECT($A$3&"!"&F$7&"24:"&F$7&$A$4),$C28)=0,".",COUNTIF(INDIRECT($A$3&"!"&F$7&"24:"&F$7&$A$4),$C28)))) -> . | G29: . | H29: . | I29: . | J29: . | K29: 2 | L29: . | M29: . | N29: . | O29: . | P29: . | Q29: . | R29: 2 | S29: . | T29: . | U29: . | V29: . | W29: . | X29: . | Y29: 3 | Z29: . | AA29: . | AB29: . | AC29: . | AD29: . | AE29: . | AF29: 2 | AG29: . | AH29: . | AI29: . | AJ29: .
B30: =IF(INDIRECT("BdCréneaux!J"&(ROW()-4)/2)="","",INDIRECT("BdCréneaux!F"&MATCH(INDIRECT("BdCréneaux!J"&(ROW()-4)/2),BdCréneaux!E:E,FALSE))) -> Ehpad Léonard de Vinci | C30: =IF(INDIRECT("BdCréneaux!J"&(ROW()-4)/2)="","",INDIRECT("BdCréneaux!J"&(ROW()-4)/2)&INDIRECT("BdCréneaux!K"&(ROW()-4)/2)) -> E1 | D30: =IF(SUM(F30:AJ30)=0,"", SUM(F30:AJ30)) ->  | E30: =IF(C30 ="","",COUNTIFS(INDIRECT("F"&ROW()+1&":"&$A$9&ROW()+1),"<>.")) -> 0
B31: =INDIRECT("BdCréneaux!P"&(ROW()-5)/2)& " "&INDIRECT("BdCréneaux!Q"&(ROW()-5)/2) -> 14h00>16h00 sauf Sam Dim | D31: =IF(SUM(F31:AJ31)=0,"", SUM(F31:AJ31)) ->  | F31: =IF(OR($F$4="",$C30=""),"",IF($A$4=0,".",IF(COUNTIF(INDIRECT($A$3&"!"&F$7&"24:"&F$7&$A$4),$C30)=0,".",COUNTIF(INDIRECT($A$3&"!"&F$7&"24:"&F$7&$A$4),$C30)))) -> . | G31: . | H31: . | I31: . | J31: . | K31: . | L31: . | M31: . | N31: . | O31: . | P31: . | Q31: . | R31: . | S31: . | T31: . | U31: . | V31: . | W31: . | X31: . | Y31: . | Z31: . | AA31: . | AB31: . | AC31: . | AD31: . | AE31: . | AF31: . | AG31: . | AH31: . | AI31: . | AJ31: .
B32: =IF(INDIRECT("BdCréneaux!J"&(ROW()-4)/2)="","",INDIRECT("BdCréneaux!F"&MATCH(INDIRECT("BdCréneaux!J"&(ROW()-4)/2),BdCréneaux!E:E,FALSE))) ->  | C32: =IF(INDIRECT("BdCréneaux!J"&(ROW()-4)/2)="","",INDIRECT("BdCréneaux!J"&(ROW()-4)/2)&INDIRECT("BdCréneaux!K"&(ROW()-4)/2)) ->  | D32: =IF(SUM(F32:AJ32)=0,"", SUM(F32:AJ32)) ->  | E32: =IF(C32 ="","",COUNTIFS(INDIRECT("F"&ROW()+1&":"&$A$9&ROW()+1),"<>.")) -> 
B33: =INDIRECT("BdCréneaux!P"&(ROW()-5)/2)& " "&INDIRECT("BdCréneaux!Q"&(ROW()-5)/2) ->  | D33: =IF(SUM(F33:AJ33)=0,"", SUM(F33:AJ33)) ->  | F33: =IF(OR($F$4="",$C32=""),"",IF($A$4=0,".",IF(COUNTIF(INDIRECT($A$3&"!"&F$7&"24:"&F$7&$A$4),$C32)=0,".",COUNTIF(INDIRECT($A$3&"!"&F$7&"24:"&F$7&$A$4),$C32)))) -> 
B34: =IF(INDIRECT("BdCréneaux!J"&(ROW()-4)/2)="","",INDIRECT("BdCréneaux!F"&MATCH(INDIRECT("BdCréneaux!J"&(ROW()-4)/2),BdCréneaux!E:E,FALSE))) ->  | C34: =IF(BdCréneaux!J14="","",BdCréneaux!J14&BdCréneaux!K14) ->  | D34: =IF(SUM(F34:AJ34)=0,"", SUM(F34:AJ34)) ->  | E34: =IF(C34 ="","",COUNTIFS(INDIRECT("F"&ROW()+1&":"&$A$9&ROW()+1),"<>.")) -> 
B35: =INDIRECT("BdCréneaux!P"&(ROW()-5)/2)& " "&INDIRECT("BdCréneaux!Q"&(ROW()-5)/2) ->  | D35: =IF(SUM(F35:AJ35)=0,"", SUM(F35:AJ35)) ->  | F35: =IF(OR($F$4="",$C34=""),"",IF($A$4=0,".",IF(COUNTIF(INDIRECT($A$3&"!"&F$7&"24:"&F$7&$A$4),$C34)=0,".",COUNTIF(INDIRECT($A$3&"!"&F$7&"24:"&F$7&$A$4),$C34)))) -> 
B36: =IF(INDIRECT("BdCréneaux!J"&(ROW()-4)/2)="","",INDIRECT("BdCréneaux!F"&MATCH(INDIRECT("BdCréneaux!J"&(ROW()-4)/2),BdCréneaux!E:E,FALSE))) ->  | C36: =IF(BdCréneaux!J15="","",BdCréneaux!J15&BdCréneaux!K15) ->  | D36: =IF(SUM(F36:AJ36)=0,"", SUM(F36:AJ36)) ->  | E36: =IF(C36 ="","",COUNTIFS(INDIRECT("F"&ROW()+1&":"&$A$9&ROW()+1),"<>.")) -> 
B37: =INDIRECT("BdCréneaux!P"&(ROW()-5)/2)& " "&INDIRECT("BdCréneaux!Q"&(ROW()-5)/2) ->  | D37: =IF(SUM(F37:AJ37)=0,"", SUM(F37:AJ37)) ->  | F37: =IF(OR($F$4="",$C36=""),"",IF($A$4=0,".",IF(COUNTIF(INDIRECT($A$3&"!"&F$7&"24:"&F$7&$A$4),$C36)=0,".",COUNTIF(INDIRECT($A$3&"!"&F$7&"24:"&F$7&$A$4),$C36)))) -> 
B38: =IF(BdCréneaux!J16="","",INDIRECT("BdCréneaux!F"&MATCH(BdCréneaux!J16,BdCréneaux!E:E,FALSE))) ->  | C38: =IF(BdCréneaux!J16="","",BdCréneaux!J16&BdCréneaux!K16) ->  | D38: =IF(SUM(F38:AJ38)=0,"", SUM(F38:AJ38)) ->  | E38: =IF(C38 ="","",COUNTIFS(INDIRECT("F"&ROW()+1&":"&$A$9&ROW()+1),"<>.")) -> 
B39: =BdCréneaux!P16 & " "&BdCréneaux!Q16 ->  | D39: =IF(SUM(F39:AJ39)=0,"", SUM(F39:AJ39)) ->  | F39: =IF(OR($F$4="",$C38=""),"",IF($A$4=0,".",IF(COUNTIF(INDIRECT($A$3&"!"&F$7&"24:"&F$7&$A$4),$C38)=0,".",COUNTIF(INDIRECT($A$3&"!"&F$7&"24:"&F$7&$A$4),$C38)))) -> 

Sheet janvier_fermé (hidden)
A1: 32lig11 | D1: ="Jours de fermeture des créneaux pour le mois de "&A3 -> Jours de fermeture des créneaux pour le mois de Janvier
A2: 1
A3: Janvier | B3: RichardALEXANDRE.jpg
A4: =COUNTA(AI:AI)+8 -> 21 | D4: =IF(D5="","",IF(INT(((D5-(IF(WEEKDAY(DATE(YEAR(D5),1,1),2)=1,DATE(YEAR(D5),1,1),DATE(YEAR(D5),1,1)+8-WEEKDAY(DATE(YEAR(D5),1,1),2))))/7))+IF(WEEKDAY(DATE(YEAR(D5),1,1),2)>1, IF(WEEKDAY(DATE(YEAR(D5),1,1),2)<5,2,1),1) =0,"", INT(((D5-(IF(WEEKDAY(DATE(YEAR(D5),1,1),2)=1,DATE(YEAR(D5),1,1),DATE(YEAR(D5),1,1)+8-WEEKDAY(DATE(YEAR(D5),1,1),2))))/7))+IF(WEEKDAY(DATE(YEAR(D5),1,1),2)>1, IF(WEEKDAY(DATE(YEAR(D5),1,1),2)<5,2,1),1) )) ->  | E4: =IF(E5="","",INT(((E5-(IF(WEEKDAY(DATE(YEAR(E5),1,1),2)=1,DATE(YEAR(E5),1,1),DATE(YEAR(E5),1,1)+8-WEEKDAY(DATE(YEAR(E5),1,1),2))))/7))+IF(WEEKDAY(DATE(YEAR(E5),1,1),2)>1, IF(WEEKDAY(DATE(YEAR(E5),1,1),2)<5,2,1),1) ) -> 0 | F4: =IF(F5="","",INT(((F5-(IF(WEEKDAY(DATE(YEAR(F5),1,1),2)=1,DATE(YEAR(F5),1,1),DATE(YEAR(F5),1,1)+8-WEEKDAY(DATE(YEAR(F5),1,1),2))))/7))+IF(WEEKDAY(DATE(YEAR(F5),1,1),2)>1, IF(WEEKDAY(DATE(YEAR(F5),1,1),2)<5,2,1),1) ) -> 1 | G4: 1 | H4: 1 | I4: 1 | J4: 1 | K4: 1 | L4: 1 | M4: 2 | N4: 2 | O4: 2 | P4: 2 | Q4: 2 | R4: 2 | S4: 2 | T4: 3 | U4: 3 | V4: 3 | W4: 3 | X4: 3 | Y4: 3 | Z4: 3 | AA4: 4 | AB4: 4 | AC4: 4 | AD4: 4 | AE4: 4 | AF4: 4 | AG4: 4 | AH4: 5
D5: =DATE(Accueil!A1,A2,1) -> 2022-01-01 | E5: =D5+1 -> 2022-01-02 | F5: 2022-01-03 | G5: 2022-01-04 | H5: 2022-01-05 | I5: 2022-01-06 | J5: 2022-01-07 | K5: 2022-01-08 | L5: 2022-01-09 | M5: 2022-01-10 | N5: 2022-01-11 | O5: 2022-01-12 | P5: 2022-01-13 | Q5: 2022-01-14 | R5: 2022-01-15 | S5: 2022-01-16 | T5: 2022-01-17 | U5: 2022-01-18 | V5: 2022-01-19 | W5: 2022-01-20 | X5: 2022-01-21 | Y5: =IF(MONTH(X5+1)<>MONTH(X5),"",X5+1) -> 2022-01-22 | Z5: =IF(MONTH(Y5+1)<>MONTH(Y5),"",Y5+1) -> 2022-01-23 | AA5: =IF(MONTH(Z5+1)<>MONTH(Z5),"",Z5+1) -> 2022-01-24 | AB5: =IF(AA5="","",IF(MONTH(AA5+1)<>MONTH(AA5),"",AA5+1)) -> 2022-01-25 | AC5: 2022-01-26 | AD5: 2022-01-27 | AE5: 2022-01-28 | AF5: 2022-01-29 | AG5: 2022-01-30 | AH5: 2022-01-31 | BD5: =DATE(Accueil!A1,A2,1) -> 2022-01-01 | BE5: =BD5+1 -> 2022-01-02 | BF5: 2022-01-03 | BG5: 2022-01-04 | BH5: 2022-01-05 | BI5: 2022-01-06 | BJ5: 2022-01-07 | BK5: 2022-01-08 | BL5: 2022-01-09 | BM5: 2022-01-10 | BN5: 2022-01-11 | BO5: 2022-01-12 | BP5: 2022-01-13 | BQ5: 2022-01-14 | BR5: 2022-01-15 | BS5: 2022-01-16 | BT5: 2022-01-17 | BU5: 2022-01-18 | BV5: 2022-01-19 | BW5: 2022-01-20 | BX5: 2022-01-21 | BY5: =IF(MONTH(BX5+1)<>MONTH(BX5),"",BX5+1) -> 2022-01-22 | BZ5: =IF(MONTH(BY5+1)<>MONTH(BY5),"",BY5+1) -> 2022-01-23 | CA5: =IF(MONTH(BZ5+1)<>MONTH(BZ5),"",BZ5+1) -> 2022-01-24 | CB5: =IF(CA5="","",IF(MONTH(CA5+1)<>MONTH(CA5),"",CA5+1)) -> 2022-01-25 | CC5: 2022-01-26 | CD5: 2022-01-27 | CE5: 2022-01-28 | CF5: 2022-01-29 | CG5: 2022-01-30 | CH5: 2022-01-31
D6: =IF(D5="","",LEFT(INDIRECT("paramètres!B"& TEXT(WEEKDAY(D5,2)+1,0)),2)) -> Sa | E6: =IF(E5="","",LEFT(INDIRECT("paramètres!B"& TEXT(WEEKDAY(E5,2)+1,0)),2)) -> Di | F6: Lu | G6: Ma | H6: Me | I6: Je | J6: Ve | K6: Sa | L6: Di | M6: Lu | N6: Ma | O6: Me | P6: Je | Q6: Ve | R6: Sa | S6: Di | T6: Lu | U6: Ma | V6: Me | W6: Je | X6: Ve | Y6: Sa | Z6: Di | AA6: Lu | AB6: Ma | AC6: Me | AD6: Je | AE6: Ve | AF6: Sa | AG6: Di | AH6: Lu | BD6: =IF(BD5="","",LEFT(INDIRECT("paramètres!B"& TEXT(WEEKDAY(BD5,2)+1,0)),3)) -> Sam | BE6: Dim | BF6: Lun | BG6: Mar | BH6: Mer | BI6: Jeu | BJ6: Ven | BK6: Sam | BL6: Dim | BM6: Lun | BN6: Mar | BO6: Mer | BP6: Jeu | BQ6: Ven | BR6: Sam | BS6: Dim | BT6: Lun | BU6: Mar | BV6: Mer | BW6: Jeu | BX6: Ven | BY6: Sam | BZ6: Dim | CA6: Lun | CB6: Mar | CC6: Mer | CD6: Jeu | CE6: Ven | CF6: Sam | CG6: Dim | CH6: Lun
A7: =SEARCH("lig",A1,1) -> 3 | B7: f férié vs vac.scol. | D7: =janvier_récap!F6 -> f | E7: =janvier_récap!G6 -> vs | F7: =janvier_récap!H6 ->  | G7: =janvier_récap!I6 ->  | H7: =janvier_récap!J6 ->  | I7: =janvier_récap!K6 ->  | J7: =janvier_récap!L6 ->  | K7: =janvier_récap!M6 ->  | L7: =janvier_récap!N6 ->  | M7: =janvier_récap!O6 ->  | N7: =janvier_récap!P6 ->  | O7: =janvier_récap!Q6 ->  | P7: =janvier_récap!R6 ->  | Q7: =janvier_récap!S6 ->  | R7: =janvier_récap!T6 ->  | S7: =janvier_récap!U6 ->  | T7: =janvier_récap!V6 ->  | U7: =janvier_récap!W6 ->  | V7: =janvier_récap!X6 ->  | W7: =janvier_récap!Y6 ->  | X7: =janvier_récap!Z6 ->  | Y7: =janvier_récap!AA6 ->  | Z7: =janvier_récap!AB6 ->  | AA7: =janvier_récap!AC6 ->  | AB7: =janvier_récap!AD6 ->  | AC7: =janvier_récap!AE6 ->  | AD7: =janvier_récap!AF6 ->  | AE7: =janvier_récap!AG6 ->  | AF7: =janvier_récap!AH6 ->  | AG7: =janvier_récap!AI6 ->  | AH7: =janvier_récap!AJ6 -> 
A8: =IF(VALUE(LEFT(A1,A7-1))>26,CHAR(INT((VALUE(LEFT(A1,A7-1))-1)/26)+64)&CHAR(VALUE(LEFT(A1,A7-1))-( INT((VALUE(LEFT(A1,A7-1))-1)/26)*26)+64),CHAR(VALUE(LEFT(A1,A7-1))+64)) -> AF | D8: D | E8: E | F8: F | G8: G | H8: H | I8: I | J8: J | K8: K | L8: L | M8: M | N8: N | O8: O | P8: P | Q8: Q | R8: R | S8: S | T8: T | U8: U | V8: V | W8: W | X8: X | Y8: Y | Z8: Z | AA8: AA | AB8: AB | AC8: AC | AD8: AD | AE8: AE | AF8: AF | AG8: AG | AH8: AH
A9: =IF(BdCréneaux!L2="","", BdCréneaux!L2) -> A1 | B9: =BdCréneaux!R2 -> Arche 16h30>18h30 | AI9: =B9 -> Arche 16h30>18h30 | BD9: =IF( INDIRECT( "BdCréneaux!"& INDIRECT("BdCréneaux!$Z"&MATCH(BD$6,BdCréneaux!$S$1:$Y$1,FALSE))& MATCH($A9,BdCréneaux!$L:$L,FALSE))=0,"", INDIRECT( "BdCréneaux!"& INDIRECT("BdCréneaux!$Z"&MATCH(BD$6,BdCréneaux!$S$1:$Y$1,FALSE))& MATCH($A9,BdCréneaux!$L:$L,FALSE))) ->  | BE9: =IF( INDIRECT( "BdCréneaux!"& INDIRECT("BdCréneaux!$Z"&MATCH(BE$6,BdCréneaux!$S$1:$Y$1,FALSE))& MATCH($A9,BdCréneaux!$L:$L,FALSE))=0,"", INDIRECT( "BdCréneaux!"& INDIRECT("BdCréneaux!$Z"&MATCH(BE$6,BdCréneaux!$S$1:$Y$1,FALSE))& MATCH($A9,BdCréneaux!$L:$L,FALSE))) ->  | BF9: =IF( INDIRECT( "BdCréneaux!"& INDIRECT("BdCréneaux!$Z"&MATCH(BF$6,BdCréneaux!$S$1:$Y$1,FALSE))& MATCH($A9,BdCréneaux!$L:$L,FALSE))=0,"", INDIRECT( "BdCréneaux!"& INDIRECT("BdCréneaux!$Z"&MATCH(BF$6,BdCréneaux!$S$1:$Y$1,FALSE))& MATCH($A9,BdCréneaux!$L:$L,FALSE))) -> x | BG9: =IF( INDIRECT( "BdCréneaux!"& INDIRECT("BdCréneaux!$Z"&MATCH(BG$6,BdCréneaux!$S$1:$Y$1,FALSE))& MATCH($A9,BdCréneaux!$L:$L,FALSE))=0,"", INDIRECT( "BdCréneaux!"& INDIRECT("BdCréneaux!$Z"&MATCH(BG$6,BdCréneaux!$S$1:$Y$1,FALSE))& MATCH($A9,BdCréneaux!$L:$L,FALSE))) -> x | BH9: =IF( INDIRECT( "BdCréneaux!"& INDIRECT("BdCréneaux!$Z"&MATCH(BH$6,BdCréneaux!$S$1:$Y$1,FALSE))& MATCH($A9,BdCréneaux!$L:$L,FALSE))=0,"", INDIRECT( "BdCréneaux!"& INDIRECT("BdCréneaux!$Z"&MATCH(BH$6,BdCréneaux!$S$1:$Y$1,FALSE))& MATCH($A9,BdCréneaux!$L:$L,FALSE))) -> x | BI9: =IF( INDIRECT( "BdCréneaux!"& INDIRECT("BdCréneaux!$Z"&MATCH(BI$6,BdCréneaux!$S$1:$Y$1,FALSE))& MATCH($A9,BdCréneaux!$L:$L,FALSE))=0,"", INDIRECT( "BdCréneaux!"& INDIRECT("BdCréneaux!$Z"&MATCH(BI$6,BdCréneaux!$S$1:$Y$1,FALSE))& MATCH($A9,BdCréneaux!$L:$L,FALSE))) -> x | BJ9: =IF( INDIRECT( "BdCréneaux!"& INDIRECT("BdCréneaux!$Z"&MATCH(BJ$6,BdCréneaux!$S$1:$Y$1,FALSE))& MATCH($A9,BdCréneaux!$L:$L,FALSE))=0,"", INDIRECT( "BdCréneaux!"& INDIRECT("BdCréneaux!$Z"&MATCH(BJ$6,BdCréneaux!$S$1:$Y$1,FALSE))& MATCH($A9,BdCréneaux!$L:$L,FALSE))) -> x | BK9: =IF( INDIRECT( "BdCréneaux!"& INDIRECT("BdCréneaux!$Z"&MATCH(BK$6,BdCréneaux!$S$1:$Y$1,FALSE))& MATCH($A9,BdCréneaux!$L:$L,FALSE))=0,"", INDIRECT( "BdCréneaux!"& INDIRECT("BdCréneaux!$Z"&MATCH(BK$6,BdCréneaux!$S$1:$Y$1,FALSE))& MATCH($A9,BdCréneaux!$L:$L,FALSE))) ->  | BL9: =IF( INDIRECT( "BdCréneaux!"& INDIRECT("BdCréneaux!$Z"&MATCH(BL$6,BdCréneaux!$S$1:$Y$1,FALSE))& MATCH($A9,BdCréneaux!$L:$L,FALSE))=0,"", INDIRECT( "BdCréneaux!"& INDIRECT("BdCréneaux!$Z"&MATCH(BL$6,BdCréneaux!$S$1:$Y$1,FALSE))& MATCH($A9,BdCréneaux!$L:$L,FALSE))) ->  | BM9: =IF( INDIRECT( "BdCréneaux!"& INDIRECT("BdCréneaux!$Z"&MATCH(BM$6,BdCréneaux!$S$1:$Y$1,FALSE))& MATCH($A9,BdCréneaux!$L:$L,FALSE))=0,"", INDIRECT( "BdCréneaux!"& INDIRECT("BdCréneaux!$Z"&MATCH(BM$6,BdCréneaux!$S$1:$Y$1,FALSE))& MATCH($A9,BdCréneaux!$L:$L,FALSE))) -> x | BN9: =IF( INDIRECT( "BdCréneaux!"& INDIRECT("BdCréneaux!$Z"&MATCH(BN$6,BdCréneaux!$S$1:$Y$1,FALSE))& MATCH($A9,BdCréneaux!$L:$L,FALSE))=0,"", INDIRECT( "BdCréneaux!"& INDIRECT("BdCréneaux!$Z"&MATCH(BN$6,BdCréneaux!$S$1:$Y$1,FALSE))& MATCH($A9,BdCréneaux!$L:$L,FALSE))) -> x | BO9: =IF( INDIRECT( "BdCréneaux!"& INDIRECT("BdCréneaux!$Z"&MATCH(BO$6,BdCréneaux!$S$1:$Y$1,FALSE))& MATCH($A9,BdCréneaux!$L:$L,FALSE))=0,"", INDIRECT( "BdCréneaux!"& INDIRECT("BdCréneaux!$Z"&MATCH(BO$6,BdCréneaux!$S$1:$Y$1,FALSE))& MATCH($A9,BdCréneaux!$L:$L,FALSE))) -> x | BP9: =IF( INDIRECT( "BdCréneaux!"& INDIRECT("BdCréneaux!$Z"&MATCH(BP$6,BdCréneaux!$S$1:$Y$1,FALSE))& MATCH($A9,BdCréneaux!$L:$L,FALSE))=0,"", INDIRECT( "BdCréneaux!"& INDIRECT("BdCréneaux!$Z"&MATCH(BP$6,BdCréneaux!$S$1:$Y$1,FALSE))& MATCH($A9,BdCréneaux!$L:$L,FALSE))) -> x | BQ9: =IF( INDIRECT( "BdCréneaux!"& INDIRECT("BdCréneaux!$Z"&MATCH(BQ$6,BdCréneaux!$S$1:$Y$1,FALSE))& MATCH($A9,BdCréneaux!$L:$L,FALSE))=0,"", INDIRECT( "BdCréneaux!"& INDIRECT("BdCréneaux!$Z"&MATCH(BQ$6,BdCréneaux!$S$1:$Y$1,FALSE))& MATCH($A9,BdCréneaux!$L:$L,FALSE))) -> x | BR9: =IF( INDIRECT( "BdCréneaux!"& INDIRECT("BdCréneaux!$Z"&MATCH(BR$6,BdCréneaux!$S$1:$Y$1,FALSE))& MATCH($A9,BdCréneaux!$L:$L,FALSE))=0,"", INDIRECT( "BdCréneaux!"& INDIRECT("BdCréneaux!$Z"&MATCH(BR$6,BdCréneaux!$S$1:$Y$1,FALSE))& MATCH($A9,BdCréneaux!$L:$L,FALSE))) ->  | BS9: =IF( INDIRECT( "BdCréneaux!"& INDIRECT("BdCréneaux!$Z"&MATCH(BS$6,BdCréneaux!$S$1:$Y$1,FALSE))& MATCH($A9,BdCréneaux!$L:$L,FALSE))=0,"", INDIRECT( "BdCréneaux!"& INDIRECT("BdCréneaux!$Z"&MATCH(BS$6,BdCréneaux!$S$1:$Y$1,FALSE))& MATCH($A9,BdCréneaux!$L:$L,FALSE))) ->  | BT9: =IF( INDIRECT( "BdCréneaux!"& INDIRECT("BdCréneaux!$Z"&MATCH(BT$6,BdCréneaux!$S$1:$Y$1,FALSE))& MATCH($A9,BdCréneaux!$L:$L,FALSE))=0,"", INDIRECT( "BdCréneaux!"& INDIRECT("BdCréneaux!$Z"&MATCH(BT$6,BdCréneaux!$S$1:$Y$1,FALSE))& MATCH($A9,BdCréneaux!$L:$L,FALSE))) -> x | BU9: =IF( INDIRECT( "BdCréneaux!"& INDIRECT("BdCréneaux!$Z"&MATCH(BU$6,BdCréneaux!$S$1:$Y$1,FALSE))& MATCH($A9,BdCréneaux!$L:$L,FALSE))=0,"", INDIRECT( "BdCréneaux!"& INDIRECT("BdCréneaux!$Z"&MATCH(BU$6,BdCréneaux!$S$1:$Y$1,FALSE))& MATCH($A9,BdCréneaux!$L:$L,FALSE))) -> x | BV9: =IF( INDIRECT( "BdCréneaux!"& INDIRECT("BdCréneaux!$Z"&MATCH(BV$6,BdCréneaux!$S$1:$Y$1,FALSE))& MATCH($A9,BdCréneaux!$L:$L,FALSE))=0,"", INDIRECT( "BdCréneaux!"& INDIRECT("BdCréneaux!$Z"&MATCH(BV$6,BdCréneaux!$S$1:$Y$1,FALSE))& MATCH($A9,BdCréneaux!$L:$L,FALSE))) -> x | BW9: =IF( INDIRECT( "BdCréneaux!"& INDIRECT("BdCréneaux!$Z"&MATCH(BW$6,BdCréneaux!$S$1:$Y$1,FALSE))& MATCH($A9,BdCréneaux!$L:$L,FALSE))=0,"", INDIRECT( "BdCréneaux!"& INDIRECT("BdCréneaux!$Z"&MATCH(BW$6,BdCréneaux!$S$1:$Y$1,FALSE))& MATCH($A9,BdCréneaux!$L:$L,FALSE))) -> x | BX9: =IF( INDIRECT( "BdCréneaux!"& INDIRECT("BdCréneaux!$Z"&MATCH(BX$6,BdCréneaux!$S$1:$Y$1,FALSE))& MATCH($A9,BdCréneaux!$L:$L,FALSE))=0,"", INDIRECT( "BdCréneaux!"& INDIRECT("BdCréneaux!$Z"&MATCH(BX$6,BdCréneaux!$S$1:$Y$1,FALSE))& MATCH($A9,BdCréneaux!$L:$L,FALSE))) -> x | BY9: =IF( INDIRECT( "BdCréneaux!"& INDIRECT("BdCréneaux!$Z"&MATCH(BY$6,BdCréneaux!$S$1:$Y$1,FALSE))& MATCH($A9,BdCréneaux!$L:$L,FALSE))=0,"", INDIRECT( "BdCréneaux!"& INDIRECT("BdCréneaux!$Z"&MATCH(BY$6,BdCréneaux!$S$1:$Y$1,FALSE))& MATCH($A9,BdCréneaux!$L:$L,FALSE))) ->  | BZ9: =IF( INDIRECT( "BdCréneaux!"& INDIRECT("BdCréneaux!$Z"&MATCH(BZ$6,BdCréneaux!$S$1:$Y$1,FALSE))& MATCH($A9,BdCréneaux!$L:$L,FALSE))=0,"", INDIRECT( "BdCréneaux!"& INDIRECT("BdCréneaux!$Z"&MATCH(BZ$6,BdCréneaux!$S$1:$Y$1,FALSE))& MATCH($A9,BdCréneaux!$L:$L,FALSE))) ->  | CA9: =IF( INDIRECT( "BdCréneaux!"& INDIRECT("BdCréneaux!$Z"&MATCH(CA$6,BdCréneaux!$S$1:$Y$1,FALSE))& MATCH($A9,BdCréneaux!$L:$L,FALSE))=0,"", INDIRECT( "BdCréneaux!"& INDIRECT("BdCréneaux!$Z"&MATCH(CA$6,BdCréneaux!$S$1:$Y$1,FALSE))& MATCH($A9,BdCréneaux!$L:$L,FALSE))) -> x | CB9: =IF( INDIRECT( "BdCréneaux!"& INDIRECT("BdCréneaux!$Z"&MATCH(CB$6,BdCréneaux!$S$1:$Y$1,FALSE))& MATCH($A9,BdCréneaux!$L:$L,FALSE))=0,"", INDIRECT( "BdCréneaux!"& INDIRECT("BdCréneaux!$Z"&MATCH(CB$6,BdCréneaux!$S$1:$Y$1,FALSE))& MATCH($A9,BdCréneaux!$L:$L,FALSE))) -> x | CC9: =IF( INDIRECT( "BdCréneaux!"& INDIRECT("BdCréneaux!$Z"&MATCH(CC$6,BdCréneaux!$S$1:$Y$1,FALSE))& MATCH($A9,BdCréneaux!$L:$L,FALSE))=0,"", INDIRECT( "BdCréneaux!"& INDIRECT("BdCréneaux!$Z"&MATCH(CC$6,BdCréneaux!$S$1:$Y$1,FALSE))& MATCH($A9,BdCréneaux!$L:$L,FALSE))) -> x | CD9: =IF( INDIRECT( "BdCréneaux!"& INDIRECT("BdCréneaux!$Z"&MATCH(CD$6,BdCréneaux!$S$1:$Y$1,FALSE))& MATCH($A9,BdCréneaux!$L:$L,FALSE))=0,"", INDIRECT( "BdCréneaux!"& INDIRECT("BdCréneaux!$Z"&MATCH(CD$6,BdCréneaux!$S$1:$Y$1,FALSE))& MATCH($A9,BdCréneaux!$L:$L,FALSE))) -> x | CE9: =IF( INDIRECT( "BdCréneaux!"& INDIRECT("BdCréneaux!$Z"&MATCH(CE$6,BdCréneaux!$S$1:$Y$1,FALSE))& MATCH($A9,BdCréneaux!$L:$L,FALSE))=0,"", INDIRECT( "BdCréneaux!"& INDIRECT("BdCréneaux!$Z"&MATCH(CE$6,BdCréneaux!$S$1:$Y$1,FALSE))& MATCH($A9,BdCréneaux!$L:$L,FALSE))) -> x | CF9: =IF( INDIRECT( "BdCréneaux!"& INDIRECT("BdCréneaux!$Z"&MATCH(CF$6,BdCréneaux!$S$1:$Y$1,FALSE))& MATCH($A9,BdCréneaux!$L:$L,FALSE))=0,"", INDIRECT( "BdCréneaux!"& INDIRECT("BdCréneaux!$Z"&MATCH(CF$6,BdCréneaux!$S$1:$Y$1,FALSE))& MATCH($A9,BdCréneaux!$L:$L,FALSE))) ->  | CG9: =IF( INDIRECT( "BdCréneaux!"& INDIRECT("BdCréneaux!$Z"&MATCH(CG$6,BdCréneaux!$S$1:$Y$1,FALSE))& MATCH($A9,BdCréneaux!$L:$L,FALSE))=0,"", INDIRECT( "BdCréneaux!"& INDIRECT("BdCréneaux!$Z"&MATCH(CG$6,BdCréneaux!$S$1:$Y$1,FALSE))& MATCH($A9,BdCréneaux!$L:$L,FALSE))) ->  | CH9: =IF( INDIRECT( "BdCréneaux!"& INDIRECT("BdCréneaux!$Z"&MATCH(CH$6,BdCréneaux!$S$1:$Y$1,FALSE))& MATCH($A9,BdCréneaux!$L:$L,FALSE))=0,"", INDIRECT( "BdCréneaux!"& INDIRECT("BdCréneaux!$Z"&MATCH(CH$6,BdCréneaux!$S$1:$Y$1,FALSE))& MATCH($A9,BdCréneaux!$L:$L,FALSE))) -> x
A10: =IF(BdCréneaux!L3="","", BdCréneaux!L3) -> A2 | B10: =BdCréneaux!R3 -> Arche 14h00>16h00 | AI10: Arche 14h00>16h00 | BD10: =IF( INDIRECT( "BdCréneaux!"& INDIRECT("BdCréneaux!$Z"&MATCH(BD$6,BdCréneaux!$S$1:$Y$1,FALSE))& MATCH($A10,BdCréneaux!$L:$L,FALSE))=0,"", INDIRECT( "BdCréneaux!"& INDIRECT("BdCréneaux!$Z"&MATCH(BD$6,BdCréneaux!$S$1:$Y$1,FALSE))& MATCH($A10,BdCréneaux!$L:$L,FALSE))) -> x | BE10: =IF( INDIRECT( "BdCréneaux!"& INDIRECT("BdCréneaux!$Z"&MATCH(BE$6,BdCréneaux!$S$1:$Y$1,FALSE))& MATCH($A10,BdCréneaux!$L:$L,FALSE))=0,"", INDIRECT( "BdCréneaux!"& INDIRECT("BdCréneaux!$Z"&MATCH(BE$6,BdCréneaux!$S$1:$Y$1,FALSE))& MATCH($A10,BdCréneaux!$L:$L,FALSE))) ->  | BF10: =IF( INDIRECT( "BdCréneaux!"& INDIRECT("BdCréneaux!$Z"&MATCH(BF$6,BdCréneaux!$S$1:$Y$1,FALSE))& MATCH($A10,BdCréneaux!$L:$L,FALSE))=0,"", INDIRECT( "BdCréneaux!"& INDIRECT("BdCréneaux!$Z"&MATCH(BF$6,BdCréneaux!$S$1:$Y$1,FALSE))& MATCH($A10,BdCréneaux!$L:$L,FALSE))) ->  | BG10: =IF( INDIRECT( "BdCréneaux!"& INDIRECT("BdCréneaux!$Z"&MATCH(BG$6,BdCréneaux!$S$1:$Y$1,FALSE))& MATCH($A10,BdCréneaux!$L:$L,FALSE))=0,"", INDIRECT( "BdCréneaux!"& INDIRECT("BdCréneaux!$Z"&MATCH(BG$6,BdCréneaux!$S$1:$Y$1,FALSE))& MATCH($A10,BdCréneaux!$L:$L,FALSE))) ->  | BH10: =IF( INDIRECT( "BdCréneaux!"& INDIRECT("BdCréneaux!$Z"&MATCH(BH$6,BdCréneaux!$S$1:$Y$1,FALSE))& MATCH($A10,BdCréneaux!$L:$L,FALSE))=0,"", INDIRECT( "BdCréneaux!"& INDIRECT("BdCréneaux!$Z"&MATCH(BH$6,BdCréneaux!$S$1:$Y$1,FALSE))& MATCH($A10,BdCréneaux!$L:$L,FALSE))) ->  | BI10: =IF( INDIRECT( "BdCréneaux!"& INDIRECT("BdCréneaux!$Z"&MATCH(BI$6,BdCréneaux!$S$1:$Y$1,FALSE))& MATCH($A10,BdCréneaux!$L:$L,FALSE))=0,"", INDIRECT( "BdCréneaux!"& INDIRECT("BdCréneaux!$Z"&MATCH(BI$6,BdCréneaux!$S$1:$Y$1,FALSE))& MATCH($A10,BdCréneaux!$L:$L,FALSE))) ->  | BJ10: =IF( INDIRECT( "BdCréneaux!"& INDIRECT("BdCréneaux!$Z"&MATCH(BJ$6,BdCréneaux!$S$1:$Y$1,FALSE))& MATCH($A10,BdCréneaux!$L:$L,FALSE))=0,"", INDIRECT( "BdCréneaux!"& INDIRECT("BdCréneaux!$Z"&MATCH(BJ$6,BdCréneaux!$S$1:$Y$1,FALSE))& MATCH($A10,BdCréneaux!$L:$L,FALSE))) ->  | BK10: =IF( INDIRECT( "BdCréneaux!"& INDIRECT("BdCréneaux!$Z"&MATCH(BK$6,BdCréneaux!$S$1:$Y$1,FALSE))& MATCH($A10,BdCréneaux!$L:$L,FALSE))=0,"", INDIRECT( "BdCréneaux!"& INDIRECT("BdCréneaux!$Z"&MATCH(BK$6,BdCréneaux!$S$1:$Y$1,FALSE))& MATCH($A10,BdCréneaux!$L:$L,FALSE))) -> x | BL10: =IF( INDIRECT( "BdCréneaux!"& INDIRECT("BdCréneaux!$Z"&MATCH(BL$6,BdCréneaux!$S$1:$Y$1,FALSE))& MATCH($A10,BdCréneaux!$L:$L,FALSE))=0,"", INDIRECT( "BdCréneaux!"& INDIRECT("BdCréneaux!$Z"&MATCH(BL$6,BdCréneaux!$S$1:$Y$1,FALSE))& MATCH($A10,BdCréneaux!$L:$L,FALSE))) ->  | BM10: =IF( INDIRECT( "BdCréneaux!"& INDIRECT("BdCréneaux!$Z"&MATCH(BM$6,BdCréneaux!$S$1:$Y$1,FALSE))& MATCH($A10,BdCréneaux!$L:$L,FALSE))=0,"", INDIRECT( "BdCréneaux!"& INDIRECT("BdCréneaux!$Z"&MATCH(BM$6,BdCréneaux!$S$1:$Y$1,FALSE))& MATCH($A10,BdCréneaux!$L:$L,FALSE))) ->  | BN10: =IF( INDIRECT( "BdCréneaux!"& INDIRECT("BdCréneaux!$Z"&MATCH(BN$6,BdCréneaux!$S$1:$Y$1,FALSE))& MATCH($A10,BdCréneaux!$L:$L,FALSE))=0,"", INDIRECT( "BdCréneaux!"& INDIRECT("BdCréneaux!$Z"&MATCH(BN$6,BdCréneaux!$S$1:$Y$1,FALSE))& MATCH($A10,BdCréneaux!$L:$L,FALSE))) ->  | BO10: =IF( INDIRECT( "BdCréneaux!"& INDIRECT("BdCréneaux!$Z"&MATCH(BO$6,BdCréneaux!$S$1:$Y$1,FALSE))& MATCH($A10,BdCréneaux!$L:$L,FALSE))=0,"", INDIRECT( "BdCréneaux!"& INDIRECT("BdCréneaux!$Z"&MATCH(BO$6,BdCréneaux!$S$1:$Y$1,FALSE))& MATCH($A10,BdCréneaux!$L:$L,FALSE))) ->  | BP10: =IF( INDIRECT( "BdCréneaux!"& INDIRECT("BdCréneaux!$Z"&MATCH(BP$6,BdCréneaux!$S$1:$Y$1,FALSE))& MATCH($A10,BdCréneaux!$L:$L,FALSE))=0,"", INDIRECT( "BdCréneaux!"& INDIRECT("BdCréneaux!$Z"&MATCH(BP$6,BdCréneaux!$S$1:$Y$1,FALSE))& MATCH($A10,BdCréneaux!$L:$L,FALSE))) ->  | BQ10: =IF( INDIRECT( "BdCréneaux!"& INDIRECT("BdCréneaux!$Z"&MATCH(BQ$6,BdCréneaux!$S$1:$Y$1,FALSE))& MATCH($A10,BdCréneaux!$L:$L,FALSE))=0,"", INDIRECT( "BdCréneaux!"& INDIRECT("BdCréneaux!$Z"&MATCH(BQ$6,BdCréneaux!$S$1:$Y$1,FALSE))& MATCH($A10,BdCréneaux!$L:$L,FALSE))) ->  | BR10: =IF( INDIRECT( "BdCréneaux!"& INDIRECT("BdCréneaux!$Z"&MATCH(BR$6,BdCréneaux!$S$1:$Y$1,FALSE))& MATCH($A10,BdCréneaux!$L:$L,FALSE))=0,"", INDIRECT( "BdCréneaux!"& INDIRECT("BdCréneaux!$Z"&MATCH(BR$6,BdCréneaux!$S$1:$Y$1,FALSE))& MATCH($A10,BdCréneaux!$L:$L,FALSE))) -> x | BS10: =IF( INDIRECT( "BdCréneaux!"& INDIRECT("BdCréneaux!$Z"&MATCH(BS$6,BdCréneaux!$S$1:$Y$1,FALSE))& MATCH($A10,BdCréneaux!$L:$L,FALSE))=0,"", INDIRECT( "BdCréneaux!"& INDIRECT("BdCréneaux!$Z"&MATCH(BS$6,BdCréneaux!$S$1:$Y$1,FALSE))& MATCH($A10,BdCréneaux!$L:$L,FALSE))) ->  | BT10: =IF( INDIRECT( "BdCréneaux!"& INDIRECT("BdCréneaux!$Z"&MATCH(BT$6,BdCréneaux!$S$1:$Y$1,FALSE))& MATCH($A10,BdCréneaux!$L:$L,FALSE))=0,"", INDIRECT( "BdCréneaux!"& INDIRECT("BdCréneaux!$Z"&MATCH(BT$6,BdCréneaux!$S$1:$Y$1,FALSE))& MATCH($A10,BdCréneaux!$L:$L,FALSE))) ->  | BU10: =IF( INDIRECT( "BdCréneaux!"& INDIRECT("BdCréneaux!$Z"&MATCH(BU$6,BdCréneaux!$S$1:$Y$1,FALSE))& MATCH($A10,BdCréneaux!$L:$L,FALSE))=0,"", INDIRECT( "BdCréneaux!"& INDIRECT("BdCréneaux!$Z"&MATCH(BU$6,BdCréneaux!$S$1:$Y$1,FALSE))& MATCH($A10,BdCréneaux!$L:$L,FALSE))) ->  | BV10: =IF( INDIRECT( "BdCréneaux!"& INDIRECT("BdCréneaux!$Z"&MATCH(BV$6,BdCréneaux!$S$1:$Y$1,FALSE))& MATCH($A10,BdCréneaux!$L:$L,FALSE))=0,"", INDIRECT( "BdCréneaux!"& INDIRECT("BdCréneaux!$Z"&MATCH(BV$6,BdCréneaux!$S$1:$Y$1,FALSE))& MATCH($A10,BdCréneaux!$L:$L,FALSE))) ->  | BW10: =IF( INDIRECT( "BdCréneaux!"& INDIRECT("BdCréneaux!$Z"&MATCH(BW$6,BdCréneaux!$S$1:$Y$1,FALSE))& MATCH($A10,BdCréneaux!$L:$L,FALSE))=0,"", INDIRECT( "BdCréneaux!"& INDIRECT("BdCréneaux!$Z"&MATCH(BW$6,BdCréneaux!$S$1:$Y$1,FALSE))& MATCH($A10,BdCréneaux!$L:$L,FALSE))) ->  | BX10: =IF( INDIRECT( "BdCréneaux!"& INDIRECT("BdCréneaux!$Z"&MATCH(BX$6,BdCréneaux!$S$1:$Y$1,FALSE))& MATCH($A10,BdCréneaux!$L:$L,FALSE))=0,"", INDIRECT( "BdCréneaux!"& INDIRECT("BdCréneaux!$Z"&MATCH(BX$6,BdCréneaux!$S$1:$Y$1,FALSE))& MATCH($A10,BdCréneaux!$L:$L,FALSE))) ->  | BY10: =IF( INDIRECT( "BdCréneaux!"& INDIRECT("BdCréneaux!$Z"&MATCH(BY$6,BdCréneaux!$S$1:$Y$1,FALSE))& MATCH($A10,BdCréneaux!$L:$L,FALSE))=0,"", INDIRECT( "BdCréneaux!"& INDIRECT("BdCréneaux!$Z"&MATCH(BY$6,BdCréneaux!$S$1:$Y$1,FALSE))& MATCH($A10,BdCréneaux!$L:$L,FALSE))) -> x | BZ10: =IF( INDIRECT( "BdCréneaux!"& INDIRECT("BdCréneaux!$Z"&MATCH(BZ$6,BdCréneaux!$S$1:$Y$1,FALSE))& MATCH($A10,BdCréneaux!$L:$L,FALSE))=0,"", INDIRECT( "BdCréneaux!"& INDIRECT("BdCréneaux!$Z"&MATCH(BZ$6,BdCréneaux!$S$1:$Y$1,FALSE))& MATCH($A10,BdCréneaux!$L:$L,FALSE))) ->  | CA10: =IF( INDIRECT( "BdCréneaux!"& INDIRECT("BdCréneaux!$Z"&MATCH(CA$6,BdCréneaux!$S$1:$Y$1,FALSE))& MATCH($A10,BdCréneaux!$L:$L,FALSE))=0,"", INDIRECT( "BdCréneaux!"& INDIRECT("BdCréneaux!$Z"&MATCH(CA$6,BdCréneaux!$S$1:$Y$1,FALSE))& MATCH($A10,BdCréneaux!$L:$L,FALSE))) ->  | CB10: =IF( INDIRECT( "BdCréneaux!"& INDIRECT("BdCréneaux!$Z"&MATCH(CB$6,BdCréneaux!$S$1:$Y$1,FALSE))& MATCH($A10,BdCréneaux!$L:$L,FALSE))=0,"", INDIRECT( "BdCréneaux!"& INDIRECT("BdCréneaux!$Z"&MATCH(CB$6,BdCréneaux!$S$1:$Y$1,FALSE))& MATCH($A10,BdCréneaux!$L:$L,FALSE))) ->  | CC10: =IF( INDIRECT( "BdCréneaux!"& INDIRECT("BdCréneaux!$Z"&MATCH(CC$6,BdCréneaux!$S$1:$Y$1,FALSE))& MATCH($A10,BdCréneaux!$L:$L,FALSE))=0,"", INDIRECT( "BdCréneaux!"& INDIRECT("BdCréneaux!$Z"&MATCH(CC$6,BdCréneaux!$S$1:$Y$1,FALSE))& MATCH($A10,BdCréneaux!$L:$L,FALSE))) ->  | CD10: =IF( INDIRECT( "BdCréneaux!"& INDIRECT("BdCréneaux!$Z"&MATCH(CD$6,BdCréneaux!$S$1:$Y$1,FALSE))& MATCH($A10,BdCréneaux!$L:$L,FALSE))=0,"", INDIRECT( "BdCréneaux!"& INDIRECT("BdCréneaux!$Z"&MATCH(CD$6,BdCréneaux!$S$1:$Y$1,FALSE))& MATCH($A10,BdCréneaux!$L:$L,FALSE))) ->  | CE10: =IF( INDIRECT( "BdCréneaux!"& INDIRECT("BdCréneaux!$Z"&MATCH(CE$6,BdCréneaux!$S$1:$Y$1,FALSE))& MATCH($A10,BdCréneaux!$L:$L,FALSE))=0,"", INDIRECT( "BdCréneaux!"& INDIRECT("BdCréneaux!$Z"&MATCH(CE$6,BdCréneaux!$S$1:$Y$1,FALSE))& MATCH($A10,BdCréneaux!$L:$L,FALSE))) ->  | CF10: =IF( INDIRECT( "BdCréneaux!"& INDIRECT("BdCréneaux!$Z"&MATCH(CF$6,BdCréneaux!$S$1:$Y$1,FALSE))& MATCH($A10,BdCréneaux!$L:$L,FALSE))=0,"", INDIRECT( "BdCréneaux!"& INDIRECT("BdCréneaux!$Z"&MATCH(CF$6,BdCréneaux!$S$1:$Y$1,FALSE))& MATCH($A10,BdCréneaux!$L:$L,FALSE))) -> x | CG10: =IF( INDIRECT( "BdCréneaux!"& INDIRECT("BdCréneaux!$Z"&MATCH(CG$6,BdCréneaux!$S$1:$Y$1,FALSE))& MATCH($A10,BdCréneaux!$L:$L,FALSE))=0,"", INDIRECT( "BdCréneaux!"& INDIRECT("BdCréneaux!$Z"&MATCH(CG$6,BdCréneaux!$S$1:$Y$1,FALSE))& MATCH($A10,BdCréneaux!$L:$L,FALSE))) ->  | CH10: =IF( INDIRECT( "BdCréneaux!"& INDIRECT("BdCréneaux!$Z"&MATCH(CH$6,BdCréneaux!$S$1:$Y$1,FALSE))& MATCH($A10,BdCréneaux!$L:$L,FALSE))=0,"", INDIRECT( "BdCréneaux!"& INDIRECT("BdCréneaux!$Z"&MATCH(CH$6,BdCréneaux!$S$1:$Y$1,FALSE))& MATCH($A10,BdCréneaux!$L:$L,FALSE))) -> 
A11: =IF(BdCréneaux!L4="","", BdCréneaux!L4) -> C1 | B11: =BdCréneaux!R4 -> Consult.Pédia.Chirurgie 10h00>12h00 | AI11: Consult.Pédia.Chirurgie 10h00>12h00 | BD11: =IF( INDIRECT( "BdCréneaux!"& INDIRECT("BdCréneaux!$Z"&MATCH(BD$6,BdCréneaux!$S$1:$Y$1,FALSE))& MATCH($A11,BdCréneaux!$L:$L,FALSE))=0,"", INDIRECT( "BdCréneaux!"& INDIRECT("BdCréneaux!$Z"&MATCH(BD$6,BdCréneaux!$S$1:$Y$1,FALSE))& MATCH($A11,BdCréneaux!$L:$L,FALSE))) ->  | BE11: =IF( INDIRECT( "BdCréneaux!"& INDIRECT("BdCréneaux!$Z"&MATCH(BE$6,BdCréneaux!$S$1:$Y$1,FALSE))& MATCH($A11,BdCréneaux!$L:$L,FALSE))=0,"", INDIRECT( "BdCréneaux!"& INDIRECT("BdCréneaux!$Z"&MATCH(BE$6,BdCréneaux!$S$1:$Y$1,FALSE))& MATCH($A11,BdCréneaux!$L:$L,FALSE))) ->  | BF11: =IF( INDIRECT( "BdCréneaux!"& INDIRECT("BdCréneaux!$Z"&MATCH(BF$6,BdCréneaux!$S$1:$Y$1,FALSE))& MATCH($A11,BdCréneaux!$L:$L,FALSE))=0,"", INDIRECT( "BdCréneaux!"& INDIRECT("BdCréneaux!$Z"&MATCH(BF$6,BdCréneaux!$S$1:$Y$1,FALSE))& MATCH($A11,BdCréneaux!$L:$L,FALSE))) ->  | BG11: =IF( INDIRECT( "BdCréneaux!"& INDIRECT("BdCréneaux!$Z"&MATCH(BG$6,BdCréneaux!$S$1:$Y$1,FALSE))& MATCH($A11,BdCréneaux!$L:$L,FALSE))=0,"", INDIRECT( "BdCréneaux!"& INDIRECT("BdCréneaux!$Z"&MATCH(BG$6,BdCréneaux!$S$1:$Y$1,FALSE))& MATCH($A11,BdCréneaux!$L:$L,FALSE))) -> x | BH11: =IF( INDIRECT( "BdCréneaux!"& INDIRECT("BdCréneaux!$Z"&MATCH(BH$6,BdCréneaux!$S$1:$Y$1,FALSE))& MATCH($A11,BdCréneaux!$L:$L,FALSE))=0,"", INDIRECT( "BdCréneaux!"& INDIRECT("BdCréneaux!$Z"&MATCH(BH$6,BdCréneaux!$S$1:$Y$1,FALSE))& MATCH($A11,BdCréneaux!$L:$L,FALSE))) ->  | BI11: =IF( INDIRECT( "BdCréneaux!"& INDIRECT("BdCréneaux!$Z"&MATCH(BI$6,BdCréneaux!$S$1:$Y$1,FALSE))& MATCH($A11,BdCréneaux!$L:$L,FALSE))=0,"", INDIRECT( "BdCréneaux!"& INDIRECT("BdCréneaux!$Z"&MATCH(BI$6,BdCréneaux!$S$1:$Y$1,FALSE))& MATCH($A11,BdCréneaux!$L:$L,FALSE))) ->  | BJ11: =IF( INDIRECT( "BdCréneaux!"& INDIRECT("BdCréneaux!$Z"&MATCH(BJ$6,BdCréneaux!$S$1:$Y$1,FALSE))& MATCH($A11,BdCréneaux!$L:$L,FALSE))=0,"", INDIRECT( "BdCréneaux!"& INDIRECT("BdCréneaux!$Z"&MATCH(BJ$6,BdCréneaux!$S$1:$Y$1,FALSE))& MATCH($A11,BdCréneaux!$L:$L,FALSE))) -> x | BK11: =IF( INDIRECT( "BdCréneaux!"& INDIRECT("BdCréneaux!$Z"&MATCH(BK$6,BdCréneaux!$S$1:$Y$1,FALSE))& MATCH($A11,BdCréneaux!$L:$L,FALSE))=0,"", INDIRECT( "BdCréneaux!"& INDIRECT("BdCréneaux!$Z"&MATCH(BK$6,BdCréneaux!$S$1:$Y$1,FALSE))& MATCH($A11,BdCréneaux!$L:$L,FALSE))) ->  | BL11: =IF( INDIRECT( "BdCréneaux!"& INDIRECT("BdCréneaux!$Z"&MATCH(BL$6,BdCréneaux!$S$1:$Y$1,FALSE))& MATCH($A11,BdCréneaux!$L:$L,FALSE))=0,"", INDIRECT( "BdCréneaux!"& INDIRECT("BdCréneaux!$Z"&MATCH(BL$6,BdCréneaux!$S$1:$Y$1,FALSE))& MATCH($A11,BdCréneaux!$L:$L,FALSE))) ->  | BM11: =IF( INDIRECT( "BdCréneaux!"& INDIRECT("BdCréneaux!$Z"&MATCH(BM$6,BdCréneaux!$S$1:$Y$1,FALSE))& MATCH($A11,BdCréneaux!$L:$L,FALSE))=0,"", INDIRECT( "BdCréneaux!"& INDIRECT("BdCréneaux!$Z"&MATCH(BM$6,BdCréneaux!$S$1:$Y$1,FALSE))& MATCH($A11,BdCréneaux!$L:$L,FALSE))) ->  | BN11: =IF( INDIRECT( "BdCréneaux!"& INDIRECT("BdCréneaux!$Z"&MATCH(BN$6,BdCréneaux!$S$1:$Y$1,FALSE))& MATCH($A11,BdCréneaux!$L:$L,FALSE))=0,"", INDIRECT( "BdCréneaux!"& INDIRECT("BdCréneaux!$Z"&MATCH(BN$6,BdCréneaux!$S$1:$Y$1,FALSE))& MATCH($A11,BdCréneaux!$L:$L,FALSE))) -> x | BO11: =IF( INDIRECT( "BdCréneaux!"& INDIRECT("BdCréneaux!$Z"&MATCH(BO$6,BdCréneaux!$S$1:$Y$1,FALSE))& MATCH($A11,BdCréneaux!$L:$L,FALSE))=0,"", INDIRECT( "BdCréneaux!"& INDIRECT("BdCréneaux!$Z"&MATCH(BO$6,BdCréneaux!$S$1:$Y$1,FALSE))& MATCH($A11,BdCréneaux!$L:$L,FALSE))) ->  | BP11: =IF( INDIRECT( "BdCréneaux!"& INDIRECT("BdCréneaux!$Z"&MATCH(BP$6,BdCréneaux!$S$1:$Y$1,FALSE))& MATCH($A11,BdCréneaux!$L:$L,FALSE))=0,"", INDIRECT( "BdCréneaux!"& INDIRECT("BdCréneaux!$Z"&MATCH(BP$6,BdCréneaux!$S$1:$Y$1,FALSE))& MATCH($A11,BdCréneaux!$L:$L,FALSE))) ->  | BQ11: =IF( INDIRECT( "BdCréneaux!"& INDIRECT("BdCréneaux!$Z"&MATCH(BQ$6,BdCréneaux!$S$1:$Y$1,FALSE))& MATCH($A11,BdCréneaux!$L:$L,FALSE))=0,"", INDIRECT( "BdCréneaux!"& INDIRECT("BdCréneaux!$Z"&MATCH(BQ$6,BdCréneaux!$S$1:$Y$1,FALSE))& MATCH($A11,BdCréneaux!$L:$L,FALSE))) -> x | BR11: =IF( INDIRECT( "BdCréneaux!"& INDIRECT("BdCréneaux!$Z"&MATCH(BR$6,BdCréneaux!$S$1:$Y$1,FALSE))& MATCH($A11,BdCréneaux!$L:$L,FALSE))=0,"", INDIRECT( "BdCréneaux!"& INDIRECT("BdCréneaux!$Z"&MATCH(BR$6,BdCréneaux!$S$1:$Y$1,FALSE))& MATCH($A11,BdCréneaux!$L:$L,FALSE))) ->  | BS11: =IF( INDIRECT( "BdCréneaux!"& INDIRECT("BdCréneaux!$Z"&MATCH(BS$6,BdCréneaux!$S$1:$Y$1,FALSE))& MATCH($A11,BdCréneaux!$L:$L,FALSE))=0,"", INDIRECT( "BdCréneaux!"& INDIRECT("BdCréneaux!$Z"&MATCH(BS$6,BdCréneaux!$S$1:$Y$1,FALSE))& MATCH($A11,BdCréneaux!$L:$L,FALSE))) ->  | BT11: =IF( INDIRECT( "BdCréneaux!"& INDIRECT("BdCréneaux!$Z"&MATCH(BT$6,BdCréneaux!$S$1:$Y$1,FALSE))& MATCH($A11,BdCréneaux!$L:$L,FALSE))=0,"", INDIRECT( "BdCréneaux!"& INDIRECT("BdCréneaux!$Z"&MATCH(BT$6,BdCréneaux!$S$1:$Y$1,FALSE))& MATCH($A11,BdCréneaux!$L:$L,FALSE))) ->  | BU11: =IF( INDIRECT( "BdCréneaux!"& INDIRECT("BdCréneaux!$Z"&MATCH(BU$6,BdCréneaux!$S$1:$Y$1,FALSE))& MATCH($A11,BdCréneaux!$L:$L,FALSE))=0,"", INDIRECT( "BdCréneaux!"& INDIRECT("BdCréneaux!$Z"&MATCH(BU$6,BdCréneaux!$S$1:$Y$1,FALSE))& MATCH($A11,BdCréneaux!$L:$L,FALSE))) -> x | BV11: =IF( INDIRECT( "BdCréneaux!"& INDIRECT("BdCréneaux!$Z"&MATCH(BV$6,BdCréneaux!$S$1:$Y$1,FALSE))& MATCH($A11,BdCréneaux!$L:$L,FALSE))=0,"", INDIRECT( "BdCréneaux!"& INDIRECT("BdCréneaux!$Z"&MATCH(BV$6,BdCréneaux!$S$1:$Y$1,FALSE))& MATCH($A11,BdCréneaux!$L:$L,FALSE))) ->  | BW11: =IF( INDIRECT( "BdCréneaux!"& INDIRECT("BdCréneaux!$Z"&MATCH(BW$6,BdCréneaux!$S$1:$Y$1,FALSE))& MATCH($A11,BdCréneaux!$L:$L,FALSE))=0,"", INDIRECT( "BdCréneaux!"& INDIRECT("BdCréneaux!$Z"&MATCH(BW$6,BdCréneaux!$S$1:$Y$1,FALSE))& MATCH($A11,BdCréneaux!$L:$L,FALSE))) ->  | BX11: =IF( INDIRECT( "BdCréneaux!"& INDIRECT("BdCréneaux!$Z"&MATCH(BX$6,BdCréneaux!$S$1:$Y$1,FALSE))& MATCH($A11,BdCréneaux!$L:$L,FALSE))=0,"", INDIRECT( "BdCréneaux!"& INDIRECT("BdCréneaux!$Z"&MATCH(BX$6,BdCréneaux!$S$1:$Y$1,FALSE))& MATCH($A11,BdCréneaux!$L:$L,FALSE))) -> x | BY11: =IF( INDIRECT( "BdCréneaux!"& INDIRECT("BdCréneaux!$Z"&MATCH(BY$6,BdCréneaux!$S$1:$Y$1,FALSE))& MATCH($A11,BdCréneaux!$L:$L,FALSE))=0,"", INDIRECT( "BdCréneaux!"& INDIRECT("BdCréneaux!$Z"&MATCH(BY$6,BdCréneaux!$S$1:$Y$1,FALSE))& MATCH($A11,BdCréneaux!$L:$L,FALSE))) ->  | BZ11: =IF( INDIRECT( "BdCréneaux!"& INDIRECT("BdCréneaux!$Z"&MATCH(BZ$6,BdCréneaux!$S$1:$Y$1,FALSE))& MATCH($A11,BdCréneaux!$L:$L,FALSE))=0,"", INDIRECT( "BdCréneaux!"& INDIRECT("BdCréneaux!$Z"&MATCH(BZ$6,BdCréneaux!$S$1:$Y$1,FALSE))& MATCH($A11,BdCréneaux!$L:$L,FALSE))) ->  | CA11: =IF( INDIRECT( "BdCréneaux!"& INDIRECT("BdCréneaux!$Z"&MATCH(CA$6,BdCréneaux!$S$1:$Y$1,FALSE))& MATCH($A11,BdCréneaux!$L:$L,FALSE))=0,"", INDIRECT( "BdCréneaux!"& INDIRECT("BdCréneaux!$Z"&MATCH(CA$6,BdCréneaux!$S$1:$Y$1,FALSE))& MATCH($A11,BdCréneaux!$L:$L,FALSE))) ->  | CB11: =IF( INDIRECT( "BdCréneaux!"& INDIRECT("BdCréneaux!$Z"&MATCH(CB$6,BdCréneaux!$S$1:$Y$1,FALSE))& MATCH($A11,BdCréneaux!$L:$L,FALSE))=0,"", INDIRECT( "BdCréneaux!"& INDIRECT("BdCréneaux!$Z"&MATCH(CB$6,BdCréneaux!$S$1:$Y$1,FALSE))& MATCH($A11,BdCréneaux!$L:$L,FALSE))) -> x | CC11: =IF( INDIRECT( "BdCréneaux!"& INDIRECT("BdCréneaux!$Z"&MATCH(CC$6,BdCréneaux!$S$1:$Y$1,FALSE))& MATCH($A11,BdCréneaux!$L:$L,FALSE))=0,"", INDIRECT( "BdCréneaux!"& INDIRECT("BdCréneaux!$Z"&MATCH(CC$6,BdCréneaux!$S$1:$Y$1,FALSE))& MATCH($A11,BdCréneaux!$L:$L,FALSE))) ->  | CD11: =IF( INDIRECT( "BdCréneaux!"& INDIRECT("BdCréneaux!$Z"&MATCH(CD$6,BdCréneaux!$S$1:$Y$1,FALSE))& MATCH($A11,BdCréneaux!$L:$L,FALSE))=0,"", INDIRECT( "BdCréneaux!"& INDIRECT("BdCréneaux!$Z"&MATCH(CD$6,BdCréneaux!$S$1:$Y$1,FALSE))& MATCH($A11,BdCréneaux!$L:$L,FALSE))) ->  | CE11: =IF( INDIRECT( "BdCréneaux!"& INDIRECT("BdCréneaux!$Z"&MATCH(CE$6,BdCréneaux!$S$1:$Y$1,FALSE))& MATCH($A11,BdCréneaux!$L:$L,FALSE))=0,"", INDIRECT( "BdCréneaux!"& INDIRECT("BdCréneaux!$Z"&MATCH(CE$6,BdCréneaux!$S$1:$Y$1,FALSE))& MATCH($A11,BdCréneaux!$L:$L,FALSE))) -> x | CF11: =IF( INDIRECT( "BdCréneaux!"& INDIRECT("BdCréneaux!$Z"&MATCH(CF$6,BdCréneaux!$S$1:$Y$1,FALSE))& MATCH($A11,BdCréneaux!$L:$L,FALSE))=0,"", INDIRECT( "BdCréneaux!"& INDIRECT("BdCréneaux!$Z"&MATCH(CF$6,BdCréneaux!$S$1:$Y$1,FALSE))& MATCH($A11,BdCréneaux!$L:$L,FALSE))) ->  | CG11: =IF( INDIRECT( "BdCréneaux!"& INDIRECT("BdCréneaux!$Z"&MATCH(CG$6,BdCréneaux!$S$1:$Y$1,FALSE))& MATCH($A11,BdCréneaux!$L:$L,FALSE))=0,"", INDIRECT( "BdCréneaux!"& INDIRECT("BdCréneaux!$Z"&MATCH(CG$6,BdCréneaux!$S$1:$Y$1,FALSE))& MATCH($A11,BdCréneaux!$L:$L,FALSE))) ->  | CH11: =IF( INDIRECT( "BdCréneaux!"& INDIRECT("BdCréneaux!$Z"&MATCH(CH$6,BdCréneaux!$S$1:$Y$1,FALSE))& MATCH($A11,BdCréneaux!$L:$L,FALSE))=0,"", INDIRECT( "BdCréneaux!"& INDIRECT("BdCréneaux!$Z"&MATCH(CH$6,BdCréneaux!$S$1:$Y$1,FALSE))& MATCH($A11,BdCréneaux!$L:$L,FALSE))) -> 
A12: =IF(BdCréneaux!L5="","", BdCréneaux!L5) -> C2 | B12: =BdCréneaux!R5 -> Consult.Pédia.Chirurgie 14h00>16h00 | AI12: Consult.Pédia.Chirurgie 14h00>16h00 | BD12: =IF( INDIRECT( "BdCréneaux!"& INDIRECT("BdCréneaux!$Z"&MATCH(BD$6,BdCréneaux!$S$1:$Y$1,FALSE))& MATCH($A12,BdCréneaux!$L:$L,FALSE))=0,"", INDIRECT( "BdCréneaux!"& INDIRECT("BdCréneaux!$Z"&MATCH(BD$6,BdCréneaux!$S$1:$Y$1,FALSE))& MATCH($A12,BdCréneaux!$L:$L,FALSE))) ->  | BE12: =IF( INDIRECT( "BdCréneaux!"& INDIRECT("BdCréneaux!$Z"&MATCH(BE$6,BdCréneaux!$S$1:$Y$1,FALSE))& MATCH($A12,BdCréneaux!$L:$L,FALSE))=0,"", INDIRECT( "BdCréneaux!"& INDIRECT("BdCréneaux!$Z"&MATCH(BE$6,BdCréneaux!$S$1:$Y$1,FALSE))& MATCH($A12,BdCréneaux!$L:$L,FALSE))) ->  | BF12: =IF( INDIRECT( "BdCréneaux!"& INDIRECT("BdCréneaux!$Z"&MATCH(BF$6,BdCréneaux!$S$1:$Y$1,FALSE))& MATCH($A12,BdCréneaux!$L:$L,FALSE))=0,"", INDIRECT( "BdCréneaux!"& INDIRECT("BdCréneaux!$Z"&MATCH(BF$6,BdCréneaux!$S$1:$Y$1,FALSE))& MATCH($A12,BdCréneaux!$L:$L,FALSE))) -> x | BG12: =IF( INDIRECT( "BdCréneaux!"& INDIRECT("BdCréneaux!$Z"&MATCH(BG$6,BdCréneaux!$S$1:$Y$1,FALSE))& MATCH($A12,BdCréneaux!$L:$L,FALSE))=0,"", INDIRECT( "BdCréneaux!"& INDIRECT("BdCréneaux!$Z"&MATCH(BG$6,BdCréneaux!$S$1:$Y$1,FALSE))& MATCH($A12,BdCréneaux!$L:$L,FALSE))) -> x | BH12: =IF( INDIRECT( "BdCréneaux!"& INDIRECT("BdCréneaux!$Z"&MATCH(BH$6,BdCréneaux!$S$1:$Y$1,FALSE))& MATCH($A12,BdCréneaux!$L:$L,FALSE))=0,"", INDIRECT( "BdCréneaux!"& INDIRECT("BdCréneaux!$Z"&MATCH(BH$6,BdCréneaux!$S$1:$Y$1,FALSE))& MATCH($A12,BdCréneaux!$L:$L,FALSE))) -> x | BI12: =IF( INDIRECT( "BdCréneaux!"& INDIRECT("BdCréneaux!$Z"&MATCH(BI$6,BdCréneaux!$S$1:$Y$1,FALSE))& MATCH($A12,BdCréneaux!$L:$L,FALSE))=0,"", INDIRECT( "BdCréneaux!"& INDIRECT("BdCréneaux!$Z"&MATCH(BI$6,BdCréneaux!$S$1:$Y$1,FALSE))& MATCH($A12,BdCréneaux!$L:$L,FALSE))) -> x | BJ12: =IF( INDIRECT( "BdCréneaux!"& INDIRECT("BdCréneaux!$Z"&MATCH(BJ$6,BdCréneaux!$S$1:$Y$1,FALSE))& MATCH($A12,BdCréneaux!$L:$L,FALSE))=0,"", INDIRECT( "BdCréneaux!"& INDIRECT("BdCréneaux!$Z"&MATCH(BJ$6,BdCréneaux!$S$1:$Y$1,FALSE))& MATCH($A12,BdCréneaux!$L:$L,FALSE))) ->  | BK12: =IF( INDIRECT( "BdCréneaux!"& INDIRECT("BdCréneaux!$Z"&MATCH(BK$6,BdCréneaux!$S$1:$Y$1,FALSE))& MATCH($A12,BdCréneaux!$L:$L,FALSE))=0,"", INDIRECT( "BdCréneaux!"& INDIRECT("BdCréneaux!$Z"&MATCH(BK$6,BdCréneaux!$S$1:$Y$1,FALSE))& MATCH($A12,BdCréneaux!$L:$L,FALSE))) ->  | BL12: =IF( INDIRECT( "BdCréneaux!"& INDIRECT("BdCréneaux!$Z"&MATCH(BL$6,BdCréneaux!$S$1:$Y$1,FALSE))& MATCH($A12,BdCréneaux!$L:$L,FALSE))=0,"", INDIRECT( "BdCréneaux!"& INDIRECT("BdCréneaux!$Z"&MATCH(BL$6,BdCréneaux!$S$1:$Y$1,FALSE))& MATCH($A12,BdCréneaux!$L:$L,FALSE))) ->  | BM12: =IF( INDIRECT( "BdCréneaux!"& INDIRECT("BdCréneaux!$Z"&MATCH(BM$6,BdCréneaux!$S$1:$Y$1,FALSE))& MATCH($A12,BdCréneaux!$L:$L,FALSE))=0,"", INDIRECT( "BdCréneaux!"& INDIRECT("BdCréneaux!$Z"&MATCH(BM$6,BdCréneaux!$S$1:$Y$1,FALSE))& MATCH($A12,BdCréneaux!$L:$L,FALSE))) -> x | BN12: =IF( INDIRECT( "BdCréneaux!"& INDIRECT("BdCréneaux!$Z"&MATCH(BN$6,BdCréneaux!$S$1:$Y$1,FALSE))& MATCH($A12,BdCréneaux!$L:$L,FALSE))=0,"", INDIRECT( "BdCréneaux!"& INDIRECT("BdCréneaux!$Z"&MATCH(BN$6,BdCréneaux!$S$1:$Y$1,FALSE))& MATCH($A12,BdCréneaux!$L:$L,FALSE))) -> x | BO12: =IF( INDIRECT( "BdCréneaux!"& INDIRECT("BdCréneaux!$Z"&MATCH(BO$6,BdCréneaux!$S$1:$Y$1,FALSE))& MATCH($A12,BdCréneaux!$L:$L,FALSE))=0,"", INDIRECT( "BdCréneaux!"& INDIRECT("BdCréneaux!$Z"&MATCH(BO$6,BdCréneaux!$S$1:$Y$1,FALSE))& MATCH($A12,BdCréneaux!$L:$L,FALSE))) -> x | BP12: =IF( INDIRECT( "BdCréneaux!"& INDIRECT("BdCréneaux!$Z"&MATCH(BP$6,BdCréneaux!$S$1:$Y$1,FALSE))& MATCH($A12,BdCréneaux!$L:$L,FALSE))=0,"", INDIRECT( "BdCréneaux!"& INDIRECT("BdCréneaux!$Z"&MATCH(BP$6,BdCréneaux!$S$1:$Y$1,FALSE))& MATCH($A12,BdCréneaux!$L:$L,FALSE))) -> x | BQ12: =IF( INDIRECT( "BdCréneaux!"& INDIRECT("BdCréneaux!$Z"&MATCH(BQ$6,BdCréneaux!$S$1:$Y$1,FALSE))& MATCH($A12,BdCréneaux!$L:$L,FALSE))=0,"", INDIRECT( "BdCréneaux!"& INDIRECT("BdCréneaux!$Z"&MATCH(BQ$6,BdCréneaux!$S$1:$Y$1,FALSE))& MATCH($A12,BdCréneaux!$L:$L,FALSE))) ->  | BR12: =IF( INDIRECT( "BdCréneaux!"& INDIRECT("BdCréneaux!$Z"&MATCH(BR$6,BdCréneaux!$S$1:$Y$1,FALSE))& MATCH($A12,BdCréneaux!$L:$L,FALSE))=0,"", INDIRECT( "BdCréneaux!"& INDIRECT("BdCréneaux!$Z"&MATCH(BR$6,BdCréneaux!$S$1:$Y$1,FALSE))& MATCH($A12,BdCréneaux!$L:$L,FALSE))) ->  | BS12: =IF( INDIRECT( "BdCréneaux!"& INDIRECT("BdCréneaux!$Z"&MATCH(BS$6,BdCréneaux!$S$1:$Y$1,FALSE))& MATCH($A12,BdCréneaux!$L:$L,FALSE))=0,"", INDIRECT( "BdCréneaux!"& INDIRECT("BdCréneaux!$Z"&MATCH(BS$6,BdCréneaux!$S$1:$Y$1,FALSE))& MATCH($A12,BdCréneaux!$L:$L,FALSE))) ->  | BT12: =IF( INDIRECT( "BdCréneaux!"& INDIRECT("BdCréneaux!$Z"&MATCH(BT$6,BdCréneaux!$S$1:$Y$1,FALSE))& MATCH($A12,BdCréneaux!$L:$L,FALSE))=0,"", INDIRECT( "BdCréneaux!"& INDIRECT("BdCréneaux!$Z"&MATCH(BT$6,BdCréneaux!$S$1:$Y$1,FALSE))& MATCH($A12,BdCréneaux!$L:$L,FALSE))) -> x | BU12: =IF( INDIRECT( "BdCréneaux!"& INDIRECT("BdCréneaux!$Z"&MATCH(BU$6,BdCréneaux!$S$1:$Y$1,FALSE))& MATCH($A12,BdCréneaux!$L:$L,FALSE))=0,"", INDIRECT( "BdCréneaux!"& INDIRECT("BdCréneaux!$Z"&MATCH(BU$6,BdCréneaux!$S$1:$Y$1,FALSE))& MATCH($A12,BdCréneaux!$L:$L,FALSE))) -> x | BV12: =IF( INDIRECT( "BdCréneaux!"& INDIRECT("BdCréneaux!$Z"&MATCH(BV$6,BdCréneaux!$S$1:$Y$1,FALSE))& MATCH($A12,BdCréneaux!$L:$L,FALSE))=0,"", INDIRECT( "BdCréneaux!"& INDIRECT("BdCréneaux!$Z"&MATCH(BV$6,BdCréneaux!$S$1:$Y$1,FALSE))& MATCH($A12,BdCréneaux!$L:$L,FALSE))) -> x | BW12: =IF( INDIRECT( "BdCréneaux!"& INDIRECT("BdCréneaux!$Z"&MATCH(BW$6,BdCréneaux!$S$1:$Y$1,FALSE))& MATCH($A12,BdCréneaux!$L:$L,FALSE))=0,"", INDIRECT( "BdCréneaux!"& INDIRECT("BdCréneaux!$Z"&MATCH(BW$6,BdCréneaux!$S$1:$Y$1,FALSE))& MATCH($A12,BdCréneaux!$L:$L,FALSE))) -> x | BX12: =IF( INDIRECT( "BdCréneaux!"& INDIRECT("BdCréneaux!$Z"&MATCH(BX$6,BdCréneaux!$S$1:$Y$1,FALSE))& MATCH($A12,BdCréneaux!$L:$L,FALSE))=0,"", INDIRECT( "BdCréneaux!"& INDIRECT("BdCréneaux!$Z"&MATCH(BX$6,BdCréneaux!$S$1:$Y$1,FALSE))& MATCH($A12,BdCréneaux!$L:$L,FALSE))) ->  | BY12: =IF( INDIRECT( "BdCréneaux!"& INDIRECT("BdCréneaux!$Z"&MATCH(BY$6,BdCréneaux!$S$1:$Y$1,FALSE))& MATCH($A12,BdCréneaux!$L:$L,FALSE))=0,"", INDIRECT( "BdCréneaux!"& INDIRECT("BdCréneaux!$Z"&MATCH(BY$6,BdCréneaux!$S$1:$Y$1,FALSE))& MATCH($A12,BdCréneaux!$L:$L,FALSE))) ->  | BZ12: =IF( INDIRECT( "BdCréneaux!"& INDIRECT("BdCréneaux!$Z"&MATCH(BZ$6,BdCréneaux!$S$1:$Y$1,FALSE))& MATCH($A12,BdCréneaux!$L:$L,FALSE))=0,"", INDIRECT( "BdCréneaux!"& INDIRECT("BdCréneaux!$Z"&MATCH(BZ$6,BdCréneaux!$S$1:$Y$1,FALSE))& MATCH($A12,BdCréneaux!$L:$L,FALSE))) ->  | CA12: =IF( INDIRECT( "BdCréneaux!"& INDIRECT("BdCréneaux!$Z"&MATCH(CA$6,BdCréneaux!$S$1:$Y$1,FALSE))& MATCH($A12,BdCréneaux!$L:$L,FALSE))=0,"", INDIRECT( "BdCréneaux!"& INDIRECT("BdCréneaux!$Z"&MATCH(CA$6,BdCréneaux!$S$1:$Y$1,FALSE))& MATCH($A12,BdCréneaux!$L:$L,FALSE))) -> x | CB12: =IF( INDIRECT( "BdCréneaux!"& INDIRECT("BdCréneaux!$Z"&MATCH(CB$6,BdCréneaux!$S$1:$Y$1,FALSE))& MATCH($A12,BdCréneaux!$L:$L,FALSE))=0,"", INDIRECT( "BdCréneaux!"& INDIRECT("BdCréneaux!$Z"&MATCH(CB$6,BdCréneaux!$S$1:$Y$1,FALSE))& MATCH($A12,BdCréneaux!$L:$L,FALSE))) -> x | CC12: =IF( INDIRECT( "BdCréneaux!"& INDIRECT("BdCréneaux!$Z"&MATCH(CC$6,BdCréneaux!$S$1:$Y$1,FALSE))& MATCH($A12,BdCréneaux!$L:$L,FALSE))=0,"", INDIRECT( "BdCréneaux!"& INDIRECT("BdCréneaux!$Z"&MATCH(CC$6,BdCréneaux!$S$1:$Y$1,FALSE))& MATCH($A12,BdCréneaux!$L:$L,FALSE))) -> x | CD12: =IF( INDIRECT( "BdCréneaux!"& INDIRECT("BdCréneaux!$Z"&MATCH(CD$6,BdCréneaux!$S$1:$Y$1,FALSE))& MATCH($A12,BdCréneaux!$L:$L,FALSE))=0,"", INDIRECT( "BdCréneaux!"& INDIRECT("BdCréneaux!$Z"&MATCH(CD$6,BdCréneaux!$S$1:$Y$1,FALSE))& MATCH($A12,BdCréneaux!$L:$L,FALSE))) -> x | CE12: =IF( INDIRECT( "BdCréneaux!"& INDIRECT("BdCréneaux!$Z"&MATCH(CE$6,BdCréneaux!$S$1:$Y$1,FALSE))& MATCH($A12,BdCréneaux!$L:$L,FALSE))=0,"", INDIRECT( "BdCréneaux!"& INDIRECT("BdCréneaux!$Z"&MATCH(CE$6,BdCréneaux!$S$1:$Y$1,FALSE))& MATCH($A12,BdCréneaux!$L:$L,FALSE))) ->  | CF12: =IF( INDIRECT( "BdCréneaux!"& INDIRECT("BdCréneaux!$Z"&MATCH(CF$6,BdCréneaux!$S$1:$Y$1,FALSE))& MATCH($A12,BdCréneaux!$L:$L,FALSE))=0,"", INDIRECT( "BdCréneaux!"& INDIRECT("BdCréneaux!$Z"&MATCH(CF$6,BdCréneaux!$S$1:$Y$1,FALSE))& MATCH($A12,BdCréneaux!$L:$L,FALSE))) ->  | CG12: =IF( INDIRECT( "BdCréneaux!"& INDIRECT("BdCréneaux!$Z"&MATCH(CG$6,BdCréneaux!$S$1:$Y$1,FALSE))& MATCH($A12,BdCréneaux!$L:$L,FALSE))=0,"", INDIRECT( "BdCréneaux!"& INDIRECT("BdCréneaux!$Z"&MATCH(CG$6,BdCréneaux!$S$1:$Y$1,FALSE))& MATCH($A12,BdCréneaux!$L:$L,FALSE))) ->  | CH12: =IF( INDIRECT( "BdCréneaux!"& INDIRECT("BdCréneaux!$Z"&MATCH(CH$6,BdCréneaux!$S$1:$Y$1,FALSE))& MATCH($A12,BdCréneaux!$L:$L,FALSE))=0,"", INDIRECT( "BdCréneaux!"& INDIRECT("BdCréneaux!$Z"&MATCH(CH$6,BdCréneaux!$S$1:$Y$1,FALSE))& MATCH($A12,BdCréneaux!$L:$L,FALSE))) -> x
A13: =IF(BdCréneaux!L6="","", BdCréneaux!L6) -> H1 | B13: =BdCréneaux!R6 -> Hôpital Jour 14h00>16h00 | AI13: Hôpital Jour 14h00>16h00 | BD13: =IF( INDIRECT( "BdCréneaux!"& INDIRECT("BdCréneaux!$Z"&MATCH(BD$6,BdCréneaux!$S$1:$Y$1,FALSE))& MATCH($A13,BdCréneaux!$L:$L,FALSE))=0,"", INDIRECT( "BdCréneaux!"& INDIRECT("BdCréneaux!$Z"&MATCH(BD$6,BdCréneaux!$S$1:$Y$1,FALSE))& MATCH($A13,BdCréneaux!$L:$L,FALSE))) ->  | BE13: =IF( INDIRECT( "BdCréneaux!"& INDIRECT("BdCréneaux!$Z"&MATCH(BE$6,BdCréneaux!$S$1:$Y$1,FALSE))& MATCH($A13,BdCréneaux!$L:$L,FALSE))=0,"", INDIRECT( "BdCréneaux!"& INDIRECT("BdCréneaux!$Z"&MATCH(BE$6,BdCréneaux!$S$1:$Y$1,FALSE))& MATCH($A13,BdCréneaux!$L:$L,FALSE))) ->  | BF13: =IF( INDIRECT( "BdCréneaux!"& INDIRECT("BdCréneaux!$Z"&MATCH(BF$6,BdCréneaux!$S$1:$Y$1,FALSE))& MATCH($A13,BdCréneaux!$L:$L,FALSE))=0,"", INDIRECT( "BdCréneaux!"& INDIRECT("BdCréneaux!$Z"&MATCH(BF$6,BdCréneaux!$S$1:$Y$1,FALSE))& MATCH($A13,BdCréneaux!$L:$L,FALSE))) ->  | BG13: =IF( INDIRECT( "BdCréneaux!"& INDIRECT("BdCréneaux!$Z"&MATCH(BG$6,BdCréneaux!$S$1:$Y$1,FALSE))& MATCH($A13,BdCréneaux!$L:$L,FALSE))=0,"", INDIRECT( "BdCréneaux!"& INDIRECT("BdCréneaux!$Z"&MATCH(BG$6,BdCréneaux!$S$1:$Y$1,FALSE))& MATCH($A13,BdCréneaux!$L:$L,FALSE))) ->  | BH13: =IF( INDIRECT( "BdCréneaux!"& INDIRECT("BdCréneaux!$Z"&MATCH(BH$6,BdCréneaux!$S$1:$Y$1,FALSE))& MATCH($A13,BdCréneaux!$L:$L,FALSE))=0,"", INDIRECT( "BdCréneaux!"& INDIRECT("BdCréneaux!$Z"&MATCH(BH$6,BdCréneaux!$S$1:$Y$1,FALSE))& MATCH($A13,BdCréneaux!$L:$L,FALSE))) -> x | BI13: =IF( INDIRECT( "BdCréneaux!"& INDIRECT("BdCréneaux!$Z"&MATCH(BI$6,BdCréneaux!$S$1:$Y$1,FALSE))& MATCH($A13,BdCréneaux!$L:$L,FALSE))=0,"", INDIRECT( "BdCréneaux!"& INDIRECT("BdCréneaux!$Z"&MATCH(BI$6,BdCréneaux!$S$1:$Y$1,FALSE))& MATCH($A13,BdCréneaux!$L:$L,FALSE))) ->  | BJ13: =IF( INDIRECT( "BdCréneaux!"& INDIRECT("BdCréneaux!$Z"&MATCH(BJ$6,BdCréneaux!$S$1:$Y$1,FALSE))& MATCH($A13,BdCréneaux!$L:$L,FALSE))=0,"", INDIRECT( "BdCréneaux!"& INDIRECT("BdCréneaux!$Z"&MATCH(BJ$6,BdCréneaux!$S$1:$Y$1,FALSE))& MATCH($A13,BdCréneaux!$L:$L,FALSE))) -> x | BK13: =IF( INDIRECT( "BdCréneaux!"& INDIRECT("BdCréneaux!$Z"&MATCH(BK$6,BdCréneaux!$S$1:$Y$1,FALSE))& MATCH($A13,BdCréneaux!$L:$L,FALSE))=0,"", INDIRECT( "BdCréneaux!"& INDIRECT("BdCréneaux!$Z"&MATCH(BK$6,BdCréneaux!$S$1:$Y$1,FALSE))& MATCH($A13,BdCréneaux!$L:$L,FALSE))) ->  | BL13: =IF( INDIRECT( "BdCréneaux!"& INDIRECT("BdCréneaux!$Z"&MATCH(BL$6,BdCréneaux!$S$1:$Y$1,FALSE))& MATCH($A13,BdCréneaux!$L:$L,FALSE))=0,"", INDIRECT( "BdCréneaux!"& INDIRECT("BdCréneaux!$Z"&MATCH(BL$6,BdCréneaux!$S$1:$Y$1,FALSE))& MATCH($A13,BdCréneaux!$L:$L,FALSE))) ->  | BM13: =IF( INDIRECT( "BdCréneaux!"& INDIRECT("BdCréneaux!$Z"&MATCH(BM$6,BdCréneaux!$S$1:$Y$1,FALSE))& MATCH($A13,BdCréneaux!$L:$L,FALSE))=0,"", INDIRECT( "BdCréneaux!"& INDIRECT("BdCréneaux!$Z"&MATCH(BM$6,BdCréneaux!$S$1:$Y$1,FALSE))& MATCH($A13,BdCréneaux!$L:$L,FALSE))) ->  | BN13: =IF( INDIRECT( "BdCréneaux!"& INDIRECT("BdCréneaux!$Z"&MATCH(BN$6,BdCréneaux!$S$1:$Y$1,FALSE))& MATCH($A13,BdCréneaux!$L:$L,FALSE))=0,"", INDIRECT( "BdCréneaux!"& INDIRECT("BdCréneaux!$Z"&MATCH(BN$6,BdCréneaux!$S$1:$Y$1,FALSE))& MATCH($A13,BdCréneaux!$L:$L,FALSE))) ->  | BO13: =IF( INDIRECT( "BdCréneaux!"& INDIRECT("BdCréneaux!$Z"&MATCH(BO$6,BdCréneaux!$S$1:$Y$1,FALSE))& MATCH($A13,BdCréneaux!$L:$L,FALSE))=0,"", INDIRECT( "BdCréneaux!"& INDIRECT("BdCréneaux!$Z"&MATCH(BO$6,BdCréneaux!$S$1:$Y$1,FALSE))& MATCH($A13,BdCréneaux!$L:$L,FALSE))) -> x | BP13: =IF( INDIRECT( "BdCréneaux!"& INDIRECT("BdCréneaux!$Z"&MATCH(BP$6,BdCréneaux!$S$1:$Y$1,FALSE))& MATCH($A13,BdCréneaux!$L:$L,FALSE))=0,"", INDIRECT( "BdCréneaux!"& INDIRECT("BdCréneaux!$Z"&MATCH(BP$6,BdCréneaux!$S$1:$Y$1,FALSE))& MATCH($A13,BdCréneaux!$L:$L,FALSE))) ->  | BQ13: =IF( INDIRECT( "BdCréneaux!"& INDIRECT("BdCréneaux!$Z"&MATCH(BQ$6,BdCréneaux!$S$1:$Y$1,FALSE))& MATCH($A13,BdCréneaux!$L:$L,FALSE))=0,"", INDIRECT( "BdCréneaux!"& INDIRECT("BdCréneaux!$Z"&MATCH(BQ$6,BdCréneaux!$S$1:$Y$1,FALSE))& MATCH($A13,BdCréneaux!$L:$L,FALSE))) -> x | BR13: =IF( INDIRECT( "BdCréneaux!"& INDIRECT("BdCréneaux!$Z"&MATCH(BR$6,BdCréneaux!$S$1:$Y$1,FALSE))& MATCH($A13,BdCréneaux!$L:$L,FALSE))=0,"", INDIRECT( "BdCréneaux!"& INDIRECT("BdCréneaux!$Z"&MATCH(BR$6,BdCréneaux!$S$1:$Y$1,FALSE))& MATCH($A13,BdCréneaux!$L:$L,FALSE))) ->  | BS13: =IF( INDIRECT( "BdCréneaux!"& INDIRECT("BdCréneaux!$Z"&MATCH(BS$6,BdCréneaux!$S$1:$Y$1,FALSE))& MATCH($A13,BdCréneaux!$L:$L,FALSE))=0,"", INDIRECT( "BdCréneaux!"& INDIRECT("BdCréneaux!$Z"&MATCH(BS$6,BdCréneaux!$S$1:$Y$1,FALSE))& MATCH($A13,BdCréneaux!$L:$L,FALSE))) ->  | BT13: =IF( INDIRECT( "BdCréneaux!"& INDIRECT("BdCréneaux!$Z"&MATCH(BT$6,BdCréneaux!$S$1:$Y$1,FALSE))& MATCH($A13,BdCréneaux!$L:$L,FALSE))=0,"", INDIRECT( "BdCréneaux!"& INDIRECT("BdCréneaux!$Z"&MATCH(BT$6,BdCréneaux!$S$1:$Y$1,FALSE))& MATCH($A13,BdCréneaux!$L:$L,FALSE))) ->  | BU13: =IF( INDIRECT( "BdCréneaux!"& INDIRECT("BdCréneaux!$Z"&MATCH(BU$6,BdCréneaux!$S$1:$Y$1,FALSE))& MATCH($A13,BdCréneaux!$L:$L,FALSE))=0,"", INDIRECT( "BdCréneaux!"& INDIRECT("BdCréneaux!$Z"&MATCH(BU$6,BdCréneaux!$S$1:$Y$1,FALSE))& MATCH($A13,BdCréneaux!$L:$L,FALSE))) ->  | BV13: =IF( INDIRECT( "BdCréneaux!"& INDIRECT("BdCréneaux!$Z"&MATCH(BV$6,BdCréneaux!$S$1:$Y$1,FALSE))& MATCH($A13,BdCréneaux!$L:$L,FALSE))=0,"", INDIRECT( "BdCréneaux!"& INDIRECT("BdCréneaux!$Z"&MATCH(BV$6,BdCréneaux!$S$1:$Y$1,FALSE))& MATCH($A13,BdCréneaux!$L:$L,FALSE))) -> x | BW13: =IF( INDIRECT( "BdCréneaux!"& INDIRECT("BdCréneaux!$Z"&MATCH(BW$6,BdCréneaux!$S$1:$Y$1,FALSE))& MATCH($A13,BdCréneaux!$L:$L,FALSE))=0,"", INDIRECT( "BdCréneaux!"& INDIRECT("BdCréneaux!$Z"&MATCH(BW$6,BdCréneaux!$S$1:$Y$1,FALSE))& MATCH($A13,BdCréneaux!$L:$L,FALSE))) ->  | BX13: =IF( INDIRECT( "BdCréneaux!"& INDIRECT("BdCréneaux!$Z"&MATCH(BX$6,BdCréneaux!$S$1:$Y$1,FALSE))& MATCH($A13,BdCréneaux!$L:$L,FALSE))=0,"", INDIRECT( "BdCréneaux!"& INDIRECT("BdCréneaux!$Z"&MATCH(BX$6,BdCréneaux!$S$1:$Y$1,FALSE))& MATCH($A13,BdCréneaux!$L:$L,FALSE))) -> x | BY13: =IF( INDIRECT( "BdCréneaux!"& INDIRECT("BdCréneaux!$Z"&MATCH(BY$6,BdCréneaux!$S$1:$Y$1,FALSE))& MATCH($A13,BdCréneaux!$L:$L,FALSE))=0,"", INDIRECT( "BdCréneaux!"& INDIRECT("BdCréneaux!$Z"&MATCH(BY$6,BdCréneaux!$S$1:$Y$1,FALSE))& MATCH($A13,BdCréneaux!$L:$L,FALSE))) ->  | BZ13: =IF( INDIRECT( "BdCréneaux!"& INDIRECT("BdCréneaux!$Z"&MATCH(BZ$6,BdCréneaux!$S$1:$Y$1,FALSE))& MATCH($A13,BdCréneaux!$L:$L,FALSE))=0,"", INDIRECT( "BdCréneaux!"& INDIRECT("BdCréneaux!$Z"&MATCH(BZ$6,BdCréneaux!$S$1:$Y$1,FALSE))& MATCH($A13,BdCréneaux!$L:$L,FALSE))) ->  | CA13: =IF( INDIRECT( "BdCréneaux!"& INDIRECT("BdCréneaux!$Z"&MATCH(CA$6,BdCréneaux!$S$1:$Y$1,FALSE))& MATCH($A13,BdCréneaux!$L:$L,FALSE))=0,"", INDIRECT( "BdCréneaux!"& INDIRECT("BdCréneaux!$Z"&MATCH(CA$6,BdCréneaux!$S$1:$Y$1,FALSE))& MATCH($A13,BdCréneaux!$L:$L,FALSE))) ->  | CB13: =IF( INDIRECT( "BdCréneaux!"& INDIRECT("BdCréneaux!$Z"&MATCH(CB$6,BdCréneaux!$S$1:$Y$1,FALSE))& MATCH($A13,BdCréneaux!$L:$L,FALSE))=0,"", INDIRECT( "BdCréneaux!"& INDIRECT("BdCréneaux!$Z"&MATCH(CB$6,BdCréneaux!$S$1:$Y$1,FALSE))& MATCH($A13,BdCréneaux!$L:$L,FALSE))) ->  | CC13: =IF( INDIRECT( "BdCréneaux!"& INDIRECT("BdCréneaux!$Z"&MATCH(CC$6,BdCréneaux!$S$1:$Y$1,FALSE))& MATCH($A13,BdCréneaux!$L:$L,FALSE))=0,"", INDIRECT( "BdCréneaux!"& INDIRECT("BdCréneaux!$Z"&MATCH(CC$6,BdCréneaux!$S$1:$Y$1,FALSE))& MATCH($A13,BdCréneaux!$L:$L,FALSE))) -> x | CD13: =IF( INDIRECT( "BdCréneaux!"& INDIRECT("BdCréneaux!$Z"&MATCH(CD$6,BdCréneaux!$S$1:$Y$1,FALSE))& MATCH($A13,BdCréneaux!$L:$L,FALSE))=0,"", INDIRECT( "BdCréneaux!"& INDIRECT("BdCréneaux!$Z"&MATCH(CD$6,BdCréneaux!$S$1:$Y$1,FALSE))& MATCH($A13,BdCréneaux!$L:$L,FALSE))) ->  | CE13: =IF( INDIRECT( "BdCréneaux!"& INDIRECT("BdCréneaux!$Z"&MATCH(CE$6,BdCréneaux!$S$1:$Y$1,FALSE))& MATCH($A13,BdCréneaux!$L:$L,FALSE))=0,"", INDIRECT( "BdCréneaux!"& INDIRECT("BdCréneaux!$Z"&MATCH(CE$6,BdCréneaux!$S$1:$Y$1,FALSE))& MATCH($A13,BdCréneaux!$L:$L,FALSE))) -> x | CF13: =IF( INDIRECT( "BdCréneaux!"& INDIRECT("BdCréneaux!$Z"&MATCH(CF$6,BdCréneaux!$S$1:$Y$1,FALSE))& MATCH($A13,BdCréneaux!$L:$L,FALSE))=0,"", INDIRECT( "BdCréneaux!"& INDIRECT("BdCréneaux!$Z"&MATCH(CF$6,BdCréneaux!$S$1:$Y$1,FALSE))& MATCH($A13,BdCréneaux!$L:$L,FALSE))) ->  | CG13: =IF( INDIRECT( "BdCréneaux!"& INDIRECT("BdCréneaux!$Z"&MATCH(CG$6,BdCréneaux!$S$1:$Y$1,FALSE))& MATCH($A13,BdCréneaux!$L:$L,FALSE))=0,"", INDIRECT( "BdCréneaux!"& INDIRECT("BdCréneaux!$Z"&MATCH(CG$6,BdCréneaux!$S$1:$Y$1,FALSE))& MATCH($A13,BdCréneaux!$L:$L,FALSE))) ->  | CH13: =IF( INDIRECT( "BdCréneaux!"& INDIRECT("BdCréneaux!$Z"&MATCH(CH$6,BdCréneaux!$S$1:$Y$1,FALSE))& MATCH($A13,BdCréneaux!$L:$L,FALSE))=0,"", INDIRECT( "BdCréneaux!"& INDIRECT("BdCréneaux!$Z"&MATCH(CH$6,BdCréneaux!$S$1:$Y$1,FALSE))& MATCH($A13,BdCréneaux!$L:$L,FALSE))) -> 
A14: =IF(BdCréneaux!L7="","", BdCréneaux!L7) -> M1 | B14: =BdCréneaux!R7 -> Consult.Pédia. Médecine 10h00>12h00 | AI14: Consult.Pédia. Médecine 10h00>12h00 | BD14: =IF( INDIRECT( "BdCréneaux!"& INDIRECT("BdCréneaux!$Z"&MATCH(BD$6,BdCréneaux!$S$1:$Y$1,FALSE))& MATCH($A14,BdCréneaux!$L:$L,FALSE))=0,"", INDIRECT( "BdCréneaux!"& INDIRECT("BdCréneaux!$Z"&MATCH(BD$6,BdCréneaux!$S$1:$Y$1,FALSE))& MATCH($A14,BdCréneaux!$L:$L,FALSE))) ->  | BE14: =IF( INDIRECT( "BdCréneaux!"& INDIRECT("BdCréneaux!$Z"&MATCH(BE$6,BdCréneaux!$S$1:$Y$1,FALSE))& MATCH($A14,BdCréneaux!$L:$L,FALSE))=0,"", INDIRECT( "BdCréneaux!"& INDIRECT("BdCréneaux!$Z"&MATCH(BE$6,BdCréneaux!$S$1:$Y$1,FALSE))& MATCH($A14,BdCréneaux!$L:$L,FALSE))) ->  | BF14: =IF( INDIRECT( "BdCréneaux!"& INDIRECT("BdCréneaux!$Z"&MATCH(BF$6,BdCréneaux!$S$1:$Y$1,FALSE))& MATCH($A14,BdCréneaux!$L:$L,FALSE))=0,"", INDIRECT( "BdCréneaux!"& INDIRECT("BdCréneaux!$Z"&MATCH(BF$6,BdCréneaux!$S$1:$Y$1,FALSE))& MATCH($A14,BdCréneaux!$L:$L,FALSE))) ->  | BG14: =IF( INDIRECT( "BdCréneaux!"& INDIRECT("BdCréneaux!$Z"&MATCH(BG$6,BdCréneaux!$S$1:$Y$1,FALSE))& MATCH($A14,BdCréneaux!$L:$L,FALSE))=0,"", INDIRECT( "BdCréneaux!"& INDIRECT("BdCréneaux!$Z"&MATCH(BG$6,BdCréneaux!$S$1:$Y$1,FALSE))& MATCH($A14,BdCréneaux!$L:$L,FALSE))) -> x | BH14: =IF( INDIRECT( "BdCréneaux!"& INDIRECT("BdCréneaux!$Z"&MATCH(BH$6,BdCréneaux!$S$1:$Y$1,FALSE))& MATCH($A14,BdCréneaux!$L:$L,FALSE))=0,"", INDIRECT( "BdCréneaux!"& INDIRECT("BdCréneaux!$Z"&MATCH(BH$6,BdCréneaux!$S$1:$Y$1,FALSE))& MATCH($A14,BdCréneaux!$L:$L,FALSE))) -> x | BI14: =IF( INDIRECT( "BdCréneaux!"& INDIRECT("BdCréneaux!$Z"&MATCH(BI$6,BdCréneaux!$S$1:$Y$1,FALSE))& MATCH($A14,BdCréneaux!$L:$L,FALSE))=0,"", INDIRECT( "BdCréneaux!"& INDIRECT("BdCréneaux!$Z"&MATCH(BI$6,BdCréneaux!$S$1:$Y$1,FALSE))& MATCH($A14,BdCréneaux!$L:$L,FALSE))) ->  | BJ14: =IF( INDIRECT( "BdCréneaux!"& INDIRECT("BdCréneaux!$Z"&MATCH(BJ$6,BdCréneaux!$S$1:$Y$1,FALSE))& MATCH($A14,BdCréneaux!$L:$L,FALSE))=0,"", INDIRECT( "BdCréneaux!"& INDIRECT("BdCréneaux!$Z"&MATCH(BJ$6,BdCréneaux!$S$1:$Y$1,FALSE))& MATCH($A14,BdCréneaux!$L:$L,FALSE))) -> x | BK14: =IF( INDIRECT( "BdCréneaux!"& INDIRECT("BdCréneaux!$Z"&MATCH(BK$6,BdCréneaux!$S$1:$Y$1,FALSE))& MATCH($A14,BdCréneaux!$L:$L,FALSE))=0,"", INDIRECT( "BdCréneaux!"& INDIRECT("BdCréneaux!$Z"&MATCH(BK$6,BdCréneaux!$S$1:$Y$1,FALSE))& MATCH($A14,BdCréneaux!$L:$L,FALSE))) ->  | BL14: =IF( INDIRECT( "BdCréneaux!"& INDIRECT("BdCréneaux!$Z"&MATCH(BL$6,BdCréneaux!$S$1:$Y$1,FALSE))& MATCH($A14,BdCréneaux!$L:$L,FALSE))=0,"", INDIRECT( "BdCréneaux!"& INDIRECT("BdCréneaux!$Z"&MATCH(BL$6,BdCréneaux!$S$1:$Y$1,FALSE))& MATCH($A14,BdCréneaux!$L:$L,FALSE))) ->  | BM14: =IF( INDIRECT( "BdCréneaux!"& INDIRECT("BdCréneaux!$Z"&MATCH(BM$6,BdCréneaux!$S$1:$Y$1,FALSE))& MATCH($A14,BdCréneaux!$L:$L,FALSE))=0,"", INDIRECT( "BdCréneaux!"& INDIRECT("BdCréneaux!$Z"&MATCH(BM$6,BdCréneaux!$S$1:$Y$1,FALSE))& MATCH($A14,BdCréneaux!$L:$L,FALSE))) ->  | BN14: =IF( INDIRECT( "BdCréneaux!"& INDIRECT("BdCréneaux!$Z"&MATCH(BN$6,BdCréneaux!$S$1:$Y$1,FALSE))& MATCH($A14,BdCréneaux!$L:$L,FALSE))=0,"", INDIRECT( "BdCréneaux!"& INDIRECT("BdCréneaux!$Z"&MATCH(BN$6,BdCréneaux!$S$1:$Y$1,FALSE))& MATCH($A14,BdCréneaux!$L:$L,FALSE))) -> x | BO14: =IF( INDIRECT( "BdCréneaux!"& INDIRECT("BdCréneaux!$Z"&MATCH(BO$6,BdCréneaux!$S$1:$Y$1,FALSE))& MATCH($A14,BdCréneaux!$L:$L,FALSE))=0,"", INDIRECT( "BdCréneaux!"& INDIRECT("BdCréneaux!$Z"&MATCH(BO$6,BdCréneaux!$S$1:$Y$1,FALSE))& MATCH($A14,BdCréneaux!$L:$L,FALSE))) -> x | BP14: =IF( INDIRECT( "BdCréneaux!"& INDIRECT("BdCréneaux!$Z"&MATCH(BP$6,BdCréneaux!$S$1:$Y$1,FALSE))& MATCH($A14,BdCréneaux!$L:$L,FALSE))=0,"", INDIRECT( "BdCréneaux!"& INDIRECT("BdCréneaux!$Z"&MATCH(BP$6,BdCréneaux!$S$1:$Y$1,FALSE))& MATCH($A14,BdCréneaux!$L:$L,FALSE))) ->  | BQ14: =IF( INDIRECT( "BdCréneaux!"& INDIRECT("BdCréneaux!$Z"&MATCH(BQ$6,BdCréneaux!$S$1:$Y$1,FALSE))& MATCH($A14,BdCréneaux!$L:$L,FALSE))=0,"", INDIRECT( "BdCréneaux!"& INDIRECT("BdCréneaux!$Z"&MATCH(BQ$6,BdCréneaux!$S$1:$Y$1,FALSE))& MATCH($A14,BdCréneaux!$L:$L,FALSE))) -> x | BR14: =IF( INDIRECT( "BdCréneaux!"& INDIRECT("BdCréneaux!$Z"&MATCH(BR$6,BdCréneaux!$S$1:$Y$1,FALSE))& MATCH($A14,BdCréneaux!$L:$L,FALSE))=0,"", INDIRECT( "BdCréneaux!"& INDIRECT("BdCréneaux!$Z"&MATCH(BR$6,BdCréneaux!$S$1:$Y$1,FALSE))& MATCH($A14,BdCréneaux!$L:$L,FALSE))) ->  | BS14: =IF( INDIRECT( "BdCréneaux!"& INDIRECT("BdCréneaux!$Z"&MATCH(BS$6,BdCréneaux!$S$1:$Y$1,FALSE))& MATCH($A14,BdCréneaux!$L:$L,FALSE))=0,"", INDIRECT( "BdCréneaux!"& INDIRECT("BdCréneaux!$Z"&MATCH(BS$6,BdCréneaux!$S$1:$Y$1,FALSE))& MATCH($A14,BdCréneaux!$L:$L,FALSE))) ->  | BT14: =IF( INDIRECT( "BdCréneaux!"& INDIRECT("BdCréneaux!$Z"&MATCH(BT$6,BdCréneaux!$S$1:$Y$1,FALSE))& MATCH($A14,BdCréneaux!$L:$L,FALSE))=0,"", INDIRECT( "BdCréneaux!"& INDIRECT("BdCréneaux!$Z"&MATCH(BT$6,BdCréneaux!$S$1:$Y$1,FALSE))& MATCH($A14,BdCréneaux!$L:$L,FALSE))) ->  | BU14: =IF( INDIRECT( "BdCréneaux!"& INDIRECT("BdCréneaux!$Z"&MATCH(BU$6,BdCréneaux!$S$1:$Y$1,FALSE))& MATCH($A14,BdCréneaux!$L:$L,FALSE))=0,"", INDIRECT( "BdCréneaux!"& INDIRECT("BdCréneaux!$Z"&MATCH(BU$6,BdCréneaux!$S$1:$Y$1,FALSE))& MATCH($A14,BdCréneaux!$L:$L,FALSE))) -> x | BV14: =IF( INDIRECT( "BdCréneaux!"& INDIRECT("BdCréneaux!$Z"&MATCH(BV$6,BdCréneaux!$S$1:$Y$1,FALSE))& MATCH($A14,BdCréneaux!$L:$L,FALSE))=0,"", INDIRECT( "BdCréneaux!"& INDIRECT("BdCréneaux!$Z"&MATCH(BV$6,BdCréneaux!$S$1:$Y$1,FALSE))& MATCH($A14,BdCréneaux!$L:$L,FALSE))) -> x | BW14: =IF( INDIRECT( "BdCréneaux!"& INDIRECT("BdCréneaux!$Z"&MATCH(BW$6,BdCréneaux!$S$1:$Y$1,FALSE))& MATCH($A14,BdCréneaux!$L:$L,FALSE))=0,"", INDIRECT( "BdCréneaux!"& INDIRECT("BdCréneaux!$Z"&MATCH(BW$6,BdCréneaux!$S$1:$Y$1,FALSE))& MATCH($A14,BdCréneaux!$L:$L,FALSE))) ->  | BX14: =IF( INDIRECT( "BdCréneaux!"& INDIRECT("BdCréneaux!$Z"&MATCH(BX$6,BdCréneaux!$S$1:$Y$1,FALSE))& MATCH($A14,BdCréneaux!$L:$L,FALSE))=0,"", INDIRECT( "BdCréneaux!"& INDIRECT("BdCréneaux!$Z"&MATCH(BX$6,BdCréneaux!$S$1:$Y$1,FALSE))& MATCH($A14,BdCréneaux!$L:$L,FALSE))) -> x | BY14: =IF( INDIRECT( "BdCréneaux!"& INDIRECT("BdCréneaux!$Z"&MATCH(BY$6,BdCréneaux!$S$1:$Y$1,FALSE))& MATCH($A14,BdCréneaux!$L:$L,FALSE))=0,"", INDIRECT( "BdCréneaux!"& INDIRECT("BdCréneaux!$Z"&MATCH(BY$6,BdCréneaux!$S$1:$Y$1,FALSE))& MATCH($A14,BdCréneaux!$L:$L,FALSE))) ->  | BZ14: =IF( INDIRECT( "BdCréneaux!"& INDIRECT("BdCréneaux!$Z"&MATCH(BZ$6,BdCréneaux!$S$1:$Y$1,FALSE))& MATCH($A14,BdCréneaux!$L:$L,FALSE))=0,"", INDIRECT( "BdCréneaux!"& INDIRECT("BdCréneaux!$Z"&MATCH(BZ$6,BdCréneaux!$S$1:$Y$1,FALSE))& MATCH($A14,BdCréneaux!$L:$L,FALSE))) ->  | CA14: =IF( INDIRECT( "BdCréneaux!"& INDIRECT("BdCréneaux!$Z"&MATCH(CA$6,BdCréneaux!$S$1:$Y$1,FALSE))& MATCH($A14,BdCréneaux!$L:$L,FALSE))=0,"", INDIRECT( "BdCréneaux!"& INDIRECT("BdCréneaux!$Z"&MATCH(CA$6,BdCréneaux!$S$1:$Y$1,FALSE))& MATCH($A14,BdCréneaux!$L:$L,FALSE))) ->  | CB14: =IF( INDIRECT( "BdCréneaux!"& INDIRECT("BdCréneaux!$Z"&MATCH(CB$6,BdCréneaux!$S$1:$Y$1,FALSE))& MATCH($A14,BdCréneaux!$L:$L,FALSE))=0,"", INDIRECT( "BdCréneaux!"& INDIRECT("BdCréneaux!$Z"&MATCH(CB$6,BdCréneaux!$S$1:$Y$1,FALSE))& MATCH($A14,BdCréneaux!$L:$L,FALSE))) -> x | CC14: =IF( INDIRECT( "BdCréneaux!"& INDIRECT("BdCréneaux!$Z"&MATCH(CC$6,BdCréneaux!$S$1:$Y$1,FALSE))& MATCH($A14,BdCréneaux!$L:$L,FALSE))=0,"", INDIRECT( "BdCréneaux!"& INDIRECT("BdCréneaux!$Z"&MATCH(CC$6,BdCréneaux!$S$1:$Y$1,FALSE))& MATCH($A14,BdCréneaux!$L:$L,FALSE))) -> x | CD14: =IF( INDIRECT( "BdCréneaux!"& INDIRECT("BdCréneaux!$Z"&MATCH(CD$6,BdCréneaux!$S$1:$Y$1,FALSE))& MATCH($A14,BdCréneaux!$L:$L,FALSE))=0,"", INDIRECT( "BdCréneaux!"& INDIRECT("BdCréneaux!$Z"&MATCH(CD$6,BdCréneaux!$S$1:$Y$1,FALSE))& MATCH($A14,BdCréneaux!$L:$L,FALSE))) ->  | CE14: =IF( INDIRECT( "BdCréneaux!"& INDIRECT("BdCréneaux!$Z"&MATCH(CE$6,BdCréneaux!$S$1:$Y$1,FALSE))& MATCH($A14,BdCréneaux!$L:$L,FALSE))=0,"", INDIRECT( "BdCréneaux!"& INDIRECT("BdCréneaux!$Z"&MATCH(CE$6,BdCréneaux!$S$1:$Y$1,FALSE))& MATCH($A14,BdCréneaux!$L:$L,FALSE))) -> x | CF14: =IF( INDIRECT( "BdCréneaux!"& INDIRECT("BdCréneaux!$Z"&MATCH(CF$6,BdCréneaux!$S$1:$Y$1,FALSE))& MATCH($A14,BdCréneaux!$L:$L,FALSE))=0,"", INDIRECT( "BdCréneaux!"& INDIRECT("BdCréneaux!$Z"&MATCH(CF$6,BdCréneaux!$S$1:$Y$1,FALSE))& MATCH($A14,BdCréneaux!$L:$L,FALSE))) ->  | CG14: =IF( INDIRECT( "BdCréneaux!"& INDIRECT("BdCréneaux!$Z"&MATCH(CG$6,BdCréneaux!$S$1:$Y$1,FALSE))& MATCH($A14,BdCréneaux!$L:$L,FALSE))=0,"", INDIRECT( "BdCréneaux!"& INDIRECT("BdCréneaux!$Z"&MATCH(CG$6,BdCréneaux!$S$1:$Y$1,FALSE))& MATCH($A14,BdCréneaux!$L:$L,FALSE))) ->  | CH14: =IF( INDIRECT( "BdCréneaux!"& INDIRECT("BdCréneaux!$Z"&MATCH(CH$6,BdCréneaux!$S$1:$Y$1,FALSE))& MATCH($A14,BdCréneaux!$L:$L,FALSE))=0,"", INDIRECT( "BdCréneaux!"& INDIRECT("BdCréneaux!$Z"&MATCH(CH$6,BdCréneaux!$S$1:$Y$1,FALSE))& MATCH($A14,BdCréneaux!$L:$L,FALSE))) -> 
A15: =IF(BdCréneaux!L8="","", BdCréneaux!L8) -> M2 | B15: =BdCréneaux!R8 -> Consult.Pédia. Médecine 14h00>16h00 | AI15: =B15 -> Consult.Pédia. Médecine 14h00>16h00 | BD15: =IF( INDIRECT( "BdCréneaux!"& INDIRECT("BdCréneaux!$Z"&MATCH(BD$6,BdCréneaux!$S$1:$Y$1,FALSE))& MATCH($A15,BdCréneaux!$L:$L,FALSE))=0,"", INDIRECT( "BdCréneaux!"& INDIRECT("BdCréneaux!$Z"&MATCH(BD$6,BdCréneaux!$S$1:$Y$1,FALSE))& MATCH($A15,BdCréneaux!$L:$L,FALSE))) ->  | BE15: =IF( INDIRECT( "BdCréneaux!"& INDIRECT("BdCréneaux!$Z"&MATCH(BE$6,BdCréneaux!$S$1:$Y$1,FALSE))& MATCH($A15,BdCréneaux!$L:$L,FALSE))=0,"", INDIRECT( "BdCréneaux!"& INDIRECT("BdCréneaux!$Z"&MATCH(BE$6,BdCréneaux!$S$1:$Y$1,FALSE))& MATCH($A15,BdCréneaux!$L:$L,FALSE))) ->  | BF15: =IF( INDIRECT( "BdCréneaux!"& INDIRECT("BdCréneaux!$Z"&MATCH(BF$6,BdCréneaux!$S$1:$Y$1,FALSE))& MATCH($A15,BdCréneaux!$L:$L,FALSE))=0,"", INDIRECT( "BdCréneaux!"& INDIRECT("BdCréneaux!$Z"&MATCH(BF$6,BdCréneaux!$S$1:$Y$1,FALSE))& MATCH($A15,BdCréneaux!$L:$L,FALSE))) -> x | BG15: =IF( INDIRECT( "BdCréneaux!"& INDIRECT("BdCréneaux!$Z"&MATCH(BG$6,BdCréneaux!$S$1:$Y$1,FALSE))& MATCH($A15,BdCréneaux!$L:$L,FALSE))=0,"", INDIRECT( "BdCréneaux!"& INDIRECT("BdCréneaux!$Z"&MATCH(BG$6,BdCréneaux!$S$1:$Y$1,FALSE))& MATCH($A15,BdCréneaux!$L:$L,FALSE))) -> x | BH15: =IF( INDIRECT( "BdCréneaux!"& INDIRECT("BdCréneaux!$Z"&MATCH(BH$6,BdCréneaux!$S$1:$Y$1,FALSE))& MATCH($A15,BdCréneaux!$L:$L,FALSE))=0,"", INDIRECT( "BdCréneaux!"& INDIRECT("BdCréneaux!$Z"&MATCH(BH$6,BdCréneaux!$S$1:$Y$1,FALSE))& MATCH($A15,BdCréneaux!$L:$L,FALSE))) -> x | BI15: =IF( INDIRECT( "BdCréneaux!"& INDIRECT("BdCréneaux!$Z"&MATCH(BI$6,BdCréneaux!$S$1:$Y$1,FALSE))& MATCH($A15,BdCréneaux!$L:$L,FALSE))=0,"", INDIRECT( "BdCréneaux!"& INDIRECT("BdCréneaux!$Z"&MATCH(BI$6,BdCréneaux!$S$1:$Y$1,FALSE))& MATCH($A15,BdCréneaux!$L:$L,FALSE))) ->  | BJ15: =IF( INDIRECT( "BdCréneaux!"& INDIRECT("BdCréneaux!$Z"&MATCH(BJ$6,BdCréneaux!$S$1:$Y$1,FALSE))& MATCH($A15,BdCréneaux!$L:$L,FALSE))=0,"", INDIRECT( "BdCréneaux!"& INDIRECT("BdCréneaux!$Z"&MATCH(BJ$6,BdCréneaux!$S$1:$Y$1,FALSE))& MATCH($A15,BdCréneaux!$L:$L,FALSE))) -> x | BK15: =IF( INDIRECT( "BdCréneaux!"& INDIRECT("BdCréneaux!$Z"&MATCH(BK$6,BdCréneaux!$S$1:$Y$1,FALSE))& MATCH($A15,BdCréneaux!$L:$L,FALSE))=0,"", INDIRECT( "BdCréneaux!"& INDIRECT("BdCréneaux!$Z"&MATCH(BK$6,BdCréneaux!$S$1:$Y$1,FALSE))& MATCH($A15,BdCréneaux!$L:$L,FALSE))) ->  | BL15: =IF( INDIRECT( "BdCréneaux!"& INDIRECT("BdCréneaux!$Z"&MATCH(BL$6,BdCréneaux!$S$1:$Y$1,FALSE))& MATCH($A15,BdCréneaux!$L:$L,FALSE))=0,"", INDIRECT( "BdCréneaux!"& INDIRECT("BdCréneaux!$Z"&MATCH(BL$6,BdCréneaux!$S$1:$Y$1,FALSE))& MATCH($A15,BdCréneaux!$L:$L,FALSE))) ->  | BM15: =IF( INDIRECT( "BdCréneaux!"& INDIRECT("BdCréneaux!$Z"&MATCH(BM$6,BdCréneaux!$S$1:$Y$1,FALSE))& MATCH($A15,BdCréneaux!$L:$L,FALSE))=0,"", INDIRECT( "BdCréneaux!"& INDIRECT("BdCréneaux!$Z"&MATCH(BM$6,BdCréneaux!$S$1:$Y$1,FALSE))& MATCH($A15,BdCréneaux!$L:$L,FALSE))) -> x | BN15: =IF( INDIRECT( "BdCréneaux!"& INDIRECT("BdCréneaux!$Z"&MATCH(BN$6,BdCréneaux!$S$1:$Y$1,FALSE))& MATCH($A15,BdCréneaux!$L:$L,FALSE))=0,"", INDIRECT( "BdCréneaux!"& INDIRECT("BdCréneaux!$Z"&MATCH(BN$6,BdCréneaux!$S$1:$Y$1,FALSE))& MATCH($A15,BdCréneaux!$L:$L,FALSE))) -> x | BO15: =IF( INDIRECT( "BdCréneaux!"& INDIRECT("BdCréneaux!$Z"&MATCH(BO$6,BdCréneaux!$S$1:$Y$1,FALSE))& MATCH($A15,BdCréneaux!$L:$L,FALSE))=0,"", INDIRECT( "BdCréneaux!"& INDIRECT("BdCréneaux!$Z"&MATCH(BO$6,BdCréneaux!$S$1:$Y$1,FALSE))& MATCH($A15,BdCréneaux!$L:$L,FALSE))) -> x | BP15: =IF( INDIRECT( "BdCréneaux!"& INDIRECT("BdCréneaux!$Z"&MATCH(BP$6,BdCréneaux!$S$1:$Y$1,FALSE))& MATCH($A15,BdCréneaux!$L:$L,FALSE))=0,"", INDIRECT( "BdCréneaux!"& INDIRECT("BdCréneaux!$Z"&MATCH(BP$6,BdCréneaux!$S$1:$Y$1,FALSE))& MATCH($A15,BdCréneaux!$L:$L,FALSE))) ->  | BQ15: =IF( INDIRECT( "BdCréneaux!"& INDIRECT("BdCréneaux!$Z"&MATCH(BQ$6,BdCréneaux!$S$1:$Y$1,FALSE))& MATCH($A15,BdCréneaux!$L:$L,FALSE))=0,"", INDIRECT( "BdCréneaux!"& INDIRECT("BdCréneaux!$Z"&MATCH(BQ$6,BdCréneaux!$S$1:$Y$1,FALSE))& MATCH($A15,BdCréneaux!$L:$L,FALSE))) -> x | BR15: =IF( INDIRECT( "BdCréneaux!"& INDIRECT("BdCréneaux!$Z"&MATCH(BR$6,BdCréneaux!$S$1:$Y$1,FALSE))& MATCH($A15,BdCréneaux!$L:$L,FALSE))=0,"", INDIRECT( "BdCréneaux!"& INDIRECT("BdCréneaux!$Z"&MATCH(BR$6,BdCréneaux!$S$1:$Y$1,FALSE))& MATCH($A15,BdCréneaux!$L:$L,FALSE))) ->  | BS15: =IF( INDIRECT( "BdCréneaux!"& INDIRECT("BdCréneaux!$Z"&MATCH(BS$6,BdCréneaux!$S$1:$Y$1,FALSE))& MATCH($A15,BdCréneaux!$L:$L,FALSE))=0,"", INDIRECT( "BdCréneaux!"& INDIRECT("BdCréneaux!$Z"&MATCH(BS$6,BdCréneaux!$S$1:$Y$1,FALSE))& MATCH($A15,BdCréneaux!$L:$L,FALSE))) ->  | BT15: =IF( INDIRECT( "BdCréneaux!"& INDIRECT("BdCréneaux!$Z"&MATCH(BT$6,BdCréneaux!$S$1:$Y$1,FALSE))& MATCH($A15,BdCréneaux!$L:$L,FALSE))=0,"", INDIRECT( "BdCréneaux!"& INDIRECT("BdCréneaux!$Z"&MATCH(BT$6,BdCréneaux!$S$1:$Y$1,FALSE))& MATCH($A15,BdCréneaux!$L:$L,FALSE))) -> x | BU15: =IF( INDIRECT( "BdCréneaux!"& INDIRECT("BdCréneaux!$Z"&MATCH(BU$6,BdCréneaux!$S$1:$Y$1,FALSE))& MATCH($A15,BdCréneaux!$L:$L,FALSE))=0,"", INDIRECT( "BdCréneaux!"& INDIRECT("BdCréneaux!$Z"&MATCH(BU$6,BdCréneaux!$S$1:$Y$1,FALSE))& MATCH($A15,BdCréneaux!$L:$L,FALSE))) -> x | BV15: =IF( INDIRECT( "BdCréneaux!"& INDIRECT("BdCréneaux!$Z"&MATCH(BV$6,BdCréneaux!$S$1:$Y$1,FALSE))& MATCH($A15,BdCréneaux!$L:$L,FALSE))=0,"", INDIRECT( "BdCréneaux!"& INDIRECT("BdCréneaux!$Z"&MATCH(BV$6,BdCréneaux!$S$1:$Y$1,FALSE))& MATCH($A15,BdCréneaux!$L:$L,FALSE))) -> x | BW15: =IF( INDIRECT( "BdCréneaux!"& INDIRECT("BdCréneaux!$Z"&MATCH(BW$6,BdCréneaux!$S$1:$Y$1,FALSE))& MATCH($A15,BdCréneaux!$L:$L,FALSE))=0,"", INDIRECT( "BdCréneaux!"& INDIRECT("BdCréneaux!$Z"&MATCH(BW$6,BdCréneaux!$S$1:$Y$1,FALSE))& MATCH($A15,BdCréneaux!$L:$L,FALSE))) ->  | BX15: =IF( INDIRECT( "BdCréneaux!"& INDIRECT("BdCréneaux!$Z"&MATCH(BX$6,BdCréneaux!$S$1:$Y$1,FALSE))& MATCH($A15,BdCréneaux!$L:$L,FALSE))=0,"", INDIRECT( "BdCréneaux!"& INDIRECT("BdCréneaux!$Z"&MATCH(BX$6,BdCréneaux!$S$1:$Y$1,FALSE))& MATCH($A15,BdCréneaux!$L:$L,FALSE))) -> x | BY15: =IF( INDIRECT( "BdCréneaux!"& INDIRECT("BdCréneaux!$Z"&MATCH(BY$6,BdCréneaux!$S$1:$Y$1,FALSE))& MATCH($A15,BdCréneaux!$L:$L,FALSE))=0,"", INDIRECT( "BdCréneaux!"& INDIRECT("BdCréneaux!$Z"&MATCH(BY$6,BdCréneaux!$S$1:$Y$1,FALSE))& MATCH($A15,BdCréneaux!$L:$L,FALSE))) ->  | BZ15: =IF( INDIRECT( "BdCréneaux!"& INDIRECT("BdCréneaux!$Z"&MATCH(BZ$6,BdCréneaux!$S$1:$Y$1,FALSE))& MATCH($A15,BdCréneaux!$L:$L,FALSE))=0,"", INDIRECT( "BdCréneaux!"& INDIRECT("BdCréneaux!$Z"&MATCH(BZ$6,BdCréneaux!$S$1:$Y$1,FALSE))& MATCH($A15,BdCréneaux!$L:$L,FALSE))) ->  | CA15: =IF( INDIRECT( "BdCréneaux!"& INDIRECT("BdCréneaux!$Z"&MATCH(CA$6,BdCréneaux!$S$1:$Y$1,FALSE))& MATCH($A15,BdCréneaux!$L:$L,FALSE))=0,"", INDIRECT( "BdCréneaux!"& INDIRECT("BdCréneaux!$Z"&MATCH(CA$6,BdCréneaux!$S$1:$Y$1,FALSE))& MATCH($A15,BdCréneaux!$L:$L,FALSE))) -> x | CB15: =IF( INDIRECT( "BdCréneaux!"& INDIRECT("BdCréneaux!$Z"&MATCH(CB$6,BdCréneaux!$S$1:$Y$1,FALSE))& MATCH($A15,BdCréneaux!$L:$L,FALSE))=0,"", INDIRECT( "BdCréneaux!"& INDIRECT("BdCréneaux!$Z"&MATCH(CB$6,BdCréneaux!$S$1:$Y$1,FALSE))& MATCH($A15,BdCréneaux!$L:$L,FALSE))) -> x | CC15: =IF( INDIRECT( "BdCréneaux!"& INDIRECT("BdCréneaux!$Z"&MATCH(CC$6,BdCréneaux!$S$1:$Y$1,FALSE))& MATCH($A15,BdCréneaux!$L:$L,FALSE))=0,"", INDIRECT( "BdCréneaux!"& INDIRECT("BdCréneaux!$Z"&MATCH(CC$6,BdCréneaux!$S$1:$Y$1,FALSE))& MATCH($A15,BdCréneaux!$L:$L,FALSE))) -> x | CD15: =IF( INDIRECT( "BdCréneaux!"& INDIRECT("BdCréneaux!$Z"&MATCH(CD$6,BdCréneaux!$S$1:$Y$1,FALSE))& MATCH($A15,BdCréneaux!$L:$L,FALSE))=0,"", INDIRECT( "BdCréneaux!"& INDIRECT("BdCréneaux!$Z"&MATCH(CD$6,BdCréneaux!$S$1:$Y$1,FALSE))& MATCH($A15,BdCréneaux!$L:$L,FALSE))) ->  | CE15: =IF( INDIRECT( "BdCréneaux!"& INDIRECT("BdCréneaux!$Z"&MATCH(CE$6,BdCréneaux!$S$1:$Y$1,FALSE))& MATCH($A15,BdCréneaux!$L:$L,FALSE))=0,"", INDIRECT( "BdCréneaux!"& INDIRECT("BdCréneaux!$Z"&MATCH(CE$6,BdCréneaux!$S$1:$Y$1,FALSE))& MATCH($A15,BdCréneaux!$L:$L,FALSE))) -> x | CF15: =IF( INDIRECT( "BdCréneaux!"& INDIRECT("BdCréneaux!$Z"&MATCH(CF$6,BdCréneaux!$S$1:$Y$1,FALSE))& MATCH($A15,BdCréneaux!$L:$L,FALSE))=0,"", INDIRECT( "BdCréneaux!"& INDIRECT("BdCréneaux!$Z"&MATCH(CF$6,BdCréneaux!$S$1:$Y$1,FALSE))& MATCH($A15,BdCréneaux!$L:$L,FALSE))) ->  | CG15: =IF( INDIRECT( "BdCréneaux!"& INDIRECT("BdCréneaux!$Z"&MATCH(CG$6,BdCréneaux!$S$1:$Y$1,FALSE))& MATCH($A15,BdCréneaux!$L:$L,FALSE))=0,"", INDIRECT( "BdCréneaux!"& INDIRECT("BdCréneaux!$Z"&MATCH(CG$6,BdCréneaux!$S$1:$Y$1,FALSE))& MATCH($A15,BdCréneaux!$L:$L,FALSE))) ->  | CH15: =IF( INDIRECT( "BdCréneaux!"& INDIRECT("BdCréneaux!$Z"&MATCH(CH$6,BdCréneaux!$S$1:$Y$1,FALSE))& MATCH($A15,BdCréneaux!$L:$L,FALSE))=0,"", INDIRECT( "BdCréneaux!"& INDIRECT("BdCréneaux!$Z"&MATCH(CH$6,BdCréneaux!$S$1:$Y$1,FALSE))& MATCH($A15,BdCréneaux!$L:$L,FALSE))) -> x
A16: =IF(BdCréneaux!L9="","", BdCréneaux!L9) -> P1 | B16: =BdCréneaux!R9 -> Pédiatrie 16h00>18h00 | AI16: Pédiatrie 16h00>18h00 | BD16: =IF( INDIRECT( "BdCréneaux!"& INDIRECT("BdCréneaux!$Z"&MATCH(BD$6,BdCréneaux!$S$1:$Y$1,FALSE))& MATCH($A16,BdCréneaux!$L:$L,FALSE))=0,"", INDIRECT( "BdCréneaux!"& INDIRECT("BdCréneaux!$Z"&MATCH(BD$6,BdCréneaux!$S$1:$Y$1,FALSE))& MATCH($A16,BdCréneaux!$L:$L,FALSE))) ->  | BE16: =IF( INDIRECT( "BdCréneaux!"& INDIRECT("BdCréneaux!$Z"&MATCH(BE$6,BdCréneaux!$S$1:$Y$1,FALSE))& MATCH($A16,BdCréneaux!$L:$L,FALSE))=0,"", INDIRECT( "BdCréneaux!"& INDIRECT("BdCréneaux!$Z"&MATCH(BE$6,BdCréneaux!$S$1:$Y$1,FALSE))& MATCH($A16,BdCréneaux!$L:$L,FALSE))) ->  | BF16: =IF( INDIRECT( "BdCréneaux!"& INDIRECT("BdCréneaux!$Z"&MATCH(BF$6,BdCréneaux!$S$1:$Y$1,FALSE))& MATCH($A16,BdCréneaux!$L:$L,FALSE))=0,"", INDIRECT( "BdCréneaux!"& INDIRECT("BdCréneaux!$Z"&MATCH(BF$6,BdCréneaux!$S$1:$Y$1,FALSE))& MATCH($A16,BdCréneaux!$L:$L,FALSE))) ->  | BG16: =IF( INDIRECT( "BdCréneaux!"& INDIRECT("BdCréneaux!$Z"&MATCH(BG$6,BdCréneaux!$S$1:$Y$1,FALSE))& MATCH($A16,BdCréneaux!$L:$L,FALSE))=0,"", INDIRECT( "BdCréneaux!"& INDIRECT("BdCréneaux!$Z"&MATCH(BG$6,BdCréneaux!$S$1:$Y$1,FALSE))& MATCH($A16,BdCréneaux!$L:$L,FALSE))) ->  | BH16: =IF( INDIRECT( "BdCréneaux!"& INDIRECT("BdCréneaux!$Z"&MATCH(BH$6,BdCréneaux!$S$1:$Y$1,FALSE))& MATCH($A16,BdCréneaux!$L:$L,FALSE))=0,"", INDIRECT( "BdCréneaux!"& INDIRECT("BdCréneaux!$Z"&MATCH(BH$6,BdCréneaux!$S$1:$Y$1,FALSE))& MATCH($A16,BdCréneaux!$L:$L,FALSE))) ->  | BI16: =IF( INDIRECT( "BdCréneaux!"& INDIRECT("BdCréneaux!$Z"&MATCH(BI$6,BdCréneaux!$S$1:$Y$1,FALSE))& MATCH($A16,BdCréneaux!$L:$L,FALSE))=0,"", INDIRECT( "BdCréneaux!"& INDIRECT("BdCréneaux!$Z"&MATCH(BI$6,BdCréneaux!$S$1:$Y$1,FALSE))& MATCH($A16,BdCréneaux!$L:$L,FALSE))) ->  | BJ16: =IF( INDIRECT( "BdCréneaux!"& INDIRECT("BdCréneaux!$Z"&MATCH(BJ$6,BdCréneaux!$S$1:$Y$1,FALSE))& MATCH($A16,BdCréneaux!$L:$L,FALSE))=0,"", INDIRECT( "BdCréneaux!"& INDIRECT("BdCréneaux!$Z"&MATCH(BJ$6,BdCréneaux!$S$1:$Y$1,FALSE))& MATCH($A16,BdCréneaux!$L:$L,FALSE))) -> x | BK16: =IF( INDIRECT( "BdCréneaux!"& INDIRECT("BdCréneaux!$Z"&MATCH(BK$6,BdCréneaux!$S$1:$Y$1,FALSE))& MATCH($A16,BdCréneaux!$L:$L,FALSE))=0,"", INDIRECT( "BdCréneaux!"& INDIRECT("BdCréneaux!$Z"&MATCH(BK$6,BdCréneaux!$S$1:$Y$1,FALSE))& MATCH($A16,BdCréneaux!$L:$L,FALSE))) ->  | BL16: =IF( INDIRECT( "BdCréneaux!"& INDIRECT("BdCréneaux!$Z"&MATCH(BL$6,BdCréneaux!$S$1:$Y$1,FALSE))& MATCH($A16,BdCréneaux!$L:$L,FALSE))=0,"", INDIRECT( "BdCréneaux!"& INDIRECT("BdCréneaux!$Z"&MATCH(BL$6,BdCréneaux!$S$1:$Y$1,FALSE))& MATCH($A16,BdCréneaux!$L:$L,FALSE))) ->  | BM16: =IF( INDIRECT( "BdCréneaux!"& INDIRECT("BdCréneaux!$Z"&MATCH(BM$6,BdCréneaux!$S$1:$Y$1,FALSE))& MATCH($A16,BdCréneaux!$L:$L,FALSE))=0,"", INDIRECT( "BdCréneaux!"& INDIRECT("BdCréneaux!$Z"&MATCH(BM$6,BdCréneaux!$S$1:$Y$1,FALSE))& MATCH($A16,BdCréneaux!$L:$L,FALSE))) ->  | BN16: =IF( INDIRECT( "BdCréneaux!"& INDIRECT("BdCréneaux!$Z"&MATCH(BN$6,BdCréneaux!$S$1:$Y$1,FALSE))& MATCH($A16,BdCréneaux!$L:$L,FALSE))=0,"", INDIRECT( "BdCréneaux!"& INDIRECT("BdCréneaux!$Z"&MATCH(BN$6,BdCréneaux!$S$1:$Y$1,FALSE))& MATCH($A16,BdCréneaux!$L:$L,FALSE))) ->  | BO16: =IF( INDIRECT( "BdCréneaux!"& INDIRECT("BdCréneaux!$Z"&MATCH(BO$6,BdCréneaux!$S$1:$Y$1,FALSE))& MATCH($A16,BdCréneaux!$L:$L,FALSE))=0,"", INDIRECT( "BdCréneaux!"& INDIRECT("BdCréneaux!$Z"&MATCH(BO$6,BdCréneaux!$S$1:$Y$1,FALSE))& MATCH($A16,BdCréneaux!$L:$L,FALSE))) ->  | BP16: =IF( INDIRECT( "BdCréneaux!"& INDIRECT("BdCréneaux!$Z"&MATCH(BP$6,BdCréneaux!$S$1:$Y$1,FALSE))& MATCH($A16,BdCréneaux!$L:$L,FALSE))=0,"", INDIRECT( "BdCréneaux!"& INDIRECT("BdCréneaux!$Z"&MATCH(BP$6,BdCréneaux!$S$1:$Y$1,FALSE))& MATCH($A16,BdCréneaux!$L:$L,FALSE))) ->  | BQ16: =IF( INDIRECT( "BdCréneaux!"& INDIRECT("BdCréneaux!$Z"&MATCH(BQ$6,BdCréneaux!$S$1:$Y$1,FALSE))& MATCH($A16,BdCréneaux!$L:$L,FALSE))=0,"", INDIRECT( "BdCréneaux!"& INDIRECT("BdCréneaux!$Z"&MATCH(BQ$6,BdCréneaux!$S$1:$Y$1,FALSE))& MATCH($A16,BdCréneaux!$L:$L,FALSE))) -> x | BR16: =IF( INDIRECT( "BdCréneaux!"& INDIRECT("BdCréneaux!$Z"&MATCH(BR$6,BdCréneaux!$S$1:$Y$1,FALSE))& MATCH($A16,BdCréneaux!$L:$L,FALSE))=0,"", INDIRECT( "BdCréneaux!"& INDIRECT("BdCréneaux!$Z"&MATCH(BR$6,BdCréneaux!$S$1:$Y$1,FALSE))& MATCH($A16,BdCréneaux!$L:$L,FALSE))) ->  | BS16: =IF( INDIRECT( "BdCréneaux!"& INDIRECT("BdCréneaux!$Z"&MATCH(BS$6,BdCréneaux!$S$1:$Y$1,FALSE))& MATCH($A16,BdCréneaux!$L:$L,FALSE))=0,"", INDIRECT( "BdCréneaux!"& INDIRECT("BdCréneaux!$Z"&MATCH(BS$6,BdCréneaux!$S$1:$Y$1,FALSE))& MATCH($A16,BdCréneaux!$L:$L,FALSE))) ->  | BT16: =IF( INDIRECT( "BdCréneaux!"& INDIRECT("BdCréneaux!$Z"&MATCH(BT$6,BdCréneaux!$S$1:$Y$1,FALSE))& MATCH($A16,BdCréneaux!$L:$L,FALSE))=0,"", INDIRECT( "BdCréneaux!"& INDIRECT("BdCréneaux!$Z"&MATCH(BT$6,BdCréneaux!$S$1:$Y$1,FALSE))& MATCH($A16,BdCréneaux!$L:$L,FALSE))) ->  | BU16: =IF( INDIRECT( "BdCréneaux!"& INDIRECT("BdCréneaux!$Z"&MATCH(BU$6,BdCréneaux!$S$1:$Y$1,FALSE))& MATCH($A16,BdCréneaux!$L:$L,FALSE))=0,"", INDIRECT( "BdCréneaux!"& INDIRECT("BdCréneaux!$Z"&MATCH(BU$6,BdCréneaux!$S$1:$Y$1,FALSE))& MATCH($A16,BdCréneaux!$L:$L,FALSE))) ->  | BV16: =IF( INDIRECT( "BdCréneaux!"& INDIRECT("BdCréneaux!$Z"&MATCH(BV$6,BdCréneaux!$S$1:$Y$1,FALSE))& MATCH($A16,BdCréneaux!$L:$L,FALSE))=0,"", INDIRECT( "BdCréneaux!"& INDIRECT("BdCréneaux!$Z"&MATCH(BV$6,BdCréneaux!$S$1:$Y$1,FALSE))& MATCH($A16,BdCréneaux!$L:$L,FALSE))) ->  | BW16: =IF( INDIRECT( "BdCréneaux!"& INDIRECT("BdCréneaux!$Z"&MATCH(BW$6,BdCréneaux!$S$1:$Y$1,FALSE))& MATCH($A16,BdCréneaux!$L:$L,FALSE))=0,"", INDIRECT( "BdCréneaux!"& INDIRECT("BdCréneaux!$Z"&MATCH(BW$6,BdCréneaux!$S$1:$Y$1,FALSE))& MATCH($A16,BdCréneaux!$L:$L,FALSE))) ->  | BX16: =IF( INDIRECT( "BdCréneaux!"& INDIRECT("BdCréneaux!$Z"&MATCH(BX$6,BdCréneaux!$S$1:$Y$1,FALSE))& MATCH($A16,BdCréneaux!$L:$L,FALSE))=0,"", INDIRECT( "BdCréneaux!"& INDIRECT("BdCréneaux!$Z"&MATCH(BX$6,BdCréneaux!$S$1:$Y$1,FALSE))& MATCH($A16,BdCréneaux!$L:$L,FALSE))) -> x | BY16: =IF( INDIRECT( "BdCréneaux!"& INDIRECT("BdCréneaux!$Z"&MATCH(BY$6,BdCréneaux!$S$1:$Y$1,FALSE))& MATCH($A16,BdCréneaux!$L:$L,FALSE))=0,"", INDIRECT( "BdCréneaux!"& INDIRECT("BdCréneaux!$Z"&MATCH(BY$6,BdCréneaux!$S$1:$Y$1,FALSE))& MATCH($A16,BdCréneaux!$L:$L,FALSE))) ->  | BZ16: =IF( INDIRECT( "BdCréneaux!"& INDIRECT("BdCréneaux!$Z"&MATCH(BZ$6,BdCréneaux!$S$1:$Y$1,FALSE))& MATCH($A16,BdCréneaux!$L:$L,FALSE))=0,"", INDIRECT( "BdCréneaux!"& INDIRECT("BdCréneaux!$Z"&MATCH(BZ$6,BdCréneaux!$S$1:$Y$1,FALSE))& MATCH($A16,BdCréneaux!$L:$L,FALSE))) ->  | CA16: =IF( INDIRECT( "BdCréneaux!"& INDIRECT("BdCréneaux!$Z"&MATCH(CA$6,BdCréneaux!$S$1:$Y$1,FALSE))& MATCH($A16,BdCréneaux!$L:$L,FALSE))=0,"", INDIRECT( "BdCréneaux!"& INDIRECT("BdCréneaux!$Z"&MATCH(CA$6,BdCréneaux!$S$1:$Y$1,FALSE))& MATCH($A16,BdCréneaux!$L:$L,FALSE))) ->  | CB16: =IF( INDIRECT( "BdCréneaux!"& INDIRECT("BdCréneaux!$Z"&MATCH(CB$6,BdCréneaux!$S$1:$Y$1,FALSE))& MATCH($A16,BdCréneaux!$L:$L,FALSE))=0,"", INDIRECT( "BdCréneaux!"& INDIRECT("BdCréneaux!$Z"&MATCH(CB$6,BdCréneaux!$S$1:$Y$1,FALSE))& MATCH($A16,BdCréneaux!$L:$L,FALSE))) ->  | CC16: =IF( INDIRECT( "BdCréneaux!"& INDIRECT("BdCréneaux!$Z"&MATCH(CC$6,BdCréneaux!$S$1:$Y$1,FALSE))& MATCH($A16,BdCréneaux!$L:$L,FALSE))=0,"", INDIRECT( "BdCréneaux!"& INDIRECT("BdCréneaux!$Z"&MATCH(CC$6,BdCréneaux!$S$1:$Y$1,FALSE))& MATCH($A16,BdCréneaux!$L:$L,FALSE))) ->  | CD16: =IF( INDIRECT( "BdCréneaux!"& INDIRECT("BdCréneaux!$Z"&MATCH(CD$6,BdCréneaux!$S$1:$Y$1,FALSE))& MATCH($A16,BdCréneaux!$L:$L,FALSE))=0,"", INDIRECT( "BdCréneaux!"& INDIRECT("BdCréneaux!$Z"&MATCH(CD$6,BdCréneaux!$S$1:$Y$1,FALSE))& MATCH($A16,BdCréneaux!$L:$L,FALSE))) ->  | CE16: =IF( INDIRECT( "BdCréneaux!"& INDIRECT("BdCréneaux!$Z"&MATCH(CE$6,BdCréneaux!$S$1:$Y$1,FALSE))& MATCH($A16,BdCréneaux!$L:$L,FALSE))=0,"", INDIRECT( "BdCréneaux!"& INDIRECT("BdCréneaux!$Z"&MATCH(CE$6,BdCréneaux!$S$1:$Y$1,FALSE))& MATCH($A16,BdCréneaux!$L:$L,FALSE))) -> x | CF16: =IF( INDIRECT( "BdCréneaux!"& INDIRECT("BdCréneaux!$Z"&MATCH(CF$6,BdCréneaux!$S$1:$Y$1,FALSE))& MATCH($A16,BdCréneaux!$L:$L,FALSE))=0,"", INDIRECT( "BdCréneaux!"& INDIRECT("BdCréneaux!$Z"&MATCH(CF$6,BdCréneaux!$S$1:$Y$1,FALSE))& MATCH($A16,BdCréneaux!$L:$L,FALSE))) ->  | CG16: =IF( INDIRECT( "BdCréneaux!"& INDIRECT("BdCréneaux!$Z"&MATCH(CG$6,BdCréneaux!$S$1:$Y$1,FALSE))& MATCH($A16,BdCréneaux!$L:$L,FALSE))=0,"", INDIRECT( "BdCréneaux!"& INDIRECT("BdCréneaux!$Z"&MATCH(CG$6,BdCréneaux!$S$1:$Y$1,FALSE))& MATCH($A16,BdCréneaux!$L:$L,FALSE))) ->  | CH16: =IF( INDIRECT( "BdCréneaux!"& INDIRECT("BdCréneaux!$Z"&MATCH(CH$6,BdCréneaux!$S$1:$Y$1,FALSE))& MATCH($A16,BdCréneaux!$L:$L,FALSE))=0,"", INDIRECT( "BdCréneaux!"& INDIRECT("BdCréneaux!$Z"&MATCH(CH$6,BdCréneaux!$S$1:$Y$1,FALSE))& MATCH($A16,BdCréneaux!$L:$L,FALSE))) -> 
A17: =IF(BdCréneaux!L10="","", BdCréneaux!L10) -> P2 | B17: =BdCréneaux!R10 -> Pédiatrie 14h00>16h00 | AI17: Pédiatrie 14h00>16h00 | BD17: =IF( INDIRECT( "BdCréneaux!"& INDIRECT("BdCréneaux!$Z"&MATCH(BD$6,BdCréneaux!$S$1:$Y$1,FALSE))& MATCH($A17,BdCréneaux!$L:$L,FALSE))=0,"", INDIRECT( "BdCréneaux!"& INDIRECT("BdCréneaux!$Z"&MATCH(BD$6,BdCréneaux!$S$1:$Y$1,FALSE))& MATCH($A17,BdCréneaux!$L:$L,FALSE))) -> x | BE17: =IF( INDIRECT( "BdCréneaux!"& INDIRECT("BdCréneaux!$Z"&MATCH(BE$6,BdCréneaux!$S$1:$Y$1,FALSE))& MATCH($A17,BdCréneaux!$L:$L,FALSE))=0,"", INDIRECT( "BdCréneaux!"& INDIRECT("BdCréneaux!$Z"&MATCH(BE$6,BdCréneaux!$S$1:$Y$1,FALSE))& MATCH($A17,BdCréneaux!$L:$L,FALSE))) ->  | BF17: =IF( INDIRECT( "BdCréneaux!"& INDIRECT("BdCréneaux!$Z"&MATCH(BF$6,BdCréneaux!$S$1:$Y$1,FALSE))& MATCH($A17,BdCréneaux!$L:$L,FALSE))=0,"", INDIRECT( "BdCréneaux!"& INDIRECT("BdCréneaux!$Z"&MATCH(BF$6,BdCréneaux!$S$1:$Y$1,FALSE))& MATCH($A17,BdCréneaux!$L:$L,FALSE))) ->  | BG17: =IF( INDIRECT( "BdCréneaux!"& INDIRECT("BdCréneaux!$Z"&MATCH(BG$6,BdCréneaux!$S$1:$Y$1,FALSE))& MATCH($A17,BdCréneaux!$L:$L,FALSE))=0,"", INDIRECT( "BdCréneaux!"& INDIRECT("BdCréneaux!$Z"&MATCH(BG$6,BdCréneaux!$S$1:$Y$1,FALSE))& MATCH($A17,BdCréneaux!$L:$L,FALSE))) ->  | BH17: =IF( INDIRECT( "BdCréneaux!"& INDIRECT("BdCréneaux!$Z"&MATCH(BH$6,BdCréneaux!$S$1:$Y$1,FALSE))& MATCH($A17,BdCréneaux!$L:$L,FALSE))=0,"", INDIRECT( "BdCréneaux!"& INDIRECT("BdCréneaux!$Z"&MATCH(BH$6,BdCréneaux!$S$1:$Y$1,FALSE))& MATCH($A17,BdCréneaux!$L:$L,FALSE))) -> x | BI17: =IF( INDIRECT( "BdCréneaux!"& INDIRECT("BdCréneaux!$Z"&MATCH(BI$6,BdCréneaux!$S$1:$Y$1,FALSE))& MATCH($A17,BdCréneaux!$L:$L,FALSE))=0,"", INDIRECT( "BdCréneaux!"& INDIRECT("BdCréneaux!$Z"&MATCH(BI$6,BdCréneaux!$S$1:$Y$1,FALSE))& MATCH($A17,BdCréneaux!$L:$L,FALSE))) ->  | BJ17: =IF( INDIRECT( "BdCréneaux!"& INDIRECT("BdCréneaux!$Z"&MATCH(BJ$6,BdCréneaux!$S$1:$Y$1,FALSE))& MATCH($A17,BdCréneaux!$L:$L,FALSE))=0,"", INDIRECT( "BdCréneaux!"& INDIRECT("BdCréneaux!$Z"&MATCH(BJ$6,BdCréneaux!$S$1:$Y$1,FALSE))& MATCH($A17,BdCréneaux!$L:$L,FALSE))) ->  | BK17: =IF( INDIRECT( "BdCréneaux!"& INDIRECT("BdCréneaux!$Z"&MATCH(BK$6,BdCréneaux!$S$1:$Y$1,FALSE))& MATCH($A17,BdCréneaux!$L:$L,FALSE))=0,"", INDIRECT( "BdCréneaux!"& INDIRECT("BdCréneaux!$Z"&MATCH(BK$6,BdCréneaux!$S$1:$Y$1,FALSE))& MATCH($A17,BdCréneaux!$L:$L,FALSE))) -> x | BL17: =IF( INDIRECT( "BdCréneaux!"& INDIRECT("BdCréneaux!$Z"&MATCH(BL$6,BdCréneaux!$S$1:$Y$1,FALSE))& MATCH($A17,BdCréneaux!$L:$L,FALSE))=0,"", INDIRECT( "BdCréneaux!"& INDIRECT("BdCréneaux!$Z"&MATCH(BL$6,BdCréneaux!$S$1:$Y$1,FALSE))& MATCH($A17,BdCréneaux!$L:$L,FALSE))) ->  | BM17: =IF( INDIRECT( "BdCréneaux!"& INDIRECT("BdCréneaux!$Z"&MATCH(BM$6,BdCréneaux!$S$1:$Y$1,FALSE))& MATCH($A17,BdCréneaux!$L:$L,FALSE))=0,"", INDIRECT( "BdCréneaux!"& INDIRECT("BdCréneaux!$Z"&MATCH(BM$6,BdCréneaux!$S$1:$Y$1,FALSE))& MATCH($A17,BdCréneaux!$L:$L,FALSE))) ->  | BN17: =IF( INDIRECT( "BdCréneaux!"& INDIRECT("BdCréneaux!$Z"&MATCH(BN$6,BdCréneaux!$S$1:$Y$1,FALSE))& MATCH($A17,BdCréneaux!$L:$L,FALSE))=0,"", INDIRECT( "BdCréneaux!"& INDIRECT("BdCréneaux!$Z"&MATCH(BN$6,BdCréneaux!$S$1:$Y$1,FALSE))& MATCH($A17,BdCréneaux!$L:$L,FALSE))) ->  | BO17: =IF( INDIRECT( "BdCréneaux!"& INDIRECT("BdCréneaux!$Z"&MATCH(BO$6,BdCréneaux!$S$1:$Y$1,FALSE))& MATCH($A17,BdCréneaux!$L:$L,FALSE))=0,"", INDIRECT( "BdCréneaux!"& INDIRECT("BdCréneaux!$Z"&MATCH(BO$6,BdCréneaux!$S$1:$Y$1,FALSE))& MATCH($A17,BdCréneaux!$L:$L,FALSE))) -> x | BP17: =IF( INDIRECT( "BdCréneaux!"& INDIRECT("BdCréneaux!$Z"&MATCH(BP$6,BdCréneaux!$S$1:$Y$1,FALSE))& MATCH($A17,BdCréneaux!$L:$L,FALSE))=0,"", INDIRECT( "BdCréneaux!"& INDIRECT("BdCréneaux!$Z"&MATCH(BP$6,BdCréneaux!$S$1:$Y$1,FALSE))& MATCH($A17,BdCréneaux!$L:$L,FALSE))) ->  | BQ17: =IF( INDIRECT( "BdCréneaux!"& INDIRECT("BdCréneaux!$Z"&MATCH(BQ$6,BdCréneaux!$S$1:$Y$1,FALSE))& MATCH($A17,BdCréneaux!$L:$L,FALSE))=0,"", INDIRECT( "BdCréneaux!"& INDIRECT("BdCréneaux!$Z"&MATCH(BQ$6,BdCréneaux!$S$1:$Y$1,FALSE))& MATCH($A17,BdCréneaux!$L:$L,FALSE))) ->  | BR17: =IF( INDIRECT( "BdCréneaux!"& INDIRECT("BdCréneaux!$Z"&MATCH(BR$6,BdCréneaux!$S$1:$Y$1,FALSE))& MATCH($A17,BdCréneaux!$L:$L,FALSE))=0,"", INDIRECT( "BdCréneaux!"& INDIRECT("BdCréneaux!$Z"&MATCH(BR$6,BdCréneaux!$S$1:$Y$1,FALSE))& MATCH($A17,BdCréneaux!$L:$L,FALSE))) -> x | BS17: =IF( INDIRECT( "BdCréneaux!"& INDIRECT("BdCréneaux!$Z"&MATCH(BS$6,BdCréneaux!$S$1:$Y$1,FALSE))& MATCH($A17,BdCréneaux!$L:$L,FALSE))=0,"", INDIRECT( "BdCréneaux!"& INDIRECT("BdCréneaux!$Z"&MATCH(BS$6,BdCréneaux!$S$1:$Y$1,FALSE))& MATCH($A17,BdCréneaux!$L:$L,FALSE))) ->  | BT17: =IF( INDIRECT( "BdCréneaux!"& INDIRECT("BdCréneaux!$Z"&MATCH(BT$6,BdCréneaux!$S$1:$Y$1,FALSE))& MATCH($A17,BdCréneaux!$L:$L,FALSE))=0,"", INDIRECT( "BdCréneaux!"& INDIRECT("BdCréneaux!$Z"&MATCH(BT$6,BdCréneaux!$S$1:$Y$1,FALSE))& MATCH($A17,BdCréneaux!$L:$L,FALSE))) ->  | BU17: =IF( INDIRECT( "BdCréneaux!"& INDIRECT("BdCréneaux!$Z"&MATCH(BU$6,BdCréneaux!$S$1:$Y$1,FALSE))& MATCH($A17,BdCréneaux!$L:$L,FALSE))=0,"", INDIRECT( "BdCréneaux!"& INDIRECT("BdCréneaux!$Z"&MATCH(BU$6,BdCréneaux!$S$1:$Y$1,FALSE))& MATCH($A17,BdCréneaux!$L:$L,FALSE))) ->  | BV17: =IF( INDIRECT( "BdCréneaux!"& INDIRECT("BdCréneaux!$Z"&MATCH(BV$6,BdCréneaux!$S$1:$Y$1,FALSE))& MATCH($A17,BdCréneaux!$L:$L,FALSE))=0,"", INDIRECT( "BdCréneaux!"& INDIRECT("BdCréneaux!$Z"&MATCH(BV$6,BdCréneaux!$S$1:$Y$1,FALSE))& MATCH($A17,BdCréneaux!$L:$L,FALSE))) -> x | BW17: =IF( INDIRECT( "BdCréneaux!"& INDIRECT("BdCréneaux!$Z"&MATCH(BW$6,BdCréneaux!$S$1:$Y$1,FALSE))& MATCH($A17,BdCréneaux!$L:$L,FALSE))=0,"", INDIRECT( "BdCréneaux!"& INDIRECT("BdCréneaux!$Z"&MATCH(BW$6,BdCréneaux!$S$1:$Y$1,FALSE))& MATCH($A17,BdCréneaux!$L:$L,FALSE))) ->  | BX17: =IF( INDIRECT( "BdCréneaux!"& INDIRECT("BdCréneaux!$Z"&MATCH(BX$6,BdCréneaux!$S$1:$Y$1,FALSE))& MATCH($A17,BdCréneaux!$L:$L,FALSE))=0,"", INDIRECT( "BdCréneaux!"& INDIRECT("BdCréneaux!$Z"&MATCH(BX$6,BdCréneaux!$S$1:$Y$1,FALSE))& MATCH($A17,BdCréneaux!$L:$L,FALSE))) ->  | BY17: =IF( INDIRECT( "BdCréneaux!"& INDIRECT("BdCréneaux!$Z"&MATCH(BY$6,BdCréneaux!$S$1:$Y$1,FALSE))& MATCH($A17,BdCréneaux!$L:$L,FALSE))=0,"", INDIRECT( "BdCréneaux!"& INDIRECT("BdCréneaux!$Z"&MATCH(BY$6,BdCréneaux!$S$1:$Y$1,FALSE))& MATCH($A17,BdCréneaux!$L:$L,FALSE))) -> x | BZ17: =IF( INDIRECT( "BdCréneaux!"& INDIRECT("BdCréneaux!$Z"&MATCH(BZ$6,BdCréneaux!$S$1:$Y$1,FALSE))& MATCH($A17,BdCréneaux!$L:$L,FALSE))=0,"", INDIRECT( "BdCréneaux!"& INDIRECT("BdCréneaux!$Z"&MATCH(BZ$6,BdCréneaux!$S$1:$Y$1,FALSE))& MATCH($A17,BdCréneaux!$L:$L,FALSE))) ->  | CA17: =IF( INDIRECT( "BdCréneaux!"& INDIRECT("BdCréneaux!$Z"&MATCH(CA$6,BdCréneaux!$S$1:$Y$1,FALSE))& MATCH($A17,BdCréneaux!$L:$L,FALSE))=0,"", INDIRECT( "BdCréneaux!"& INDIRECT("BdCréneaux!$Z"&MATCH(CA$6,BdCréneaux!$S$1:$Y$1,FALSE))& MATCH($A17,BdCréneaux!$L:$L,FALSE))) ->  | CB17: =IF( INDIRECT( "BdCréneaux!"& INDIRECT("BdCréneaux!$Z"&MATCH(CB$6,BdCréneaux!$S$1:$Y$1,FALSE))& MATCH($A17,BdCréneaux!$L:$L,FALSE))=0,"", INDIRECT( "BdCréneaux!"& INDIRECT("BdCréneaux!$Z"&MATCH(CB$6,BdCréneaux!$S$1:$Y$1,FALSE))& MATCH($A17,BdCréneaux!$L:$L,FALSE))) ->  | CC17: =IF( INDIRECT( "BdCréneaux!"& INDIRECT("BdCréneaux!$Z"&MATCH(CC$6,BdCréneaux!$S$1:$Y$1,FALSE))& MATCH($A17,BdCréneaux!$L:$L,FALSE))=0,"", INDIRECT( "BdCréneaux!"& INDIRECT("BdCréneaux!$Z"&MATCH(CC$6,BdCréneaux!$S$1:$Y$1,FALSE))& MATCH($A17,BdCréneaux!$L:$L,FALSE))) -> x | CD17: =IF( INDIRECT( "BdCréneaux!"& INDIRECT("BdCréneaux!$Z"&MATCH(CD$6,BdCréneaux!$S$1:$Y$1,FALSE))& MATCH($A17,BdCréneaux!$L:$L,FALSE))=0,"", INDIRECT( "BdCréneaux!"& INDIRECT("BdCréneaux!$Z"&MATCH(CD$6,BdCréneaux!$S$1:$Y$1,FALSE))& MATCH($A17,BdCréneaux!$L:$L,FALSE))) ->  | CE17: =IF( INDIRECT( "BdCréneaux!"& INDIRECT("BdCréneaux!$Z"&MATCH(CE$6,BdCréneaux!$S$1:$Y$1,FALSE))& MATCH($A17,BdCréneaux!$L:$L,FALSE))=0,"", INDIRECT( "BdCréneaux!"& INDIRECT("BdCréneaux!$Z"&MATCH(CE$6,BdCréneaux!$S$1:$Y$1,FALSE))& MATCH($A17,BdCréneaux!$L:$L,FALSE))) ->  | CF17: =IF( INDIRECT( "BdCréneaux!"& INDIRECT("BdCréneaux!$Z"&MATCH(CF$6,BdCréneaux!$S$1:$Y$1,FALSE))& MATCH($A17,BdCréneaux!$L:$L,FALSE))=0,"", INDIRECT( "BdCréneaux!"& INDIRECT("BdCréneaux!$Z"&MATCH(CF$6,BdCréneaux!$S$1:$Y$1,FALSE))& MATCH($A17,BdCréneaux!$L:$L,FALSE))) -> x | CG17: =IF( INDIRECT( "BdCréneaux!"& INDIRECT("BdCréneaux!$Z"&MATCH(CG$6,BdCréneaux!$S$1:$Y$1,FALSE))& MATCH($A17,BdCréneaux!$L:$L,FALSE))=0,"", INDIRECT( "BdCréneaux!"& INDIRECT("BdCréneaux!$Z"&MATCH(CG$6,BdCréneaux!$S$1:$Y$1,FALSE))& MATCH($A17,BdCréneaux!$L:$L,FALSE))) ->  | CH17: =IF( INDIRECT( "BdCréneaux!"& INDIRECT("BdCréneaux!$Z"&MATCH(CH$6,BdCréneaux!$S$1:$Y$1,FALSE))& MATCH($A17,BdCréneaux!$L:$L,FALSE))=0,"", INDIRECT( "BdCréneaux!"& INDIRECT("BdCréneaux!$Z"&MATCH(CH$6,BdCréneaux!$S$1:$Y$1,FALSE))& MATCH($A17,BdCréneaux!$L:$L,FALSE))) -> 
A18: =IF(BdCréneaux!L11="","", BdCréneaux!L11) -> U1 | B18: =BdCréneaux!R11 -> Urgence Pédia. 14h00>16h00 | AI18: Urgence Pédia. 14h00>16h00 | BD18: =IF( INDIRECT( "BdCréneaux!"& INDIRECT("BdCréneaux!$Z"&MATCH(BD$6,BdCréneaux!$S$1:$Y$1,FALSE))& MATCH($A18,BdCréneaux!$L:$L,FALSE))=0,"", INDIRECT( "BdCréneaux!"& INDIRECT("BdCréneaux!$Z"&MATCH(BD$6,BdCréneaux!$S$1:$Y$1,FALSE))& MATCH($A18,BdCréneaux!$L:$L,FALSE))) -> x | BE18: =IF( INDIRECT( "BdCréneaux!"& INDIRECT("BdCréneaux!$Z"&MATCH(BE$6,BdCréneaux!$S$1:$Y$1,FALSE))& MATCH($A18,BdCréneaux!$L:$L,FALSE))=0,"", INDIRECT( "BdCréneaux!"& INDIRECT("BdCréneaux!$Z"&MATCH(BE$6,BdCréneaux!$S$1:$Y$1,FALSE))& MATCH($A18,BdCréneaux!$L:$L,FALSE))) ->  | BF18: =IF( INDIRECT( "BdCréneaux!"& INDIRECT("BdCréneaux!$Z"&MATCH(BF$6,BdCréneaux!$S$1:$Y$1,FALSE))& MATCH($A18,BdCréneaux!$L:$L,FALSE))=0,"", INDIRECT( "BdCréneaux!"& INDIRECT("BdCréneaux!$Z"&MATCH(BF$6,BdCréneaux!$S$1:$Y$1,FALSE))& MATCH($A18,BdCréneaux!$L:$L,FALSE))) -> x | BG18: =IF( INDIRECT( "BdCréneaux!"& INDIRECT("BdCréneaux!$Z"&MATCH(BG$6,BdCréneaux!$S$1:$Y$1,FALSE))& MATCH($A18,BdCréneaux!$L:$L,FALSE))=0,"", INDIRECT( "BdCréneaux!"& INDIRECT("BdCréneaux!$Z"&MATCH(BG$6,BdCréneaux!$S$1:$Y$1,FALSE))& MATCH($A18,BdCréneaux!$L:$L,FALSE))) -> x | BH18: =IF( INDIRECT( "BdCréneaux!"& INDIRECT("BdCréneaux!$Z"&MATCH(BH$6,BdCréneaux!$S$1:$Y$1,FALSE))& MATCH($A18,BdCréneaux!$L:$L,FALSE))=0,"", INDIRECT( "BdCréneaux!"& INDIRECT("BdCréneaux!$Z"&MATCH(BH$6,BdCréneaux!$S$1:$Y$1,FALSE))& MATCH($A18,BdCréneaux!$L:$L,FALSE))) -> x | BI18: =IF( INDIRECT( "BdCréneaux!"& INDIRECT("BdCréneaux!$Z"&MATCH(BI$6,BdCréneaux!$S$1:$Y$1,FALSE))& MATCH($A18,BdCréneaux!$L:$L,FALSE))=0,"", INDIRECT( "BdCréneaux!"& INDIRECT("BdCréneaux!$Z"&MATCH(BI$6,BdCréneaux!$S$1:$Y$1,FALSE))& MATCH($A18,BdCréneaux!$L:$L,FALSE))) ->  | BJ18: =IF( INDIRECT( "BdCréneaux!"& INDIRECT("BdCréneaux!$Z"&MATCH(BJ$6,BdCréneaux!$S$1:$Y$1,FALSE))& MATCH($A18,BdCréneaux!$L:$L,FALSE))=0,"", INDIRECT( "BdCréneaux!"& INDIRECT("BdCréneaux!$Z"&MATCH(BJ$6,BdCréneaux!$S$1:$Y$1,FALSE))& MATCH($A18,BdCréneaux!$L:$L,FALSE))) -> x | BK18: =IF( INDIRECT( "BdCréneaux!"& INDIRECT("BdCréneaux!$Z"&MATCH(BK$6,BdCréneaux!$S$1:$Y$1,FALSE))& MATCH($A18,BdCréneaux!$L:$L,FALSE))=0,"", INDIRECT( "BdCréneaux!"& INDIRECT("BdCréneaux!$Z"&MATCH(BK$6,BdCréneaux!$S$1:$Y$1,FALSE))& MATCH($A18,BdCréneaux!$L:$L,FALSE))) -> x | BL18: =IF( INDIRECT( "BdCréneaux!"& INDIRECT("BdCréneaux!$Z"&MATCH(BL$6,BdCréneaux!$S$1:$Y$1,FALSE))& MATCH($A18,BdCréneaux!$L:$L,FALSE))=0,"", INDIRECT( "BdCréneaux!"& INDIRECT("BdCréneaux!$Z"&MATCH(BL$6,BdCréneaux!$S$1:$Y$1,FALSE))& MATCH($A18,BdCréneaux!$L:$L,FALSE))) ->  | BM18: =IF( INDIRECT( "BdCréneaux!"& INDIRECT("BdCréneaux!$Z"&MATCH(BM$6,BdCréneaux!$S$1:$Y$1,FALSE))& MATCH($A18,BdCréneaux!$L:$L,FALSE))=0,"", INDIRECT( "BdCréneaux!"& INDIRECT("BdCréneaux!$Z"&MATCH(BM$6,BdCréneaux!$S$1:$Y$1,FALSE))& MATCH($A18,BdCréneaux!$L:$L,FALSE))) -> x | BN18: =IF( INDIRECT( "BdCréneaux!"& INDIRECT("BdCréneaux!$Z"&MATCH(BN$6,BdCréneaux!$S$1:$Y$1,FALSE))& MATCH($A18,BdCréneaux!$L:$L,FALSE))=0,"", INDIRECT( "BdCréneaux!"& INDIRECT("BdCréneaux!$Z"&MATCH(BN$6,BdCréneaux!$S$1:$Y$1,FALSE))& MATCH($A18,BdCréneaux!$L:$L,FALSE))) -> x | BO18: =IF( INDIRECT( "BdCréneaux!"& INDIRECT("BdCréneaux!$Z"&MATCH(BO$6,BdCréneaux!$S$1:$Y$1,FALSE))& MATCH($A18,BdCréneaux!$L:$L,FALSE))=0,"", INDIRECT( "BdCréneaux!"& INDIRECT("BdCréneaux!$Z"&MATCH(BO$6,BdCréneaux!$S$1:$Y$1,FALSE))& MATCH($A18,BdCréneaux!$L:$L,FALSE))) -> x | BP18: =IF( INDIRECT( "BdCréneaux!"& INDIRECT("BdCréneaux!$Z"&MATCH(BP$6,BdCréneaux!$S$1:$Y$1,FALSE))& MATCH($A18,BdCréneaux!$L:$L,FALSE))=0,"", INDIRECT( "BdCréneaux!"& INDIRECT("BdCréneaux!$Z"&MATCH(BP$6,BdCréneaux!$S$1:$Y$1,FALSE))& MATCH($A18,BdCréneaux!$L:$L,FALSE))) ->  | BQ18: =IF( INDIRECT( "BdCréneaux!"& INDIRECT("BdCréneaux!$Z"&MATCH(BQ$6,BdCréneaux!$S$1:$Y$1,FALSE))& MATCH($A18,BdCréneaux!$L:$L,FALSE))=0,"", INDIRECT( "BdCréneaux!"& INDIRECT("BdCréneaux!$Z"&MATCH(BQ$6,BdCréneaux!$S$1:$Y$1,FALSE))& MATCH($A18,BdCréneaux!$L:$L,FALSE))) -> x | BR18: =IF( INDIRECT( "BdCréneaux!"& INDIRECT("BdCréneaux!$Z"&MATCH(BR$6,BdCréneaux!$S$1:$Y$1,FALSE))& MATCH($A18,BdCréneaux!$L:$L,FALSE))=0,"", INDIRECT( "BdCréneaux!"& INDIRECT("BdCréneaux!$Z"&MATCH(BR$6,BdCréneaux!$S$1:$Y$1,FALSE))& MATCH($A18,BdCréneaux!$L:$L,FALSE))) -> x | BS18: =IF( INDIRECT( "BdCréneaux!"& INDIRECT("BdCréneaux!$Z"&MATCH(BS$6,BdCréneaux!$S$1:$Y$1,FALSE))& MATCH($A18,BdCréneaux!$L:$L,FALSE))=0,"", INDIRECT( "BdCréneaux!"& INDIRECT("BdCréneaux!$Z"&MATCH(BS$6,BdCréneaux!$S$1:$Y$1,FALSE))& MATCH($A18,BdCréneaux!$L:$L,FALSE))) ->  | BT18: =IF( INDIRECT( "BdCréneaux!"& INDIRECT("BdCréneaux!$Z"&MATCH(BT$6,BdCréneaux!$S$1:$Y$1,FALSE))& MATCH($A18,BdCréneaux!$L:$L,FALSE))=0,"", INDIRECT( "BdCréneaux!"& INDIRECT("BdCréneaux!$Z"&MATCH(BT$6,BdCréneaux!$S$1:$Y$1,FALSE))& MATCH($A18,BdCréneaux!$L:$L,FALSE))) -> x | BU18: =IF( INDIRECT( "BdCréneaux!"& INDIRECT("BdCréneaux!$Z"&MATCH(BU$6,BdCréneaux!$S$1:$Y$1,FALSE))& MATCH($A18,BdCréneaux!$L:$L,FALSE))=0,"", INDIRECT( "BdCréneaux!"& INDIRECT("BdCréneaux!$Z"&MATCH(BU$6,BdCréneaux!$S$1:$Y$1,FALSE))& MATCH($A18,BdCréneaux!$L:$L,FALSE))) -> x | BV18: =IF( INDIRECT( "BdCréneaux!"& INDIRECT("BdCréneaux!$Z"&MATCH(BV$6,BdCréneaux!$S$1:$Y$1,FALSE))& MATCH($A18,BdCréneaux!$L:$L,FALSE))=0,"", INDIRECT( "BdCréneaux!"& INDIRECT("BdCréneaux!$Z"&MATCH(BV$6,BdCréneaux!$S$1:$Y$1,FALSE))& MATCH($A18,BdCréneaux!$L:$L,FALSE))) -> x | BW18: =IF( INDIRECT( "BdCréneaux!"& INDIRECT("BdCréneaux!$Z"&MATCH(BW$6,BdCréneaux!$S$1:$Y$1,FALSE))& MATCH($A18,BdCréneaux!$L:$L,FALSE))=0,"", INDIRECT( "BdCréneaux!"& INDIRECT("BdCréneaux!$Z"&MATCH(BW$6,BdCréneaux!$S$1:$Y$1,FALSE))& MATCH($A18,BdCréneaux!$L:$L,FALSE))) ->  | BX18: =IF( INDIRECT( "BdCréneaux!"& INDIRECT("BdCréneaux!$Z"&MATCH(BX$6,BdCréneaux!$S$1:$Y$1,FALSE))& MATCH($A18,BdCréneaux!$L:$L,FALSE))=0,"", INDIRECT( "BdCréneaux!"& INDIRECT("BdCréneaux!$Z"&MATCH(BX$6,BdCréneaux!$S$1:$Y$1,FALSE))& MATCH($A18,BdCréneaux!$L:$L,FALSE))) -> x | BY18: =IF( INDIRECT( "BdCréneaux!"& INDIRECT("BdCréneaux!$Z"&MATCH(BY$6,BdCréneaux!$S$1:$Y$1,FALSE))& MATCH($A18,BdCréneaux!$L:$L,FALSE))=0,"", INDIRECT( "BdCréneaux!"& INDIRECT("BdCréneaux!$Z"&MATCH(BY$6,BdCréneaux!$S$1:$Y$1,FALSE))& MATCH($A18,BdCréneaux!$L:$L,FALSE))) -> x | BZ18: =IF( INDIRECT( "BdCréneaux!"& INDIRECT("BdCréneaux!$Z"&MATCH(BZ$6,BdCréneaux!$S$1:$Y$1,FALSE))& MATCH($A18,BdCréneaux!$L:$L,FALSE))=0,"", INDIRECT( "BdCréneaux!"& INDIRECT("BdCréneaux!$Z"&MATCH(BZ$6,BdCréneaux!$S$1:$Y$1,FALSE))& MATCH($A18,BdCréneaux!$L:$L,FALSE))) ->  | CA18: =IF( INDIRECT( "BdCréneaux!"& INDIRECT("BdCréneaux!$Z"&MATCH(CA$6,BdCréneaux!$S$1:$Y$1,FALSE))& MATCH($A18,BdCréneaux!$L:$L,FALSE))=0,"", INDIRECT( "BdCréneaux!"& INDIRECT("BdCréneaux!$Z"&MATCH(CA$6,BdCréneaux!$S$1:$Y$1,FALSE))& MATCH($A18,BdCréneaux!$L:$L,FALSE))) -> x | CB18: =IF( INDIRECT( "BdCréneaux!"& INDIRECT("BdCréneaux!$Z"&MATCH(CB$6,BdCréneaux!$S$1:$Y$1,FALSE))& MATCH($A18,BdCréneaux!$L:$L,FALSE))=0,"", INDIRECT( "BdCréneaux!"& INDIRECT("BdCréneaux!$Z"&MATCH(CB$6,BdCréneaux!$S$1:$Y$1,FALSE))& MATCH($A18,BdCréneaux!$L:$L,FALSE))) -> x | CC18: =IF( INDIRECT( "BdCréneaux!"& INDIRECT("BdCréneaux!$Z"&MATCH(CC$6,BdCréneaux!$S$1:$Y$1,FALSE))& MATCH($A18,BdCréneaux!$L:$L,FALSE))=0,"", INDIRECT( "BdCréneaux!"& INDIRECT("BdCréneaux!$Z"&MATCH(CC$6,BdCréneaux!$S$1:$Y$1,FALSE))& MATCH($A18,BdCréneaux!$L:$L,FALSE))) -> x | CD18: =IF( INDIRECT( "BdCréneaux!"& INDIRECT("BdCréneaux!$Z"&MATCH(CD$6,BdCréneaux!$S$1:$Y$1,FALSE))& MATCH($A18,BdCréneaux!$L:$L,FALSE))=0,"", INDIRECT( "BdCréneaux!"& INDIRECT("BdCréneaux!$Z"&MATCH(CD$6,BdCréneaux!$S$1:$Y$1,FALSE))& MATCH($A18,BdCréneaux!$L:$L,FALSE))) ->  | CE18: =IF( INDIRECT( "BdCréneaux!"& INDIRECT("BdCréneaux!$Z"&MATCH(CE$6,BdCréneaux!$S$1:$Y$1,FALSE))& MATCH($A18,BdCréneaux!$L:$L,FALSE))=0,"", INDIRECT( "BdCréneaux!"& INDIRECT("BdCréneaux!$Z"&MATCH(CE$6,BdCréneaux!$S$1:$Y$1,FALSE))& MATCH($A18,BdCréneaux!$L:$L,FALSE))) -> x | CF18: =IF( INDIRECT( "BdCréneaux!"& INDIRECT("BdCréneaux!$Z"&MATCH(CF$6,BdCréneaux!$S$1:$Y$1,FALSE))& MATCH($A18,BdCréneaux!$L:$L,FALSE))=0,"", INDIRECT( "BdCréneaux!"& INDIRECT("BdCréneaux!$Z"&MATCH(CF$6,BdCréneaux!$S$1:$Y$1,FALSE))& MATCH($A18,BdCréneaux!$L:$L,FALSE))) -> x | CG18: =IF( INDIRECT( "BdCréneaux!"& INDIRECT("BdCréneaux!$Z"&MATCH(CG$6,BdCréneaux!$S$1:$Y$1,FALSE))& MATCH($A18,BdCréneaux!$L:$L,FALSE))=0,"", INDIRECT( "BdCréneaux!"& INDIRECT("BdCréneaux!$Z"&MATCH(CG$6,BdCréneaux!$S$1:$Y$1,FALSE))& MATCH($A18,BdCréneaux!$L:$L,FALSE))) ->  | CH18: =IF( INDIRECT( "BdCréneaux!"& INDIRECT("BdCréneaux!$Z"&MATCH(CH$6,BdCréneaux!$S$1:$Y$1,FALSE))& MATCH($A18,BdCréneaux!$L:$L,FALSE))=0,"", INDIRECT( "BdCréneaux!"& INDIRECT("BdCréneaux!$Z"&MATCH(CH$6,BdCréneaux!$S$1:$Y$1,FALSE))& MATCH($A18,BdCréneaux!$L:$L,FALSE))) -> x
A19: =IF(BdCréneaux!L12="","", BdCréneaux!L12) -> U2 | B19: =BdCréneaux!R12 -> Urgence Pédia. 16h00>18h00 | AI19: Urgence Pédia. 16h00>18h00 | BD19: =IF( INDIRECT( "BdCréneaux!"& INDIRECT("BdCréneaux!$Z"&MATCH(BD$6,BdCréneaux!$S$1:$Y$1,FALSE))& MATCH($A19,BdCréneaux!$L:$L,FALSE))=0,"", INDIRECT( "BdCréneaux!"& INDIRECT("BdCréneaux!$Z"&MATCH(BD$6,BdCréneaux!$S$1:$Y$1,FALSE))& MATCH($A19,BdCréneaux!$L:$L,FALSE))) ->  | BE19: =IF( INDIRECT( "BdCréneaux!"& INDIRECT("BdCréneaux!$Z"&MATCH(BE$6,BdCréneaux!$S$1:$Y$1,FALSE))& MATCH($A19,BdCréneaux!$L:$L,FALSE))=0,"", INDIRECT( "BdCréneaux!"& INDIRECT("BdCréneaux!$Z"&MATCH(BE$6,BdCréneaux!$S$1:$Y$1,FALSE))& MATCH($A19,BdCréneaux!$L:$L,FALSE))) ->  | BF19: =IF( INDIRECT( "BdCréneaux!"& INDIRECT("BdCréneaux!$Z"&MATCH(BF$6,BdCréneaux!$S$1:$Y$1,FALSE))& MATCH($A19,BdCréneaux!$L:$L,FALSE))=0,"", INDIRECT( "BdCréneaux!"& INDIRECT("BdCréneaux!$Z"&MATCH(BF$6,BdCréneaux!$S$1:$Y$1,FALSE))& MATCH($A19,BdCréneaux!$L:$L,FALSE))) ->  | BG19: =IF( INDIRECT( "BdCréneaux!"& INDIRECT("BdCréneaux!$Z"&MATCH(BG$6,BdCréneaux!$S$1:$Y$1,FALSE))& MATCH($A19,BdCréneaux!$L:$L,FALSE))=0,"", INDIRECT( "BdCréneaux!"& INDIRECT("BdCréneaux!$Z"&MATCH(BG$6,BdCréneaux!$S$1:$Y$1,FALSE))& MATCH($A19,BdCréneaux!$L:$L,FALSE))) ->  | BH19: =IF( INDIRECT( "BdCréneaux!"& INDIRECT("BdCréneaux!$Z"&MATCH(BH$6,BdCréneaux!$S$1:$Y$1,FALSE))& MATCH($A19,BdCréneaux!$L:$L,FALSE))=0,"", INDIRECT( "BdCréneaux!"& INDIRECT("BdCréneaux!$Z"&MATCH(BH$6,BdCréneaux!$S$1:$Y$1,FALSE))& MATCH($A19,BdCréneaux!$L:$L,FALSE))) ->  | BI19: =IF( INDIRECT( "BdCréneaux!"& INDIRECT("BdCréneaux!$Z"&MATCH(BI$6,BdCréneaux!$S$1:$Y$1,FALSE))& MATCH($A19,BdCréneaux!$L:$L,FALSE))=0,"", INDIRECT( "BdCréneaux!"& INDIRECT("BdCréneaux!$Z"&MATCH(BI$6,BdCréneaux!$S$1:$Y$1,FALSE))& MATCH($A19,BdCréneaux!$L:$L,FALSE))) -> x | BJ19: =IF( INDIRECT( "BdCréneaux!"& INDIRECT("BdCréneaux!$Z"&MATCH(BJ$6,BdCréneaux!$S$1:$Y$1,FALSE))& MATCH($A19,BdCréneaux!$L:$L,FALSE))=0,"", INDIRECT( "BdCréneaux!"& INDIRECT("BdCréneaux!$Z"&MATCH(BJ$6,BdCréneaux!$S$1:$Y$1,FALSE))& MATCH($A19,BdCréneaux!$L:$L,FALSE))) ->  | BK19: =IF( INDIRECT( "BdCréneaux!"& INDIRECT("BdCréneaux!$Z"&MATCH(BK$6,BdCréneaux!$S$1:$Y$1,FALSE))& MATCH($A19,BdCréneaux!$L:$L,FALSE))=0,"", INDIRECT( "BdCréneaux!"& INDIRECT("BdCréneaux!$Z"&MATCH(BK$6,BdCréneaux!$S$1:$Y$1,FALSE))& MATCH($A19,BdCréneaux!$L:$L,FALSE))) ->  | BL19: =IF( INDIRECT( "BdCréneaux!"& INDIRECT("BdCréneaux!$Z"&MATCH(BL$6,BdCréneaux!$S$1:$Y$1,FALSE))& MATCH($A19,BdCréneaux!$L:$L,FALSE))=0,"", INDIRECT( "BdCréneaux!"& INDIRECT("BdCréneaux!$Z"&MATCH(BL$6,BdCréneaux!$S$1:$Y$1,FALSE))& MATCH($A19,BdCréneaux!$L:$L,FALSE))) ->  | BM19: =IF( INDIRECT( "BdCréneaux!"& INDIRECT("BdCréneaux!$Z"&MATCH(BM$6,BdCréneaux!$S$1:$Y$1,FALSE))& MATCH($A19,BdCréneaux!$L:$L,FALSE))=0,"", INDIRECT( "BdCréneaux!"& INDIRECT("BdCréneaux!$Z"&MATCH(BM$6,BdCréneaux!$S$1:$Y$1,FALSE))& MATCH($A19,BdCréneaux!$L:$L,FALSE))) ->  | BN19: =IF( INDIRECT( "BdCréneaux!"& INDIRECT("BdCréneaux!$Z"&MATCH(BN$6,BdCréneaux!$S$1:$Y$1,FALSE))& MATCH($A19,BdCréneaux!$L:$L,FALSE))=0,"", INDIRECT( "BdCréneaux!"& INDIRECT("BdCréneaux!$Z"&MATCH(BN$6,BdCréneaux!$S$1:$Y$1,FALSE))& MATCH($A19,BdCréneaux!$L:$L,FALSE))) ->  | BO19: =IF( INDIRECT( "BdCréneaux!"& INDIRECT("BdCréneaux!$Z"&MATCH(BO$6,BdCréneaux!$S$1:$Y$1,FALSE))& MATCH($A19,BdCréneaux!$L:$L,FALSE))=0,"", INDIRECT( "BdCréneaux!"& INDIRECT("BdCréneaux!$Z"&MATCH(BO$6,BdCréneaux!$S$1:$Y$1,FALSE))& MATCH($A19,BdCréneaux!$L:$L,FALSE))) ->  | BP19: =IF( INDIRECT( "BdCréneaux!"& INDIRECT("BdCréneaux!$Z"&MATCH(BP$6,BdCréneaux!$S$1:$Y$1,FALSE))& MATCH($A19,BdCréneaux!$L:$L,FALSE))=0,"", INDIRECT( "BdCréneaux!"& INDIRECT("BdCréneaux!$Z"&MATCH(BP$6,BdCréneaux!$S$1:$Y$1,FALSE))& MATCH($A19,BdCréneaux!$L:$L,FALSE))) -> x | BQ19: =IF( INDIRECT( "BdCréneaux!"& INDIRECT("BdCréneaux!$Z"&MATCH(BQ$6,BdCréneaux!$S$1:$Y$1,FALSE))& MATCH($A19,BdCréneaux!$L:$L,FALSE))=0,"", INDIRECT( "BdCréneaux!"& INDIRECT("BdCréneaux!$Z"&MATCH(BQ$6,BdCréneaux!$S$1:$Y$1,FALSE))& MATCH($A19,BdCréneaux!$L:$L,FALSE))) ->  | BR19: =IF( INDIRECT( "BdCréneaux!"& INDIRECT("BdCréneaux!$Z"&MATCH(BR$6,BdCréneaux!$S$1:$Y$1,FALSE))& MATCH($A19,BdCréneaux!$L:$L,FALSE))=0,"", INDIRECT( "BdCréneaux!"& INDIRECT("BdCréneaux!$Z"&MATCH(BR$6,BdCréneaux!$S$1:$Y$1,FALSE))& MATCH($A19,BdCréneaux!$L:$L,FALSE))) ->  | BS19: =IF( INDIRECT( "BdCréneaux!"& INDIRECT("BdCréneaux!$Z"&MATCH(BS$6,BdCréneaux!$S$1:$Y$1,FALSE))& MATCH($A19,BdCréneaux!$L:$L,FALSE))=0,"", INDIRECT( "BdCréneaux!"& INDIRECT("BdCréneaux!$Z"&MATCH(BS$6,BdCréneaux!$S$1:$Y$1,FALSE))& MATCH($A19,BdCréneaux!$L:$L,FALSE))) ->  | BT19: =IF( INDIRECT( "BdCréneaux!"& INDIRECT("BdCréneaux!$Z"&MATCH(BT$6,BdCréneaux!$S$1:$Y$1,FALSE))& MATCH($A19,BdCréneaux!$L:$L,FALSE))=0,"", INDIRECT( "BdCréneaux!"& INDIRECT("BdCréneaux!$Z"&MATCH(BT$6,BdCréneaux!$S$1:$Y$1,FALSE))& MATCH($A19,BdCréneaux!$L:$L,FALSE))) ->  | BU19: =IF( INDIRECT( "BdCréneaux!"& INDIRECT("BdCréneaux!$Z"&MATCH(BU$6,BdCréneaux!$S$1:$Y$1,FALSE))& MATCH($A19,BdCréneaux!$L:$L,FALSE))=0,"", INDIRECT( "BdCréneaux!"& INDIRECT("BdCréneaux!$Z"&MATCH(BU$6,BdCréneaux!$S$1:$Y$1,FALSE))& MATCH($A19,BdCréneaux!$L:$L,FALSE))) ->  | BV19: =IF( INDIRECT( "BdCréneaux!"& INDIRECT("BdCréneaux!$Z"&MATCH(BV$6,BdCréneaux!$S$1:$Y$1,FALSE))& MATCH($A19,BdCréneaux!$L:$L,FALSE))=0,"", INDIRECT( "BdCréneaux!"& INDIRECT("BdCréneaux!$Z"&MATCH(BV$6,BdCréneaux!$S$1:$Y$1,FALSE))& MATCH($A19,BdCréneaux!$L:$L,FALSE))) ->  | BW19: =IF( INDIRECT( "BdCréneaux!"& INDIRECT("BdCréneaux!$Z"&MATCH(BW$6,BdCréneaux!$S$1:$Y$1,FALSE))& MATCH($A19,BdCréneaux!$L:$L,FALSE))=0,"", INDIRECT( "BdCréneaux!"& INDIRECT("BdCréneaux!$Z"&MATCH(BW$6,BdCréneaux!$S$1:$Y$1,FALSE))& MATCH($A19,BdCréneaux!$L:$L,FALSE))) -> x | BX19: =IF( INDIRECT( "BdCréneaux!"& INDIRECT("BdCréneaux!$Z"&MATCH(BX$6,BdCréneaux!$S$1:$Y$1,FALSE))& MATCH($A19,BdCréneaux!$L:$L,FALSE))=0,"", INDIRECT( "BdCréneaux!"& INDIRECT("BdCréneaux!$Z"&MATCH(BX$6,BdCréneaux!$S$1:$Y$1,FALSE))& MATCH($A19,BdCréneaux!$L:$L,FALSE))) ->  | BY19: =IF( INDIRECT( "BdCréneaux!"& INDIRECT("BdCréneaux!$Z"&MATCH(BY$6,BdCréneaux!$S$1:$Y$1,FALSE))& MATCH($A19,BdCréneaux!$L:$L,FALSE))=0,"", INDIRECT( "BdCréneaux!"& INDIRECT("BdCréneaux!$Z"&MATCH(BY$6,BdCréneaux!$S$1:$Y$1,FALSE))& MATCH($A19,BdCréneaux!$L:$L,FALSE))) ->  | BZ19: =IF( INDIRECT( "BdCréneaux!"& INDIRECT("BdCréneaux!$Z"&MATCH(BZ$6,BdCréneaux!$S$1:$Y$1,FALSE))& MATCH($A19,BdCréneaux!$L:$L,FALSE))=0,"", INDIRECT( "BdCréneaux!"& INDIRECT("BdCréneaux!$Z"&MATCH(BZ$6,BdCréneaux!$S$1:$Y$1,FALSE))& MATCH($A19,BdCréneaux!$L:$L,FALSE))) ->  | CA19: =IF( INDIRECT( "BdCréneaux!"& INDIRECT("BdCréneaux!$Z"&MATCH(CA$6,BdCréneaux!$S$1:$Y$1,FALSE))& MATCH($A19,BdCréneaux!$L:$L,FALSE))=0,"", INDIRECT( "BdCréneaux!"& INDIRECT("BdCréneaux!$Z"&MATCH(CA$6,BdCréneaux!$S$1:$Y$1,FALSE))& MATCH($A19,BdCréneaux!$L:$L,FALSE))) ->  | CB19: =IF( INDIRECT( "BdCréneaux!"& INDIRECT("BdCréneaux!$Z"&MATCH(CB$6,BdCréneaux!$S$1:$Y$1,FALSE))& MATCH($A19,BdCréneaux!$L:$L,FALSE))=0,"", INDIRECT( "BdCréneaux!"& INDIRECT("BdCréneaux!$Z"&MATCH(CB$6,BdCréneaux!$S$1:$Y$1,FALSE))& MATCH($A19,BdCréneaux!$L:$L,FALSE))) ->  | CC19: =IF( INDIRECT( "BdCréneaux!"& INDIRECT("BdCréneaux!$Z"&MATCH(CC$6,BdCréneaux!$S$1:$Y$1,FALSE))& MATCH($A19,BdCréneaux!$L:$L,FALSE))=0,"", INDIRECT( "BdCréneaux!"& INDIRECT("BdCréneaux!$Z"&MATCH(CC$6,BdCréneaux!$S$1:$Y$1,FALSE))& MATCH($A19,BdCréneaux!$L:$L,FALSE))) ->  | CD19: =IF( INDIRECT( "BdCréneaux!"& INDIRECT("BdCréneaux!$Z"&MATCH(CD$6,BdCréneaux!$S$1:$Y$1,FALSE))& MATCH($A19,BdCréneaux!$L:$L,FALSE))=0,"", INDIRECT( "BdCréneaux!"& INDIRECT("BdCréneaux!$Z"&MATCH(CD$6,BdCréneaux!$S$1:$Y$1,FALSE))& MATCH($A19,BdCréneaux!$L:$L,FALSE))) -> x | CE19: =IF( INDIRECT( "BdCréneaux!"& INDIRECT("BdCréneaux!$Z"&MATCH(CE$6,BdCréneaux!$S$1:$Y$1,FALSE))& MATCH($A19,BdCréneaux!$L:$L,FALSE))=0,"", INDIRECT( "BdCréneaux!"& INDIRECT("BdCréneaux!$Z"&MATCH(CE$6,BdCréneaux!$S$1:$Y$1,FALSE))& MATCH($A19,BdCréneaux!$L:$L,FALSE))) ->  | CF19: =IF( INDIRECT( "BdCréneaux!"& INDIRECT("BdCréneaux!$Z"&MATCH(CF$6,BdCréneaux!$S$1:$Y$1,FALSE))& MATCH($A19,BdCréneaux!$L:$L,FALSE))=0,"", INDIRECT( "BdCréneaux!"& INDIRECT("BdCréneaux!$Z"&MATCH(CF$6,BdCréneaux!$S$1:$Y$1,FALSE))& MATCH($A19,BdCréneaux!$L:$L,FALSE))) ->  | CG19: =IF( INDIRECT( "BdCréneaux!"& INDIRECT("BdCréneaux!$Z"&MATCH(CG$6,BdCréneaux!$S$1:$Y$1,FALSE))& MATCH($A19,BdCréneaux!$L:$L,FALSE))=0,"", INDIRECT( "BdCréneaux!"& INDIRECT("BdCréneaux!$Z"&MATCH(CG$6,BdCréneaux!$S$1:$Y$1,FALSE))& MATCH($A19,BdCréneaux!$L:$L,FALSE))) ->  | CH19: =IF( INDIRECT( "BdCréneaux!"& INDIRECT("BdCréneaux!$Z"&MATCH(CH$6,BdCréneaux!$S$1:$Y$1,FALSE))& MATCH($A19,BdCréneaux!$L:$L,FALSE))=0,"", INDIRECT( "BdCréneaux!"& INDIRECT("BdCréneaux!$Z"&MATCH(CH$6,BdCréneaux!$S$1:$Y$1,FALSE))& MATCH($A19,BdCréneaux!$L:$L,FALSE))) -> 
A20: =IF(BdCréneaux!L13="","", BdCréneaux!L13) -> E1 | B20: =BdCréneaux!R13 -> Ehpad Léonard de Vinci 14h00>16h00 | AI20: Ehpad Léonard de Vinci 14h00>16h00 | BD20: =IF( INDIRECT( "BdCréneaux!"& INDIRECT("BdCréneaux!$Z"&MATCH(BD$6,BdCréneaux!$S$1:$Y$1,FALSE))& MATCH($A20,BdCréneaux!$L:$L,FALSE))=0,"", INDIRECT( "BdCréneaux!"& INDIRECT("BdCréneaux!$Z"&MATCH(BD$6,BdCréneaux!$S$1:$Y$1,FALSE))& MATCH($A20,BdCréneaux!$L:$L,FALSE))) ->  | BE20: =IF( INDIRECT( "BdCréneaux!"& INDIRECT("BdCréneaux!$Z"&MATCH(BE$6,BdCréneaux!$S$1:$Y$1,FALSE))& MATCH($A20,BdCréneaux!$L:$L,FALSE))=0,"", INDIRECT( "BdCréneaux!"& INDIRECT("BdCréneaux!$Z"&MATCH(BE$6,BdCréneaux!$S$1:$Y$1,FALSE))& MATCH($A20,BdCréneaux!$L:$L,FALSE))) ->  | BF20: =IF( INDIRECT( "BdCréneaux!"& INDIRECT("BdCréneaux!$Z"&MATCH(BF$6,BdCréneaux!$S$1:$Y$1,FALSE))& MATCH($A20,BdCréneaux!$L:$L,FALSE))=0,"", INDIRECT( "BdCréneaux!"& INDIRECT("BdCréneaux!$Z"&MATCH(BF$6,BdCréneaux!$S$1:$Y$1,FALSE))& MATCH($A20,BdCréneaux!$L:$L,FALSE))) -> X | BG20: =IF( INDIRECT( "BdCréneaux!"& INDIRECT("BdCréneaux!$Z"&MATCH(BG$6,BdCréneaux!$S$1:$Y$1,FALSE))& MATCH($A20,BdCréneaux!$L:$L,FALSE))=0,"", INDIRECT( "BdCréneaux!"& INDIRECT("BdCréneaux!$Z"&MATCH(BG$6,BdCréneaux!$S$1:$Y$1,FALSE))& MATCH($A20,BdCréneaux!$L:$L,FALSE))) -> x | BH20: =IF( INDIRECT( "BdCréneaux!"& INDIRECT("BdCréneaux!$Z"&MATCH(BH$6,BdCréneaux!$S$1:$Y$1,FALSE))& MATCH($A20,BdCréneaux!$L:$L,FALSE))=0,"", INDIRECT( "BdCréneaux!"& INDIRECT("BdCréneaux!$Z"&MATCH(BH$6,BdCréneaux!$S$1:$Y$1,FALSE))& MATCH($A20,BdCréneaux!$L:$L,FALSE))) -> x | BI20: =IF( INDIRECT( "BdCréneaux!"& INDIRECT("BdCréneaux!$Z"&MATCH(BI$6,BdCréneaux!$S$1:$Y$1,FALSE))& MATCH($A20,BdCréneaux!$L:$L,FALSE))=0,"", INDIRECT( "BdCréneaux!"& INDIRECT("BdCréneaux!$Z"&MATCH(BI$6,BdCréneaux!$S$1:$Y$1,FALSE))& MATCH($A20,BdCréneaux!$L:$L,FALSE))) -> x | BJ20: =IF( INDIRECT( "BdCréneaux!"& INDIRECT("BdCréneaux!$Z"&MATCH(BJ$6,BdCréneaux!$S$1:$Y$1,FALSE))& MATCH($A20,BdCréneaux!$L:$L,FALSE))=0,"", INDIRECT( "BdCréneaux!"& INDIRECT("BdCréneaux!$Z"&MATCH(BJ$6,BdCréneaux!$S$1:$Y$1,FALSE))& MATCH($A20,BdCréneaux!$L:$L,FALSE))) -> x | BK20: =IF( INDIRECT( "BdCréneaux!"& INDIRECT("BdCréneaux!$Z"&MATCH(BK$6,BdCréneaux!$S$1:$Y$1,FALSE))& MATCH($A20,BdCréneaux!$L:$L,FALSE))=0,"", INDIRECT( "BdCréneaux!"& INDIRECT("BdCréneaux!$Z"&MATCH(BK$6,BdCréneaux!$S$1:$Y$1,FALSE))& MATCH($A20,BdCréneaux!$L:$L,FALSE))) ->  | BL20: =IF( INDIRECT( "BdCréneaux!"& INDIRECT("BdCréneaux!$Z"&MATCH(BL$6,BdCréneaux!$S$1:$Y$1,FALSE))& MATCH($A20,BdCréneaux!$L:$L,FALSE))=0,"", INDIRECT( "BdCréneaux!"& INDIRECT("BdCréneaux!$Z"&MATCH(BL$6,BdCréneaux!$S$1:$Y$1,FALSE))& MATCH($A20,BdCréneaux!$L:$L,FALSE))) ->  | BM20: =IF( INDIRECT( "BdCréneaux!"& INDIRECT("BdCréneaux!$Z"&MATCH(BM$6,BdCréneaux!$S$1:$Y$1,FALSE))& MATCH($A20,BdCréneaux!$L:$L,FALSE))=0,"", INDIRECT( "BdCréneaux!"& INDIRECT("BdCréneaux!$Z"&MATCH(BM$6,BdCréneaux!$S$1:$Y$1,FALSE))& MATCH($A20,BdCréneaux!$L:$L,FALSE))) -> X | BN20: =IF( INDIRECT( "BdCréneaux!"& INDIRECT("BdCréneaux!$Z"&MATCH(BN$6,BdCréneaux!$S$1:$Y$1,FALSE))& MATCH($A20,BdCréneaux!$L:$L,FALSE))=0,"", INDIRECT( "BdCréneaux!"& INDIRECT("BdCréneaux!$Z"&MATCH(BN$6,BdCréneaux!$S$1:$Y$1,FALSE))& MATCH($A20,BdCréneaux!$L:$L,FALSE))) -> x | BO20: =IF( INDIRECT( "BdCréneaux!"& INDIRECT("BdCréneaux!$Z"&MATCH(BO$6,BdCréneaux!$S$1:$Y$1,FALSE))& MATCH($A20,BdCréneaux!$L:$L,FALSE))=0,"", INDIRECT( "BdCréneaux!"& INDIRECT("BdCréneaux!$Z"&MATCH(BO$6,BdCréneaux!$S$1:$Y$1,FALSE))& MATCH($A20,BdCréneaux!$L:$L,FALSE))) -> x | BP20: =IF( INDIRECT( "BdCréneaux!"& INDIRECT("BdCréneaux!$Z"&MATCH(BP$6,BdCréneaux!$S$1:$Y$1,FALSE))& MATCH($A20,BdCréneaux!$L:$L,FALSE))=0,"", INDIRECT( "BdCréneaux!"& INDIRECT("BdCréneaux!$Z"&MATCH(BP$6,BdCréneaux!$S$1:$Y$1,FALSE))& MATCH($A20,BdCréneaux!$L:$L,FALSE))) -> x | BQ20: =IF( INDIRECT( "BdCréneaux!"& INDIRECT("BdCréneaux!$Z"&MATCH(BQ$6,BdCréneaux!$S$1:$Y$1,FALSE))& MATCH($A20,BdCréneaux!$L:$L,FALSE))=0,"", INDIRECT( "BdCréneaux!"& INDIRECT("BdCréneaux!$Z"&MATCH(BQ$6,BdCréneaux!$S$1:$Y$1,FALSE))& MATCH($A20,BdCréneaux!$L:$L,FALSE))) -> x | BR20: =IF( INDIRECT( "BdCréneaux!"& INDIRECT("BdCréneaux!$Z"&MATCH(BR$6,BdCréneaux!$S$1:$Y$1,FALSE))& MATCH($A20,BdCréneaux!$L:$L,FALSE))=0,"", INDIRECT( "BdCréneaux!"& INDIRECT("BdCréneaux!$Z"&MATCH(BR$6,BdCréneaux!$S$1:$Y$1,FALSE))& MATCH($A20,BdCréneaux!$L:$L,FALSE))) ->  | BS20: =IF( INDIRECT( "BdCréneaux!"& INDIRECT("BdCréneaux!$Z"&MATCH(BS$6,BdCréneaux!$S$1:$Y$1,FALSE))& MATCH($A20,BdCréneaux!$L:$L,FALSE))=0,"", INDIRECT( "BdCréneaux!"& INDIRECT("BdCréneaux!$Z"&MATCH(BS$6,BdCréneaux!$S$1:$Y$1,FALSE))& MATCH($A20,BdCréneaux!$L:$L,FALSE))) ->  | BT20: =IF( INDIRECT( "BdCréneaux!"& INDIRECT("BdCréneaux!$Z"&MATCH(BT$6,BdCréneaux!$S$1:$Y$1,FALSE))& MATCH($A20,BdCréneaux!$L:$L,FALSE))=0,"", INDIRECT( "BdCréneaux!"& INDIRECT("BdCréneaux!$Z"&MATCH(BT$6,BdCréneaux!$S$1:$Y$1,FALSE))& MATCH($A20,BdCréneaux!$L:$L,FALSE))) -> X | BU20: =IF( INDIRECT( "BdCréneaux!"& INDIRECT("BdCréneaux!$Z"&MATCH(BU$6,BdCréneaux!$S$1:$Y$1,FALSE))& MATCH($A20,BdCréneaux!$L:$L,FALSE))=0,"", INDIRECT( "BdCréneaux!"& INDIRECT("BdCréneaux!$Z"&MATCH(BU$6,BdCréneaux!$S$1:$Y$1,FALSE))& MATCH($A20,BdCréneaux!$L:$L,FALSE))) -> x | BV20: =IF( INDIRECT( "BdCréneaux!"& INDIRECT("BdCréneaux!$Z"&MATCH(BV$6,BdCréneaux!$S$1:$Y$1,FALSE))& MATCH($A20,BdCréneaux!$L:$L,FALSE))=0,"", INDIRECT( "BdCréneaux!"& INDIRECT("BdCréneaux!$Z"&MATCH(BV$6,BdCréneaux!$S$1:$Y$1,FALSE))& MATCH($A20,BdCréneaux!$L:$L,FALSE))) -> x | BW20: =IF( INDIRECT( "BdCréneaux!"& INDIRECT("BdCréneaux!$Z"&MATCH(BW$6,BdCréneaux!$S$1:$Y$1,FALSE))& MATCH($A20,BdCréneaux!$L:$L,FALSE))=0,"", INDIRECT( "BdCréneaux!"& INDIRECT("BdCréneaux!$Z"&MATCH(BW$6,BdCréneaux!$S$1:$Y$1,FALSE))& MATCH($A20,BdCréneaux!$L:$L,FALSE))) -> x | BX20: =IF( INDIRECT( "BdCréneaux!"& INDIRECT("BdCréneaux!$Z"&MATCH(BX$6,BdCréneaux!$S$1:$Y$1,FALSE))& MATCH($A20,BdCréneaux!$L:$L,FALSE))=0,"", INDIRECT( "BdCréneaux!"& INDIRECT("BdCréneaux!$Z"&MATCH(BX$6,BdCréneaux!$S$1:$Y$1,FALSE))& MATCH($A20,BdCréneaux!$L:$L,FALSE))) -> x | BY20: =IF( INDIRECT( "BdCréneaux!"& INDIRECT("BdCréneaux!$Z"&MATCH(BY$6,BdCréneaux!$S$1:$Y$1,FALSE))& MATCH($A20,BdCréneaux!$L:$L,FALSE))=0,"", INDIRECT( "BdCréneaux!"& INDIRECT("BdCréneaux!$Z"&MATCH(BY$6,BdCréneaux!$S$1:$Y$1,FALSE))& MATCH($A20,BdCréneaux!$L:$L,FALSE))) ->  | BZ20: =IF( INDIRECT( "BdCréneaux!"& INDIRECT("BdCréneaux!$Z"&MATCH(BZ$6,BdCréneaux!$S$1:$Y$1,FALSE))& MATCH($A20,BdCréneaux!$L:$L,FALSE))=0,"", INDIRECT( "BdCréneaux!"& INDIRECT("BdCréneaux!$Z"&MATCH(BZ$6,BdCréneaux!$S$1:$Y$1,FALSE))& MATCH($A20,BdCréneaux!$L:$L,FALSE))) ->  | CA20: =IF( INDIRECT( "BdCréneaux!"& INDIRECT("BdCréneaux!$Z"&MATCH(CA$6,BdCréneaux!$S$1:$Y$1,FALSE))& MATCH($A20,BdCréneaux!$L:$L,FALSE))=0,"", INDIRECT( "BdCréneaux!"& INDIRECT("BdCréneaux!$Z"&MATCH(CA$6,BdCréneaux!$S$1:$Y$1,FALSE))& MATCH($A20,BdCréneaux!$L:$L,FALSE))) -> X | CB20: =IF( INDIRECT( "BdCréneaux!"& INDIRECT("BdCréneaux!$Z"&MATCH(CB$6,BdCréneaux!$S$1:$Y$1,FALSE))& MATCH($A20,BdCréneaux!$L:$L,FALSE))=0,"", INDIRECT( "BdCréneaux!"& INDIRECT("BdCréneaux!$Z"&MATCH(CB$6,BdCréneaux!$S$1:$Y$1,FALSE))& MATCH($A20,BdCréneaux!$L:$L,FALSE))) -> x | CC20: =IF( INDIRECT( "BdCréneaux!"& INDIRECT("BdCréneaux!$Z"&MATCH(CC$6,BdCréneaux!$S$1:$Y$1,FALSE))& MATCH($A20,BdCréneaux!$L:$L,FALSE))=0,"", INDIRECT( "BdCréneaux!"& INDIRECT("BdCréneaux!$Z"&MATCH(CC$6,BdCréneaux!$S$1:$Y$1,FALSE))& MATCH($A20,BdCréneaux!$L:$L,FALSE))) -> x | CD20: =IF( INDIRECT( "BdCréneaux!"& INDIRECT("BdCréneaux!$Z"&MATCH(CD$6,BdCréneaux!$S$1:$Y$1,FALSE))& MATCH($A20,BdCréneaux!$L:$L,FALSE))=0,"", INDIRECT( "BdCréneaux!"& INDIRECT("BdCréneaux!$Z"&MATCH(CD$6,BdCréneaux!$S$1:$Y$1,FALSE))& MATCH($A20,BdCréneaux!$L:$L,FALSE))) -> x | CE20: =IF( INDIRECT( "BdCréneaux!"& INDIRECT("BdCréneaux!$Z"&MATCH(CE$6,BdCréneaux!$S$1:$Y$1,FALSE))& MATCH($A20,BdCréneaux!$L:$L,FALSE))=0,"", INDIRECT( "BdCréneaux!"& INDIRECT("BdCréneaux!$Z"&MATCH(CE$6,BdCréneaux!$S$1:$Y$1,FALSE))& MATCH($A20,BdCréneaux!$L:$L,FALSE))) -> x | CF20: =IF( INDIRECT( "BdCréneaux!"& INDIRECT("BdCréneaux!$Z"&MATCH(CF$6,BdCréneaux!$S$1:$Y$1,FALSE))& MATCH($A20,BdCréneaux!$L:$L,FALSE))=0,"", INDIRECT( "BdCréneaux!"& INDIRECT("BdCréneaux!$Z"&MATCH(CF$6,BdCréneaux!$S$1:$Y$1,FALSE))& MATCH($A20,BdCréneaux!$L:$L,FALSE))) ->  | CG20: =IF( INDIRECT( "BdCréneaux!"& INDIRECT("BdCréneaux!$Z"&MATCH(CG$6,BdCréneaux!$S$1:$Y$1,FALSE))& MATCH($A20,BdCréneaux!$L:$L,FALSE))=0,"", INDIRECT( "BdCréneaux!"& INDIRECT("BdCréneaux!$Z"&MATCH(CG$6,BdCréneaux!$S$1:$Y$1,FALSE))& MATCH($A20,BdCréneaux!$L:$L,FALSE))) ->  | CH20: =IF( INDIRECT( "BdCréneaux!"& INDIRECT("BdCréneaux!$Z"&MATCH(CH$6,BdCréneaux!$S$1:$Y$1,FALSE))& MATCH($A20,BdCréneaux!$L:$L,FALSE))=0,"", INDIRECT( "BdCréneaux!"& INDIRECT("BdCréneaux!$Z"&MATCH(CH$6,BdCréneaux!$S$1:$Y$1,FALSE))& MATCH($A20,BdCréneaux!$L:$L,FALSE))) -> X
A21: =IF(BdCréneaux!L14="","", BdCréneaux!L14) ->  | B21: =BdCréneaux!R14 ->  | AI21: =B21 ->  | BD21: =IF( INDIRECT( "BdCréneaux!"& INDIRECT("BdCréneaux!$Z"&MATCH(BD$6,BdCréneaux!$S$1:$Y$1,FALSE))& MATCH($A21,BdCréneaux!$L:$L,FALSE))=0,"", INDIRECT( "BdCréneaux!"& INDIRECT("BdCréneaux!$Z"&MATCH(BD$6,BdCréneaux!$S$1:$Y$1,FALSE))& MATCH($A21,BdCréneaux!$L:$L,FALSE))) ->  | BE21: =IF( INDIRECT( "BdCréneaux!"& INDIRECT("BdCréneaux!$Z"&MATCH(BE$6,BdCréneaux!$S$1:$Y$1,FALSE))& MATCH($A21,BdCréneaux!$L:$L,FALSE))=0,"", INDIRECT( "BdCréneaux!"& INDIRECT("BdCréneaux!$Z"&MATCH(BE$6,BdCréneaux!$S$1:$Y$1,FALSE))& MATCH($A21,BdCréneaux!$L:$L,FALSE))) ->  | BF21: =IF( INDIRECT( "BdCréneaux!"& INDIRECT("BdCréneaux!$Z"&MATCH(BF$6,BdCréneaux!$S$1:$Y$1,FALSE))& MATCH($A21,BdCréneaux!$L:$L,FALSE))=0,"", INDIRECT( "BdCréneaux!"& INDIRECT("BdCréneaux!$Z"&MATCH(BF$6,BdCréneaux!$S$1:$Y$1,FALSE))& MATCH($A21,BdCréneaux!$L:$L,FALSE))) ->  | BG21: =IF( INDIRECT( "BdCréneaux!"& INDIRECT("BdCréneaux!$Z"&MATCH(BG$6,BdCréneaux!$S$1:$Y$1,FALSE))& MATCH($A21,BdCréneaux!$L:$L,FALSE))=0,"", INDIRECT( "BdCréneaux!"& INDIRECT("BdCréneaux!$Z"&MATCH(BG$6,BdCréneaux!$S$1:$Y$1,FALSE))& MATCH($A21,BdCréneaux!$L:$L,FALSE))) ->  | BH21: =IF( INDIRECT( "BdCréneaux!"& INDIRECT("BdCréneaux!$Z"&MATCH(BH$6,BdCréneaux!$S$1:$Y$1,FALSE))& MATCH($A21,BdCréneaux!$L:$L,FALSE))=0,"", INDIRECT( "BdCréneaux!"& INDIRECT("BdCréneaux!$Z"&MATCH(BH$6,BdCréneaux!$S$1:$Y$1,FALSE))& MATCH($A21,BdCréneaux!$L:$L,FALSE))) ->  | BI21: =IF( INDIRECT( "BdCréneaux!"& INDIRECT("BdCréneaux!$Z"&MATCH(BI$6,BdCréneaux!$S$1:$Y$1,FALSE))& MATCH($A21,BdCréneaux!$L:$L,FALSE))=0,"", INDIRECT( "BdCréneaux!"& INDIRECT("BdCréneaux!$Z"&MATCH(BI$6,BdCréneaux!$S$1:$Y$1,FALSE))& MATCH($A21,BdCréneaux!$L:$L,FALSE))) ->  | BJ21: =IF( INDIRECT( "BdCréneaux!"& INDIRECT("BdCréneaux!$Z"&MATCH(BJ$6,BdCréneaux!$S$1:$Y$1,FALSE))& MATCH($A21,BdCréneaux!$L:$L,FALSE))=0,"", INDIRECT( "BdCréneaux!"& INDIRECT("BdCréneaux!$Z"&MATCH(BJ$6,BdCréneaux!$S$1:$Y$1,FALSE))& MATCH($A21,BdCréneaux!$L:$L,FALSE))) ->  | BK21: =IF( INDIRECT( "BdCréneaux!"& INDIRECT("BdCréneaux!$Z"&MATCH(BK$6,BdCréneaux!$S$1:$Y$1,FALSE))& MATCH($A21,BdCréneaux!$L:$L,FALSE))=0,"", INDIRECT( "BdCréneaux!"& INDIRECT("BdCréneaux!$Z"&MATCH(BK$6,BdCréneaux!$S$1:$Y$1,FALSE))& MATCH($A21,BdCréneaux!$L:$L,FALSE))) ->  | BL21: =IF( INDIRECT( "BdCréneaux!"& INDIRECT("BdCréneaux!$Z"&MATCH(BL$6,BdCréneaux!$S$1:$Y$1,FALSE))& MATCH($A21,BdCréneaux!$L:$L,FALSE))=0,"", INDIRECT( "BdCréneaux!"& INDIRECT("BdCréneaux!$Z"&MATCH(BL$6,BdCréneaux!$S$1:$Y$1,FALSE))& MATCH($A21,BdCréneaux!$L:$L,FALSE))) ->  | BM21: =IF( INDIRECT( "BdCréneaux!"& INDIRECT("BdCréneaux!$Z"&MATCH(BM$6,BdCréneaux!$S$1:$Y$1,FALSE))& MATCH($A21,BdCréneaux!$L:$L,FALSE))=0,"", INDIRECT( "BdCréneaux!"& INDIRECT("BdCréneaux!$Z"&MATCH(BM$6,BdCréneaux!$S$1:$Y$1,FALSE))& MATCH($A21,BdCréneaux!$L:$L,FALSE))) ->  | BN21: =IF( INDIRECT( "BdCréneaux!"& INDIRECT("BdCréneaux!$Z"&MATCH(BN$6,BdCréneaux!$S$1:$Y$1,FALSE))& MATCH($A21,BdCréneaux!$L:$L,FALSE))=0,"", INDIRECT( "BdCréneaux!"& INDIRECT("BdCréneaux!$Z"&MATCH(BN$6,BdCréneaux!$S$1:$Y$1,FALSE))& MATCH($A21,BdCréneaux!$L:$L,FALSE))) ->  | BO21: =IF( INDIRECT( "BdCréneaux!"& INDIRECT("BdCréneaux!$Z"&MATCH(BO$6,BdCréneaux!$S$1:$Y$1,FALSE))& MATCH($A21,BdCréneaux!$L:$L,FALSE))=0,"", INDIRECT( "BdCréneaux!"& INDIRECT("BdCréneaux!$Z"&MATCH(BO$6,BdCréneaux!$S$1:$Y$1,FALSE))& MATCH($A21,BdCréneaux!$L:$L,FALSE))) ->  | BP21: =IF( INDIRECT( "BdCréneaux!"& INDIRECT("BdCréneaux!$Z"&MATCH(BP$6,BdCréneaux!$S$1:$Y$1,FALSE))& MATCH($A21,BdCréneaux!$L:$L,FALSE))=0,"", INDIRECT( "BdCréneaux!"& INDIRECT("BdCréneaux!$Z"&MATCH(BP$6,BdCréneaux!$S$1:$Y$1,FALSE))& MATCH($A21,BdCréneaux!$L:$L,FALSE))) ->  | BQ21: =IF( INDIRECT( "BdCréneaux!"& INDIRECT("BdCréneaux!$Z"&MATCH(BQ$6,BdCréneaux!$S$1:$Y$1,FALSE))& MATCH($A21,BdCréneaux!$L:$L,FALSE))=0,"", INDIRECT( "BdCréneaux!"& INDIRECT("BdCréneaux!$Z"&MATCH(BQ$6,BdCréneaux!$S$1:$Y$1,FALSE))& MATCH($A21,BdCréneaux!$L:$L,FALSE))) ->  | BR21: =IF( INDIRECT( "BdCréneaux!"& INDIRECT("BdCréneaux!$Z"&MATCH(BR$6,BdCréneaux!$S$1:$Y$1,FALSE))& MATCH($A21,BdCréneaux!$L:$L,FALSE))=0,"", INDIRECT( "BdCréneaux!"& INDIRECT("BdCréneaux!$Z"&MATCH(BR$6,BdCréneaux!$S$1:$Y$1,FALSE))& MATCH($A21,BdCréneaux!$L:$L,FALSE))) ->  | BS21: =IF( INDIRECT( "BdCréneaux!"& INDIRECT("BdCréneaux!$Z"&MATCH(BS$6,BdCréneaux!$S$1:$Y$1,FALSE))& MATCH($A21,BdCréneaux!$L:$L,FALSE))=0,"", INDIRECT( "BdCréneaux!"& INDIRECT("BdCréneaux!$Z"&MATCH(BS$6,BdCréneaux!$S$1:$Y$1,FALSE))& MATCH($A21,BdCréneaux!$L:$L,FALSE))) ->  | BT21: =IF( INDIRECT( "BdCréneaux!"& INDIRECT("BdCréneaux!$Z"&MATCH(BT$6,BdCréneaux!$S$1:$Y$1,FALSE))& MATCH($A21,BdCréneaux!$L:$L,FALSE))=0,"", INDIRECT( "BdCréneaux!"& INDIRECT("BdCréneaux!$Z"&MATCH(BT$6,BdCréneaux!$S$1:$Y$1,FALSE))& MATCH($A21,BdCréneaux!$L:$L,FALSE))) ->  | BU21: =IF( INDIRECT( "BdCréneaux!"& INDIRECT("BdCréneaux!$Z"&MATCH(BU$6,BdCréneaux!$S$1:$Y$1,FALSE))& MATCH($A21,BdCréneaux!$L:$L,FALSE))=0,"", INDIRECT( "BdCréneaux!"& INDIRECT("BdCréneaux!$Z"&MATCH(BU$6,BdCréneaux!$S$1:$Y$1,FALSE))& MATCH($A21,BdCréneaux!$L:$L,FALSE))) ->  | BV21: =IF( INDIRECT( "BdCréneaux!"& INDIRECT("BdCréneaux!$Z"&MATCH(BV$6,BdCréneaux!$S$1:$Y$1,FALSE))& MATCH($A21,BdCréneaux!$L:$L,FALSE))=0,"", INDIRECT( "BdCréneaux!"& INDIRECT("BdCréneaux!$Z"&MATCH(BV$6,BdCréneaux!$S$1:$Y$1,FALSE))& MATCH($A21,BdCréneaux!$L:$L,FALSE))) ->  | BW21: =IF( INDIRECT( "BdCréneaux!"& INDIRECT("BdCréneaux!$Z"&MATCH(BW$6,BdCréneaux!$S$1:$Y$1,FALSE))& MATCH($A21,BdCréneaux!$L:$L,FALSE))=0,"", INDIRECT( "BdCréneaux!"& INDIRECT("BdCréneaux!$Z"&MATCH(BW$6,BdCréneaux!$S$1:$Y$1,FALSE))& MATCH($A21,BdCréneaux!$L:$L,FALSE))) ->  | BX21: =IF( INDIRECT( "BdCréneaux!"& INDIRECT("BdCréneaux!$Z"&MATCH(BX$6,BdCréneaux!$S$1:$Y$1,FALSE))& MATCH($A21,BdCréneaux!$L:$L,FALSE))=0,"", INDIRECT( "BdCréneaux!"& INDIRECT("BdCréneaux!$Z"&MATCH(BX$6,BdCréneaux!$S$1:$Y$1,FALSE))& MATCH($A21,BdCréneaux!$L:$L,FALSE))) ->  | BY21: =IF( INDIRECT( "BdCréneaux!"& INDIRECT("BdCréneaux!$Z"&MATCH(BY$6,BdCréneaux!$S$1:$Y$1,FALSE))& MATCH($A21,BdCréneaux!$L:$L,FALSE))=0,"", INDIRECT( "BdCréneaux!"& INDIRECT("BdCréneaux!$Z"&MATCH(BY$6,BdCréneaux!$S$1:$Y$1,FALSE))& MATCH($A21,BdCréneaux!$L:$L,FALSE))) ->  | BZ21: =IF( INDIRECT( "BdCréneaux!"& INDIRECT("BdCréneaux!$Z"&MATCH(BZ$6,BdCréneaux!$S$1:$Y$1,FALSE))& MATCH($A21,BdCréneaux!$L:$L,FALSE))=0,"", INDIRECT( "BdCréneaux!"& INDIRECT("BdCréneaux!$Z"&MATCH(BZ$6,BdCréneaux!$S$1:$Y$1,FALSE))& MATCH($A21,BdCréneaux!$L:$L,FALSE))) ->  | CA21: =IF( INDIRECT( "BdCréneaux!"& INDIRECT("BdCréneaux!$Z"&MATCH(CA$6,BdCréneaux!$S$1:$Y$1,FALSE))& MATCH($A21,BdCréneaux!$L:$L,FALSE))=0,"", INDIRECT( "BdCréneaux!"& INDIRECT("BdCréneaux!$Z"&MATCH(CA$6,BdCréneaux!$S$1:$Y$1,FALSE))& MATCH($A21,BdCréneaux!$L:$L,FALSE))) ->  | CB21: =IF( INDIRECT( "BdCréneaux!"& INDIRECT("BdCréneaux!$Z"&MATCH(CB$6,BdCréneaux!$S$1:$Y$1,FALSE))& MATCH($A21,BdCréneaux!$L:$L,FALSE))=0,"", INDIRECT( "BdCréneaux!"& INDIRECT("BdCréneaux!$Z"&MATCH(CB$6,BdCréneaux!$S$1:$Y$1,FALSE))& MATCH($A21,BdCréneaux!$L:$L,FALSE))) ->  | CC21: =IF( INDIRECT( "BdCréneaux!"& INDIRECT("BdCréneaux!$Z"&MATCH(CC$6,BdCréneaux!$S$1:$Y$1,FALSE))& MATCH($A21,BdCréneaux!$L:$L,FALSE))=0,"", INDIRECT( "BdCréneaux!"& INDIRECT("BdCréneaux!$Z"&MATCH(CC$6,BdCréneaux!$S$1:$Y$1,FALSE))& MATCH($A21,BdCréneaux!$L:$L,FALSE))) ->  | CD21: =IF( INDIRECT( "BdCréneaux!"& INDIRECT("BdCréneaux!$Z"&MATCH(CD$6,BdCréneaux!$S$1:$Y$1,FALSE))& MATCH($A21,BdCréneaux!$L:$L,FALSE))=0,"", INDIRECT( "BdCréneaux!"& INDIRECT("BdCréneaux!$Z"&MATCH(CD$6,BdCréneaux!$S$1:$Y$1,FALSE))& MATCH($A21,BdCréneaux!$L:$L,FALSE))) ->  | CE21: =IF( INDIRECT( "BdCréneaux!"& INDIRECT("BdCréneaux!$Z"&MATCH(CE$6,BdCréneaux!$S$1:$Y$1,FALSE))& MATCH($A21,BdCréneaux!$L:$L,FALSE))=0,"", INDIRECT( "BdCréneaux!"& INDIRECT("BdCréneaux!$Z"&MATCH(CE$6,BdCréneaux!$S$1:$Y$1,FALSE))& MATCH($A21,BdCréneaux!$L:$L,FALSE))) ->  | CF21: =IF( INDIRECT( "BdCréneaux!"& INDIRECT("BdCréneaux!$Z"&MATCH(CF$6,BdCréneaux!$S$1:$Y$1,FALSE))& MATCH($A21,BdCréneaux!$L:$L,FALSE))=0,"", INDIRECT( "BdCréneaux!"& INDIRECT("BdCréneaux!$Z"&MATCH(CF$6,BdCréneaux!$S$1:$Y$1,FALSE))& MATCH($A21,BdCréneaux!$L:$L,FALSE))) ->  | CG21: =IF( INDIRECT( "BdCréneaux!"& INDIRECT("BdCréneaux!$Z"&MATCH(CG$6,BdCréneaux!$S$1:$Y$1,FALSE))& MATCH($A21,BdCréneaux!$L:$L,FALSE))=0,"", INDIRECT( "BdCréneaux!"& INDIRECT("BdCréneaux!$Z"&MATCH(CG$6,BdCréneaux!$S$1:$Y$1,FALSE))& MATCH($A21,BdCréneaux!$L:$L,FALSE))) ->  | CH21: =IF( INDIRECT( "BdCréneaux!"& INDIRECT("BdCréneaux!$Z"&MATCH(CH$6,BdCréneaux!$S$1:$Y$1,FALSE))& MATCH($A21,BdCréneaux!$L:$L,FALSE))=0,"", INDIRECT( "BdCréneaux!"& INDIRECT("BdCréneaux!$Z"&MATCH(CH$6,BdCréneaux!$S$1:$Y$1,FALSE))& MATCH($A21,BdCréneaux!$L:$L,FALSE))) -> 

Sheet février (hidden)
A1: 8lig86 | D1: mars | M1: =Accueil!$A$1 -> 2022 | P1: =IF(A4=0,"0",SUM(AI:AI)) -> 27 | Q1: =" Blouse(s) Rose(s)" -> Blouse(s) Rose(s) | AT1: ='Vacances Scolaires'!E5 -> 2022-02-05 | AU1: ='Vacances Scolaires'!G5 -> 2022-02-20
A2: 2
A3: =MATCH(D1,paramètres!E2:E13,FALSE) -> 3 | AD3: Lun | AE3: =IF(OR(R6="",Z6=""),"",IF(INDIRECT("BdCréneaux!S"&MATCH($R$6&" "&$Z$6,BdCréneaux!R$1:R$16,FALSE))=0,"",INDIRECT("BdCréneaux!S"&MATCH($R$6&" "&$Z$6,BdCréneaux!R$1:R$16,FALSE)))) -> 
A4: =IF(MATCH("zzz",INDIRECT("B3:B"&500),1)+3<=24,0,MATCH("zzz",INDIRECT("B3:B"&500),1)+3) -> 89 | AD4: Mar | AE4: =IF(OR(R6="",Z6=""),"",IF(INDIRECT("BdCréneaux!T"&MATCH($R$6&" "&$Z$6,BdCréneaux!R$1:R$16,FALSE))=0,"", INDIRECT("BdCréneaux!T"&MATCH($R$6&" "&$Z$6,BdCréneaux!R$1:R$16,FALSE)))) -> 
A5: =IF(A4=0,0, IF(ISNA(MATCH(G6,INDIRECT("B24:B"&A4),FALSE))=TRUE,0,MATCH(G6,INDIRECT("B24:B"&A4),FALSE)+23) ) -> 0 | AD5: Mer | AE5: =IF(OR(R6="",Z6=""),"",IF(INDIRECT("BdCréneaux!U"&MATCH($R$6&" "&$Z$6,BdCréneaux!R$1:R$16,FALSE))=0,"", INDIRECT("BdCréneaux!U"&MATCH($R$6&" "&$Z$6,BdCréneaux!R$1:R$16,FALSE)))) -> 
A6: mois | AD6: Jeu | AE6: =IF(OR(R6="",Z6=""),"",IF(INDIRECT("BdCréneaux!V"&MATCH($R$6&" "&$Z$6,BdCréneaux!R$1:R$16,FALSE))=0,"", INDIRECT("BdCréneaux!V"&MATCH($R$6&" "&$Z$6,BdCréneaux!R$1:R$16,FALSE)))) -> 
A7: =SEARCH("lig",A1,1) -> 2 | G7: Sélection de la Blouse Rose | R7: Lieu | Z7: Créneau horaire | AD7: Ven | AE7: =IF(OR(R6="",Z6=""),"",IF(INDIRECT("BdCréneaux!W"&MATCH($R$6&" "&$Z$6,BdCréneaux!R$1:R$16,FALSE))=0,"", INDIRECT("BdCréneaux!W"&MATCH($R$6&" "&$Z$6,BdCréneaux!R$1:R$16,FALSE)))) -> 
A8: =IF(VALUE(LEFT(A1,A7-1))>26,CHAR(INT((VALUE(LEFT(A1,A7-1))-1)/26)+64)&CHAR(VALUE(LEFT(A1,A7-1))-( INT((VALUE(LEFT(A1,A7-1))-1)/26)*26)+64),CHAR(VALUE(LEFT(A1,A7-1))+64)) -> H | AD8: Sam | AE8: =IF(OR(R6="",Z6=""),"",IF(INDIRECT("BdCréneaux!X"&MATCH($R$6&" "&$Z$6,BdCréneaux!R$1:R$16,FALSE))=0,"", INDIRECT("BdCréneaux!X"&MATCH($R$6&" "&$Z$6,BdCréneaux!R$1:R$16,FALSE)))) -> 
A9: =IF(DAY(MATCH(MAX(D21:AH21),D21:AH21,0))+3>26,CHAR(INT((DAY(MATCH(MAX(D21:AH21),D21:AH21,0))+3-1)/26)+64)&CHAR(DAY(MATCH(MAX(D21:AH21),D21:AH21,0))+3-( INT((DAY(MATCH(MAX(D21:AH21),D21:AH21,0))+3-1)/26)*26)+64),CHAR(DAY(MATCH(MAX(D21:AH21),D21:AH21,0))+3+64)) -> AE | AD9: Dim | AE9: =IF(OR(R6="",Z6=""),"",IF(INDIRECT("BdCréneaux!Y"&MATCH($R$6&" "&$Z$6,BdCréneaux!R$1:R$16,FALSE))=0,"",INDIRECT("BdCréneaux!Y"&MATCH($R$6&" "&$Z$6,BdCréneaux!R$1:R$16,FALSE)))) -> 
A10: =BdCréneaux!AA3 -> 44
A11: Danielle GAUVRIT
A12: =IF(ISNA(MATCH(A11,bdBR!A:A,FALSE))=TRUE,"", IF(INDIRECT("bdBR!L"&MATCH(A11,bdBR!A:A,FALSE))="Stagiaire","s ","")) -> s
A13: FALSE
A14: Brigitte BOSCHAT
A15: =IF( ISNA(MATCH(A14,NonVenu!B:B,FALSE))=TRUE,0,MATCH(A14,NonVenu!B:B,FALSE)) -> 12 | C15: =IF(OR(R6="",Z6=""),"",INDIRECT("BdCréneaux!L"&MATCH($R$6&" "&$Z$6,BdCréneaux!R$1:R$16,FALSE))) ->  | D15: ="Récapitulatif du nombre de Blouse Rose par jour " & IF(R6<>0,"pour "&R6&" "&Z6,"") -> Récapitulatif du nombre de Blouse Rose par jour
A16: D | C16: =SUM(D16:AH17) -> 0 | D16: =IF(D21="","",IF(OR($R6="",$Z6="",$A$4=0),"", IF(INDIRECT($D$1&"_fermé!"&D18 &MATCH($C$15,INDIRECT($D$1&"_fermé!$A:$A"),FALSE) )="R","R", IF(INDIRECT($D$1&"_fermé!"&D18 &MATCH($C$15,INDIRECT($D$1&"_fermé!$A:$A"),FALSE) )="X","X", IF(COUNTIF(INDIRECT(D$18&"24:"&D$18&$A$4),$C15)=0,".",COUNTIF(INDIRECT(D$18&"24:"&D$18&$A$4),$C15) ) ) ))) ->  | E16: =IF(E21="","",IF(OR($R6="",$Z6="",$A$4=0),"", IF(INDIRECT($D$1&"_fermé!"&E18 &MATCH($C$15,INDIRECT($D$1&"_fermé!$A:$A"),FALSE) )="R","R", IF(INDIRECT($D$1&"_fermé!"&E18 &MATCH($C$15,INDIRECT($D$1&"_fermé!$A:$A"),FALSE) )="X","X", IF(COUNTIF(INDIRECT(E$18&"24:"&E$18&$A$4),$C15)=0,".",COUNTIF(INDIRECT(E$18&"24:"&E$18&$A$4),$C15) ) ) ))) -> 
D18: D | E18: E | F18: F | G18: G | H18: H | I18: I | J18: J | K18: K | L18: L | M18: M | N18: N | O18: O | P18: P | Q18: Q | R18: R | S18: S | T18: T | U18: U | V18: V | W18: W | X18: X | Y18: Y | Z18: Z | AA18: AA | AB18: AB | AC18: AC | AD18: AD | AE18: AE | AF18: AF | AG18: AG | AH18: AH
D20: =IF(D21="","",IF(INT(((D21-(IF(WEEKDAY(DATE(YEAR(D21),1,1),2)=1,DATE(YEAR(D21),1,1),DATE(YEAR(D21),1,1)+8-WEEKDAY(DATE(YEAR(D21),1,1),2))))/7))+IF(WEEKDAY(DATE(YEAR(D21),1,1),2)>1, IF(WEEKDAY(DATE(YEAR(D21),1,1),2)<5,2,1),1) =0,"", INT(((D21-(IF(WEEKDAY(DATE(YEAR(D21),1,1),2)=1,DATE(YEAR(D21),1,1),DATE(YEAR(D21),1,1)+8-WEEKDAY(DATE(YEAR(D21),1,1),2))))/7))+IF(WEEKDAY(DATE(YEAR(D21),1,1),2)>1, IF(WEEKDAY(DATE(YEAR(D21),1,1),2)<5,2,1),1) )) -> 5 | E20: =IF(E21="","",INT(((E21-(IF(WEEKDAY(DATE(YEAR(E21),1,1),2)=1,DATE(YEAR(E21),1,1),DATE(YEAR(E21),1,1)+8-WEEKDAY(DATE(YEAR(E21),1,1),2))))/7))+IF(WEEKDAY(DATE(YEAR(E21),1,1),2)>1, IF(WEEKDAY(DATE(YEAR(E21),1,1),2)<5,2,1),1) ) -> 5 | F20: =IF(F21="","",INT(((F21-(IF(WEEKDAY(DATE(YEAR(F21),1,1),2)=1,DATE(YEAR(F21),1,1),DATE(YEAR(F21),1,1)+8-WEEKDAY(DATE(YEAR(F21),1,1),2))))/7))+IF(WEEKDAY(DATE(YEAR(F21),1,1),2)>1, IF(WEEKDAY(DATE(YEAR(F21),1,1),2)<5,2,1),1) ) -> 5 | G20: 5 | H20: 5 | I20: 5 | J20: 6 | K20: 6 | L20: 6 | M20: 6 | N20: 6 | O20: 6 | P20: 6 | Q20: 7 | R20: 7 | S20: 7 | T20: 7 | U20: 7 | V20: 7 | W20: 7 | X20: 8 | Y20: 8 | Z20: 8 | AA20: 8 | AB20: 8 | AC20: 8 | AD20: 8 | AE20: 9
D21: =DATE(Accueil!A1,A2,1) -> 2022-02-01 | E21: =D21+1 -> 2022-02-02 | F21: 2022-02-03 | G21: 2022-02-04 | H21: 2022-02-05 | I21: 2022-02-06 | J21: 2022-02-07 | K21: 2022-02-08 | L21: 2022-02-09 | M21: 2022-02-10 | N21: 2022-02-11 | O21: 2022-02-12 | P21: 2022-02-13 | Q21: 2022-02-14 | R21: 2022-02-15 | S21: 2022-02-16 | T21: 2022-02-17 | U21: 2022-02-18 | V21: 2022-02-19 | W21: 2022-02-20 | X21: 2022-02-21 | Y21: =IF(MONTH(X21+1)<>MONTH(X21),"",X21+1) -> 2022-02-22 | Z21: =IF(MONTH(Y21+1)<>MONTH(Y21),"",Y21+1) -> 2022-02-23 | AA21: =IF(MONTH(Z21+1)<>MONTH(Z21),"",Z21+1) -> 2022-02-24 | AB21: =IF(AA21="","",IF(MONTH(AA21+1)<>MONTH(AA21),"",AA21+1)) -> 2022-02-25 | AC21: 2022-02-26 | AD21: 2022-02-27 | AE21: 2022-02-28
D22: =IF(D21="","",LEFT(INDIRECT("paramètres!B"& TEXT(WEEKDAY(D21,2)+1,0)),2)) -> Ma | E22: =IF(E21="","",LEFT(INDIRECT("paramètres!B"& TEXT(WEEKDAY(E21,2)+1,0)),2)) -> Me | F22: Je | G22: Ve | H22: Sa | I22: Di | J22: Lu | K22: Ma | L22: Me | M22: Je | N22: Ve | O22: Sa | P22: Di | Q22: Lu | R22: Ma | S22: Me | T22: Je | U22: Ve | V22: Sa | W22: Di | X22: Lu | Y22: Ma | Z22: Me | AA22: Je | AB22: Ve | AC22: Sa | AD22: Di | AE22: Lu
B23: f férié vs vac.scol. | D23: =IF(D21="","", IF(LOOKUP(D21,'Vacances Scolaires'!$B$4:$B$16)=D21=TRUE,"f",IF(AND(D21>=$AT$1,D21<=$AU$1),"vs","") )) ->  | E23: =IF(E21="","", IF(LOOKUP(E21,'Vacances Scolaires'!$B$4:$B$16)=E21=TRUE,"f",IF(AND(E21>=$AT$1,E21<=$AU$1),"vs","") )) ->  | F23: =IF(F21="","", IF(LOOKUP(F21,'Vacances Scolaires'!$B$4:$B$16)=F21=TRUE,"f",IF(AND(F21>=$AT$1,F21<=$AU$1),"vs","") )) ->  | G23: =IF(G21="","", IF(LOOKUP(G21,'Vacances Scolaires'!$B$4:$B$16)=G21=TRUE,"f",IF(AND(G21>=$AT$1,G21<=$AU$1),"vs","") )) ->  | H23: =IF(H21="","", IF(LOOKUP(H21,'Vacances Scolaires'!$B$4:$B$16)=H21=TRUE,"f",IF(AND(H21>=$AT$1,H21<=$AU$1),"vs","") )) -> vs | I23: =IF(I21="","", IF(LOOKUP(I21,'Vacances Scolaires'!$B$4:$B$16)=I21=TRUE,"f",IF(AND(I21>=$AT$1,I21<=$AU$1),"vs","") )) -> vs | J23: =IF(J21="","", IF(LOOKUP(J21,'Vacances Scolaires'!$B$4:$B$16)=J21=TRUE,"f",IF(AND(J21>=$AT$1,J21<=$AU$1),"vs","") )) -> vs | K23: =IF(K21="","", IF(LOOKUP(K21,'Vacances Scolaires'!$B$4:$B$16)=K21=TRUE,"f",IF(AND(K21>=$AT$1,K21<=$AU$1),"vs","") )) -> vs | L23: =IF(L21="","", IF(LOOKUP(L21,'Vacances Scolaires'!$B$4:$B$16)=L21=TRUE,"f",IF(AND(L21>=$AT$1,L21<=$AU$1),"vs","") )) -> vs | M23: =IF(M21="","", IF(LOOKUP(M21,'Vacances Scolaires'!$B$4:$B$16)=M21=TRUE,"f",IF(AND(M21>=$AT$1,M21<=$AU$1),"vs","") )) -> vs | N23: =IF(N21="","", IF(LOOKUP(N21,'Vacances Scolaires'!$B$4:$B$16)=N21=TRUE,"f",IF(AND(N21>=$AT$1,N21<=$AU$1),"vs","") )) -> vs | O23: =IF(O21="","", IF(LOOKUP(O21,'Vacances Scolaires'!$B$4:$B$16)=O21=TRUE,"f",IF(AND(O21>=$AT$1,O21<=$AU$1),"vs","") )) -> vs | P23: =IF(P21="","", IF(LOOKUP(P21,'Vacances Scolaires'!$B$4:$B$16)=P21=TRUE,"f",IF(AND(P21>=$AT$1,P21<=$AU$1),"vs","") )) -> vs | Q23: =IF(Q21="","", IF(LOOKUP(Q21,'Vacances Scolaires'!$B$4:$B$16)=Q21=TRUE,"f",IF(AND(Q21>=$AT$1,Q21<=$AU$1),"vs","") )) -> vs | R23: =IF(R21="","", IF(LOOKUP(R21,'Vacances Scolaires'!$B$4:$B$16)=R21=TRUE,"f",IF(AND(R21>=$AT$1,R21<=$AU$1),"vs","") )) -> vs | S23: =IF(S21="","", IF(LOOKUP(S21,'Vacances Scolaires'!$B$4:$B$16)=S21=TRUE,"f",IF(AND(S21>=$AT$1,S21<=$AU$1),"vs","") )) -> vs | T23: =IF(T21="","", IF(LOOKUP(T21,'Vacances Scolaires'!$B$4:$B$16)=T21=TRUE,"f",IF(AND(T21>=$AT$1,T21<=$AU$1),"vs","") )) -> vs | U23: =IF(U21="","", IF(LOOKUP(U21,'Vacances Scolaires'!$B$4:$B$16)=U21=TRUE,"f",IF(AND(U21>=$AT$1,U21<=$AU$1),"vs","") )) -> vs | V23: =IF(V21="","", IF(LOOKUP(V21,'Vacances Scolaires'!$B$4:$B$16)=V21=TRUE,"f",IF(AND(V21>=$AT$1,V21<=$AU$1),"vs","") )) -> vs | W23: =IF(W21="","", IF(LOOKUP(W21,'Vacances Scolaires'!$B$4:$B$16)=W21=TRUE,"f",IF(AND(W21>=$AT$1,W21<=$AU$1),"vs","") )) -> vs | X23: =IF(X21="","", IF(LOOKUP(X21,'Vacances Scolaires'!$B$4:$B$16)=X21=TRUE,"f",IF(AND(X21>=$AT$1,X21<=$AU$1),"vs","") )) ->  | Y23: =IF(Y21="","", IF(LOOKUP(Y21,'Vacances Scolaires'!$B$4:$B$16)=Y21=TRUE,"f",IF(AND(Y21>=$AT$1,Y21<=$AU$1),"vs","") )) ->  | Z23: =IF(Z21="","", IF(LOOKUP(Z21,'Vacances Scolaires'!$B$4:$B$16)=Z21=TRUE,"f",IF(AND(Z21>=$AT$1,Z21<=$AU$1),"vs","") )) ->  | AA23: =IF(AA21="","", IF(LOOKUP(AA21,'Vacances Scolaires'!$B$4:$B$16)=AA21=TRUE,"f",IF(AND(AA21>=$AT$1,AA21<=$AU$1),"vs","") )) ->  | AB23: =IF(AB21="","", IF(LOOKUP(AB21,'Vacances Scolaires'!$B$4:$B$16)=AB21=TRUE,"f",IF(AND(AB21>=$AT$1,AB21<=$AU$1),"vs","") )) ->  | AC23: =IF(AC21="","", IF(LOOKUP(AC21,'Vacances Scolaires'!$B$4:$B$16)=AC21=TRUE,"f",IF(AND(AC21>=$AT$1,AC21<=$AU$1),"vs","") )) ->  | AD23: =IF(AD21="","", IF(LOOKUP(AD21,'Vacances Scolaires'!$B$4:$B$16)=AD21=TRUE,"f",IF(AND(AD21>=$AT$1,AD21<=$AU$1),"vs","") )) ->  | AE23: =IF(AE21="","", IF(LOOKUP(AE21,'Vacances Scolaires'!$B$4:$B$16)=AE21=TRUE,"f",IF(AND(AE21>=$AT$1,AE21<=$AU$1),"vs","") )) ->  | AF23: =IF(AF21="","", IF(LOOKUP(AF21,'Vacances Scolaires'!$B$4:$B$16)=AF21=TRUE,"f",IF(AND(AF21>=$AT$1,AF21<=$AU$1),"vs","") )) ->  | AG23: =IF(AG21="","", IF(LOOKUP(AG21,'Vacances Scolaires'!$B$4:$B$16)=AG21=TRUE,"f",IF(AND(AG21>=$AT$1,AG21<=$AU$1),"vs","") )) ->  | AH23: =IF(AH21="","", IF(LOOKUP(AH21,'Vacances Scolaires'!$B$4:$B$16)=AH21=TRUE,"f",IF(AND(AH21>=$AT$1,AH21<=$AU$1),"vs","") )) -> 
A24: =ROW() -> 24 | B24: Annick RAMIER | D24: M2 | K24: M2 | AI24: =IF(COUNTA(D24:AH25)>0,1,0) -> 1
A25: =ROW() -> 25
A26: =ROW() -> 26 | B26: Annie OLLIVIER | AI26: =IF(COUNTA(D26:AH27)>0,1,0) -> 0
A27: =ROW() -> 27
A28: =ROW() -> 28 | B28: Brigitte BOSCHAT | F28: U2 | T28: U2 | Z28: U1 | AI28: =IF(COUNTA(D28:AH29)>0,1,0) -> 1
A29: =ROW() -> 29
A30: =ROW() -> 30 | B30: Chantal VALLÉE | E30: H1 | L30: H1 | S30: H1 | Z30: H1 | AI30: =IF(COUNTA(D30:AH31)>0,1,0) -> 1
A31: =ROW() -> 31
A32: =ROW() -> 32 | B32: Christine COSTA | E32: P1 | L32: P1 | S32: P1 | Z32: P1 | AI32: =IF(COUNTA(D32:AH33)>0,1,0) -> 1
A33: =ROW() -> 33
A34: =ROW() -> 34 | B34: Clara GÉRARD | G34: C1 | N34: C1 | AI34: =IF(COUNTA(D34:AH35)>0,1,0) -> 1
A35: =ROW() -> 35
A36: =ROW() -> 36 | B36: Claudine ARCELIN | E36: U1 | F36: U2 | T36: U2 | AI36: =IF(COUNTA(D36:AH37)>0,1,0) -> 1
A37: =ROW() -> 37
A38: =ROW() -> 38 | B38: Élisabeth LEROUX | H38: U1 | O38: U1 | V38: U1 | AC38: U1 | AI38: =IF(COUNTA(D38:AH39)>0,1,0) -> 1
A39: =ROW() -> 39
A40: =ROW() -> 40 | B40: Evelyne CERISAY | D40: U1 | J40: C2 | Q40: C2 | X40: C2 | AE40: C2 | AI40: =IF(COUNTA(D40:AH41)>0,1,0) -> 1
A41: =ROW() -> 41
A42: =ROW() -> 42 | B42: Françoise GOUJON-MAILLARD | AI42: =IF(COUNTA(D42:AH43)>0,1,0) -> 0
A43: =ROW() -> 43
A44: =ROW() -> 44 | B44: Isabelle FOUGERAY | D44: M1 | R44: M1 | Y44: M1 | AI44: =IF(COUNTA(D44:AH45)>0,1,0) -> 1
A45: =ROW() -> 45
A46: =ROW() -> 46 | B46: Jean-Noël CERISAY | D46: A1 | R46: A1 | U46: A1 | X46: A1 | AE46: A1 | AI46: =IF(COUNTA(D46:AH47)>0,1,0) -> 1
A47: =ROW() -> 47 | R47: U1
A48: =ROW() -> 48 | B48: Jean-Pascal BOULEUX | O48: P1 | AI48: =IF(COUNTA(D48:AH49)>0,1,0) -> 1
A49: =ROW() -> 49
A50: =ROW() -> 50 | B50: Josiane VANDER MEERSCHE | D50: A1 | K50: A1 | M50: A1 | Y50: A1 | AE50: A1 | AI50: =IF(COUNTA(D50:AH51)>0,1,0) -> 1
A51: =ROW() -> 51
A52: =ROW() -> 52 | B52: Liliane SOULAÏMANA | G52: C1 | AI52: =IF(COUNTA(D52:AH53)>0,1,0) -> 1
A53: =ROW() -> 53
A54: =ROW() -> 54 | B54: Marie-Paule BRULON | D54: M2 | R54: M2 | Y54: M2 | AI54: =IF(COUNTA(D54:AH55)>0,1,0) -> 1
A55: =ROW() -> 55
A56: =ROW() -> 56 | B56: Martine LEPINAY | AI56: =IF(COUNTA(D56:AH57)>0,1,0) -> 0
A57: =ROW() -> 57
A58: =ROW() -> 58 | B58: Martine LOIRÉ | E58: H1 | L58: H1 | Z58: H1 | AI58: =IF(COUNTA(D58:AH59)>0,1,0) -> 1
A59: =ROW() -> 59
A60: =ROW() -> 60 | B60: Muriel COMPERE | J60: C2 | Q60: C2 | X60: C2 | AE60: C2 | AI60: =IF(COUNTA(D60:AH61)>0,1,0) -> 1
A61: =ROW() -> 61
A62: =ROW() -> 62 | B62: Richard ALEXANDRE | G62: A1 | AI62: =IF(COUNTA(D62:AH63)>0,1,0) -> 1
A63: =ROW() -> 63
A64: =ROW() -> 64 | B64: Samia DERRAZ | D64: A1 | K64: A1 | R64: A1 | Y64: A1 | AE64: A1 | AI64: =IF(COUNTA(D64:AH65)>0,1,0) -> 1
A65: =ROW() -> 65
A66: =ROW() -> 66 | B66: Sandrine LOISEAU | AI66: =IF(COUNTA(D66:AH67)>0,1,0) -> 0
A67: =ROW() -> 67
A68: =ROW() -> 68 | B68: Thérèse HEUZARD | E68: P1 | L68: P1 | S68: P1 | Z68: P1 | AI68: =IF(COUNTA(D68:AH69)>0,1,0) -> 1
A69: =ROW() -> 69
A70: =ROW() -> 70 | B70: Valérie CAURET | G70: A1 | N70: A1 | AI70: =IF(COUNTA(D70:AH71)>0,1,0) -> 1
A71: =ROW() -> 71
A72: =ROW() -> 72 | B72: Véronique PRADEL | G72: A1 | N72: A1 | AI72: =IF(COUNTA(D72:AH73)>0,1,0) -> 1
A73: =ROW() -> 73
A74: =ROW() -> 74 | B74: Janine SIEPER | E74: U1 | AI74: =IF(COUNTA(D74:AH75)>0,1,0) -> 1
A75: =ROW() -> 75
A76: =ROW() -> 76 | B76: Sophie ZEROUTI | K76: M2 | Z76: P1 | AI76: =IF(COUNTA(D76:AH77)>0,1,0) -> 1
A77: =ROW() -> 77
A78: =ROW() -> 78 | B78: Michèle TRUFFAUT | AI78: =IF(COUNTA(D78:AH79)>0,1,0) -> 0
A79: =ROW() -> 79
A80: =ROW() -> 80 | B80: Audrey LASSEUR | O80: P1 | AI80: =IF(COUNTA(D80:AH81)>0,1,0) -> 1
A81: =ROW() -> 81
A82: =ROW() -> 82 | B82: Rachida BENAMAR | D82: M1 | Y82: M2 | AI82: =IF(COUNTA(D82:AH83)>0,1,0) -> 1
A83: =ROW() -> 83 | D83: U1
A84: =ROW() -> 84 | B84: Éléna PESLIER | X84: A1 | AI84: =IF(COUNTA(D84:AH85)>0,1,0) -> 1
A85: =ROW() -> 85
A86: =ROW() -> 86 | B86: Danielle GAUVRIT | AI86: =IF(COUNTA(D86:AH87)>0,1,0) -> 0
A87: =ROW() -> 87
A88: =ROW() -> 88 | B88: Marie-Line COURTEVILLE | H88: P2 | N88: C1 | AI88: =IF(COUNTA(D88:AH89)>0,1,0) -> 1
A89: =ROW() -> 89

Sheet février_récap (hidden)
D1: ="Récapitulatif " &A3& " "&Accueil!$A$1 -> Récapitulatif février 2022 | R1: =IF(A4=0,"0", (A4-23)/2) & " Blouse(s) Rose(s)" -> 33 Blouse(s) Rose(s) | AT1: ='Vacances Scolaires'!E5 -> 2022-02-05 | AU1: ='Vacances Scolaires'!G5 -> 2022-02-20
A2: 2
A3: février | F3: =IF(F4="","",IF(INT(((F4-(IF(WEEKDAY(DATE(YEAR(F4),1,1),2)=1,DATE(YEAR(F4),1,1),DATE(YEAR(F4),1,1)+8-WEEKDAY(DATE(YEAR(F4),1,1),2))))/7))+IF(WEEKDAY(DATE(YEAR(F4),1,1),2)>1, IF(WEEKDAY(DATE(YEAR(F4),1,1),2)<5,2,1),1) =0,"", INT(((F4-(IF(WEEKDAY(DATE(YEAR(F4),1,1),2)=1,DATE(YEAR(F4),1,1),DATE(YEAR(F4),1,1)+8-WEEKDAY(DATE(YEAR(F4),1,1),2))))/7))+IF(WEEKDAY(DATE(YEAR(F4),1,1),2)>1, IF(WEEKDAY(DATE(YEAR(F4),1,1),2)<5,2,1),1) )) -> 5 | G3: =IF(G4="","",INT(((G4-(IF(WEEKDAY(DATE(YEAR(G4),1,1),2)=1,DATE(YEAR(G4),1,1),DATE(YEAR(G4),1,1)+8-WEEKDAY(DATE(YEAR(G4),1,1),2))))/7))+IF(WEEKDAY(DATE(YEAR(G4),1,1),2)>1, IF(WEEKDAY(DATE(YEAR(G4),1,1),2)<5,2,1),1) ) -> 5 | H3: =IF(H4="","",INT(((H4-(IF(WEEKDAY(DATE(YEAR(H4),1,1),2)=1,DATE(YEAR(H4),1,1),DATE(YEAR(H4),1,1)+8-WEEKDAY(DATE(YEAR(H4),1,1),2))))/7))+IF(WEEKDAY(DATE(YEAR(H4),1,1),2)>1, IF(WEEKDAY(DATE(YEAR(H4),1,1),2)<5,2,1),1) ) -> 5 | I3: 5 | J3: 5 | K3: 5 | L3: 6 | M3: 6 | N3: 6 | O3: 6 | P3: 6 | Q3: 6 | R3: 6 | S3: 7 | T3: 7 | U3: 7 | V3: 7 | W3: 7 | X3: 7 | Y3: 7 | Z3: 8 | AA3: 8 | AB3: 8 | AC3: 8 | AD3: 8 | AE3: 8 | AF3: 8 | AG3: 9
A4: =INDIRECT(A3&"!A4") -> 89 | D4: Totaux | F4: =DATE(Accueil!A1,A2,1) -> 2022-02-01 | G4: =F4+1 -> 2022-02-02 | H4: 2022-02-03 | I4: 2022-02-04 | J4: 2022-02-05 | K4: 2022-02-06 | L4: 2022-02-07 | M4: 2022-02-08 | N4: 2022-02-09 | O4: 2022-02-10 | P4: 2022-02-11 | Q4: 2022-02-12 | R4: 2022-02-13 | S4: 2022-02-14 | T4: 2022-02-15 | U4: 2022-02-16 | V4: 2022-02-17 | W4: 2022-02-18 | X4: 2022-02-19 | Y4: 2022-02-20 | Z4: 2022-02-21 | AA4: =IF(MONTH(Z4+1)<>MONTH(Z4),"",Z4+1) -> 2022-02-22 | AB4: =IF(MONTH(AA4+1)<>MONTH(AA4),"",AA4+1) -> 2022-02-23 | AC4: =IF(MONTH(AB4+1)<>MONTH(AB4),"",AB4+1) -> 2022-02-24 | AD4: =IF(AC4="","",IF(MONTH(AC4+1)<>MONTH(AC4),"",AC4+1)) -> 2022-02-25 | AE4: 2022-02-26 | AF4: 2022-02-27 | AG4: 2022-02-28
A5: dernière ligne | D5: =IF(D8 = "",0,D8)+IF(D10 = "",0,D10)+IF(D12 = "",0,D12)+IF(D14 = "",0,D14)+IF(D16 = "",0,D16)+IF(D18 = "",0,D18)+IF(D20 = "",0,D20)+IF(D22 = "",0,D22)+IF(D24 = "",0,D24)+IF(D26 = "",0,D26)+IF(D28 = "",0,D28)+IF(D30 = "",0,D30)+IF(D32 = "",0,D32)+IF(D34= "",0,D34)+IF(D36 = "",0,D36) -> 159 | E5: =IF(E8 = "",0,E8)+IF(E10 = "",0,E10)+IF(E12 = "",0,E12)+IF(E14 = "",0,E14)+IF(E16 = "",0,E16)+IF(E18 = "",0,E18)+IF(E20 = "",0,E20)+IF(E22 = "",0,E22)+IF(E24 = "",0,E24)+IF(E26 = "",0,E26)+IF(E28 = "",0,E28)+IF(E30 = "",0,E30)+IF(E32 = "",0,E32)+IF(E34= "",0,E34)+IF(E36 = "",0,E36) -> 43 | F5: =IF(F4="","",LEFT(INDIRECT("paramètres!B"& TEXT(WEEKDAY(F4,2)+1,0)),2)) -> Ma | G5: =IF(G4="","",LEFT(INDIRECT("paramètres!B"& TEXT(WEEKDAY(G4,2)+1,0)),2)) -> Me | H5: Je | I5: Ve | J5: Sa | K5: Di | L5: Lu | M5: Ma | N5: Me | O5: Je | P5: Ve | Q5: Sa | R5: Di | S5: Lu | T5: Ma | U5: Me | V5: Je | W5: Ve | X5: Sa | Y5: Di | Z5: Lu | AA5: Ma | AB5: Me | AC5: Je | AD5: Ve | AE5: Sa | AF5: Di | AG5: Lu
A6: =(BdCréneaux!A1*2)+7 -> 31 | B6: f férié vs vac.scol. | D6: =IF(D9 = "",0,D9)+IF(D11 = "",0,D11)+IF(D13 = "",0,D13)+IF(D15 = "",0,D15)+IF(D17 = "",0,D17)+IF(D19 = "",0,D19)+IF(D21 = "",0,D21)+IF(D23 = "",0,D23)+IF(D25 = "",0,D25)+IF(D27 = "",0,D27)+IF(D29 = "",0,D29)+IF(D31 = "",0,D31)+IF(D33 = "",0,D33)+IF(D35= "",0,D35)+IF(D37 = "",0,D37) -> 77 | F6: =IF(F4="","", IF(LOOKUP(F4,'Vacances Scolaires'!$B$4:$B$16)=F4=TRUE,"f",IF(AND(F4>=$AT$1,F4<=$AU$1),"vs","") )) ->  | G6: =IF(G4="","", IF(LOOKUP(G4,'Vacances Scolaires'!$B$4:$B$16)=G4=TRUE,"f",IF(AND(G4>=$AT$1,G4<=$AU$1),"vs","") )) ->  | H6: =IF(H4="","", IF(LOOKUP(H4,'Vacances Scolaires'!$B$4:$B$16)=H4=TRUE,"f",IF(AND(H4>=$AT$1,H4<=$AU$1),"vs","") )) ->  | I6: =IF(I4="","", IF(LOOKUP(I4,'Vacances Scolaires'!$B$4:$B$16)=I4=TRUE,"f",IF(AND(I4>=$AT$1,I4<=$AU$1),"vs","") )) ->  | J6: =IF(J4="","", IF(LOOKUP(J4,'Vacances Scolaires'!$B$4:$B$16)=J4=TRUE,"f",IF(AND(J4>=$AT$1,J4<=$AU$1),"vs","") )) -> vs | K6: =IF(K4="","", IF(LOOKUP(K4,'Vacances Scolaires'!$B$4:$B$16)=K4=TRUE,"f",IF(AND(K4>=$AT$1,K4<=$AU$1),"vs","") )) -> vs | L6: =IF(L4="","", IF(LOOKUP(L4,'Vacances Scolaires'!$B$4:$B$16)=L4=TRUE,"f",IF(AND(L4>=$AT$1,L4<=$AU$1),"vs","") )) -> vs | M6: =IF(M4="","", IF(LOOKUP(M4,'Vacances Scolaires'!$B$4:$B$16)=M4=TRUE,"f",IF(AND(M4>=$AT$1,M4<=$AU$1),"vs","") )) -> vs | N6: =IF(N4="","", IF(LOOKUP(N4,'Vacances Scolaires'!$B$4:$B$16)=N4=TRUE,"f",IF(AND(N4>=$AT$1,N4<=$AU$1),"vs","") )) -> vs | O6: =IF(O4="","", IF(LOOKUP(O4,'Vacances Scolaires'!$B$4:$B$16)=O4=TRUE,"f",IF(AND(O4>=$AT$1,O4<=$AU$1),"vs","") )) -> vs | P6: =IF(P4="","", IF(LOOKUP(P4,'Vacances Scolaires'!$B$4:$B$16)=P4=TRUE,"f",IF(AND(P4>=$AT$1,P4<=$AU$1),"vs","") )) -> vs | Q6: =IF(Q4="","", IF(LOOKUP(Q4,'Vacances Scolaires'!$B$4:$B$16)=Q4=TRUE,"f",IF(AND(Q4>=$AT$1,Q4<=$AU$1),"vs","") )) -> vs | R6: =IF(R4="","", IF(LOOKUP(R4,'Vacances Scolaires'!$B$4:$B$16)=R4=TRUE,"f",IF(AND(R4>=$AT$1,R4<=$AU$1),"vs","") )) -> vs | S6: =IF(S4="","", IF(LOOKUP(S4,'Vacances Scolaires'!$B$4:$B$16)=S4=TRUE,"f",IF(AND(S4>=$AT$1,S4<=$AU$1),"vs","") )) -> vs | T6: =IF(T4="","", IF(LOOKUP(T4,'Vacances Scolaires'!$B$4:$B$16)=T4=TRUE,"f",IF(AND(T4>=$AT$1,T4<=$AU$1),"vs","") )) -> vs | U6: =IF(U4="","", IF(LOOKUP(U4,'Vacances Scolaires'!$B$4:$B$16)=U4=TRUE,"f",IF(AND(U4>=$AT$1,U4<=$AU$1),"vs","") )) -> vs | V6: =IF(V4="","", IF(LOOKUP(V4,'Vacances Scolaires'!$B$4:$B$16)=V4=TRUE,"f",IF(AND(V4>=$AT$1,V4<=$AU$1),"vs","") )) -> vs | W6: =IF(W4="","", IF(LOOKUP(W4,'Vacances Scolaires'!$B$4:$B$16)=W4=TRUE,"f",IF(AND(W4>=$AT$1,W4<=$AU$1),"vs","") )) -> vs | X6: =IF(X4="","", IF(LOOKUP(X4,'Vacances Scolaires'!$B$4:$B$16)=X4=TRUE,"f",IF(AND(X4>=$AT$1,X4<=$AU$1),"vs","") )) -> vs | Y6: =IF(Y4="","", IF(LOOKUP(Y4,'Vacances Scolaires'!$B$4:$B$16)=Y4=TRUE,"f",IF(AND(Y4>=$AT$1,Y4<=$AU$1),"vs","") )) -> vs | Z6: =IF(Z4="","", IF(LOOKUP(Z4,'Vacances Scolaires'!$B$4:$B$16)=Z4=TRUE,"f",IF(AND(Z4>=$AT$1,Z4<=$AU$1),"vs","") )) ->  | AA6: =IF(AA4="","", IF(LOOKUP(AA4,'Vacances Scolaires'!$B$4:$B$16)=AA4=TRUE,"f",IF(AND(AA4>=$AT$1,AA4<=$AU$1),"vs","") )) ->  | AB6: =IF(AB4="","", IF(LOOKUP(AB4,'Vacances Scolaires'!$B$4:$B$16)=AB4=TRUE,"f",IF(AND(AB4>=$AT$1,AB4<=$AU$1),"vs","") )) ->  | AC6: =IF(AC4="","", IF(LOOKUP(AC4,'Vacances Scolaires'!$B$4:$B$16)=AC4=TRUE,"f",IF(AND(AC4>=$AT$1,AC4<=$AU$1),"vs","") )) ->  | AD6: =IF(AD4="","", IF(LOOKUP(AD4,'Vacances Scolaires'!$B$4:$B$16)=AD4=TRUE,"f",IF(AND(AD4>=$AT$1,AD4<=$AU$1),"vs","") )) ->  | AE6: =IF(AE4="","", IF(LOOKUP(AE4,'Vacances Scolaires'!$B$4:$B$16)=AE4=TRUE,"f",IF(AND(AE4>=$AT$1,AE4<=$AU$1),"vs","") )) ->  | AF6: =IF(AF4="","", IF(LOOKUP(AF4,'Vacances Scolaires'!$B$4:$B$16)=AF4=TRUE,"f",IF(AND(AF4>=$AT$1,AF4<=$AU$1),"vs","") )) ->  | AG6: =IF(AG4="","", IF(LOOKUP(AG4,'Vacances Scolaires'!$B$4:$B$16)=AG4=TRUE,"f",IF(AND(AG4>=$AT$1,AG4<=$AU$1),"vs","") )) ->  | AH6: =IF(AH4="","", IF(LOOKUP(AH4,'Vacances Scolaires'!$B$4:$B$16)=AH4=TRUE,"f",IF(AND(AH4>=$AT$1,AH4<=$AU$1),"vs","") )) ->  | AI6: =IF(AI4="","", IF(LOOKUP(AI4,'Vacances Scolaires'!$B$4:$B$16)=AI4=TRUE,"f",IF(AND(AI4>=$AT$1,AI4<=$AU$1),"vs","") )) ->  | AJ6: =IF(AJ4="","", IF(LOOKUP(AJ4,'Vacances Scolaires'!$B$4:$B$16)=AJ4=TRUE,"f",IF(AND(AJ4>=$AT$1,AJ4<=$AU$1),"vs","") )) -> 
F7: D | G7: E | H7: F | I7: G | J7: H | K7: I | L7: J | M7: K | N7: L | O7: M | P7: N | Q7: O | R7: P | S7: Q | T7: R | U7: S | V7: T | W7: U | X7: V | Y7: W | Z7: X | AA7: Y | AB7: Z | AC7: AA | AD7: AB | AE7: AC | AF7: AD | AG7: AE | AH7: AF | AI7: AG | AJ7: AH
A8: =(BdCréneaux!A1*2)+8 -> 32 | B8: =IF(INDIRECT("BdCréneaux!J"&(ROW()-4)/2)="","",INDIRECT("BdCréneaux!F"&MATCH(INDIRECT("BdCréneaux!J"&(ROW()-4)/2),BdCréneaux!E:E,FALSE))) -> Arche | C8: =IF(INDIRECT("BdCréneaux!J"&(ROW()-4)/2)="","",INDIRECT("BdCréneaux!J"&(ROW()-4)/2)&INDIRECT("BdCréneaux!K"&(ROW()-4)/2)) -> A1 | D8: =IF(SUM(F8:AJ8)=0,"", SUM(F8:AJ8)) -> 46 | E8: =IF(C8 ="","",COUNTIFS(INDIRECT("F"&ROW()+1&":"&$A$9&ROW()+1),"<>.")) -> 10 | F8: 5 | I8: 7 | M8: 6 | O8: 4 | P8: 5 | T8: 4 | W8: 6 | Z8: 6 | AA8: 0 | AG8: 3
A9: =IF(DAY(MATCH(MAX(F4:AJ4),F4:AJ4,0))+5>26,CHAR(INT((DAY(MATCH(MAX(F4:AJ4),F4:AJ4,0))+5-1)/26)+64)&CHAR(DAY(MATCH(MAX(F4:AJ4),F4:AJ4,0))+5-( INT((DAY(MATCH(MAX(F4:AJ4),F4:AJ4,0))+5-1)/26)*26)+64),CHAR(DAY(MATCH(MAX(F4:AJ4),F4:AJ4,0))+5+64)) -> AG | B9: =INDIRECT("BdCréneaux!P"&(ROW()-5)/2)& " "&INDIRECT("BdCréneaux!Q"&(ROW()-5)/2) -> 16h30>18h30 sauf Sam Dim | D9: =IF(SUM(F9:AJ9)=0,"", SUM(F9:AJ9)) -> 21 | F9: =IF(OR($F$4="",$C8=""),"",IF($A$4=0,".",IF(COUNTIF(INDIRECT($A$3&"!"&F$7&"24:"&F$7&$A$4),$C8)=0,".",COUNTIF(INDIRECT($A$3&"!"&F$7&"24:"&F$7&$A$4),$C8)))) -> 3 | G9: =IF(OR($F$4="",$C8=""),"",IF($A$4=0,".",IF(COUNTIF(INDIRECT($A$3&"!"&G$7&"24:"&G$7&$A$4),$C8)=0,".",COUNTIF(INDIRECT($A$3&"!"&G$7&"24:"&G$7&$A$4),$C8)))) -> . | H9: . | I9: 3 | J9: . | K9: . | L9: . | M9: 2 | N9: . | O9: 1 | P9: 2 | Q9: . | R9: . | S9: . | T9: 2 | U9: . | V9: . | W9: 1 | X9: . | Y9: . | Z9: 2 | AA9: 2 | AB9: . | AC9: . | AD9: . | AE9: . | AF9: . | AG9: 3 | AH9: . | AI9: . | AJ9: .
B10: =IF(INDIRECT("BdCréneaux!J"&(ROW()-4)/2)="","",INDIRECT("BdCréneaux!F"&MATCH(INDIRECT("BdCréneaux!J"&(ROW()-4)/2),BdCréneaux!E:E,FALSE))) -> Arche | C10: =IF(INDIRECT("BdCréneaux!J"&(ROW()-4)/2)="","",INDIRECT("BdCréneaux!J"&(ROW()-4)/2)&INDIRECT("BdCréneaux!K"&(ROW()-4)/2)) -> A2 | D10: =IF(SUM(F10:AJ10)=0,"", SUM(F10:AJ10)) ->  | E10: =IF(C10 ="","",COUNTIFS(INDIRECT("F"&ROW()+1&":"&$A$9&ROW()+1),"<>.")) -> 0
B11: =INDIRECT("BdCréneaux!P"&(ROW()-5)/2)& " "&INDIRECT("BdCréneaux!Q"&(ROW()-5)/2) -> 14h00>16h00 Sam | D11: =IF(SUM(F11:AJ11)=0,"", SUM(F11:AJ11)) ->  | F11: =IF(OR($F$4="",$C10=""),"",IF($A$4=0,".",IF(COUNTIF(INDIRECT($A$3&"!"&F$7&"24:"&F$7&$A$4),$C10)=0,".",COUNTIF(INDIRECT($A$3&"!"&F$7&"24:"&F$7&$A$4),$C10)))) -> . | G11: =IF(OR($F$4="",$C10=""),"",IF($A$4=0,".",IF(COUNTIF(INDIRECT($A$3&"!"&G$7&"24:"&G$7&$A$4),$C10)=0,".",COUNTIF(INDIRECT($A$3&"!"&G$7&"24:"&G$7&$A$4),$C10)))) -> . | H11: . | I11: . | J11: . | K11: . | L11: . | M11: . | N11: . | O11: . | P11: . | Q11: . | R11: . | S11: . | T11: . | U11: . | V11: . | W11: . | X11: . | Y11: . | Z11: . | AA11: . | AB11: . | AC11: . | AD11: . | AE11: . | AF11: . | AG11: . | AH11: . | AI11: . | AJ11: .
B12: =IF(INDIRECT("BdCréneaux!J"&(ROW()-4)/2)="","",INDIRECT("BdCréneaux!F"&MATCH(INDIRECT("BdCréneaux!J"&(ROW()-4)/2),BdCréneaux!E:E,FALSE))) -> Consult.Pédia.Chirurgie | C12: =IF(INDIRECT("BdCréneaux!J"&(ROW()-4)/2)="","",INDIRECT("BdCréneaux!J"&(ROW()-4)/2)&INDIRECT("BdCréneaux!K"&(ROW()-4)/2)) -> C1 | D12: =IF(SUM(F12:AJ12)=0,"", SUM(F12:AJ12)) ->  | E12: =IF(C12 ="","",COUNTIFS(INDIRECT("F"&ROW()+1&":"&$A$9&ROW()+1),"<>.")) -> 2 | I12: 0 | P12: 0
B13: =INDIRECT("BdCréneaux!P"&(ROW()-5)/2)& " "&INDIRECT("BdCréneaux!Q"&(ROW()-5)/2) -> 10h00>12h00 Mar Ven | D13: =IF(SUM(F13:AJ13)=0,"", SUM(F13:AJ13)) -> 4 | F13: =IF(OR($F$4="",$C12=""),"",IF($A$4=0,".",IF(COUNTIF(INDIRECT($A$3&"!"&F$7&"24:"&F$7&$A$4),$C12)=0,".",COUNTIF(INDIRECT($A$3&"!"&F$7&"24:"&F$7&$A$4),$C12)))) -> . | G13: =IF(OR($F$4="",$C12=""),"",IF($A$4=0,".",IF(COUNTIF(INDIRECT($A$3&"!"&G$7&"24:"&G$7&$A$4),$C12)=0,".",COUNTIF(INDIRECT($A$3&"!"&G$7&"24:"&G$7&$A$4),$C12)))) -> . | H13: . | I13: 2 | J13: . | K13: . | L13: . | M13: . | N13: . | O13: . | P13: 2 | Q13: . | R13: . | S13: . | T13: . | U13: . | V13: . | W13: . | X13: . | Y13: . | Z13: . | AA13: . | AB13: . | AC13: . | AD13: . | AE13: . | AF13: . | AG13: . | AH13: . | AI13: . | AJ13: .
B14: =IF(INDIRECT("BdCréneaux!J"&(ROW()-4)/2)="","",INDIRECT("BdCréneaux!F"&MATCH(INDIRECT("BdCréneaux!J"&(ROW()-4)/2),BdCréneaux!E:E,FALSE))) -> Consult.Pédia.Chirurgie | C14: =IF(INDIRECT("BdCréneaux!J"&(ROW()-4)/2)="","",INDIRECT("BdCréneaux!J"&(ROW()-4)/2)&INDIRECT("BdCréneaux!K"&(ROW()-4)/2)) -> C2 | D14: =IF(SUM(F14:AJ14)=0,"", SUM(F14:AJ14)) -> 13 | E14: =IF(C14 ="","",COUNTIFS(INDIRECT("F"&ROW()+1&":"&$A$9&ROW()+1),"<>.")) -> 4 | L14: 0 | S14: 5 | Z14: 4 | AG14: 4
B15: =INDIRECT("BdCréneaux!P"&(ROW()-5)/2)& " "&INDIRECT("BdCréneaux!Q"&(ROW()-5)/2) -> 14h00>16h00 sauf Ven Sam Dim | D15: =IF(SUM(F15:AJ15)=0,"", SUM(F15:AJ15)) -> 8 | F15: =IF(OR($F$4="",$C14=""),"",IF($A$4=0,".",IF(COUNTIF(INDIRECT($A$3&"!"&F$7&"24:"&F$7&$A$4),$C14)=0,".",COUNTIF(INDIRECT($A$3&"!"&F$7&"24:"&F$7&$A$4),$C14)))) -> . | G15: =IF(OR($F$4="",$C14=""),"",IF($A$4=0,".",IF(COUNTIF(INDIRECT($A$3&"!"&G$7&"24:"&G$7&$A$4),$C14)=0,".",COUNTIF(INDIRECT($A$3&"!"&G$7&"24:"&G$7&$A$4),$C14)))) -> . | H15: . | I15: . | J15: . | K15: . | L15: 2 | M15: . | N15: . | O15: . | P15: . | Q15: . | R15: . | S15: 2 | T15: . | U15: . | V15: . | W15: . | X15: . | Y15: . | Z15: 2 | AA15: . | AB15: . | AC15: . | AD15: . | AE15: . | AF15: . | AG15: 2 | AH15: . | AI15: . | AJ15: .
B16: =IF(INDIRECT("BdCréneaux!J"&(ROW()-4)/2)="","",INDIRECT("BdCréneaux!F"&MATCH(INDIRECT("BdCréneaux!J"&(ROW()-4)/2),BdCréneaux!E:E,FALSE))) -> Hôpital Jour | C16: =IF(INDIRECT("BdCréneaux!J"&(ROW()-4)/2)="","",INDIRECT("BdCréneaux!J"&(ROW()-4)/2)&INDIRECT("BdCréneaux!K"&(ROW()-4)/2)) -> H1 | D16: =IF(SUM(F16:AJ16)=0,"", SUM(F16:AJ16)) -> 5 | E16: =IF(C16 ="","",COUNTIFS(INDIRECT("F"&ROW()+1&":"&$A$9&ROW()+1),"<>.")) -> 4 | G16: 2 | N16: 1 | U16: 0 | AB16: 2
B17: =INDIRECT("BdCréneaux!P"&(ROW()-5)/2)& " "&INDIRECT("BdCréneaux!Q"&(ROW()-5)/2) -> 14h00>16h00 Mer Ven | D17: =IF(SUM(F17:AJ17)=0,"", SUM(F17:AJ17)) -> 7 | F17: =IF(OR($F$4="",$C16=""),"",IF($A$4=0,".",IF(COUNTIF(INDIRECT($A$3&"!"&F$7&"24:"&F$7&$A$4),$C16)=0,".",COUNTIF(INDIRECT($A$3&"!"&F$7&"24:"&F$7&$A$4),$C16)))) -> . | G17: =IF(OR($F$4="",$C16=""),"",IF($A$4=0,".",IF(COUNTIF(INDIRECT($A$3&"!"&G$7&"24:"&G$7&$A$4),$C16)=0,".",COUNTIF(INDIRECT($A$3&"!"&G$7&"24:"&G$7&$A$4),$C16)))) -> 2 | H17: . | I17: . | J17: . | K17: . | L17: . | M17: . | N17: 2 | O17: . | P17: . | Q17: . | R17: . | S17: . | T17: . | U17: 1 | V17: . | W17: . | X17: . | Y17: . | Z17: . | AA17: . | AB17: 2 | AC17: . | AD17: . | AE17: . | AF17: . | AG17: . | AH17: . | AI17: . | AJ17: .
B18: =IF(INDIRECT("BdCréneaux!J"&(ROW()-4)/2)="","",INDIRECT("BdCréneaux!F"&MATCH(INDIRECT("BdCréneaux!J"&(ROW()-4)/2),BdCréneaux!E:E,FALSE))) -> Consult.Pédia. Médecine | C18: =IF(INDIRECT("BdCréneaux!J"&(ROW()-4)/2)="","",INDIRECT("BdCréneaux!J"&(ROW()-4)/2)&INDIRECT("BdCréneaux!K"&(ROW()-4)/2)) -> M1 | D18: =IF(SUM(F18:AJ18)=0,"", SUM(F18:AJ18)) -> 17 | E18: =IF(C18 ="","",COUNTIFS(INDIRECT("F"&ROW()+1&":"&$A$9&ROW()+1),"<>.")) -> 3 | F18: 5 | T18: 3 | AA18: 9
B19: =INDIRECT("BdCréneaux!P"&(ROW()-5)/2)& " "&INDIRECT("BdCréneaux!Q"&(ROW()-5)/2) -> 10h00>12h00 Mar Mer Ven | D19: =IF(SUM(F19:AJ19)=0,"", SUM(F19:AJ19)) -> 4 | F19: =IF(OR($F$4="",$C18=""),"",IF($A$4=0,".",IF(COUNTIF(INDIRECT($A$3&"!"&F$7&"24:"&F$7&$A$4),$C18)=0,".",COUNTIF(INDIRECT($A$3&"!"&F$7&"24:"&F$7&$A$4),$C18)))) -> 2 | G19: =IF(OR($F$4="",$C18=""),"",IF($A$4=0,".",IF(COUNTIF(INDIRECT($A$3&"!"&G$7&"24:"&G$7&$A$4),$C18)=0,".",COUNTIF(INDIRECT($A$3&"!"&G$7&"24:"&G$7&$A$4),$C18)))) -> . | H19: . | I19: . | J19: . | K19: . | L19: . | M19: . | N19: . | O19: . | P19: . | Q19: . | R19: . | S19: . | T19: 1 | U19: . | V19: . | W19: . | X19: . | Y19: . | Z19: . | AA19: 1 | AB19: . | AC19: . | AD19: . | AE19: . | AF19: . | AG19: . | AH19: . | AI19: . | AJ19: .
B20: =IF(INDIRECT("BdCréneaux!J"&(ROW()-4)/2)="","",INDIRECT("BdCréneaux!F"&MATCH(INDIRECT("BdCréneaux!J"&(ROW()-4)/2),BdCréneaux!E:E,FALSE))) -> Consult.Pédia. Médecine | C20: =IF(INDIRECT("BdCréneaux!J"&(ROW()-4)/2)="","",INDIRECT("BdCréneaux!J"&(ROW()-4)/2)&INDIRECT("BdCréneaux!K"&(ROW()-4)/2)) -> M2 | D20: =IF(SUM(F20:AJ20)=0,"", SUM(F20:AJ20)) -> 26 | E20: =IF(C20 ="","",COUNTIFS(INDIRECT("F"&ROW()+1&":"&$A$9&ROW()+1),"<>.")) -> 4 | F20: 8 | M20: 6 | T20: 4 | AA20: 8
B21: =INDIRECT("BdCréneaux!P"&(ROW()-5)/2)& " "&INDIRECT("BdCréneaux!Q"&(ROW()-5)/2) -> 14h00>16h00 sauf Jeu Sam Dim | D21: =IF(SUM(F21:AJ21)=0,"", SUM(F21:AJ21)) -> 7 | F21: =IF(OR($F$4="",$C20=""),"",IF($A$4=0,".",IF(COUNTIF(INDIRECT($A$3&"!"&F$7&"24:"&F$7&$A$4),$C20)=0,".",COUNTIF(INDIRECT($A$3&"!"&F$7&"24:"&F$7&$A$4),$C20)))) -> 2 | G21: =IF(OR($F$4="",$C20=""),"",IF($A$4=0,".",IF(COUNTIF(INDIRECT($A$3&"!"&G$7&"24:"&G$7&$A$4),$C20)=0,".",COUNTIF(INDIRECT($A$3&"!"&G$7&"24:"&G$7&$A$4),$C20)))) -> . | H21: . | I21: . | J21: . | K21: . | L21: . | M21: 2 | N21: . | O21: . | P21: . | Q21: . | R21: . | S21: . | T21: 1 | U21: . | V21: . | W21: . | X21: . | Y21: . | Z21: . | AA21: 2 | AB21: . | AC21: . | AD21: . | AE21: . | AF21: . | AG21: . | AH21: . | AI21: . | AJ21: .
B22: =IF(INDIRECT("BdCréneaux!J"&(ROW()-4)/2)="","",INDIRECT("BdCréneaux!F"&MATCH(INDIRECT("BdCréneaux!J"&(ROW()-4)/2),BdCréneaux!E:E,FALSE))) -> Pédiatrie | C22: =IF(INDIRECT("BdCréneaux!J"&(ROW()-4)/2)="","",INDIRECT("BdCréneaux!J"&(ROW()-4)/2)&INDIRECT("BdCréneaux!K"&(ROW()-4)/2)) -> P1 | D22: =IF(SUM(F22:AJ22)=0,"", SUM(F22:AJ22)) -> 20 | E22: =IF(C22 ="","",COUNTIFS(INDIRECT("F"&ROW()+1&":"&$A$9&ROW()+1),"<>.")) -> 5 | G22: 2 | N22: 3 | Q22: 4 | U22: 3 | AB22: 3 | AD22: 5
B23: =INDIRECT("BdCréneaux!P"&(ROW()-5)/2)& " "&INDIRECT("BdCréneaux!Q"&(ROW()-5)/2) -> 16h00>18h00 Ven | D23: =IF(SUM(F23:AJ23)=0,"", SUM(F23:AJ23)) -> 11 | F23: =IF(OR($F$4="",$C22=""),"",IF($A$4=0,".",IF(COUNTIF(INDIRECT($A$3&"!"&F$7&"24:"&F$7&$A$4),$C22)=0,".",COUNTIF(INDIRECT($A$3&"!"&F$7&"24:"&F$7&$A$4),$C22)))) -> . | G23: =IF(OR($F$4="",$C22=""),"",IF($A$4=0,".",IF(COUNTIF(INDIRECT($A$3&"!"&G$7&"24:"&G$7&$A$4),$C22)=0,".",COUNTIF(INDIRECT($A$3&"!"&G$7&"24:"&G$7&$A$4),$C22)))) -> 2 | H23: . | I23: . | J23: . | K23: . | L23: . | M23: . | N23: 2 | O23: . | P23: . | Q23: 2 | R23: . | S23: . | T23: . | U23: 2 | V23: . | W23: . | X23: . | Y23: . | Z23: . | AA23: . | AB23: 3 | AC23: . | AD23: . | AE23: . | AF23: . | AG23: . | AH23: . | AI23: . | AJ23: .
B24: =IF(INDIRECT("BdCréneaux!J"&(ROW()-4)/2)="","",INDIRECT("BdCréneaux!F"&MATCH(INDIRECT("BdCréneaux!J"&(ROW()-4)/2),BdCréneaux!E:E,FALSE))) -> Pédiatrie | C24: =IF(INDIRECT("BdCréneaux!J"&(ROW()-4)/2)="","",INDIRECT("BdCréneaux!J"&(ROW()-4)/2)&INDIRECT("BdCréneaux!K"&(ROW()-4)/2)) -> P2 | D24: =IF(SUM(F24:AJ24)=0,"", SUM(F24:AJ24)) ->  | E24: =IF(C24 ="","",COUNTIFS(INDIRECT("F"&ROW()+1&":"&$A$9&ROW()+1),"<>.")) -> 1 | J24: 0
B25: =INDIRECT("BdCréneaux!P"&(ROW()-5)/2)& " "&INDIRECT("BdCréneaux!Q"&(ROW()-5)/2) -> 14h00>16h00 Mer Sam | D25: =IF(SUM(F25:AJ25)=0,"", SUM(F25:AJ25)) -> 1 | F25: =IF(OR($F$4="",$C24=""),"",IF($A$4=0,".",IF(COUNTIF(INDIRECT($A$3&"!"&F$7&"24:"&F$7&$A$4),$C24)=0,".",COUNTIF(INDIRECT($A$3&"!"&F$7&"24:"&F$7&$A$4),$C24)))) -> . | G25: . | H25: . | I25: . | J25: 1 | K25: . | L25: . | M25: . | N25: . | O25: . | P25: . | Q25: . | R25: . | S25: . | T25: . | U25: . | V25: . | W25: . | X25: . | Y25: . | Z25: . | AA25: . | AB25: . | AC25: . | AD25: . | AE25: . | AF25: . | AG25: . | AH25: . | AI25: . | AJ25: .
B26: =IF(INDIRECT("BdCréneaux!J"&(ROW()-4)/2)="","",INDIRECT("BdCréneaux!F"&MATCH(INDIRECT("BdCréneaux!J"&(ROW()-4)/2),BdCréneaux!E:E,FALSE))) -> Urgence Pédia. | C26: =IF(INDIRECT("BdCréneaux!J"&(ROW()-4)/2)="","",INDIRECT("BdCréneaux!J"&(ROW()-4)/2)&INDIRECT("BdCréneaux!K"&(ROW()-4)/2)) -> U1 | D26: =IF(SUM(F26:AJ26)=0,"", SUM(F26:AJ26)) -> 29 | E26: =IF(C26 ="","",COUNTIFS(INDIRECT("F"&ROW()+1&":"&$A$9&ROW()+1),"<>.")) -> 8 | F26: 9 | G26: 6 | J26: 1 | Q26: 2 | T26: 3 | X26: 1 | AB26: 1 | AE26: 6
B27: =INDIRECT("BdCréneaux!P"&(ROW()-5)/2)& " "&INDIRECT("BdCréneaux!Q"&(ROW()-5)/2) -> 14h00>16h00 sauf Jeu Dim | D27: =IF(SUM(F27:AJ27)=0,"", SUM(F27:AJ27)) -> 10 | F27: =IF(OR($F$4="",$C26=""),"",IF($A$4=0,".",IF(COUNTIF(INDIRECT($A$3&"!"&F$7&"24:"&F$7&$A$4),$C26)=0,".",COUNTIF(INDIRECT($A$3&"!"&F$7&"24:"&F$7&$A$4),$C26)))) -> 2 | G27: 2 | H27: . | I27: . | J27: 1 | K27: . | L27: . | M27: . | N27: . | O27: . | P27: . | Q27: 1 | R27: . | S27: . | T27: 1 | U27: . | V27: . | W27: . | X27: 1 | Y27: . | Z27: . | AA27: . | AB27: 1 | AC27: . | AD27: . | AE27: 1 | AF27: . | AG27: . | AH27: . | AI27: . | AJ27: .
B28: =IF(INDIRECT("BdCréneaux!J"&(ROW()-4)/2)="","",INDIRECT("BdCréneaux!F"&MATCH(INDIRECT("BdCréneaux!J"&(ROW()-4)/2),BdCréneaux!E:E,FALSE))) -> Urgence Pédia. | C28: =IF(INDIRECT("BdCréneaux!J"&(ROW()-4)/2)="","",INDIRECT("BdCréneaux!J"&(ROW()-4)/2)&INDIRECT("BdCréneaux!K"&(ROW()-4)/2)) -> U2 | D28: =IF(SUM(F28:AJ28)=0,"", SUM(F28:AJ28)) -> 3 | E28: =IF(C28 ="","",COUNTIFS(INDIRECT("F"&ROW()+1&":"&$A$9&ROW()+1),"<>.")) -> 2 | H28: 3 | V28: 0
B29: =INDIRECT("BdCréneaux!P"&(ROW()-5)/2)& " "&INDIRECT("BdCréneaux!Q"&(ROW()-5)/2) -> 16h00>18h00 Jeu | D29: =IF(SUM(F29:AJ29)=0,"", SUM(F29:AJ29)) -> 4 | F29: =IF(OR($F$4="",$C28=""),"",IF($A$4=0,".",IF(COUNTIF(INDIRECT($A$3&"!"&F$7&"24:"&F$7&$A$4),$C28)=0,".",COUNTIF(INDIRECT($A$3&"!"&F$7&"24:"&F$7&$A$4),$C28)))) -> . | G29: . | H29: 2 | I29: . | J29: . | K29: . | L29: . | M29: . | N29: . | O29: . | P29: . | Q29: . | R29: . | S29: . | T29: . | U29: . | V29: 2 | W29: . | X29: . | Y29: . | Z29: . | AA29: . | AB29: . | AC29: . | AD29: . | AE29: . | AF29: . | AG29: . | AH29: . | AI29: . | AJ29: .
B30: =IF(INDIRECT("BdCréneaux!J"&(ROW()-4)/2)="","",INDIRECT("BdCréneaux!F"&MATCH(INDIRECT("BdCréneaux!J"&(ROW()-4)/2),BdCréneaux!E:E,FALSE))) -> Ehpad Léonard de Vinci | C30: =IF(INDIRECT("BdCréneaux!J"&(ROW()-4)/2)="","",INDIRECT("BdCréneaux!J"&(ROW()-4)/2)&INDIRECT("BdCréneaux!K"&(ROW()-4)/2)) -> E1 | D30: =IF(SUM(F30:AJ30)=0,"", SUM(F30:AJ30)) ->  | E30: =IF(C30 ="","",COUNTIFS(INDIRECT("F"&ROW()+1&":"&$A$9&ROW()+1),"<>.")) -> 0
B31: =INDIRECT("BdCréneaux!P"&(ROW()-5)/2)& " "&INDIRECT("BdCréneaux!Q"&(ROW()-5)/2) -> 14h00>16h00 sauf Sam Dim | D31: =IF(SUM(F31:AJ31)=0,"", SUM(F31:AJ31)) ->  | F31: =IF(OR($F$4="",$C30=""),"",IF($A$4=0,".",IF(COUNTIF(INDIRECT($A$3&"!"&F$7&"24:"&F$7&$A$4),$C30)=0,".",COUNTIF(INDIRECT($A$3&"!"&F$7&"24:"&F$7&$A$4),$C30)))) -> . | G31: . | H31: . | I31: . | J31: . | K31: . | L31: . | M31: . | N31: . | O31: . | P31: . | Q31: . | R31: . | S31: . | T31: . | U31: . | V31: . | W31: . | X31: . | Y31: . | Z31: . | AA31: . | AB31: . | AC31: . | AD31: . | AE31: . | AF31: . | AG31: . | AH31: . | AI31: . | AJ31: .
B32: =IF(INDIRECT("BdCréneaux!J"&(ROW()-4)/2)="","",INDIRECT("BdCréneaux!F"&MATCH(INDIRECT("BdCréneaux!J"&(ROW()-4)/2),BdCréneaux!E:E,FALSE))) ->  | C32: =IF(INDIRECT("BdCréneaux!J"&(ROW()-4)/2)="","",INDIRECT("BdCréneaux!J"&(ROW()-4)/2)&INDIRECT("BdCréneaux!K"&(ROW()-4)/2)) ->  | D32: =IF(SUM(F32:AJ32)=0,"", SUM(F32:AJ32)) ->  | E32: =IF(C32 ="","",COUNTIFS(INDIRECT("F"&ROW()+1&":"&$A$9&ROW()+1),"<>.")) -> 
B33: =INDIRECT("BdCréneaux!P"&(ROW()-5)/2)& " "&INDIRECT("BdCréneaux!Q"&(ROW()-5)/2) ->  | D33: =IF(SUM(F33:AJ33)=0,"", SUM(F33:AJ33)) ->  | F33: =IF(OR($F$4="",$C32=""),"",IF($A$4=0,".",IF(COUNTIF(INDIRECT($A$3&"!"&F$7&"24:"&F$7&$A$4),$C32)=0,".",COUNTIF(INDIRECT($A$3&"!"&F$7&"24:"&F$7&$A$4),$C32)))) -> 
B34: =IF(INDIRECT("BdCréneaux!J"&(ROW()-4)/2)="","",INDIRECT("BdCréneaux!F"&MATCH(INDIRECT("BdCréneaux!J"&(ROW()-4)/2),BdCréneaux!E:E,FALSE))) ->  | C34: =IF(BdCréneaux!J15="","",BdCréneaux!J15&BdCréneaux!K15) ->  | D34: =IF(SUM(F34:AJ34)=0,"", SUM(F34:AJ34)) ->  | E34: =IF(C34 ="","",COUNTIFS(INDIRECT("F"&ROW()+1&":"&$A$9&ROW()+1),"<>.")) -> 
B35: =INDIRECT("BdCréneaux!P"&(ROW()-5)/2)& " "&INDIRECT("BdCréneaux!Q"&(ROW()-5)/2) ->  | D35: =IF(SUM(F35:AJ35)=0,"", SUM(F35:AJ35)) ->  | F35: =IF(OR($F$4="",$C34=""),"",IF($A$4=0,".",IF(COUNTIF(INDIRECT($A$3&"!"&F$7&"24:"&F$7&$A$4),$C34)=0,".",COUNTIF(INDIRECT($A$3&"!"&F$7&"24:"&F$7&$A$4),$C34)))) -> 
B36: =IF(INDIRECT("BdCréneaux!J"&(ROW()-4)/2)="","",INDIRECT("BdCréneaux!F"&MATCH(INDIRECT("BdCréneaux!J"&(ROW()-4)/2),BdCréneaux!E:E,FALSE))) ->  | C36: =IF(BdCréneaux!J16="","",BdCréneaux!J16&BdCréneaux!K16) ->  | D36: =IF(SUM(F36:AJ36)=0,"", SUM(F36:AJ36)) ->  | E36: =IF(C36 ="","",COUNTIFS(INDIRECT("F"&ROW()+1&":"&$A$9&ROW()+1),"<>.")) -> 
B37: =INDIRECT("BdCréneaux!P"&(ROW()-5)/2)& " "&INDIRECT("BdCréneaux!Q"&(ROW()-5)/2) ->  | D37: =IF(SUM(F37:AJ37)=0,"", SUM(F37:AJ37)) ->  | F37: =IF(OR($F$4="",$C36=""),"",IF($A$4=0,".",IF(COUNTIF(INDIRECT($A$3&"!"&F$7&"24:"&F$7&$A$4),$C36)=0,".",COUNTIF(INDIRECT($A$3&"!"&F$7&"24:"&F$7&$A$4),$C36)))) -> 

Sheet février_fermé (hidden)
A1: 9lig19 | D1: ="Jours de fermeture des créneaux pour le mois de "&A3 -> Jours de fermeture des créneaux pour le mois de Février
A2: 2
A3: Février | B3: RichardALEXANDRE.jpg
A4: =COUNTA(AI:AI)+8 -> 21 | D4: =IF(D5="","",IF(INT(((D5-(IF(WEEKDAY(DATE(YEAR(D5),1,1),2)=1,DATE(YEAR(D5),1,1),DATE(YEAR(D5),1,1)+8-WEEKDAY(DATE(YEAR(D5),1,1),2))))/7))+IF(WEEKDAY(DATE(YEAR(D5),1,1),2)>1, IF(WEEKDAY(DATE(YEAR(D5),1,1),2)<5,2,1),1) =0,"", INT(((D5-(IF(WEEKDAY(DATE(YEAR(D5),1,1),2)=1,DATE(YEAR(D5),1,1),DATE(YEAR(D5),1,1)+8-WEEKDAY(DATE(YEAR(D5),1,1),2))))/7))+IF(WEEKDAY(DATE(YEAR(D5),1,1),2)>1, IF(WEEKDAY(DATE(YEAR(D5),1,1),2)<5,2,1),1) )) -> 5 | E4: =IF(E5="","",INT(((E5-(IF(WEEKDAY(DATE(YEAR(E5),1,1),2)=1,DATE(YEAR(E5),1,1),DATE(YEAR(E5),1,1)+8-WEEKDAY(DATE(YEAR(E5),1,1),2))))/7))+IF(WEEKDAY(DATE(YEAR(E5),1,1),2)>1, IF(WEEKDAY(DATE(YEAR(E5),1,1),2)<5,2,1),1) ) -> 5 | F4: =IF(F5="","",INT(((F5-(IF(WEEKDAY(DATE(YEAR(F5),1,1),2)=1,DATE(YEAR(F5),1,1),DATE(YEAR(F5),1,1)+8-WEEKDAY(DATE(YEAR(F5),1,1),2))))/7))+IF(WEEKDAY(DATE(YEAR(F5),1,1),2)>1, IF(WEEKDAY(DATE(YEAR(F5),1,1),2)<5,2,1),1) ) -> 5 | G4: 5 | H4: 5 | I4: 5 | J4: 6 | K4: 6 | L4: 6 | M4: 6 | N4: 6 | O4: 6 | P4: 6 | Q4: 7 | R4: 7 | S4: 7 | T4: 7 | U4: 7 | V4: 7 | W4: 7 | X4: 8 | Y4: 8 | Z4: 8 | AA4: 8 | AB4: 8 | AC4: 8 | AD4: 8 | AE4: 9
D5: =DATE(Accueil!A1,A2,1) -> 2022-02-01 | E5: =D5+1 -> 2022-02-02 | F5: 2022-02-03 | G5: 2022-02-04 | H5: 2022-02-05 | I5: 2022-02-06 | J5: 2022-02-07 | K5: 2022-02-08 | L5: 2022-02-09 | M5: 2022-02-10 | N5: 2022-02-11 | O5: 2022-02-12 | P5: 2022-02-13 | Q5: 2022-02-14 | R5: 2022-02-15 | S5: 2022-02-16 | T5: 2022-02-17 | U5: 2022-02-18 | V5: 2022-02-19 | W5: 2022-02-20 | X5: 2022-02-21 | Y5: =IF(MONTH(X5+1)<>MONTH(X5),"",X5+1) -> 2022-02-22 | Z5: =IF(MONTH(Y5+1)<>MONTH(Y5),"",Y5+1) -> 2022-02-23 | AA5: =IF(MONTH(Z5+1)<>MONTH(Z5),"",Z5+1) -> 2022-02-24 | AB5: =IF(AA5="","",IF(MONTH(AA5+1)<>MONTH(AA5),"",AA5+1)) -> 2022-02-25 | AC5: 2022-02-26 | AD5: 2022-02-27 | AE5: 2022-02-28 | BD5: =DATE(Accueil!A1,A2,1) -> 2022-02-01 | BE5: =BD5+1 -> 2022-02-02 | BF5: 2022-02-03 | BG5: 2022-02-04 | BH5: 2022-02-05 | BI5: 2022-02-06 | BJ5: 2022-02-07 | BK5: 2022-02-08 | BL5: 2022-02-09 | BM5: 2022-02-10 | BN5: 2022-02-11 | BO5: 2022-02-12 | BP5: 2022-02-13 | BQ5: 2022-02-14 | BR5: 2022-02-15 | BS5: 2022-02-16 | BT5: 2022-02-17 | BU5: 2022-02-18 | BV5: 2022-02-19 | BW5: 2022-02-20 | BX5: 2022-02-21 | BY5: =IF(MONTH(BX5+1)<>MONTH(BX5),"",BX5+1) -> 2022-02-22 | BZ5: =IF(MONTH(BY5+1)<>MONTH(BY5),"",BY5+1) -> 2022-02-23 | CA5: =IF(MONTH(BZ5+1)<>MONTH(BZ5),"",BZ5+1) -> 2022-02-24 | CB5: =IF(CA5="","",IF(MONTH(CA5+1)<>MONTH(CA5),"",CA5+1)) -> 2022-02-25 | CC5: 2022-02-26 | CD5: 2022-02-27 | CE5: 2022-02-28
D6: =IF(D5="","",LEFT(INDIRECT("paramètres!B"& TEXT(WEEKDAY(D5,2)+1,0)),2)) -> Ma | E6: =IF(E5="","",LEFT(INDIRECT("paramètres!B"& TEXT(WEEKDAY(E5,2)+1,0)),2)) -> Me | F6: Je | G6: Ve | H6: Sa | I6: Di | J6: Lu | K6: Ma | L6: Me | M6: Je | N6: Ve | O6: Sa | P6: Di | Q6: Lu | R6: Ma | S6: Me | T6: Je | U6: Ve | V6: Sa | W6: Di | X6: Lu | Y6: Ma | Z6: Me | AA6: Je | AB6: Ve | AC6: Sa | AD6: Di | AE6: Lu | BD6: =IF(BD5="","",LEFT(INDIRECT("paramètres!B"& TEXT(WEEKDAY(BD5,2)+1,0)),3)) -> Mar | BE6: =IF(BE5="","",LEFT(INDIRECT("paramètres!B"& TEXT(WEEKDAY(BE5,2)+1,0)),3)) -> Mer | BF6: Jeu | BG6: Ven | BH6: Sam | BI6: Dim | BJ6: Lun | BK6: Mar | BL6: Mer | BM6: Jeu | BN6: Ven | BO6: Sam | BP6: Dim | BQ6: Lun | BR6: Mar | BS6: Mer | BT6: Jeu | BU6: Ven | BV6: Sam | BW6: Dim | BX6: Lun | BY6: Mar | BZ6: Mer | CA6: Jeu | CB6: Ven | CC6: Sam | CD6: Dim | CE6: Lun
A7: =SEARCH("lig",A1,1) -> 2 | B7: f férié vs vac.scol. | D7: =février_récap!F6 ->  | E7: =février_récap!G6 ->  | F7: =février_récap!H6 ->  | G7: =février_récap!I6 ->  | H7: =février_récap!J6 -> vs | I7: =février_récap!K6 -> vs | J7: =février_récap!L6 -> vs | K7: =février_récap!M6 -> vs | L7: =février_récap!N6 -> vs | M7: =février_récap!O6 -> vs | N7: =février_récap!P6 -> vs | O7: =février_récap!Q6 -> vs | P7: =février_récap!R6 -> vs | Q7: =février_récap!S6 -> vs | R7: =février_récap!T6 -> vs | S7: =février_récap!U6 -> vs | T7: =février_récap!V6 -> vs | U7: =février_récap!W6 -> vs | V7: =février_récap!X6 -> vs | W7: =février_récap!Y6 -> vs | X7: =février_récap!Z6 ->  | Y7: =février_récap!AA6 ->  | Z7: =février_récap!AB6 ->  | AA7: =février_récap!AC6 ->  | AB7: =février_récap!AD6 ->  | AC7: =février_récap!AE6 ->  | AD7: =février_récap!AF6 ->  | AE7: =février_récap!AG6 ->  | AF7: =février_récap!AH6 ->  | AG7: =février_récap!AI6 ->  | AH7: =février_récap!AJ6 -> 
A8: =IF(VALUE(LEFT(A1,A7-1))>26,CHAR(INT((VALUE(LEFT(A1,A7-1))-1)/26)+64)&CHAR(VALUE(LEFT(A1,A7-1))-( INT((VALUE(LEFT(A1,A7-1))-1)/26)*26)+64),CHAR(VALUE(LEFT(A1,A7-1))+64)) -> I | D8: D | E8: E | F8: F | G8: G | H8: H | I8: I | J8: J | K8: K | L8: L | M8: M | N8: N | O8: O | P8: P | Q8: Q | R8: R | S8: S | T8: T | U8: U | V8: V | W8: W | X8: X | Y8: Y | Z8: Z | AA8: AA | AB8: AB | AC8: AC | AD8: AD | AE8: AE | AF8: AF | AG8: AG | AH8: AH
A9: =IF(BdCréneaux!L2="","", BdCréneaux!L2) -> A1 | B9: =BdCréneaux!R2 -> Arche 16h30>18h30 | AI9: =B9 -> Arche 16h30>18h30 | BD9: =IF( INDIRECT( "BdCréneaux!"& INDIRECT("BdCréneaux!$Z"&MATCH(BD$6,BdCréneaux!$S$1:$Y$1,FALSE))& MATCH($A9,BdCréneaux!$L:$L,FALSE))=0,"", INDIRECT( "BdCréneaux!"& INDIRECT("BdCréneaux!$Z"&MATCH(BD$6,BdCréneaux!$S$1:$Y$1,FALSE))& MATCH($A9,BdCréneaux!$L:$L,FALSE))) -> x | BE9: =IF( INDIRECT( "BdCréneaux!"& INDIRECT("BdCréneaux!$Z"&MATCH(BE$6,BdCréneaux!$S$1:$Y$1,FALSE))& MATCH($A9,BdCréneaux!$L:$L,FALSE))=0,"", INDIRECT( "BdCréneaux!"& INDIRECT("BdCréneaux!$Z"&MATCH(BE$6,BdCréneaux!$S$1:$Y$1,FALSE))& MATCH($A9,BdCréneaux!$L:$L,FALSE))) -> x | BF9: =IF( INDIRECT( "BdCréneaux!"& INDIRECT("BdCréneaux!$Z"&MATCH(BF$6,BdCréneaux!$S$1:$Y$1,FALSE))& MATCH($A9,BdCréneaux!$L:$L,FALSE))=0,"", INDIRECT( "BdCréneaux!"& INDIRECT("BdCréneaux!$Z"&MATCH(BF$6,BdCréneaux!$S$1:$Y$1,FALSE))& MATCH($A9,BdCréneaux!$L:$L,FALSE))) -> x | BG9: =IF( INDIRECT( "BdCréneaux!"& INDIRECT("BdCréneaux!$Z"&MATCH(BG$6,BdCréneaux!$S$1:$Y$1,FALSE))& MATCH($A9,BdCréneaux!$L:$L,FALSE))=0,"", INDIRECT( "BdCréneaux!"& INDIRECT("BdCréneaux!$Z"&MATCH(BG$6,BdCréneaux!$S$1:$Y$1,FALSE))& MATCH($A9,BdCréneaux!$L:$L,FALSE))) -> x | BH9: =IF( INDIRECT( "BdCréneaux!"& INDIRECT("BdCréneaux!$Z"&MATCH(BH$6,BdCréneaux!$S$1:$Y$1,FALSE))& MATCH($A9,BdCréneaux!$L:$L,FALSE))=0,"", INDIRECT( "BdCréneaux!"& INDIRECT("BdCréneaux!$Z"&MATCH(BH$6,BdCréneaux!$S$1:$Y$1,FALSE))& MATCH($A9,BdCréneaux!$L:$L,FALSE))) ->  | BI9: =IF( INDIRECT( "BdCréneaux!"& INDIRECT("BdCréneaux!$Z"&MATCH(BI$6,BdCréneaux!$S$1:$Y$1,FALSE))& MATCH($A9,BdCréneaux!$L:$L,FALSE))=0,"", INDIRECT( "BdCréneaux!"& INDIRECT("BdCréneaux!$Z"&MATCH(BI$6,BdCréneaux!$S$1:$Y$1,FALSE))& MATCH($A9,BdCréneaux!$L:$L,FALSE))) ->  | BJ9: =IF( INDIRECT( "BdCréneaux!"& INDIRECT("BdCréneaux!$Z"&MATCH(BJ$6,BdCréneaux!$S$1:$Y$1,FALSE))& MATCH($A9,BdCréneaux!$L:$L,FALSE))=0,"", INDIRECT( "BdCréneaux!"& INDIRECT("BdCréneaux!$Z"&MATCH(BJ$6,BdCréneaux!$S$1:$Y$1,FALSE))& MATCH($A9,BdCréneaux!$L:$L,FALSE))) -> x | BK9: =IF( INDIRECT( "BdCréneaux!"& INDIRECT("BdCréneaux!$Z"&MATCH(BK$6,BdCréneaux!$S$1:$Y$1,FALSE))& MATCH($A9,BdCréneaux!$L:$L,FALSE))=0,"", INDIRECT( "BdCréneaux!"& INDIRECT("BdCréneaux!$Z"&MATCH(BK$6,BdCréneaux!$S$1:$Y$1,FALSE))& MATCH($A9,BdCréneaux!$L:$L,FALSE))) -> x | BL9: =IF( INDIRECT( "BdCréneaux!"& INDIRECT("BdCréneaux!$Z"&MATCH(BL$6,BdCréneaux!$S$1:$Y$1,FALSE))& MATCH($A9,BdCréneaux!$L:$L,FALSE))=0,"", INDIRECT( "BdCréneaux!"& INDIRECT("BdCréneaux!$Z"&MATCH(BL$6,BdCréneaux!$S$1:$Y$1,FALSE))& MATCH($A9,BdCréneaux!$L:$L,FALSE))) -> x | BM9: =IF( INDIRECT( "BdCréneaux!"& INDIRECT("BdCréneaux!$Z"&MATCH(BM$6,BdCréneaux!$S$1:$Y$1,FALSE))& MATCH($A9,BdCréneaux!$L:$L,FALSE))=0,"", INDIRECT( "BdCréneaux!"& INDIRECT("BdCréneaux!$Z"&MATCH(BM$6,BdCréneaux!$S$1:$Y$1,FALSE))& MATCH($A9,BdCréneaux!$L:$L,FALSE))) -> x | BN9: =IF( INDIRECT( "BdCréneaux!"& INDIRECT("BdCréneaux!$Z"&MATCH(BN$6,BdCréneaux!$S$1:$Y$1,FALSE))& MATCH($A9,BdCréneaux!$L:$L,FALSE))=0,"", INDIRECT( "BdCréneaux!"& INDIRECT("BdCréneaux!$Z"&MATCH(BN$6,BdCréneaux!$S$1:$Y$1,FALSE))& MATCH($A9,BdCréneaux!$L:$L,FALSE))) -> x | BO9: =IF( INDIRECT( "BdCréneaux!"& INDIRECT("BdCréneaux!$Z"&MATCH(BO$6,BdCréneaux!$S$1:$Y$1,FALSE))& MATCH($A9,BdCréneaux!$L:$L,FALSE))=0,"", INDIRECT( "BdCréneaux!"& INDIRECT("BdCréneaux!$Z"&MATCH(BO$6,BdCréneaux!$S$1:$Y$1,FALSE))& MATCH($A9,BdCréneaux!$L:$L,FALSE))) ->  | BP9: =IF( INDIRECT( "BdCréneaux!"& INDIRECT("BdCréneaux!$Z"&MATCH(BP$6,BdCréneaux!$S$1:$Y$1,FALSE))& MATCH($A9,BdCréneaux!$L:$L,FALSE))=0,"", INDIRECT( "BdCréneaux!"& INDIRECT("BdCréneaux!$Z"&MATCH(BP$6,BdCréneaux!$S$1:$Y$1,FALSE))& MATCH($A9,BdCréneaux!$L:$L,FALSE))) ->  | BQ9: =IF( INDIRECT( "BdCréneaux!"& INDIRECT("BdCréneaux!$Z"&MATCH(BQ$6,BdCréneaux!$S$1:$Y$1,FALSE))& MATCH($A9,BdCréneaux!$L:$L,FALSE))=0,"", INDIRECT( "BdCréneaux!"& INDIRECT("BdCréneaux!$Z"&MATCH(BQ$6,BdCréneaux!$S$1:$Y$1,FALSE))& MATCH($A9,BdCréneaux!$L:$L,FALSE))) -> x | BR9: =IF( INDIRECT( "BdCréneaux!"& INDIRECT("BdCréneaux!$Z"&MATCH(BR$6,BdCréneaux!$S$1:$Y$1,FALSE))& MATCH($A9,BdCréneaux!$L:$L,FALSE))=0,"", INDIRECT( "BdCréneaux!"& INDIRECT("BdCréneaux!$Z"&MATCH(BR$6,BdCréneaux!$S$1:$Y$1,FALSE))& MATCH($A9,BdCréneaux!$L:$L,FALSE))) -> x | BS9: =IF( INDIRECT( "BdCréneaux!"& INDIRECT("BdCréneaux!$Z"&MATCH(BS$6,BdCréneaux!$S$1:$Y$1,FALSE))& MATCH($A9,BdCréneaux!$L:$L,FALSE))=0,"", INDIRECT( "BdCréneaux!"& INDIRECT("BdCréneaux!$Z"&MATCH(BS$6,BdCréneaux!$S$1:$Y$1,FALSE))& MATCH($A9,BdCréneaux!$L:$L,FALSE))) -> x | BT9: =IF( INDIRECT( "BdCréneaux!"& INDIRECT("BdCréneaux!$Z"&MATCH(BT$6,BdCréneaux!$S$1:$Y$1,FALSE))& MATCH($A9,BdCréneaux!$L:$L,FALSE))=0,"", INDIRECT( "BdCréneaux!"& INDIRECT("BdCréneaux!$Z"&MATCH(BT$6,BdCréneaux!$S$1:$Y$1,FALSE))& MATCH($A9,BdCréneaux!$L:$L,FALSE))) -> x | BU9: =IF( INDIRECT( "BdCréneaux!"& INDIRECT("BdCréneaux!$Z"&MATCH(BU$6,BdCréneaux!$S$1:$Y$1,FALSE))& MATCH($A9,BdCréneaux!$L:$L,FALSE))=0,"", INDIRECT( "BdCréneaux!"& INDIRECT("BdCréneaux!$Z"&MATCH(BU$6,BdCréneaux!$S$1:$Y$1,FALSE))& MATCH($A9,BdCréneaux!$L:$L,FALSE))) -> x | BV9: =IF( INDIRECT( "BdCréneaux!"& INDIRECT("BdCréneaux!$Z"&MATCH(BV$6,BdCréneaux!$S$1:$Y$1,FALSE))& MATCH($A9,BdCréneaux!$L:$L,FALSE))=0,"", INDIRECT( "BdCréneaux!"& INDIRECT("BdCréneaux!$Z"&MATCH(BV$6,BdCréneaux!$S$1:$Y$1,FALSE))& MATCH($A9,BdCréneaux!$L:$L,FALSE))) ->  | BW9: =IF( INDIRECT( "BdCréneaux!"& INDIRECT("BdCréneaux!$Z"&MATCH(BW$6,BdCréneaux!$S$1:$Y$1,FALSE))& MATCH($A9,BdCréneaux!$L:$L,FALSE))=0,"", INDIRECT( "BdCréneaux!"& INDIRECT("BdCréneaux!$Z"&MATCH(BW$6,BdCréneaux!$S$1:$Y$1,FALSE))& MATCH($A9,BdCréneaux!$L:$L,FALSE))) ->  | BX9: =IF( INDIRECT( "BdCréneaux!"& INDIRECT("BdCréneaux!$Z"&MATCH(BX$6,BdCréneaux!$S$1:$Y$1,FALSE))& MATCH($A9,BdCréneaux!$L:$L,FALSE))=0,"", INDIRECT( "BdCréneaux!"& INDIRECT("BdCréneaux!$Z"&MATCH(BX$6,BdCréneaux!$S$1:$Y$1,FALSE))& MATCH($A9,BdCréneaux!$L:$L,FALSE))) -> x | BY9: =IF( INDIRECT( "BdCréneaux!"& INDIRECT("BdCréneaux!$Z"&MATCH(BY$6,BdCréneaux!$S$1:$Y$1,FALSE))& MATCH($A9,BdCréneaux!$L:$L,FALSE))=0,"", INDIRECT( "BdCréneaux!"& INDIRECT("BdCréneaux!$Z"&MATCH(BY$6,BdCréneaux!$S$1:$Y$1,FALSE))& MATCH($A9,BdCréneaux!$L:$L,FALSE))) -> x | BZ9: =IF( INDIRECT( "BdCréneaux!"& INDIRECT("BdCréneaux!$Z"&MATCH(BZ$6,BdCréneaux!$S$1:$Y$1,FALSE))& MATCH($A9,BdCréneaux!$L:$L,FALSE))=0,"", INDIRECT( "BdCréneaux!"& INDIRECT("BdCréneaux!$Z"&MATCH(BZ$6,BdCréneaux!$S$1:$Y$1,FALSE))& MATCH($A9,BdCréneaux!$L:$L,FALSE))) -> x | CA9: =IF( INDIRECT( "BdCréneaux!"& INDIRECT("BdCréneaux!$Z"&MATCH(CA$6,BdCréneaux!$S$1:$Y$1,FALSE))& MATCH($A9,BdCréneaux!$L:$L,FALSE))=0,"", INDIRECT( "BdCréneaux!"& INDIRECT("BdCréneaux!$Z"&MATCH(CA$6,BdCréneaux!$S$1:$Y$1,FALSE))& MATCH($A9,BdCréneaux!$L:$L,FALSE))) -> x | CB9: =IF( INDIRECT( "BdCréneaux!"& INDIRECT("BdCréneaux!$Z"&MATCH(CB$6,BdCréneaux!$S$1:$Y$1,FALSE))& MATCH($A9,BdCréneaux!$L:$L,FALSE))=0,"", INDIRECT( "BdCréneaux!"& INDIRECT("BdCréneaux!$Z"&MATCH(CB$6,BdCréneaux!$S$1:$Y$1,FALSE))& MATCH($A9,BdCréneaux!$L:$L,FALSE))) -> x | CC9: =IF( INDIRECT( "BdCréneaux!"& INDIRECT("BdCréneaux!$Z"&MATCH(CC$6,BdCréneaux!$S$1:$Y$1,FALSE))& MATCH($A9,BdCréneaux!$L:$L,FALSE))=0,"", INDIRECT( "BdCréneaux!"& INDIRECT("BdCréneaux!$Z"&MATCH(CC$6,BdCréneaux!$S$1:$Y$1,FALSE))& MATCH($A9,BdCréneaux!$L:$L,FALSE))) ->  | CD9: =IF( INDIRECT( "BdCréneaux!"& INDIRECT("BdCréneaux!$Z"&MATCH(CD$6,BdCréneaux!$S$1:$Y$1,FALSE))& MATCH($A9,BdCréneaux!$L:$L,FALSE))=0,"", INDIRECT( "BdCréneaux!"& INDIRECT("BdCréneaux!$Z"&MATCH(CD$6,BdCréneaux!$S$1:$Y$1,FALSE))& MATCH($A9,BdCréneaux!$L:$L,FALSE))) ->  | CE9: =IF( INDIRECT( "BdCréneaux!"& INDIRECT("BdCréneaux!$Z"&MATCH(CE$6,BdCréneaux!$S$1:$Y$1,FALSE))& MATCH($A9,BdCréneaux!$L:$L,FALSE))=0,"", INDIRECT( "BdCréneaux!"& INDIRECT("BdCréneaux!$Z"&MATCH(CE$6,BdCréneaux!$S$1:$Y$1,FALSE))& MATCH($A9,BdCréneaux!$L:$L,FALSE))) -> x | CF9: =IF( INDIRECT( "BdCréneaux!"& INDIRECT("BdCréneaux!$Z"&MATCH(CF$6,BdCréneaux!$S$1:$Y$1,FALSE))& MATCH($A9,BdCréneaux!$L:$L,FALSE))=0,"", INDIRECT( "BdCréneaux!"& INDIRECT("BdCréneaux!$Z"&MATCH(CF$6,BdCréneaux!$S$1:$Y$1,FALSE))& MATCH($A9,BdCréneaux!$L:$L,FALSE))) ->  | CG9: =IF( INDIRECT( "BdCréneaux!"& INDIRECT("BdCréneaux!$Z"&MATCH(CG$6,BdCréneaux!$S$1:$Y$1,FALSE))& MATCH($A9,BdCréneaux!$L:$L,FALSE))=0,"", INDIRECT( "BdCréneaux!"& INDIRECT("BdCréneaux!$Z"&MATCH(CG$6,BdCréneaux!$S$1:$Y$1,FALSE))& MATCH($A9,BdCréneaux!$L:$L,FALSE))) ->  | CH9: =IF( INDIRECT( "BdCréneaux!"& INDIRECT("BdCréneaux!$Z"&MATCH(CH$6,BdCréneaux!$S$1:$Y$1,FALSE))& MATCH($A9,BdCréneaux!$L:$L,FALSE))=0,"", INDIRECT( "BdCréneaux!"& INDIRECT("BdCréneaux!$Z"&MATCH(CH$6,BdCréneaux!$S$1:$Y$1,FALSE))& MATCH($A9,BdCréneaux!$L:$L,FALSE))) -> 
A10: =IF(BdCréneaux!L3="","", BdCréneaux!L3) -> A2 | B10: =BdCréneaux!R3 -> Arche 14h00>16h00 | AI10: Arche 14h00>16h00 | BD10: =IF( INDIRECT( "BdCréneaux!"& INDIRECT("BdCréneaux!$Z"&MATCH(BD$6,BdCréneaux!$S$1:$Y$1,FALSE))& MATCH($A10,BdCréneaux!$L:$L,FALSE))=0,"", INDIRECT( "BdCréneaux!"& INDIRECT("BdCréneaux!$Z"&MATCH(BD$6,BdCréneaux!$S$1:$Y$1,FALSE))& MATCH($A10,BdCréneaux!$L:$L,FALSE))) ->  | BE10: =IF( INDIRECT( "BdCréneaux!"& INDIRECT("BdCréneaux!$Z"&MATCH(BE$6,BdCréneaux!$S$1:$Y$1,FALSE))& MATCH($A10,BdCréneaux!$L:$L,FALSE))=0,"", INDIRECT( "BdCréneaux!"& INDIRECT("BdCréneaux!$Z"&MATCH(BE$6,BdCréneaux!$S$1:$Y$1,FALSE))& MATCH($A10,BdCréneaux!$L:$L,FALSE))) ->  | BF10: =IF( INDIRECT( "BdCréneaux!"& INDIRECT("BdCréneaux!$Z"&MATCH(BF$6,BdCréneaux!$S$1:$Y$1,FALSE))& MATCH($A10,BdCréneaux!$L:$L,FALSE))=0,"", INDIRECT( "BdCréneaux!"& INDIRECT("BdCréneaux!$Z"&MATCH(BF$6,BdCréneaux!$S$1:$Y$1,FALSE))& MATCH($A10,BdCréneaux!$L:$L,FALSE))) ->  | BG10: =IF( INDIRECT( "BdCréneaux!"& INDIRECT("BdCréneaux!$Z"&MATCH(BG$6,BdCréneaux!$S$1:$Y$1,FALSE))& MATCH($A10,BdCréneaux!$L:$L,FALSE))=0,"", INDIRECT( "BdCréneaux!"& INDIRECT("BdCréneaux!$Z"&MATCH(BG$6,BdCréneaux!$S$1:$Y$1,FALSE))& MATCH($A10,BdCréneaux!$L:$L,FALSE))) ->  | BH10: =IF( INDIRECT( "BdCréneaux!"& INDIRECT("BdCréneaux!$Z"&MATCH(BH$6,BdCréneaux!$S$1:$Y$1,FALSE))& MATCH($A10,BdCréneaux!$L:$L,FALSE))=0,"", INDIRECT( "BdCréneaux!"& INDIRECT("BdCréneaux!$Z"&MATCH(BH$6,BdCréneaux!$S$1:$Y$1,FALSE))& MATCH($A10,BdCréneaux!$L:$L,FALSE))) -> x | BI10: =IF( INDIRECT( "BdCréneaux!"& INDIRECT("BdCréneaux!$Z"&MATCH(BI$6,BdCréneaux!$S$1:$Y$1,FALSE))& MATCH($A10,BdCréneaux!$L:$L,FALSE))=0,"", INDIRECT( "BdCréneaux!"& INDIRECT("BdCréneaux!$Z"&MATCH(BI$6,BdCréneaux!$S$1:$Y$1,FALSE))& MATCH($A10,BdCréneaux!$L:$L,FALSE))) ->  | BJ10: =IF( INDIRECT( "BdCréneaux!"& INDIRECT("BdCréneaux!$Z"&MATCH(BJ$6,BdCréneaux!$S$1:$Y$1,FALSE))& MATCH($A10,BdCréneaux!$L:$L,FALSE))=0,"", INDIRECT( "BdCréneaux!"& INDIRECT("BdCréneaux!$Z"&MATCH(BJ$6,BdCréneaux!$S$1:$Y$1,FALSE))& MATCH($A10,BdCréneaux!$L:$L,FALSE))) ->  | BK10: =IF( INDIRECT( "BdCréneaux!"& INDIRECT("BdCréneaux!$Z"&MATCH(BK$6,BdCréneaux!$S$1:$Y$1,FALSE))& MATCH($A10,BdCréneaux!$L:$L,FALSE))=0,"", INDIRECT( "BdCréneaux!"& INDIRECT("BdCréneaux!$Z"&MATCH(BK$6,BdCréneaux!$S$1:$Y$1,FALSE))& MATCH($A10,BdCréneaux!$L:$L,FALSE))) ->  | BL10: =IF( INDIRECT( "BdCréneaux!"& INDIRECT("BdCréneaux!$Z"&MATCH(BL$6,BdCréneaux!$S$1:$Y$1,FALSE))& MATCH($A10,BdCréneaux!$L:$L,FALSE))=0,"", INDIRECT( "BdCréneaux!"& INDIRECT("BdCréneaux!$Z"&MATCH(BL$6,BdCréneaux!$S$1:$Y$1,FALSE))& MATCH($A10,BdCréneaux!$L:$L,FALSE))) ->  | BM10: =IF( INDIRECT( "BdCréneaux!"& INDIRECT("BdCréneaux!$Z"&MATCH(BM$6,BdCréneaux!$S$1:$Y$1,FALSE))& MATCH($A10,BdCréneaux!$L:$L,FALSE))=0,"", INDIRECT( "BdCréneaux!"& INDIRECT("BdCréneaux!$Z"&MATCH(BM$6,BdCréneaux!$S$1:$Y$1,FALSE))& MATCH($A10,BdCréneaux!$L:$L,FALSE))) ->  | BN10: =IF( INDIRECT( "BdCréneaux!"& INDIRECT("BdCréneaux!$Z"&MATCH(BN$6,BdCréneaux!$S$1:$Y$1,FALSE))& MATCH($A10,BdCréneaux!$L:$L,FALSE))=0,"", INDIRECT( "BdCréneaux!"& INDIRECT("BdCréneaux!$Z"&MATCH(BN$6,BdCréneaux!$S$1:$Y$1,FALSE))& MATCH($A10,BdCréneaux!$L:$L,FALSE))) ->  | BO10: =IF( INDIRECT( "BdCréneaux!"& INDIRECT("BdCréneaux!$Z"&MATCH(BO$6,BdCréneaux!$S$1:$Y$1,FALSE))& MATCH($A10,BdCréneaux!$L:$L,FALSE))=0,"", INDIRECT( "BdCréneaux!"& INDIRECT("BdCréneaux!$Z"&MATCH(BO$6,BdCréneaux!$S$1:$Y$1,FALSE))& MATCH($A10,BdCréneaux!$L:$L,FALSE))) -> x | BP10: =IF( INDIRECT( "BdCréneaux!"& INDIRECT("BdCréneaux!$Z"&MATCH(BP$6,BdCréneaux!$S$1:$Y$1,FALSE))& MATCH($A10,BdCréneaux!$L:$L,FALSE))=0,"", INDIRECT( "BdCréneaux!"& INDIRECT("BdCréneaux!$Z"&MATCH(BP$6,BdCréneaux!$S$1:$Y$1,FALSE))& MATCH($A10,BdCréneaux!$L:$L,FALSE))) ->  | BQ10: =IF( INDIRECT( "BdCréneaux!"& INDIRECT("BdCréneaux!$Z"&MATCH(BQ$6,BdCréneaux!$S$1:$Y$1,FALSE))& MATCH($A10,BdCréneaux!$L:$L,FALSE))=0,"", INDIRECT( "BdCréneaux!"& INDIRECT("BdCréneaux!$Z"&MATCH(BQ$6,BdCréneaux!$S$1:$Y$1,FALSE))& MATCH($A10,BdCréneaux!$L:$L,FALSE))) ->  | BR10: =IF( INDIRECT( "BdCréneaux!"& INDIRECT("BdCréneaux!$Z"&MATCH(BR$6,BdCréneaux!$S$1:$Y$1,FALSE))& MATCH($A10,BdCréneaux!$L:$L,FALSE))=0,"", INDIRECT( "BdCréneaux!"& INDIRECT("BdCréneaux!$Z"&MATCH(BR$6,BdCréneaux!$S$1:$Y$1,FALSE))& MATCH($A10,BdCréneaux!$L:$L,FALSE))) ->  | BS10: =IF( INDIRECT( "BdCréneaux!"& INDIRECT("BdCréneaux!$Z"&MATCH(BS$6,BdCréneaux!$S$1:$Y$1,FALSE))& MATCH($A10,BdCréneaux!$L:$L,FALSE))=0,"", INDIRECT( "BdCréneaux!"& INDIRECT("BdCréneaux!$Z"&MATCH(BS$6,BdCréneaux!$S$1:$Y$1,FALSE))& MATCH($A10,BdCréneaux!$L:$L,FALSE))) ->  | BT10: =IF( INDIRECT( "BdCréneaux!"& INDIRECT("BdCréneaux!$Z"&MATCH(BT$6,BdCréneaux!$S$1:$Y$1,FALSE))& MATCH($A10,BdCréneaux!$L:$L,FALSE))=0,"", INDIRECT( "BdCréneaux!"& INDIRECT("BdCréneaux!$Z"&MATCH(BT$6,BdCréneaux!$S$1:$Y$1,FALSE))& MATCH($A10,BdCréneaux!$L:$L,FALSE))) ->  | BU10: =IF( INDIRECT( "BdCréneaux!"& INDIRECT("BdCréneaux!$Z"&MATCH(BU$6,BdCréneaux!$S$1:$Y$1,FALSE))& MATCH($A10,BdCréneaux!$L:$L,FALSE))=0,"", INDIRECT( "BdCréneaux!"& INDIRECT("BdCréneaux!$Z"&MATCH(BU$6,BdCréneaux!$S$1:$Y$1,FALSE))& MATCH($A10,BdCréneaux!$L:$L,FALSE))) ->  | BV10: =IF( INDIRECT( "BdCréneaux!"& INDIRECT("BdCréneaux!$Z"&MATCH(BV$6,BdCréneaux!$S$1:$Y$1,FALSE))& MATCH($A10,BdCréneaux!$L:$L,FALSE))=0,"", INDIRECT( "BdCréneaux!"& INDIRECT("BdCréneaux!$Z"&MATCH(BV$6,BdCréneaux!$S$1:$Y$1,FALSE))& MATCH($A10,BdCréneaux!$L:$L,FALSE))) -> x | BW10: =IF( INDIRECT( "BdCréneaux!"& INDIRECT("BdCréneaux!$Z"&MATCH(BW$6,BdCréneaux!$S$1:$Y$1,FALSE))& MATCH($A10,BdCréneaux!$L:$L,FALSE))=0,"", INDIRECT( "BdCréneaux!"& INDIRECT("BdCréneaux!$Z"&MATCH(BW$6,BdCréneaux!$S$1:$Y$1,FALSE))& MATCH($A10,BdCréneaux!$L:$L,FALSE))) ->  | BX10: =IF( INDIRECT( "BdCréneaux!"& INDIRECT("BdCréneaux!$Z"&MATCH(BX$6,BdCréneaux!$S$1:$Y$1,FALSE))& MATCH($A10,BdCréneaux!$L:$L,FALSE))=0,"", INDIRECT( "BdCréneaux!"& INDIRECT("BdCréneaux!$Z"&MATCH(BX$6,BdCréneaux!$S$1:$Y$1,FALSE))& MATCH($A10,BdCréneaux!$L:$L,FALSE))) ->  | BY10: =IF( INDIRECT( "BdCréneaux!"& INDIRECT("BdCréneaux!$Z"&MATCH(BY$6,BdCréneaux!$S$1:$Y$1,FALSE))& MATCH($A10,BdCréneaux!$L:$L,FALSE))=0,"", INDIRECT( "BdCréneaux!"& INDIRECT("BdCréneaux!$Z"&MATCH(BY$6,BdCréneaux!$S$1:$Y$1,FALSE))& MATCH($A10,BdCréneaux!$L:$L,FALSE))) ->  | BZ10: =IF( INDIRECT( "BdCréneaux!"& INDIRECT("BdCréneaux!$Z"&MATCH(BZ$6,BdCréneaux!$S$1:$Y$1,FALSE))& MATCH($A10,BdCréneaux!$L:$L,FALSE))=0,"", INDIRECT( "BdCréneaux!"& INDIRECT("BdCréneaux!$Z"&MATCH(BZ$6,BdCréneaux!$S$1:$Y$1,FALSE))& MATCH($A10,BdCréneaux!$L:$L,FALSE))) ->  | CA10: =IF( INDIRECT( "BdCréneaux!"& INDIRECT("BdCréneaux!$Z"&MATCH(CA$6,BdCréneaux!$S$1:$Y$1,FALSE))& MATCH($A10,BdCréneaux!$L:$L,FALSE))=0,"", INDIRECT( "BdCréneaux!"& INDIRECT("BdCréneaux!$Z"&MATCH(CA$6,BdCréneaux!$S$1:$Y$1,FALSE))& MATCH($A10,BdCréneaux!$L:$L,FALSE))) ->  | CB10: =IF( INDIRECT( "BdCréneaux!"& INDIRECT("BdCréneaux!$Z"&MATCH(CB$6,BdCréneaux!$S$1:$Y$1,FALSE))& MATCH($A10,BdCréneaux!$L:$L,FALSE))=0,"", INDIRECT( "BdCréneaux!"& INDIRECT("BdCréneaux!$Z"&MATCH(CB$6,BdCréneaux!$S$1:$Y$1,FALSE))& MATCH($A10,BdCréneaux!$L:$L,FALSE))) ->  | CC10: =IF( INDIRECT( "BdCréneaux!"& INDIRECT("BdCréneaux!$Z"&MATCH(CC$6,BdCréneaux!$S$1:$Y$1,FALSE))& MATCH($A10,BdCréneaux!$L:$L,FALSE))=0,"", INDIRECT( "BdCréneaux!"& INDIRECT("BdCréneaux!$Z"&MATCH(CC$6,BdCréneaux!$S$1:$Y$1,FALSE))& MATCH($A10,BdCréneaux!$L:$L,FALSE))) -> x | CD10: =IF( INDIRECT( "BdCréneaux!"& INDIRECT("BdCréneaux!$Z"&MATCH(CD$6,BdCréneaux!$S$1:$Y$1,FALSE))& MATCH($A10,BdCréneaux!$L:$L,FALSE))=0,"", INDIRECT( "BdCréneaux!"& INDIRECT("BdCréneaux!$Z"&MATCH(CD$6,BdCréneaux!$S$1:$Y$1,FALSE))& MATCH($A10,BdCréneaux!$L:$L,FALSE))) ->  | CE10: =IF( INDIRECT( "BdCréneaux!"& INDIRECT("BdCréneaux!$Z"&MATCH(CE$6,BdCréneaux!$S$1:$Y$1,FALSE))& MATCH($A10,BdCréneaux!$L:$L,FALSE))=0,"", INDIRECT( "BdCréneaux!"& INDIRECT("BdCréneaux!$Z"&MATCH(CE$6,BdCréneaux!$S$1:$Y$1,FALSE))& MATCH($A10,BdCréneaux!$L:$L,FALSE))) ->  | CF10: =IF( INDIRECT( "BdCréneaux!"& INDIRECT("BdCréneaux!$Z"&MATCH(CF$6,BdCréneaux!$S$1:$Y$1,FALSE))& MATCH($A10,BdCréneaux!$L:$L,FALSE))=0,"", INDIRECT( "BdCréneaux!"& INDIRECT("BdCréneaux!$Z"&MATCH(CF$6,BdCréneaux!$S$1:$Y$1,FALSE))& MATCH($A10,BdCréneaux!$L:$L,FALSE))) ->  | CG10: =IF( INDIRECT( "BdCréneaux!"& INDIRECT("BdCréneaux!$Z"&MATCH(CG$6,BdCréneaux!$S$1:$Y$1,FALSE))& MATCH($A10,BdCréneaux!$L:$L,FALSE))=0,"", INDIRECT( "BdCréneaux!"& INDIRECT("BdCréneaux!$Z"&MATCH(CG$6,BdCréneaux!$S$1:$Y$1,FALSE))& MATCH($A10,BdCréneaux!$L:$L,FALSE))) ->  | CH10: =IF( INDIRECT( "BdCréneaux!"& INDIRECT("BdCréneaux!$Z"&MATCH(CH$6,BdCréneaux!$S$1:$Y$1,FALSE))& MATCH($A10,BdCréneaux!$L:$L,FALSE))=0,"", INDIRECT( "BdCréneaux!"& INDIRECT("BdCréneaux!$Z"&MATCH(CH$6,BdCréneaux!$S$1:$Y$1,FALSE))& MATCH($A10,BdCréneaux!$L:$L,FALSE))) -> 
A11: =IF(BdCréneaux!L4="","", BdCréneaux!L4) -> C1 | B11: =BdCréneaux!R4 -> Consult.Pédia.Chirurgie 10h00>12h00 | AI11: Consult.Pédia.Chirurgie 10h00>12h00 | BD11: =IF( INDIRECT( "BdCréneaux!"& INDIRECT("BdCréneaux!$Z"&MATCH(BD$6,BdCréneaux!$S$1:$Y$1,FALSE))& MATCH($A11,BdCréneaux!$L:$L,FALSE))=0,"", INDIRECT( "BdCréneaux!"& INDIRECT("BdCréneaux!$Z"&MATCH(BD$6,BdCréneaux!$S$1:$Y$1,FALSE))& MATCH($A11,BdCréneaux!$L:$L,FALSE))) -> x | BE11: =IF( INDIRECT( "BdCréneaux!"& INDIRECT("BdCréneaux!$Z"&MATCH(BE$6,BdCréneaux!$S$1:$Y$1,FALSE))& MATCH($A11,BdCréneaux!$L:$L,FALSE))=0,"", INDIRECT( "BdCréneaux!"& INDIRECT("BdCréneaux!$Z"&MATCH(BE$6,BdCréneaux!$S$1:$Y$1,FALSE))& MATCH($A11,BdCréneaux!$L:$L,FALSE))) ->  | BF11: =IF( INDIRECT( "BdCréneaux!"& INDIRECT("BdCréneaux!$Z"&MATCH(BF$6,BdCréneaux!$S$1:$Y$1,FALSE))& MATCH($A11,BdCréneaux!$L:$L,FALSE))=0,"", INDIRECT( "BdCréneaux!"& INDIRECT("BdCréneaux!$Z"&MATCH(BF$6,BdCréneaux!$S$1:$Y$1,FALSE))& MATCH($A11,BdCréneaux!$L:$L,FALSE))) ->  | BG11: =IF( INDIRECT( "BdCréneaux!"& INDIRECT("BdCréneaux!$Z"&MATCH(BG$6,BdCréneaux!$S$1:$Y$1,FALSE))& MATCH($A11,BdCréneaux!$L:$L,FALSE))=0,"", INDIRECT( "BdCréneaux!"& INDIRECT("BdCréneaux!$Z"&MATCH(BG$6,BdCréneaux!$S$1:$Y$1,FALSE))& MATCH($A11,BdCréneaux!$L:$L,FALSE))) -> x | BH11: =IF( INDIRECT( "BdCréneaux!"& INDIRECT("BdCréneaux!$Z"&MATCH(BH$6,BdCréneaux!$S$1:$Y$1,FALSE))& MATCH($A11,BdCréneaux!$L:$L,FALSE))=0,"", INDIRECT( "BdCréneaux!"& INDIRECT("BdCréneaux!$Z"&MATCH(BH$6,BdCréneaux!$S$1:$Y$1,FALSE))& MATCH($A11,BdCréneaux!$L:$L,FALSE))) ->  | BI11: =IF( INDIRECT( "BdCréneaux!"& INDIRECT("BdCréneaux!$Z"&MATCH(BI$6,BdCréneaux!$S$1:$Y$1,FALSE))& MATCH($A11,BdCréneaux!$L:$L,FALSE))=0,"", INDIRECT( "BdCréneaux!"& INDIRECT("BdCréneaux!$Z"&MATCH(BI$6,BdCréneaux!$S$1:$Y$1,FALSE))& MATCH($A11,BdCréneaux!$L:$L,FALSE))) ->  | BJ11: =IF( INDIRECT( "BdCréneaux!"& INDIRECT("BdCréneaux!$Z"&MATCH(BJ$6,BdCréneaux!$S$1:$Y$1,FALSE))& MATCH($A11,BdCréneaux!$L:$L,FALSE))=0,"", INDIRECT( "BdCréneaux!"& INDIRECT("BdCréneaux!$Z"&MATCH(BJ$6,BdCréneaux!$S$1:$Y$1,FALSE))& MATCH($A11,BdCréneaux!$L:$L,FALSE))) ->  | BK11: =IF( INDIRECT( "BdCréneaux!"& INDIRECT("BdCréneaux!$Z"&MATCH(BK$6,BdCréneaux!$S$1:$Y$1,FALSE))& MATCH($A11,BdCréneaux!$L:$L,FALSE))=0,"", INDIRECT( "BdCréneaux!"& INDIRECT("BdCréneaux!$Z"&MATCH(BK$6,BdCréneaux!$S$1:$Y$1,FALSE))& MATCH($A11,BdCréneaux!$L:$L,FALSE))) -> x | BL11: =IF( INDIRECT( "BdCréneaux!"& INDIRECT("BdCréneaux!$Z"&MATCH(BL$6,BdCréneaux!$S$1:$Y$1,FALSE))& MATCH($A11,BdCréneaux!$L:$L,FALSE))=0,"", INDIRECT( "BdCréneaux!"& INDIRECT("BdCréneaux!$Z"&MATCH(BL$6,BdCréneaux!$S$1:$Y$1,FALSE))& MATCH($A11,BdCréneaux!$L:$L,FALSE))) ->  | BM11: =IF( INDIRECT( "BdCréneaux!"& INDIRECT("BdCréneaux!$Z"&MATCH(BM$6,BdCréneaux!$S$1:$Y$1,FALSE))& MATCH($A11,BdCréneaux!$L:$L,FALSE))=0,"", INDIRECT( "BdCréneaux!"& INDIRECT("BdCréneaux!$Z"&MATCH(BM$6,BdCréneaux!$S$1:$Y$1,FALSE))& MATCH($A11,BdCréneaux!$L:$L,FALSE))) ->  | BN11: =IF( INDIRECT( "BdCréneaux!"& INDIRECT("BdCréneaux!$Z"&MATCH(BN$6,BdCréneaux!$S$1:$Y$1,FALSE))& MATCH($A11,BdCréneaux!$L:$L,FALSE))=0,"", INDIRECT( "BdCréneaux!"& INDIRECT("BdCréneaux!$Z"&MATCH(BN$6,BdCréneaux!$S$1:$Y$1,FALSE))& MATCH($A11,BdCréneaux!$L:$L,FALSE))) -> x | BO11: =IF( INDIRECT( "BdCréneaux!"& INDIRECT("BdCréneaux!$Z"&MATCH(BO$6,BdCréneaux!$S$1:$Y$1,FALSE))& MATCH($A11,BdCréneaux!$L:$L,FALSE))=0,"", INDIRECT( "BdCréneaux!"& INDIRECT("BdCréneaux!$Z"&MATCH(BO$6,BdCréneaux!$S$1:$Y$1,FALSE))& MATCH($A11,BdCréneaux!$L:$L,FALSE))) ->  | BP11: =IF( INDIRECT( "BdCréneaux!"& INDIRECT("BdCréneaux!$Z"&MATCH(BP$6,BdCréneaux!$S$1:$Y$1,FALSE))& MATCH($A11,BdCréneaux!$L:$L,FALSE))=0,"", INDIRECT( "BdCréneaux!"& INDIRECT("BdCréneaux!$Z"&MATCH(BP$6,BdCréneaux!$S$1:$Y$1,FALSE))& MATCH($A11,BdCréneaux!$L:$L,FALSE))) ->  | BQ11: =IF( INDIRECT( "BdCréneaux!"& INDIRECT("BdCréneaux!$Z"&MATCH(BQ$6,BdCréneaux!$S$1:$Y$1,FALSE))& MATCH($A11,BdCréneaux!$L:$L,FALSE))=0,"", INDIRECT( "BdCréneaux!"& INDIRECT("BdCréneaux!$Z"&MATCH(BQ$6,BdCréneaux!$S$1:$Y$1,FALSE))& MATCH($A11,BdCréneaux!$L:$L,FALSE))) ->  | BR11: =IF( INDIRECT( "BdCréneaux!"& INDIRECT("BdCréneaux!$Z"&MATCH(BR$6,BdCréneaux!$S$1:$Y$1,FALSE))& MATCH($A11,BdCréneaux!$L:$L,FALSE))=0,"", INDIRECT( "BdCréneaux!"& INDIRECT("BdCréneaux!$Z"&MATCH(BR$6,BdCréneaux!$S$1:$Y$1,FALSE))& MATCH($A11,BdCréneaux!$L:$L,FALSE))) -> x | BS11: =IF( INDIRECT( "BdCréneaux!"& INDIRECT("BdCréneaux!$Z"&MATCH(BS$6,BdCréneaux!$S$1:$Y$1,FALSE))& MATCH($A11,BdCréneaux!$L:$L,FALSE))=0,"", INDIRECT( "BdCréneaux!"& INDIRECT("BdCréneaux!$Z"&MATCH(BS$6,BdCréneaux!$S$1:$Y$1,FALSE))& MATCH($A11,BdCréneaux!$L:$L,FALSE))) ->  | BT11: =IF( INDIRECT( "BdCréneaux!"& INDIRECT("BdCréneaux!$Z"&MATCH(BT$6,BdCréneaux!$S$1:$Y$1,FALSE))& MATCH($A11,BdCréneaux!$L:$L,FALSE))=0,"", INDIRECT( "BdCréneaux!"& INDIRECT("BdCréneaux!$Z"&MATCH(BT$6,BdCréneaux!$S$1:$Y$1,FALSE))& MATCH($A11,BdCréneaux!$L:$L,FALSE))) ->  | BU11: =IF( INDIRECT( "BdCréneaux!"& INDIRECT("BdCréneaux!$Z"&MATCH(BU$6,BdCréneaux!$S$1:$Y$1,FALSE))& MATCH($A11,BdCréneaux!$L:$L,FALSE))=0,"", INDIRECT( "BdCréneaux!"& INDIRECT("BdCréneaux!$Z"&MATCH(BU$6,BdCréneaux!$S$1:$Y$1,FALSE))& MATCH($A11,BdCréneaux!$L:$L,FALSE))) -> x | BV11: =IF( INDIRECT( "BdCréneaux!"& INDIRECT("BdCréneaux!$Z"&MATCH(BV$6,BdCréneaux!$S$1:$Y$1,FALSE))& MATCH($A11,BdCréneaux!$L:$L,FALSE))=0,"", INDIRECT( "BdCréneaux!"& INDIRECT("BdCréneaux!$Z"&MATCH(BV$6,BdCréneaux!$S$1:$Y$1,FALSE))& MATCH($A11,BdCréneaux!$L:$L,FALSE))) ->  | BW11: =IF( INDIRECT( "BdCréneaux!"& INDIRECT("BdCréneaux!$Z"&MATCH(BW$6,BdCréneaux!$S$1:$Y$1,FALSE))& MATCH($A11,BdCréneaux!$L:$L,FALSE))=0,"", INDIRECT( "BdCréneaux!"& INDIRECT("BdCréneaux!$Z"&MATCH(BW$6,BdCréneaux!$S$1:$Y$1,FALSE))& MATCH($A11,BdCréneaux!$L:$L,FALSE))) ->  | BX11: =IF( INDIRECT( "BdCréneaux!"& INDIRECT("BdCréneaux!$Z"&MATCH(BX$6,BdCréneaux!$S$1:$Y$1,FALSE))& MATCH($A11,BdCréneaux!$L:$L,FALSE))=0,"", INDIRECT( "BdCréneaux!"& INDIRECT("BdCréneaux!$Z"&MATCH(BX$6,BdCréneaux!$S$1:$Y$1,FALSE))& MATCH($A11,BdCréneaux!$L:$L,FALSE))) ->  | BY11: =IF( INDIRECT( "BdCréneaux!"& INDIRECT("BdCréneaux!$Z"&MATCH(BY$6,BdCréneaux!$S$1:$Y$1,FALSE))& MATCH($A11,BdCréneaux!$L:$L,FALSE))=0,"", INDIRECT( "BdCréneaux!"& INDIRECT("BdCréneaux!$Z"&MATCH(BY$6,BdCréneaux!$S$1:$Y$1,FALSE))& MATCH($A11,BdCréneaux!$L:$L,FALSE))) -> x | BZ11: =IF( INDIRECT( "BdCréneaux!"& INDIRECT("BdCréneaux!$Z"&MATCH(BZ$6,BdCréneaux!$S$1:$Y$1,FALSE))& MATCH($A11,BdCréneaux!$L:$L,FALSE))=0,"", INDIRECT( "BdCréneaux!"& INDIRECT("BdCréneaux!$Z"&MATCH(BZ$6,BdCréneaux!$S$1:$Y$1,FALSE))& MATCH($A11,BdCréneaux!$L:$L,FALSE))) ->  | CA11: =IF( INDIRECT( "BdCréneaux!"& INDIRECT("BdCréneaux!$Z"&MATCH(CA$6,BdCréneaux!$S$1:$Y$1,FALSE))& MATCH($A11,BdCréneaux!$L:$L,FALSE))=0,"", INDIRECT( "BdCréneaux!"& INDIRECT("BdCréneaux!$Z"&MATCH(CA$6,BdCréneaux!$S$1:$Y$1,FALSE))& MATCH($A11,BdCréneaux!$L:$L,FALSE))) ->  | CB11: =IF( INDIRECT( "BdCréneaux!"& INDIRECT("BdCréneaux!$Z"&MATCH(CB$6,BdCréneaux!$S$1:$Y$1,FALSE))& MATCH($A11,BdCréneaux!$L:$L,FALSE))=0,"", INDIRECT( "BdCréneaux!"& INDIRECT("BdCréneaux!$Z"&MATCH(CB$6,BdCréneaux!$S$1:$Y$1,FALSE))& MATCH($A11,BdCréneaux!$L:$L,FALSE))) -> x | CC11: =IF( INDIRECT( "BdCréneaux!"& INDIRECT("BdCréneaux!$Z"&MATCH(CC$6,BdCréneaux!$S$1:$Y$1,FALSE))& MATCH($A11,BdCréneaux!$L:$L,FALSE))=0,"", INDIRECT( "BdCréneaux!"& INDIRECT("BdCréneaux!$Z"&MATCH(CC$6,BdCréneaux!$S$1:$Y$1,FALSE))& MATCH($A11,BdCréneaux!$L:$L,FALSE))) ->  | CD11: =IF( INDIRECT( "BdCréneaux!"& INDIRECT("BdCréneaux!$Z"&MATCH(CD$6,BdCréneaux!$S$1:$Y$1,FALSE))& MATCH($A11,BdCréneaux!$L:$L,FALSE))=0,"", INDIRECT( "BdCréneaux!"& INDIRECT("BdCréneaux!$Z"&MATCH(CD$6,BdCréneaux!$S$1:$Y$1,FALSE))& MATCH($A11,BdCréneaux!$L:$L,FALSE))) ->  | CE11: =IF( INDIRECT( "BdCréneaux!"& INDIRECT("BdCréneaux!$Z"&MATCH(CE$6,BdCréneaux!$S$1:$Y$1,FALSE))& MATCH($A11,BdCréneaux!$L:$L,FALSE))=0,"", INDIRECT( "BdCréneaux!"& INDIRECT("BdCréneaux!$Z"&MATCH(CE$6,BdCréneaux!$S$1:$Y$1,FALSE))& MATCH($A11,BdCréneaux!$L:$L,FALSE))) ->  | CF11: =IF( INDIRECT( "BdCréneaux!"& INDIRECT("BdCréneaux!$Z"&MATCH(CF$6,BdCréneaux!$S$1:$Y$1,FALSE))& MATCH($A11,BdCréneaux!$L:$L,FALSE))=0,"", INDIRECT( "BdCréneaux!"& INDIRECT("BdCréneaux!$Z"&MATCH(CF$6,BdCréneaux!$S$1:$Y$1,FALSE))& MATCH($A11,BdCréneaux!$L:$L,FALSE))) ->  | CG11: =IF( INDIRECT( "BdCréneaux!"& INDIRECT("BdCréneaux!$Z"&MATCH(CG$6,BdCréneaux!$S$1:$Y$1,FALSE))& MATCH($A11,BdCréneaux!$L:$L,FALSE))=0,"", INDIRECT( "BdCréneaux!"& INDIRECT("BdCréneaux!$Z"&MATCH(CG$6,BdCréneaux!$S$1:$Y$1,FALSE))& MATCH($A11,BdCréneaux!$L:$L,FALSE))) ->  | CH11: =IF( INDIRECT( "BdCréneaux!"& INDIRECT("BdCréneaux!$Z"&MATCH(CH$6,BdCréneaux!$S$1:$Y$1,FALSE))& MATCH($A11,BdCréneaux!$L:$L,FALSE))=0,"", INDIRECT( "BdCréneaux!"& INDIRECT("BdCréneaux!$Z"&MATCH(CH$6,BdCréneaux!$S$1:$Y$1,FALSE))& MATCH($A11,BdCréneaux!$L:$L,FALSE))) -> 
A12: =IF(BdCréneaux!L5="","", BdCréneaux!L5) -> C2 | B12: =BdCréneaux!R5 -> Consult.Pédia.Chirurgie 14h00>16h00 | AI12: Consult.Pédia.Chirurgie 14h00>16h00 | BD12: =IF( INDIRECT( "BdCréneaux!"& INDIRECT("BdCréneaux!$Z"&MATCH(BD$6,BdCréneaux!$S$1:$Y$1,FALSE))& MATCH($A12,BdCréneaux!$L:$L,FALSE))=0,"", INDIRECT( "BdCréneaux!"& INDIRECT("BdCréneaux!$Z"&MATCH(BD$6,BdCréneaux!$S$1:$Y$1,FALSE))& MATCH($A12,BdCréneaux!$L:$L,FALSE))) -> x | BE12: =IF( INDIRECT( "BdCréneaux!"& INDIRECT("BdCréneaux!$Z"&MATCH(BE$6,BdCréneaux!$S$1:$Y$1,FALSE))& MATCH($A12,BdCréneaux!$L:$L,FALSE))=0,"", INDIRECT( "BdCréneaux!"& INDIRECT("BdCréneaux!$Z"&MATCH(BE$6,BdCréneaux!$S$1:$Y$1,FALSE))& MATCH($A12,BdCréneaux!$L:$L,FALSE))) -> x | BF12: =IF( INDIRECT( "BdCréneaux!"& INDIRECT("BdCréneaux!$Z"&MATCH(BF$6,BdCréneaux!$S$1:$Y$1,FALSE))& MATCH($A12,BdCréneaux!$L:$L,FALSE))=0,"", INDIRECT( "BdCréneaux!"& INDIRECT("BdCréneaux!$Z"&MATCH(BF$6,BdCréneaux!$S$1:$Y$1,FALSE))& MATCH($A12,BdCréneaux!$L:$L,FALSE))) -> x | BG12: =IF( INDIRECT( "BdCréneaux!"& INDIRECT("BdCréneaux!$Z"&MATCH(BG$6,BdCréneaux!$S$1:$Y$1,FALSE))& MATCH($A12,BdCréneaux!$L:$L,FALSE))=0,"", INDIRECT( "BdCréneaux!"& INDIRECT("BdCréneaux!$Z"&MATCH(BG$6,BdCréneaux!$S$1:$Y$1,FALSE))& MATCH($A12,BdCréneaux!$L:$L,FALSE))) ->  | BH12: =IF( INDIRECT( "BdCréneaux!"& INDIRECT("BdCréneaux!$Z"&MATCH(BH$6,BdCréneaux!$S$1:$Y$1,FALSE))& MATCH($A12,BdCréneaux!$L:$L,FALSE))=0,"", INDIRECT( "BdCréneaux!"& INDIRECT("BdCréneaux!$Z"&MATCH(BH$6,BdCréneaux!$S$1:$Y$1,FALSE))& MATCH($A12,BdCréneaux!$L:$L,FALSE))) ->  | BI12: =IF( INDIRECT( "BdCréneaux!"& INDIRECT("BdCréneaux!$Z"&MATCH(BI$6,BdCréneaux!$S$1:$Y$1,FALSE))& MATCH($A12,BdCréneaux!$L:$L,FALSE))=0,"", INDIRECT( "BdCréneaux!"& INDIRECT("BdCréneaux!$Z"&MATCH(BI$6,BdCréneaux!$S$1:$Y$1,FALSE))& MATCH($A12,BdCréneaux!$L:$L,FALSE))) ->  | BJ12: =IF( INDIRECT( "BdCréneaux!"& INDIRECT("BdCréneaux!$Z"&MATCH(BJ$6,BdCréneaux!$S$1:$Y$1,FALSE))& MATCH($A12,BdCréneaux!$L:$L,FALSE))=0,"", INDIRECT( "BdCréneaux!"& INDIRECT("BdCréneaux!$Z"&MATCH(BJ$6,BdCréneaux!$S$1:$Y$1,FALSE))& MATCH($A12,BdCréneaux!$L:$L,FALSE))) -> x | BK12: =IF( INDIRECT( "BdCréneaux!"& INDIRECT("BdCréneaux!$Z"&MATCH(BK$6,BdCréneaux!$S$1:$Y$1,FALSE))& MATCH($A12,BdCréneaux!$L:$L,FALSE))=0,"", INDIRECT( "BdCréneaux!"& INDIRECT("BdCréneaux!$Z"&MATCH(BK$6,BdCréneaux!$S$1:$Y$1,FALSE))& MATCH($A12,BdCréneaux!$L:$L,FALSE))) -> x | BL12: =IF( INDIRECT( "BdCréneaux!"& INDIRECT("BdCréneaux!$Z"&MATCH(BL$6,BdCréneaux!$S$1:$Y$1,FALSE))& MATCH($A12,BdCréneaux!$L:$L,FALSE))=0,"", INDIRECT( "BdCréneaux!"& INDIRECT("BdCréneaux!$Z"&MATCH(BL$6,BdCréneaux!$S$1:$Y$1,FALSE))& MATCH($A12,BdCréneaux!$L:$L,FALSE))) -> x | BM12: =IF( INDIRECT( "BdCréneaux!"& INDIRECT("BdCréneaux!$Z"&MATCH(BM$6,BdCréneaux!$S$1:$Y$1,FALSE))& MATCH($A12,BdCréneaux!$L:$L,FALSE))=0,"", INDIRECT( "BdCréneaux!"& INDIRECT("BdCréneaux!$Z"&MATCH(BM$6,BdCréneaux!$S$1:$Y$1,FALSE))& MATCH($A12,BdCréneaux!$L:$L,FALSE))) -> x | BN12: =IF( INDIRECT( "BdCréneaux!"& INDIRECT("BdCréneaux!$Z"&MATCH(BN$6,BdCréneaux!$S$1:$Y$1,FALSE))& MATCH($A12,BdCréneaux!$L:$L,FALSE))=0,"", INDIRECT( "BdCréneaux!"& INDIRECT("BdCréneaux!$Z"&MATCH(BN$6,BdCréneaux!$S$1:$Y$1,FALSE))& MATCH($A12,BdCréneaux!$L:$L,FALSE))) ->  | BO12: =IF( INDIRECT( "BdCréneaux!"& INDIRECT("BdCréneaux!$Z"&MATCH(BO$6,BdCréneaux!$S$1:$Y$1,FALSE))& MATCH($A12,BdCréneaux!$L:$L,FALSE))=0,"", INDIRECT( "BdCréneaux!"& INDIRECT("BdCréneaux!$Z"&MATCH(BO$6,BdCréneaux!$S$1:$Y$1,FALSE))& MATCH($A12,BdCréneaux!$L:$L,FALSE))) ->  | BP12: =IF( INDIRECT( "BdCréneaux!"& INDIRECT("BdCréneaux!$Z"&MATCH(BP$6,BdCréneaux!$S$1:$Y$1,FALSE))& MATCH($A12,BdCréneaux!$L:$L,FALSE))=0,"", INDIRECT( "BdCréneaux!"& INDIRECT("BdCréneaux!$Z"&MATCH(BP$6,BdCréneaux!$S$1:$Y$1,FALSE))& MATCH($A12,BdCréneaux!$L:$L,FALSE))) ->  | BQ12: =IF( INDIRECT( "BdCréneaux!"& INDIRECT("BdCréneaux!$Z"&MATCH(BQ$6,BdCréneaux!$S$1:$Y$1,FALSE))& MATCH($A12,BdCréneaux!$L:$L,FALSE))=0,"", INDIRECT( "BdCréneaux!"& INDIRECT("BdCréneaux!$Z"&MATCH(BQ$6,BdCréneaux!$S$1:$Y$1,FALSE))& MATCH($A12,BdCréneaux!$L:$L,FALSE))) -> x | BR12: =IF( INDIRECT( "BdCréneaux!"& INDIRECT("BdCréneaux!$Z"&MATCH(BR$6,BdCréneaux!$S$1:$Y$1,FALSE))& MATCH($A12,BdCréneaux!$L:$L,FALSE))=0,"", INDIRECT( "BdCréneaux!"& INDIRECT("BdCréneaux!$Z"&MATCH(BR$6,BdCréneaux!$S$1:$Y$1,FALSE))& MATCH($A12,BdCréneaux!$L:$L,FALSE))) -> x | BS12: =IF( INDIRECT( "BdCréneaux!"& INDIRECT("BdCréneaux!$Z"&MATCH(BS$6,BdCréneaux!$S$1:$Y$1,FALSE))& MATCH($A12,BdCréneaux!$L:$L,FALSE))=0,"", INDIRECT( "BdCréneaux!"& INDIRECT("BdCréneaux!$Z"&MATCH(BS$6,BdCréneaux!$S$1:$Y$1,FALSE))& MATCH($A12,BdCréneaux!$L:$L,FALSE))) -> x | BT12: =IF( INDIRECT( "BdCréneaux!"& INDIRECT("BdCréneaux!$Z"&MATCH(BT$6,BdCréneaux!$S$1:$Y$1,FALSE))& MATCH($A12,BdCréneaux!$L:$L,FALSE))=0,"", INDIRECT( "BdCréneaux!"& INDIRECT("BdCréneaux!$Z"&MATCH(BT$6,BdCréneaux!$S$1:$Y$1,FALSE))& MATCH($A12,BdCréneaux!$L:$L,FALSE))) -> x | BU12: =IF( INDIRECT( "BdCréneaux!"& INDIRECT("BdCréneaux!$Z"&MATCH(BU$6,BdCréneaux!$S$1:$Y$1,FALSE))& MATCH($A12,BdCréneaux!$L:$L,FALSE))=0,"", INDIRECT( "BdCréneaux!"& INDIRECT("BdCréneaux!$Z"&MATCH(BU$6,BdCréneaux!$S$1:$Y$1,FALSE))& MATCH($A12,BdCréneaux!$L:$L,FALSE))) ->  | BV12: =IF( INDIRECT( "BdCréneaux!"& INDIRECT("BdCréneaux!$Z"&MATCH(BV$6,BdCréneaux!$S$1:$Y$1,FALSE))& MATCH($A12,BdCréneaux!$L:$L,FALSE))=0,"", INDIRECT( "BdCréneaux!"& INDIRECT("BdCréneaux!$Z"&MATCH(BV$6,BdCréneaux!$S$1:$Y$1,FALSE))& MATCH($A12,BdCréneaux!$L:$L,FALSE))) ->  | BW12: =IF( INDIRECT( "BdCréneaux!"& INDIRECT("BdCréneaux!$Z"&MATCH(BW$6,BdCréneaux!$S$1:$Y$1,FALSE))& MATCH($A12,BdCréneaux!$L:$L,FALSE))=0,"", INDIRECT( "BdCréneaux!"& INDIRECT("BdCréneaux!$Z"&MATCH(BW$6,BdCréneaux!$S$1:$Y$1,FALSE))& MATCH($A12,BdCréneaux!$L:$L,FALSE))) ->  | BX12: =IF( INDIRECT( "BdCréneaux!"& INDIRECT("BdCréneaux!$Z"&MATCH(BX$6,BdCréneaux!$S$1:$Y$1,FALSE))& MATCH($A12,BdCréneaux!$L:$L,FALSE))=0,"", INDIRECT( "BdCréneaux!"& INDIRECT("BdCréneaux!$Z"&MATCH(BX$6,BdCréneaux!$S$1:$Y$1,FALSE))& MATCH($A12,BdCréneaux!$L:$L,FALSE))) -> x | BY12: =IF( INDIRECT( "BdCréneaux!"& INDIRECT("BdCréneaux!$Z"&MATCH(BY$6,BdCréneaux!$S$1:$Y$1,FALSE))& MATCH($A12,BdCréneaux!$L:$L,FALSE))=0,"", INDIRECT( "BdCréneaux!"& INDIRECT("BdCréneaux!$Z"&MATCH(BY$6,BdCréneaux!$S$1:$Y$1,FALSE))& MATCH($A12,BdCréneaux!$L:$L,FALSE))) -> x | BZ12: =IF( INDIRECT( "BdCréneaux!"& INDIRECT("BdCréneaux!$Z"&MATCH(BZ$6,BdCréneaux!$S$1:$Y$1,FALSE))& MATCH($A12,BdCréneaux!$L:$L,FALSE))=0,"", INDIRECT( "BdCréneaux!"& INDIRECT("BdCréneaux!$Z"&MATCH(BZ$6,BdCréneaux!$S$1:$Y$1,FALSE))& MATCH($A12,BdCréneaux!$L:$L,FALSE))) -> x | CA12: =IF( INDIRECT( "BdCréneaux!"& INDIRECT("BdCréneaux!$Z"&MATCH(CA$6,BdCréneaux!$S$1:$Y$1,FALSE))& MATCH($A12,BdCréneaux!$L:$L,FALSE))=0,"", INDIRECT( "BdCréneaux!"& INDIRECT("BdCréneaux!$Z"&MATCH(CA$6,BdCréneaux!$S$1:$Y$1,FALSE))& MATCH($A12,BdCréneaux!$L:$L,FALSE))) -> x | CB12: =IF( INDIRECT( "BdCréneaux!"& INDIRECT("BdCréneaux!$Z"&MATCH(CB$6,BdCréneaux!$S$1:$Y$1,FALSE))& MATCH($A12,BdCréneaux!$L:$L,FALSE))=0,"", INDIRECT( "BdCréneaux!"& INDIRECT("BdCréneaux!$Z"&MATCH(CB$6,BdCréneaux!$S$1:$Y$1,FALSE))& MATCH($A12,BdCréneaux!$L:$L,FALSE))) ->  | CC12: =IF( INDIRECT( "BdCréneaux!"& INDIRECT("BdCréneaux!$Z"&MATCH(CC$6,BdCréneaux!$S$1:$Y$1,FALSE))& MATCH($A12,BdCréneaux!$L:$L,FALSE))=0,"", INDIRECT( "BdCréneaux!"& INDIRECT("BdCréneaux!$Z"&MATCH(CC$6,BdCréneaux!$S$1:$Y$1,FALSE))& MATCH($A12,BdCréneaux!$L:$L,FALSE))) ->  | CD12: =IF( INDIRECT( "BdCréneaux!"& INDIRECT("BdCréneaux!$Z"&MATCH(CD$6,BdCréneaux!$S$1:$Y$1,FALSE))& MATCH($A12,BdCréneaux!$L:$L,FALSE))=0,"", INDIRECT( "BdCréneaux!"& INDIRECT("BdCréneaux!$Z"&MATCH(CD$6,BdCréneaux!$S$1:$Y$1,FALSE))& MATCH($A12,BdCréneaux!$L:$L,FALSE))) ->  | CE12: =IF( INDIRECT( "BdCréneaux!"& INDIRECT("BdCréneaux!$Z"&MATCH(CE$6,BdCréneaux!$S$1:$Y$1,FALSE))& MATCH($A12,BdCréneaux!$L:$L,FALSE))=0,"", INDIRECT( "BdCréneaux!"& INDIRECT("BdCréneaux!$Z"&MATCH(CE$6,BdCréneaux!$S$1:$Y$1,FALSE))& MATCH($A12,BdCréneaux!$L:$L,FALSE))) -> x | CF12: =IF( INDIRECT( "BdCréneaux!"& INDIRECT("BdCréneaux!$Z"&MATCH(CF$6,BdCréneaux!$S$1:$Y$1,FALSE))& MATCH($A12,BdCréneaux!$L:$L,FALSE))=0,"", INDIRECT( "BdCréneaux!"& INDIRECT("BdCréneaux!$Z"&MATCH(CF$6,BdCréneaux!$S$1:$Y$1,FALSE))& MATCH($A12,BdCréneaux!$L:$L,FALSE))) ->  | CG12: =IF( INDIRECT( "BdCréneaux!"& INDIRECT("BdCréneaux!$Z"&MATCH(CG$6,BdCréneaux!$S$1:$Y$1,FALSE))& MATCH($A12,BdCréneaux!$L:$L,FALSE))=0,"", INDIRECT( "BdCréneaux!"& INDIRECT("BdCréneaux!$Z"&MATCH(CG$6,BdCréneaux!$S$1:$Y$1,FALSE))& MATCH($A12,BdCréneaux!$L:$L,FALSE))) ->  | CH12: =IF( INDIRECT( "BdCréneaux!"& INDIRECT("BdCréneaux!$Z"&MATCH(CH$6,BdCréneaux!$S$1:$Y$1,FALSE))& MATCH($A12,BdCréneaux!$L:$L,FALSE))=0,"", INDIRECT( "BdCréneaux!"& INDIRECT("BdCréneaux!$Z"&MATCH(CH$6,BdCréneaux!$S$1:$Y$1,FALSE))& MATCH($A12,BdCréneaux!$L:$L,FALSE))) -> 
A13: =IF(BdCréneaux!L6="","", BdCréneaux!L6) -> H1 | B13: =BdCréneaux!R6 -> Hôpital Jour 14h00>16h00 | AI13: Hôpital Jour 14h00>16h00 | BD13: =IF( INDIRECT( "BdCréneaux!"& INDIRECT("BdCréneaux!$Z"&MATCH(BD$6,BdCréneaux!$S$1:$Y$1,FALSE))& MATCH($A13,BdCréneaux!$L:$L,FALSE))=0,"", INDIRECT( "BdCréneaux!"& INDIRECT("BdCréneaux!$Z"&MATCH(BD$6,BdCréneaux!$S$1:$Y$1,FALSE))& MATCH($A13,BdCréneaux!$L:$L,FALSE))) ->  | BE13: =IF( INDIRECT( "BdCréneaux!"& INDIRECT("BdCréneaux!$Z"&MATCH(BE$6,BdCréneaux!$S$1:$Y$1,FALSE))& MATCH($A13,BdCréneaux!$L:$L,FALSE))=0,"", INDIRECT( "BdCréneaux!"& INDIRECT("BdCréneaux!$Z"&MATCH(BE$6,BdCréneaux!$S$1:$Y$1,FALSE))& MATCH($A13,BdCréneaux!$L:$L,FALSE))) -> x | BF13: =IF( INDIRECT( "BdCréneaux!"& INDIRECT("BdCréneaux!$Z"&MATCH(BF$6,BdCréneaux!$S$1:$Y$1,FALSE))& MATCH($A13,BdCréneaux!$L:$L,FALSE))=0,"", INDIRECT( "BdCréneaux!"& INDIRECT("BdCréneaux!$Z"&MATCH(BF$6,BdCréneaux!$S$1:$Y$1,FALSE))& MATCH($A13,BdCréneaux!$L:$L,FALSE))) ->  | BG13: =IF( INDIRECT( "BdCréneaux!"& INDIRECT("BdCréneaux!$Z"&MATCH(BG$6,BdCréneaux!$S$1:$Y$1,FALSE))& MATCH($A13,BdCréneaux!$L:$L,FALSE))=0,"", INDIRECT( "BdCréneaux!"& INDIRECT("BdCréneaux!$Z"&MATCH(BG$6,BdCréneaux!$S$1:$Y$1,FALSE))& MATCH($A13,BdCréneaux!$L:$L,FALSE))) -> x | BH13: =IF( INDIRECT( "BdCréneaux!"& INDIRECT("BdCréneaux!$Z"&MATCH(BH$6,BdCréneaux!$S$1:$Y$1,FALSE))& MATCH($A13,BdCréneaux!$L:$L,FALSE))=0,"", INDIRECT( "BdCréneaux!"& INDIRECT("BdCréneaux!$Z"&MATCH(BH$6,BdCréneaux!$S$1:$Y$1,FALSE))& MATCH($A13,BdCréneaux!$L:$L,FALSE))) ->  | BI13: =IF( INDIRECT( "BdCréneaux!"& INDIRECT("BdCréneaux!$Z"&MATCH(BI$6,BdCréneaux!$S$1:$Y$1,FALSE))& MATCH($A13,BdCréneaux!$L:$L,FALSE))=0,"", INDIRECT( "BdCréneaux!"& INDIRECT("BdCréneaux!$Z"&MATCH(BI$6,BdCréneaux!$S$1:$Y$1,FALSE))& MATCH($A13,BdCréneaux!$L:$L,FALSE))) ->  | BJ13: =IF( INDIRECT( "BdCréneaux!"& INDIRECT("BdCréneaux!$Z"&MATCH(BJ$6,BdCréneaux!$S$1:$Y$1,FALSE))& MATCH($A13,BdCréneaux!$L:$L,FALSE))=0,"", INDIRECT( "BdCréneaux!"& INDIRECT("BdCréneaux!$Z"&MATCH(BJ$6,BdCréneaux!$S$1:$Y$1,FALSE))& MATCH($A13,BdCréneaux!$L:$L,FALSE))) ->  | BK13: =IF( INDIRECT( "BdCréneaux!"& INDIRECT("BdCréneaux!$Z"&MATCH(BK$6,BdCréneaux!$S$1:$Y$1,FALSE))& MATCH($A13,BdCréneaux!$L:$L,FALSE))=0,"", INDIRECT( "BdCréneaux!"& INDIRECT("BdCréneaux!$Z"&MATCH(BK$6,BdCréneaux!$S$1:$Y$1,FALSE))& MATCH($A13,BdCréneaux!$L:$L,FALSE))) ->  | BL13: =IF( INDIRECT( "BdCréneaux!"& INDIRECT("BdCréneaux!$Z"&MATCH(BL$6,BdCréneaux!$S$1:$Y$1,FALSE))& MATCH($A13,BdCréneaux!$L:$L,FALSE))=0,"", INDIRECT( "BdCréneaux!"& INDIRECT("BdCréneaux!$Z"&MATCH(BL$6,BdCréneaux!$S$1:$Y$1,FALSE))& MATCH($A13,BdCréneaux!$L:$L,FALSE))) -> x | BM13: =IF( INDIRECT( "BdCréneaux!"& INDIRECT("BdCréneaux!$Z"&MATCH(BM$6,BdCréneaux!$S$1:$Y$1,FALSE))& MATCH($A13,BdCréneaux!$L:$L,FALSE))=0,"", INDIRECT( "BdCréneaux!"& INDIRECT("BdCréneaux!$Z"&MATCH(BM$6,BdCréneaux!$S$1:$Y$1,FALSE))& MATCH($A13,BdCréneaux!$L:$L,FALSE))) ->  | BN13: =IF( INDIRECT( "BdCréneaux!"& INDIRECT("BdCréneaux!$Z"&MATCH(BN$6,BdCréneaux!$S$1:$Y$1,FALSE))& MATCH($A13,BdCréneaux!$L:$L,FALSE))=0,"", INDIRECT( "BdCréneaux!"& INDIRECT("BdCréneaux!$Z"&MATCH(BN$6,BdCréneaux!$S$1:$Y$1,FALSE))& MATCH($A13,BdCréneaux!$L:$L,FALSE))) -> x | BO13: =IF( INDIRECT( "BdCréneaux!"& INDIRECT("BdCréneaux!$Z"&MATCH(BO$6,BdCréneaux!$S$1:$Y$1,FALSE))& MATCH($A13,BdCréneaux!$L:$L,FALSE))=0,"", INDIRECT( "BdCréneaux!"& INDIRECT("BdCréneaux!$Z"&MATCH(BO$6,BdCréneaux!$S$1:$Y$1,FALSE))& MATCH($A13,BdCréneaux!$L:$L,FALSE))) ->  | BP13: =IF( INDIRECT( "BdCréneaux!"& INDIRECT("BdCréneaux!$Z"&MATCH(BP$6,BdCréneaux!$S$1:$Y$1,FALSE))& MATCH($A13,BdCréneaux!$L:$L,FALSE))=0,"", INDIRECT( "BdCréneaux!"& INDIRECT("BdCréneaux!$Z"&MATCH(BP$6,BdCréneaux!$S$1:$Y$1,FALSE))& MATCH($A13,BdCréneaux!$L:$L,FALSE))) ->  | BQ13: =IF( INDIRECT( "BdCréneaux!"& INDIRECT("BdCréneaux!$Z"&MATCH(BQ$6,BdCréneaux!$S$1:$Y$1,FALSE))& MATCH($A13,BdCréneaux!$L:$L,FALSE))=0,"", INDIRECT( "BdCréneaux!"& INDIRECT("BdCréneaux!$Z"&MATCH(BQ$6,BdCréneaux!$S$1:$Y$1,FALSE))& MATCH($A13,BdCréneaux!$L:$L,FALSE))) ->  | BR13: =IF( INDIRECT( "BdCréneaux!"& INDIRECT("BdCréneaux!$Z"&MATCH(BR$6,BdCréneaux!$S$1:$Y$1,FALSE))& MATCH($A13,BdCréneaux!$L:$L,FALSE))=0,"", INDIRECT( "BdCréneaux!"& INDIRECT("BdCréneaux!$Z"&MATCH(BR$6,BdCréneaux!$S$1:$Y$1,FALSE))& MATCH($A13,BdCréneaux!$L:$L,FALSE))) ->  | BS13: =IF( INDIRECT( "BdCréneaux!"& INDIRECT("BdCréneaux!$Z"&MATCH(BS$6,BdCréneaux!$S$1:$Y$1,FALSE))& MATCH($A13,BdCréneaux!$L:$L,FALSE))=0,"", INDIRECT( "BdCréneaux!"& INDIRECT("BdCréneaux!$Z"&MATCH(BS$6,BdCréneaux!$S$1:$Y$1,FALSE))& MATCH($A13,BdCréneaux!$L:$L,FALSE))) -> x | BT13: =IF( INDIRECT( "BdCréneaux!"& INDIRECT("BdCréneaux!$Z"&MATCH(BT$6,BdCréneaux!$S$1:$Y$1,FALSE))& MATCH($A13,BdCréneaux!$L:$L,FALSE))=0,"", INDIRECT( "BdCréneaux!"& INDIRECT("BdCréneaux!$Z"&MATCH(BT$6,BdCréneaux!$S$1:$Y$1,FALSE))& MATCH($A13,BdCréneaux!$L:$L,FALSE))) ->  | BU13: =IF( INDIRECT( "BdCréneaux!"& INDIRECT("BdCréneaux!$Z"&MATCH(BU$6,BdCréneaux!$S$1:$Y$1,FALSE))& MATCH($A13,BdCréneaux!$L:$L,FALSE))=0,"", INDIRECT( "BdCréneaux!"& INDIRECT("BdCréneaux!$Z"&MATCH(BU$6,BdCréneaux!$S$1:$Y$1,FALSE))& MATCH($A13,BdCréneaux!$L:$L,FALSE))) -> x | BV13: =IF( INDIRECT( "BdCréneaux!"& INDIRECT("BdCréneaux!$Z"&MATCH(BV$6,BdCréneaux!$S$1:$Y$1,FALSE))& MATCH($A13,BdCréneaux!$L:$L,FALSE))=0,"", INDIRECT( "BdCréneaux!"& INDIRECT("BdCréneaux!$Z"&MATCH(BV$6,BdCréneaux!$S$1:$Y$1,FALSE))& MATCH($A13,BdCréneaux!$L:$L,FALSE))) ->  | BW13: =IF( INDIRECT( "BdCréneaux!"& INDIRECT("BdCréneaux!$Z"&MATCH(BW$6,BdCréneaux!$S$1:$Y$1,FALSE))& MATCH($A13,BdCréneaux!$L:$L,FALSE))=0,"", INDIRECT( "BdCréneaux!"& INDIRECT("BdCréneaux!$Z"&MATCH(BW$6,BdCréneaux!$S$1:$Y$1,FALSE))& MATCH($A13,BdCréneaux!$L:$L,FALSE))) ->  | BX13: =IF( INDIRECT( "BdCréneaux!"& INDIRECT("BdCréneaux!$Z"&MATCH(BX$6,BdCréneaux!$S$1:$Y$1,FALSE))& MATCH($A13,BdCréneaux!$L:$L,FALSE))=0,"", INDIRECT( "BdCréneaux!"& INDIRECT("BdCréneaux!$Z"&MATCH(BX$6,BdCréneaux!$S$1:$Y$1,FALSE))& MATCH($A13,BdCréneaux!$L:$L,FALSE))) ->  | BY13: =IF( INDIRECT( "BdCréneaux!"& INDIRECT("BdCréneaux!$Z"&MATCH(BY$6,BdCréneaux!$S$1:$Y$1,FALSE))& MATCH($A13,BdCréneaux!$L:$L,FALSE))=0,"", INDIRECT( "BdCréneaux!"& INDIRECT("BdCréneaux!$Z"&MATCH(BY$6,BdCréneaux!$S$1:$Y$1,FALSE))& MATCH($A13,BdCréneaux!$L:$L,FALSE))) ->  | BZ13: =IF( INDIRECT( "BdCréneaux!"& INDIRECT("BdCréneaux!$Z"&MATCH(BZ$6,BdCréneaux!$S$1:$Y$1,FALSE))& MATCH($A13,BdCréneaux!$L:$L,FALSE))=0,"", INDIRECT( "BdCréneaux!"& INDIRECT("BdCréneaux!$Z"&MATCH(BZ$6,BdCréneaux!$S$1:$Y$1,FALSE))& MATCH($A13,BdCréneaux!$L:$L,FALSE))) -> x | CA13: =IF( INDIRECT( "BdCréneaux!"& INDIRECT("BdCréneaux!$Z"&MATCH(CA$6,BdCréneaux!$S$1:$Y$1,FALSE))& MATCH($A13,BdCréneaux!$L:$L,FALSE))=0,"", INDIRECT( "BdCréneaux!"& INDIRECT("BdCréneaux!$Z"&MATCH(CA$6,BdCréneaux!$S$1:$Y$1,FALSE))& MATCH($A13,BdCréneaux!$L:$L,FALSE))) ->  | CB13: =IF( INDIRECT( "BdCréneaux!"& INDIRECT("BdCréneaux!$Z"&MATCH(CB$6,BdCréneaux!$S$1:$Y$1,FALSE))& MATCH($A13,BdCréneaux!$L:$L,FALSE))=0,"", INDIRECT( "BdCréneaux!"& INDIRECT("BdCréneaux!$Z"&MATCH(CB$6,BdCréneaux!$S$1:$Y$1,FALSE))& MATCH($A13,BdCréneaux!$L:$L,FALSE))) -> x | CC13: =IF( INDIRECT( "BdCréneaux!"& INDIRECT("BdCréneaux!$Z"&MATCH(CC$6,BdCréneaux!$S$1:$Y$1,FALSE))& MATCH($A13,BdCréneaux!$L:$L,FALSE))=0,"", INDIRECT( "BdCréneaux!"& INDIRECT("BdCréneaux!$Z"&MATCH(CC$6,BdCréneaux!$S$1:$Y$1,FALSE))& MATCH($A13,BdCréneaux!$L:$L,FALSE))) ->  | CD13: =IF( INDIRECT( "BdCréneaux!"& INDIRECT("BdCréneaux!$Z"&MATCH(CD$6,BdCréneaux!$S$1:$Y$1,FALSE))& MATCH($A13,BdCréneaux!$L:$L,FALSE))=0,"", INDIRECT( "BdCréneaux!"& INDIRECT("BdCréneaux!$Z"&MATCH(CD$6,BdCréneaux!$S$1:$Y$1,FALSE))& MATCH($A13,BdCréneaux!$L:$L,FALSE))) ->  | CE13: =IF( INDIRECT( "BdCréneaux!"& INDIRECT("BdCréneaux!$Z"&MATCH(CE$6,BdCréneaux!$S$1:$Y$1,FALSE))& MATCH($A13,BdCréneaux!$L:$L,FALSE))=0,"", INDIRECT( "BdCréneaux!"& INDIRECT("BdCréneaux!$Z"&MATCH(CE$6,BdCréneaux!$S$1:$Y$1,FALSE))& MATCH($A13,BdCréneaux!$L:$L,FALSE))) ->  | CF13: =IF( INDIRECT( "BdCréneaux!"& INDIRECT("BdCréneaux!$Z"&MATCH(CF$6,BdCréneaux!$S$1:$Y$1,FALSE))& MATCH($A13,BdCréneaux!$L:$L,FALSE))=0,"", INDIRECT( "BdCréneaux!"& INDIRECT("BdCréneaux!$Z"&MATCH(CF$6,BdCréneaux!$S$1:$Y$1,FALSE))& MATCH($A13,BdCréneaux!$L:$L,FALSE))) ->  | CG13: =IF( INDIRECT( "BdCréneaux!"& INDIRECT("BdCréneaux!$Z"&MATCH(CG$6,BdCréneaux!$S$1:$Y$1,FALSE))& MATCH($A13,BdCréneaux!$L:$L,FALSE))=0,"", INDIRECT( "BdCréneaux!"& INDIRECT("BdCréneaux!$Z"&MATCH(CG$6,BdCréneaux!$S$1:$Y$1,FALSE))& MATCH($A13,BdCréneaux!$L:$L,FALSE))) ->  | CH13: =IF( INDIRECT( "BdCréneaux!"& INDIRECT("BdCréneaux!$Z"&MATCH(CH$6,BdCréneaux!$S$1:$Y$1,FALSE))& MATCH($A13,BdCréneaux!$L:$L,FALSE))=0,"", INDIRECT( "BdCréneaux!"& INDIRECT("BdCréneaux!$Z"&MATCH(CH$6,BdCréneaux!$S$1:$Y$1,FALSE))& MATCH($A13,BdCréneaux!$L:$L,FALSE))) -> 
A14: =IF(BdCréneaux!L7="","", BdCréneaux!L7) -> M1 | B14: =BdCréneaux!R7 -> Consult.Pédia. Médecine 10h00>12h00 | AI14: Consult.Pédia. Médecine 10h00>12h00 | BD14: =IF( INDIRECT( "BdCréneaux!"& INDIRECT("BdCréneaux!$Z"&MATCH(BD$6,BdCréneaux!$S$1:$Y$1,FALSE))& MATCH($A14,BdCréneaux!$L:$L,FALSE))=0,"", INDIRECT( "BdCréneaux!"& INDIRECT("BdCréneaux!$Z"&MATCH(BD$6,BdCréneaux!$S$1:$Y$1,FALSE))& MATCH($A14,BdCréneaux!$L:$L,FALSE))) -> x | BE14: =IF( INDIRECT( "BdCréneaux!"& INDIRECT("BdCréneaux!$Z"&MATCH(BE$6,BdCréneaux!$S$1:$Y$1,FALSE))& MATCH($A14,BdCréneaux!$L:$L,FALSE))=0,"", INDIRECT( "BdCréneaux!"& INDIRECT("BdCréneaux!$Z"&MATCH(BE$6,BdCréneaux!$S$1:$Y$1,FALSE))& MATCH($A14,BdCréneaux!$L:$L,FALSE))) -> x | BF14: =IF( INDIRECT( "BdCréneaux!"& INDIRECT("BdCréneaux!$Z"&MATCH(BF$6,BdCréneaux!$S$1:$Y$1,FALSE))& MATCH($A14,BdCréneaux!$L:$L,FALSE))=0,"", INDIRECT( "BdCréneaux!"& INDIRECT("BdCréneaux!$Z"&MATCH(BF$6,BdCréneaux!$S$1:$Y$1,FALSE))& MATCH($A14,BdCréneaux!$L:$L,FALSE))) ->  | BG14: =IF( INDIRECT( "BdCréneaux!"& INDIRECT("BdCréneaux!$Z"&MATCH(BG$6,BdCréneaux!$S$1:$Y$1,FALSE))& MATCH($A14,BdCréneaux!$L:$L,FALSE))=0,"", INDIRECT( "BdCréneaux!"& INDIRECT("BdCréneaux!$Z"&MATCH(BG$6,BdCréneaux!$S$1:$Y$1,FALSE))& MATCH($A14,BdCréneaux!$L:$L,FALSE))) -> x | BH14: =IF( INDIRECT( "BdCréneaux!"& INDIRECT("BdCréneaux!$Z"&MATCH(BH$6,BdCréneaux!$S$1:$Y$1,FALSE))& MATCH($A14,BdCréneaux!$L:$L,FALSE))=0,"", INDIRECT( "BdCréneaux!"& INDIRECT("BdCréneaux!$Z"&MATCH(BH$6,BdCréneaux!$S$1:$Y$1,FALSE))& MATCH($A14,BdCréneaux!$L:$L,FALSE))) ->  | BI14: =IF( INDIRECT( "BdCréneaux!"& INDIRECT("BdCréneaux!$Z"&MATCH(BI$6,BdCréneaux!$S$1:$Y$1,FALSE))& MATCH($A14,BdCréneaux!$L:$L,FALSE))=0,"", INDIRECT( "BdCréneaux!"& INDIRECT("BdCréneaux!$Z"&MATCH(BI$6,BdCréneaux!$S$1:$Y$1,FALSE))& MATCH($A14,BdCréneaux!$L:$L,FALSE))) ->  | BJ14: =IF( INDIRECT( "BdCréneaux!"& INDIRECT("BdCréneaux!$Z"&MATCH(BJ$6,BdCréneaux!$S$1:$Y$1,FALSE))& MATCH($A14,BdCréneaux!$L:$L,FALSE))=0,"", INDIRECT( "BdCréneaux!"& INDIRECT("BdCréneaux!$Z"&MATCH(BJ$6,BdCréneaux!$S$1:$Y$1,FALSE))& MATCH($A14,BdCréneaux!$L:$L,FALSE))) ->  | BK14: =IF( INDIRECT( "BdCréneaux!"& INDIRECT("BdCréneaux!$Z"&MATCH(BK$6,BdCréneaux!$S$1:$Y$1,FALSE))& MATCH($A14,BdCréneaux!$L:$L,FALSE))=0,"", INDIRECT( "BdCréneaux!"& INDIRECT("BdCréneaux!$Z"&MATCH(BK$6,BdCréneaux!$S$1:$Y$1,FALSE))& MATCH($A14,BdCréneaux!$L:$L,FALSE))) -> x | BL14: =IF( INDIRECT( "BdCréneaux!"& INDIRECT("BdCréneaux!$Z"&MATCH(BL$6,BdCréneaux!$S$1:$Y$1,FALSE))& MATCH($A14,BdCréneaux!$L:$L,FALSE))=0,"", INDIRECT( "BdCréneaux!"& INDIRECT("BdCréneaux!$Z"&MATCH(BL$6,BdCréneaux!$S$1:$Y$1,FALSE))& MATCH($A14,BdCréneaux!$L:$L,FALSE))) -> x | BM14: =IF( INDIRECT( "BdCréneaux!"& INDIRECT("BdCréneaux!$Z"&MATCH(BM$6,BdCréneaux!$S$1:$Y$1,FALSE))& MATCH($A14,BdCréneaux!$L:$L,FALSE))=0,"", INDIRECT( "BdCréneaux!"& INDIRECT("BdCréneaux!$Z"&MATCH(BM$6,BdCréneaux!$S$1:$Y$1,FALSE))& MATCH($A14,BdCréneaux!$L:$L,FALSE))) ->  | BN14: =IF( INDIRECT( "BdCréneaux!"& INDIRECT("BdCréneaux!$Z"&MATCH(BN$6,BdCréneaux!$S$1:$Y$1,FALSE))& MATCH($A14,BdCréneaux!$L:$L,FALSE))=0,"", INDIRECT( "BdCréneaux!"& INDIRECT("BdCréneaux!$Z"&MATCH(BN$6,BdCréneaux!$S$1:$Y$1,FALSE))& MATCH($A14,BdCréneaux!$L:$L,FALSE))) -> x | BO14: =IF( INDIRECT( "BdCréneaux!"& INDIRECT("BdCréneaux!$Z"&MATCH(BO$6,BdCréneaux!$S$1:$Y$1,FALSE))& MATCH($A14,BdCréneaux!$L:$L,FALSE))=0,"", INDIRECT( "BdCréneaux!"& INDIRECT("BdCréneaux!$Z"&MATCH(BO$6,BdCréneaux!$S$1:$Y$1,FALSE))& MATCH($A14,BdCréneaux!$L:$L,FALSE))) ->  | BP14: =IF( INDIRECT( "BdCréneaux!"& INDIRECT("BdCréneaux!$Z"&MATCH(BP$6,BdCréneaux!$S$1:$Y$1,FALSE))& MATCH($A14,BdCréneaux!$L:$L,FALSE))=0,"", INDIRECT( "BdCréneaux!"& INDIRECT("BdCréneaux!$Z"&MATCH(BP$6,BdCréneaux!$S$1:$Y$1,FALSE))& MATCH($A14,BdCréneaux!$L:$L,FALSE))) ->  | BQ14: =IF( INDIRECT( "BdCréneaux!"& INDIRECT("BdCréneaux!$Z"&MATCH(BQ$6,BdCréneaux!$S$1:$Y$1,FALSE))& MATCH($A14,BdCréneaux!$L:$L,FALSE))=0,"", INDIRECT( "BdCréneaux!"& INDIRECT("BdCréneaux!$Z"&MATCH(BQ$6,BdCréneaux!$S$1:$Y$1,FALSE))& MATCH($A14,BdCréneaux!$L:$L,FALSE))) ->  | BR14: =IF( INDIRECT( "BdCréneaux!"& INDIRECT("BdCréneaux!$Z"&MATCH(BR$6,BdCréneaux!$S$1:$Y$1,FALSE))& MATCH($A14,BdCréneaux!$L:$L,FALSE))=0,"", INDIRECT( "BdCréneaux!"& INDIRECT("BdCréneaux!$Z"&MATCH(BR$6,BdCréneaux!$S$1:$Y$1,FALSE))& MATCH($A14,BdCréneaux!$L:$L,FALSE))) -> x | BS14: =IF( INDIRECT( "BdCréneaux!"& INDIRECT("BdCréneaux!$Z"&MATCH(BS$6,BdCréneaux!$S$1:$Y$1,FALSE))& MATCH($A14,BdCréneaux!$L:$L,FALSE))=0,"", INDIRECT( "BdCréneaux!"& INDIRECT("BdCréneaux!$Z"&MATCH(BS$6,BdCréneaux!$S$1:$Y$1,FALSE))& MATCH($A14,BdCréneaux!$L:$L,FALSE))) -> x | BT14: =IF( INDIRECT( "BdCréneaux!"& INDIRECT("BdCréneaux!$Z"&MATCH(BT$6,BdCréneaux!$S$1:$Y$1,FALSE))& MATCH($A14,BdCréneaux!$L:$L,FALSE))=0,"", INDIRECT( "BdCréneaux!"& INDIRECT("BdCréneaux!$Z"&MATCH(BT$6,BdCréneaux!$S$1:$Y$1,FALSE))& MATCH($A14,BdCréneaux!$L:$L,FALSE))) ->  | BU14: =IF( INDIRECT( "BdCréneaux!"& INDIRECT("BdCréneaux!$Z"&MATCH(BU$6,BdCréneaux!$S$1:$Y$1,FALSE))& MATCH($A14,BdCréneaux!$L:$L,FALSE))=0,"", INDIRECT( "BdCréneaux!"& INDIRECT("BdCréneaux!$Z"&MATCH(BU$6,BdCréneaux!$S$1:$Y$1,FALSE))& MATCH($A14,BdCréneaux!$L:$L,FALSE))) -> x | BV14: =IF( INDIRECT( "BdCréneaux!"& INDIRECT("BdCréneaux!$Z"&MATCH(BV$6,BdCréneaux!$S$1:$Y$1,FALSE))& MATCH($A14,BdCréneaux!$L:$L,FALSE))=0,"", INDIRECT( "BdCréneaux!"& INDIRECT("BdCréneaux!$Z"&MATCH(BV$6,BdCréneaux!$S$1:$Y$1,FALSE))& MATCH($A14,BdCréneaux!$L:$L,FALSE))) ->  | BW14: =IF( INDIRECT( "BdCréneaux!"& INDIRECT("BdCréneaux!$Z"&MATCH(BW$6,BdCréneaux!$S$1:$Y$1,FALSE))& MATCH($A14,BdCréneaux!$L:$L,FALSE))=0,"", INDIRECT( "BdCréneaux!"& INDIRECT("BdCréneaux!$Z"&MATCH(BW$6,BdCréneaux!$S$1:$Y$1,FALSE))& MATCH($A14,BdCréneaux!$L:$L,FALSE))) ->  | BX14: =IF( INDIRECT( "BdCréneaux!"& INDIRECT("BdCréneaux!$Z"&MATCH(BX$6,BdCréneaux!$S$1:$Y$1,FALSE))& MATCH($A14,BdCréneaux!$L:$L,FALSE))=0,"", INDIRECT( "BdCréneaux!"& INDIRECT("BdCréneaux!$Z"&MATCH(BX$6,BdCréneaux!$S$1:$Y$1,FALSE))& MATCH($A14,BdCréneaux!$L:$L,FALSE))) ->  | BY14: =IF( INDIRECT( "BdCréneaux!"& INDIRECT("BdCréneaux!$Z"&MATCH(BY$6,BdCréneaux!$S$1:$Y$1,FALSE))& MATCH($A14,BdCréneaux!$L:$L,FALSE))=0,"", INDIRECT( "BdCréneaux!"& INDIRECT("BdCréneaux!$Z"&MATCH(BY$6,BdCréneaux!$S$1:$Y$1,FALSE))& MATCH($A14,BdCréneaux!$L:$L,FALSE))) -> x | BZ14: =IF( INDIRECT( "BdCréneaux!"& INDIRECT("BdCréneaux!$Z"&MATCH(BZ$6,BdCréneaux!$S$1:$Y$1,FALSE))& MATCH($A14,BdCréneaux!$L:$L,FALSE))=0,"", INDIRECT( "BdCréneaux!"& INDIRECT("BdCréneaux!$Z"&MATCH(BZ$6,BdCréneaux!$S$1:$Y$1,FALSE))& MATCH($A14,BdCréneaux!$L:$L,FALSE))) -> x | CA14: =IF( INDIRECT( "BdCréneaux!"& INDIRECT("BdCréneaux!$Z"&MATCH(CA$6,BdCréneaux!$S$1:$Y$1,FALSE))& MATCH($A14,BdCréneaux!$L:$L,FALSE))=0,"", INDIRECT( "BdCréneaux!"& INDIRECT("BdCréneaux!$Z"&MATCH(CA$6,BdCréneaux!$S$1:$Y$1,FALSE))& MATCH($A14,BdCréneaux!$L:$L,FALSE))) ->  | CB14: =IF( INDIRECT( "BdCréneaux!"& INDIRECT("BdCréneaux!$Z"&MATCH(CB$6,BdCréneaux!$S$1:$Y$1,FALSE))& MATCH($A14,BdCréneaux!$L:$L,FALSE))=0,"", INDIRECT( "BdCréneaux!"& INDIRECT("BdCréneaux!$Z"&MATCH(CB$6,BdCréneaux!$S$1:$Y$1,FALSE))& MATCH($A14,BdCréneaux!$L:$L,FALSE))) -> x | CC14: =IF( INDIRECT( "BdCréneaux!"& INDIRECT("BdCréneaux!$Z"&MATCH(CC$6,BdCréneaux!$S$1:$Y$1,FALSE))& MATCH($A14,BdCréneaux!$L:$L,FALSE))=0,"", INDIRECT( "BdCréneaux!"& INDIRECT("BdCréneaux!$Z"&MATCH(CC$6,BdCréneaux!$S$1:$Y$1,FALSE))& MATCH($A14,BdCréneaux!$L:$L,FALSE))) ->  | CD14: =IF( INDIRECT( "BdCréneaux!"& INDIRECT("BdCréneaux!$Z"&MATCH(CD$6,BdCréneaux!$S$1:$Y$1,FALSE))& MATCH($A14,BdCréneaux!$L:$L,FALSE))=0,"", INDIRECT( "BdCréneaux!"& INDIRECT("BdCréneaux!$Z"&MATCH(CD$6,BdCréneaux!$S$1:$Y$1,FALSE))& MATCH($A14,BdCréneaux!$L:$L,FALSE))) ->  | CE14: =IF( INDIRECT( "BdCréneaux!"& INDIRECT("BdCréneaux!$Z"&MATCH(CE$6,BdCréneaux!$S$1:$Y$1,FALSE))& MATCH($A14,BdCréneaux!$L:$L,FALSE))=0,"", INDIRECT( "BdCréneaux!"& INDIRECT("BdCréneaux!$Z"&MATCH(CE$6,BdCréneaux!$S$1:$Y$1,FALSE))& MATCH($A14,BdCréneaux!$L:$L,FALSE))) ->  | CF14: =IF( INDIRECT( "BdCréneaux!"& INDIRECT("BdCréneaux!$Z"&MATCH(CF$6,BdCréneaux!$S$1:$Y$1,FALSE))& MATCH($A14,BdCréneaux!$L:$L,FALSE))=0,"", INDIRECT( "BdCréneaux!"& INDIRECT("BdCréneaux!$Z"&MATCH(CF$6,BdCréneaux!$S$1:$Y$1,FALSE))& MATCH($A14,BdCréneaux!$L:$L,FALSE))) ->  | CG14: =IF( INDIRECT( "BdCréneaux!"& INDIRECT("BdCréneaux!$Z"&MATCH(CG$6,BdCréneaux!$S$1:$Y$1,FALSE))& MATCH($A14,BdCréneaux!$L:$L,FALSE))=0,"", INDIRECT( "BdCréneaux!"& INDIRECT("BdCréneaux!$Z"&MATCH(CG$6,BdCréneaux!$S$1:$Y$1,FALSE))& MATCH($A14,BdCréneaux!$L:$L,FALSE))) ->  | CH14: =IF( INDIRECT( "BdCréneaux!"& INDIRECT("BdCréneaux!$Z"&MATCH(CH$6,BdCréneaux!$S$1:$Y$1,FALSE))& MATCH($A14,BdCréneaux!$L:$L,FALSE))=0,"", INDIRECT( "BdCréneaux!"& INDIRECT("BdCréneaux!$Z"&MATCH(CH$6,BdCréneaux!$S$1:$Y$1,FALSE))& MATCH($A14,BdCréneaux!$L:$L,FALSE))) -> 
A15: =IF(BdCréneaux!L8="","", BdCréneaux!L8) -> M2 | B15: =BdCréneaux!R8 -> Consult.Pédia. Médecine 14h00>16h00 | AI15: =B15 -> Consult.Pédia. Médecine 14h00>16h00 | BD15: =IF( INDIRECT( "BdCréneaux!"& INDIRECT("BdCréneaux!$Z"&MATCH(BD$6,BdCréneaux!$S$1:$Y$1,FALSE))& MATCH($A15,BdCréneaux!$L:$L,FALSE))=0,"", INDIRECT( "BdCréneaux!"& INDIRECT("BdCréneaux!$Z"&MATCH(BD$6,BdCréneaux!$S$1:$Y$1,FALSE))& MATCH($A15,BdCréneaux!$L:$L,FALSE))) -> x | BE15: =IF( INDIRECT( "BdCréneaux!"& INDIRECT("BdCréneaux!$Z"&MATCH(BE$6,BdCréneaux!$S$1:$Y$1,FALSE))& MATCH($A15,BdCréneaux!$L:$L,FALSE))=0,"", INDIRECT( "BdCréneaux!"& INDIRECT("BdCréneaux!$Z"&MATCH(BE$6,BdCréneaux!$S$1:$Y$1,FALSE))& MATCH($A15,BdCréneaux!$L:$L,FALSE))) -> x | BF15: =IF( INDIRECT( "BdCréneaux!"& INDIRECT("BdCréneaux!$Z"&MATCH(BF$6,BdCréneaux!$S$1:$Y$1,FALSE))& MATCH($A15,BdCréneaux!$L:$L,FALSE))=0,"", INDIRECT( "BdCréneaux!"& INDIRECT("BdCréneaux!$Z"&MATCH(BF$6,BdCréneaux!$S$1:$Y$1,FALSE))& MATCH($A15,BdCréneaux!$L:$L,FALSE))) ->  | BG15: =IF( INDIRECT( "BdCréneaux!"& INDIRECT("BdCréneaux!$Z"&MATCH(BG$6,BdCréneaux!$S$1:$Y$1,FALSE))& MATCH($A15,BdCréneaux!$L:$L,FALSE))=0,"", INDIRECT( "BdCréneaux!"& INDIRECT("BdCréneaux!$Z"&MATCH(BG$6,BdCréneaux!$S$1:$Y$1,FALSE))& MATCH($A15,BdCréneaux!$L:$L,FALSE))) -> x | BH15: =IF( INDIRECT( "BdCréneaux!"& INDIRECT("BdCréneaux!$Z"&MATCH(BH$6,BdCréneaux!$S$1:$Y$1,FALSE))& MATCH($A15,BdCréneaux!$L:$L,FALSE))=0,"", INDIRECT( "BdCréneaux!"& INDIRECT("BdCréneaux!$Z"&MATCH(BH$6,BdCréneaux!$S$1:$Y$1,FALSE))& MATCH($A15,BdCréneaux!$L:$L,FALSE))) ->  | BI15: =IF( INDIRECT( "BdCréneaux!"& INDIRECT("BdCréneaux!$Z"&MATCH(BI$6,BdCréneaux!$S$1:$Y$1,FALSE))& MATCH($A15,BdCréneaux!$L:$L,FALSE))=0,"", INDIRECT( "BdCréneaux!"& INDIRECT("BdCréneaux!$Z"&MATCH(BI$6,BdCréneaux!$S$1:$Y$1,FALSE))& MATCH($A15,BdCréneaux!$L:$L,FALSE))) ->  | BJ15: =IF( INDIRECT( "BdCréneaux!"& INDIRECT("BdCréneaux!$Z"&MATCH(BJ$6,BdCréneaux!$S$1:$Y$1,FALSE))& MATCH($A15,BdCréneaux!$L:$L,FALSE))=0,"", INDIRECT( "BdCréneaux!"& INDIRECT("BdCréneaux!$Z"&MATCH(BJ$6,BdCréneaux!$S$1:$Y$1,FALSE))& MATCH($A15,BdCréneaux!$L:$L,FALSE))) -> x | BK15: =IF( INDIRECT( "BdCréneaux!"& INDIRECT("BdCréneaux!$Z"&MATCH(BK$6,BdCréneaux!$S$1:$Y$1,FALSE))& MATCH($A15,BdCréneaux!$L:$L,FALSE))=0,"", INDIRECT( "BdCréneaux!"& INDIRECT("BdCréneaux!$Z"&MATCH(BK$6,BdCréneaux!$S$1:$Y$1,FALSE))& MATCH($A15,BdCréneaux!$L:$L,FALSE))) -> x | BL15: =IF( INDIRECT( "BdCréneaux!"& INDIRECT("BdCréneaux!$Z"&MATCH(BL$6,BdCréneaux!$S$1:$Y$1,FALSE))& MATCH($A15,BdCréneaux!$L:$L,FALSE))=0,"", INDIRECT( "BdCréneaux!"& INDIRECT("BdCréneaux!$Z"&MATCH(BL$6,BdCréneaux!$S$1:$Y$1,FALSE))& MATCH($A15,BdCréneaux!$L:$L,FALSE))) -> x | BM15: =IF( INDIRECT( "BdCréneaux!"& INDIRECT("BdCréneaux!$Z"&MATCH(BM$6,BdCréneaux!$S$1:$Y$1,FALSE))& MATCH($A15,BdCréneaux!$L:$L,FALSE))=0,"", INDIRECT( "BdCréneaux!"& INDIRECT("BdCréneaux!$Z"&MATCH(BM$6,BdCréneaux!$S$1:$Y$1,FALSE))& MATCH($A15,BdCréneaux!$L:$L,FALSE))) ->  | BN15: =IF( INDIRECT( "BdCréneaux!"& INDIRECT("BdCréneaux!$Z"&MATCH(BN$6,BdCréneaux!$S$1:$Y$1,FALSE))& MATCH($A15,BdCréneaux!$L:$L,FALSE))=0,"", INDIRECT( "BdCréneaux!"& INDIRECT("BdCréneaux!$Z"&MATCH(BN$6,BdCréneaux!$S$1:$Y$1,FALSE))& MATCH($A15,BdCréneaux!$L:$L,FALSE))) -> x | BO15: =IF( INDIRECT( "BdCréneaux!"& INDIRECT("BdCréneaux!$Z"&MATCH(BO$6,BdCréneaux!$S$1:$Y$1,FALSE))& MATCH($A15,BdCréneaux!$L:$L,FALSE))=0,"", INDIRECT( "BdCréneaux!"& INDIRECT("BdCréneaux!$Z"&MATCH(BO$6,BdCréneaux!$S$1:$Y$1,FALSE))& MATCH($A15,BdCréneaux!$L:$L,FALSE))) ->  | BP15: =IF( INDIRECT( "BdCréneaux!"& INDIRECT("BdCréneaux!$Z"&MATCH(BP$6,BdCréneaux!$S$1:$Y$1,FALSE))& MATCH($A15,BdCréneaux!$L:$L,FALSE))=0,"", INDIRECT( "BdCréneaux!"& INDIRECT("BdCréneaux!$Z"&MATCH(BP$6,BdCréneaux!$S$1:$Y$1,FALSE))& MATCH($A15,BdCréneaux!$L:$L,FALSE))) ->  | BQ15: =IF( INDIRECT( "BdCréneaux!"& INDIRECT("BdCréneaux!$Z"&MATCH(BQ$6,BdCréneaux!$S$1:$Y$1,FALSE))& MATCH($A15,BdCréneaux!$L:$L,FALSE))=0,"", INDIRECT( "BdCréneaux!"& INDIRECT("BdCréneaux!$Z"&MATCH(BQ$6,BdCréneaux!$S$1:$Y$1,FALSE))& MATCH($A15,BdCréneaux!$L:$L,FALSE))) -> x | BR15: =IF( INDIRECT( "BdCréneaux!"& INDIRECT("BdCréneaux!$Z"&MATCH(BR$6,BdCréneaux!$S$1:$Y$1,FALSE))& MATCH($A15,BdCréneaux!$L:$L,FALSE))=0,"", INDIRECT( "BdCréneaux!"& INDIRECT("BdCréneaux!$Z"&MATCH(BR$6,BdCréneaux!$S$1:$Y$1,FALSE))& MATCH($A15,BdCréneaux!$L:$L,FALSE))) -> x | BS15: =IF( INDIRECT( "BdCréneaux!"& INDIRECT("BdCréneaux!$Z"&MATCH(BS$6,BdCréneaux!$S$1:$Y$1,FALSE))& MATCH($A15,BdCréneaux!$L:$L,FALSE))=0,"", INDIRECT( "BdCréneaux!"& INDIRECT("BdCréneaux!$Z"&MATCH(BS$6,BdCréneaux!$S$1:$Y$1,FALSE))& MATCH($A15,BdCréneaux!$L:$L,FALSE))) -> x | BT15: =IF( INDIRECT( "BdCréneaux!"& INDIRECT("BdCréneaux!$Z"&MATCH(BT$6,BdCréneaux!$S$1:$Y$1,FALSE))& MATCH($A15,BdCréneaux!$L:$L,FALSE))=0,"", INDIRECT( "BdCréneaux!"& INDIRECT("BdCréneaux!$Z"&MATCH(BT$6,BdCréneaux!$S$1:$Y$1,FALSE))& MATCH($A15,BdCréneaux!$L:$L,FALSE))) ->  | BU15: =IF( INDIRECT( "BdCréneaux!"& INDIRECT("BdCréneaux!$Z"&MATCH(BU$6,BdCréneaux!$S$1:$Y$1,FALSE))& MATCH($A15,BdCréneaux!$L:$L,FALSE))=0,"", INDIRECT( "BdCréneaux!"& INDIRECT("BdCréneaux!$Z"&MATCH(BU$6,BdCréneaux!$S$1:$Y$1,FALSE))& MATCH($A15,BdCréneaux!$L:$L,FALSE))) -> x | BV15: =IF( INDIRECT( "BdCréneaux!"& INDIRECT("BdCréneaux!$Z"&MATCH(BV$6,BdCréneaux!$S$1:$Y$1,FALSE))& MATCH($A15,BdCréneaux!$L:$L,FALSE))=0,"", INDIRECT( "BdCréneaux!"& INDIRECT("BdCréneaux!$Z"&MATCH(BV$6,BdCréneaux!$S$1:$Y$1,FALSE))& MATCH($A15,BdCréneaux!$L:$L,FALSE))) ->  | BW15: =IF( INDIRECT( "BdCréneaux!"& INDIRECT("BdCréneaux!$Z"&MATCH(BW$6,BdCréneaux!$S$1:$Y$1,FALSE))& MATCH($A15,BdCréneaux!$L:$L,FALSE))=0,"", INDIRECT( "BdCréneaux!"& INDIRECT("BdCréneaux!$Z"&MATCH(BW$6,BdCréneaux!$S$1:$Y$1,FALSE))& MATCH($A15,BdCréneaux!$L:$L,FALSE))) ->  | BX15: =IF( INDIRECT( "BdCréneaux!"& INDIRECT("BdCréneaux!$Z"&MATCH(BX$6,BdCréneaux!$S$1:$Y$1,FALSE))& MATCH($A15,BdCréneaux!$L:$L,FALSE))=0,"", INDIRECT( "BdCréneaux!"& INDIRECT("BdCréneaux!$Z"&MATCH(BX$6,BdCréneaux!$S$1:$Y$1,FALSE))& MATCH($A15,BdCréneaux!$L:$L,FALSE))) -> x | BY15: =IF( INDIRECT( "BdCréneaux!"& INDIRECT("BdCréneaux!$Z"&MATCH(BY$6,BdCréneaux!$S$1:$Y$1,FALSE))& MATCH($A15,BdCréneaux!$L:$L,FALSE))=0,"", INDIRECT( "BdCréneaux!"& INDIRECT("BdCréneaux!$Z"&MATCH(BY$6,BdCréneaux!$S$1:$Y$1,FALSE))& MATCH($A15,BdCréneaux!$L:$L,FALSE))) -> x | BZ15: =IF( INDIRECT( "BdCréneaux!"& INDIRECT("BdCréneaux!$Z"&MATCH(BZ$6,BdCréneaux!$S$1:$Y$1,FALSE))& MATCH($A15,BdCréneaux!$L:$L,FALSE))=0,"", INDIRECT( "BdCréneaux!"& INDIRECT("BdCréneaux!$Z"&MATCH(BZ$6,BdCréneaux!$S$1:$Y$1,FALSE))& MATCH($A15,BdCréneaux!$L:$L,FALSE))) -> x | CA15: =IF( INDIRECT( "BdCréneaux!"& INDIRECT("BdCréneaux!$Z"&MATCH(CA$6,BdCréneaux!$S$1:$Y$1,FALSE))& MATCH($A15,BdCréneaux!$L:$L,FALSE))=0,"", INDIRECT( "BdCréneaux!"& INDIRECT("BdCréneaux!$Z"&MATCH(CA$6,BdCréneaux!$S$1:$Y$1,FALSE))& MATCH($A15,BdCréneaux!$L:$L,FALSE))) ->  | CB15: =IF( INDIRECT( "BdCréneaux!"& INDIRECT("BdCréneaux!$Z"&MATCH(CB$6,BdCréneaux!$S$1:$Y$1,FALSE))& MATCH($A15,BdCréneaux!$L:$L,FALSE))=0,"", INDIRECT( "BdCréneaux!"& INDIRECT("BdCréneaux!$Z"&MATCH(CB$6,BdCréneaux!$S$1:$Y$1,FALSE))& MATCH($A15,BdCréneaux!$L:$L,FALSE))) -> x | CC15: =IF( INDIRECT( "BdCréneaux!"& INDIRECT("BdCréneaux!$Z"&MATCH(CC$6,BdCréneaux!$S$1:$Y$1,FALSE))& MATCH($A15,BdCréneaux!$L:$L,FALSE))=0,"", INDIRECT( "BdCréneaux!"& INDIRECT("BdCréneaux!$Z"&MATCH(CC$6,BdCréneaux!$S$1:$Y$1,FALSE))& MATCH($A15,BdCréneaux!$L:$L,FALSE))) ->  | CD15: =IF( INDIRECT( "BdCréneaux!"& INDIRECT("BdCréneaux!$Z"&MATCH(CD$6,BdCréneaux!$S$1:$Y$1,FALSE))& MATCH($A15,BdCréneaux!$L:$L,FALSE))=0,"", INDIRECT( "BdCréneaux!"& INDIRECT("BdCréneaux!$Z"&MATCH(CD$6,BdCréneaux!$S$1:$Y$1,FALSE))& MATCH($A15,BdCréneaux!$L:$L,FALSE))) ->  | CE15: =IF( INDIRECT( "BdCréneaux!"& INDIRECT("BdCréneaux!$Z"&MATCH(CE$6,BdCréneaux!$S$1:$Y$1,FALSE))& MATCH($A15,BdCréneaux!$L:$L,FALSE))=0,"", INDIRECT( "BdCréneaux!"& INDIRECT("BdCréneaux!$Z"&MATCH(CE$6,BdCréneaux!$S$1:$Y$1,FALSE))& MATCH($A15,BdCréneaux!$L:$L,FALSE))) -> x | CF15: =IF( INDIRECT( "BdCréneaux!"& INDIRECT("BdCréneaux!$Z"&MATCH(CF$6,BdCréneaux!$S$1:$Y$1,FALSE))& MATCH($A15,BdCréneaux!$L:$L,FALSE))=0,"", INDIRECT( "BdCréneaux!"& INDIRECT("BdCréneaux!$Z"&MATCH(CF$6,BdCréneaux!$S$1:$Y$1,FALSE))& MATCH($A15,BdCréneaux!$L:$L,FALSE))) ->  | CG15: =IF( INDIRECT( "BdCréneaux!"& INDIRECT("BdCréneaux!$Z"&MATCH(CG$6,BdCréneaux!$S$1:$Y$1,FALSE))& MATCH($A15,BdCréneaux!$L:$L,FALSE))=0,"", INDIRECT( "BdCréneaux!"& INDIRECT("BdCréneaux!$Z"&MATCH(CG$6,BdCréneaux!$S$1:$Y$1,FALSE))& MATCH($A15,BdCréneaux!$L:$L,FALSE))) ->  | CH15: =IF( INDIRECT( "BdCréneaux!"& INDIRECT("BdCréneaux!$Z"&MATCH(CH$6,BdCréneaux!$S$1:$Y$1,FALSE))& MATCH($A15,BdCréneaux!$L:$L,FALSE))=0,"", INDIRECT( "BdCréneaux!"& INDIRECT("BdCréneaux!$Z"&MATCH(CH$6,BdCréneaux!$S$1:$Y$1,FALSE))& MATCH($A15,BdCréneaux!$L:$L,FALSE))) -> 
A16: =IF(BdCréneaux!L9="","", BdCréneaux!L9) -> P1 | B16: =BdCréneaux!R9 -> Pédiatrie 16h00>18h00 | AI16: Pédiatrie 16h00>18h00 | BD16: =IF( INDIRECT( "BdCréneaux!"& INDIRECT("BdCréneaux!$Z"&MATCH(BD$6,BdCréneaux!$S$1:$Y$1,FALSE))& MATCH($A16,BdCréneaux!$L:$L,FALSE))=0,"", INDIRECT( "BdCréneaux!"& INDIRECT("BdCréneaux!$Z"&MATCH(BD$6,BdCréneaux!$S$1:$Y$1,FALSE))& MATCH($A16,BdCréneaux!$L:$L,FALSE))) ->  | BE16: =IF( INDIRECT( "BdCréneaux!"& INDIRECT("BdCréneaux!$Z"&MATCH(BE$6,BdCréneaux!$S$1:$Y$1,FALSE))& MATCH($A16,BdCréneaux!$L:$L,FALSE))=0,"", INDIRECT( "BdCréneaux!"& INDIRECT("BdCréneaux!$Z"&MATCH(BE$6,BdCréneaux!$S$1:$Y$1,FALSE))& MATCH($A16,BdCréneaux!$L:$L,FALSE))) ->  | BF16: =IF( INDIRECT( "BdCréneaux!"& INDIRECT("BdCréneaux!$Z"&MATCH(BF$6,BdCréneaux!$S$1:$Y$1,FALSE))& MATCH($A16,BdCréneaux!$L:$L,FALSE))=0,"", INDIRECT( "BdCréneaux!"& INDIRECT("BdCréneaux!$Z"&MATCH(BF$6,BdCréneaux!$S$1:$Y$1,FALSE))& MATCH($A16,BdCréneaux!$L:$L,FALSE))) ->  | BG16: =IF( INDIRECT( "BdCréneaux!"& INDIRECT("BdCréneaux!$Z"&MATCH(BG$6,BdCréneaux!$S$1:$Y$1,FALSE))& MATCH($A16,BdCréneaux!$L:$L,FALSE))=0,"", INDIRECT( "BdCréneaux!"& INDIRECT("BdCréneaux!$Z"&MATCH(BG$6,BdCréneaux!$S$1:$Y$1,FALSE))& MATCH($A16,BdCréneaux!$L:$L,FALSE))) -> x | BH16: =IF( INDIRECT( "BdCréneaux!"& INDIRECT("BdCréneaux!$Z"&MATCH(BH$6,BdCréneaux!$S$1:$Y$1,FALSE))& MATCH($A16,BdCréneaux!$L:$L,FALSE))=0,"", INDIRECT( "BdCréneaux!"& INDIRECT("BdCréneaux!$Z"&MATCH(BH$6,BdCréneaux!$S$1:$Y$1,FALSE))& MATCH($A16,BdCréneaux!$L:$L,FALSE))) ->  | BI16: =IF( INDIRECT( "BdCréneaux!"& INDIRECT("BdCréneaux!$Z"&MATCH(BI$6,BdCréneaux!$S$1:$Y$1,FALSE))& MATCH($A16,BdCréneaux!$L:$L,FALSE))=0,"", INDIRECT( "BdCréneaux!"& INDIRECT("BdCréneaux!$Z"&MATCH(BI$6,BdCréneaux!$S$1:$Y$1,FALSE))& MATCH($A16,BdCréneaux!$L:$L,FALSE))) ->  | BJ16: =IF( INDIRECT( "BdCréneaux!"& INDIRECT("BdCréneaux!$Z"&MATCH(BJ$6,BdCréneaux!$S$1:$Y$1,FALSE))& MATCH($A16,BdCréneaux!$L:$L,FALSE))=0,"", INDIRECT( "BdCréneaux!"& INDIRECT("BdCréneaux!$Z"&MATCH(BJ$6,BdCréneaux!$S$1:$Y$1,FALSE))& MATCH($A16,BdCréneaux!$L:$L,FALSE))) ->  | BK16: =IF( INDIRECT( "BdCréneaux!"& INDIRECT("BdCréneaux!$Z"&MATCH(BK$6,BdCréneaux!$S$1:$Y$1,FALSE))& MATCH($A16,BdCréneaux!$L:$L,FALSE))=0,"", INDIRECT( "BdCréneaux!"& INDIRECT("BdCréneaux!$Z"&MATCH(BK$6,BdCréneaux!$S$1:$Y$1,FALSE))& MATCH($A16,BdCréneaux!$L:$L,FALSE))) ->  | BL16: =IF( INDIRECT( "BdCréneaux!"& INDIRECT("BdCréneaux!$Z"&MATCH(BL$6,BdCréneaux!$S$1:$Y$1,FALSE))& MATCH($A16,BdCréneaux!$L:$L,FALSE))=0,"", INDIRECT( "BdCréneaux!"& INDIRECT("BdCréneaux!$Z"&MATCH(BL$6,BdCréneaux!$S$1:$Y$1,FALSE))& MATCH($A16,BdCréneaux!$L:$L,FALSE))) ->  | BM16: =IF( INDIRECT( "BdCréneaux!"& INDIRECT("BdCréneaux!$Z"&MATCH(BM$6,BdCréneaux!$S$1:$Y$1,FALSE))& MATCH($A16,BdCréneaux!$L:$L,FALSE))=0,"", INDIRECT( "BdCréneaux!"& INDIRECT("BdCréneaux!$Z"&MATCH(BM$6,BdCréneaux!$S$1:$Y$1,FALSE))& MATCH($A16,BdCréneaux!$L:$L,FALSE))) ->  | BN16: =IF( INDIRECT( "BdCréneaux!"& INDIRECT("BdCréneaux!$Z"&MATCH(BN$6,BdCréneaux!$S$1:$Y$1,FALSE))& MATCH($A16,BdCréneaux!$L:$L,FALSE))=0,"", INDIRECT( "BdCréneaux!"& INDIRECT("BdCréneaux!$Z"&MATCH(BN$6,BdCréneaux!$S$1:$Y$1,FALSE))& MATCH($A16,BdCréneaux!$L:$L,FALSE))) -> x | BO16: =IF( INDIRECT( "BdCréneaux!"& INDIRECT("BdCréneaux!$Z"&MATCH(BO$6,BdCréneaux!$S$1:$Y$1,FALSE))& MATCH($A16,BdCréneaux!$L:$L,FALSE))=0,"", INDIRECT( "BdCréneaux!"& INDIRECT("BdCréneaux!$Z"&MATCH(BO$6,BdCréneaux!$S$1:$Y$1,FALSE))& MATCH($A16,BdCréneaux!$L:$L,FALSE))) ->  | BP16: =IF( INDIRECT( "BdCréneaux!"& INDIRECT("BdCréneaux!$Z"&MATCH(BP$6,BdCréneaux!$S$1:$Y$1,FALSE))& MATCH($A16,BdCréneaux!$L:$L,FALSE))=0,"", INDIRECT( "BdCréneaux!"& INDIRECT("BdCréneaux!$Z"&MATCH(BP$6,BdCréneaux!$S$1:$Y$1,FALSE))& MATCH($A16,BdCréneaux!$L:$L,FALSE))) ->  | BQ16: =IF( INDIRECT( "BdCréneaux!"& INDIRECT("BdCréneaux!$Z"&MATCH(BQ$6,BdCréneaux!$S$1:$Y$1,FALSE))& MATCH($A16,BdCréneaux!$L:$L,FALSE))=0,"", INDIRECT( "BdCréneaux!"& INDIRECT("BdCréneaux!$Z"&MATCH(BQ$6,BdCréneaux!$S$1:$Y$1,FALSE))& MATCH($A16,BdCréneaux!$L:$L,FALSE))) ->  | BR16: =IF( INDIRECT( "BdCréneaux!"& INDIRECT("BdCréneaux!$Z"&MATCH(BR$6,BdCréneaux!$S$1:$Y$1,FALSE))& MATCH($A16,BdCréneaux!$L:$L,FALSE))=0,"", INDIRECT( "BdCréneaux!"& INDIRECT("BdCréneaux!$Z"&MATCH(BR$6,BdCréneaux!$S$1:$Y$1,FALSE))& MATCH($A16,BdCréneaux!$L:$L,FALSE))) ->  | BS16: =IF( INDIRECT( "BdCréneaux!"& INDIRECT("BdCréneaux!$Z"&MATCH(BS$6,BdCréneaux!$S$1:$Y$1,FALSE))& MATCH($A16,BdCréneaux!$L:$L,FALSE))=0,"", INDIRECT( "BdCréneaux!"& INDIRECT("BdCréneaux!$Z"&MATCH(BS$6,BdCréneaux!$S$1:$Y$1,FALSE))& MATCH($A16,BdCréneaux!$L:$L,FALSE))) ->  | BT16: =IF( INDIRECT( "BdCréneaux!"& INDIRECT("BdCréneaux!$Z"&MATCH(BT$6,BdCréneaux!$S$1:$Y$1,FALSE))& MATCH($A16,BdCréneaux!$L:$L,FALSE))=0,"", INDIRECT( "BdCréneaux!"& INDIRECT("BdCréneaux!$Z"&MATCH(BT$6,BdCréneaux!$S$1:$Y$1,FALSE))& MATCH($A16,BdCréneaux!$L:$L,FALSE))) ->  | BU16: =IF( INDIRECT( "BdCréneaux!"& INDIRECT("BdCréneaux!$Z"&MATCH(BU$6,BdCréneaux!$S$1:$Y$1,FALSE))& MATCH($A16,BdCréneaux!$L:$L,FALSE))=0,"", INDIRECT( "BdCréneaux!"& INDIRECT("BdCréneaux!$Z"&MATCH(BU$6,BdCréneaux!$S$1:$Y$1,FALSE))& MATCH($A16,BdCréneaux!$L:$L,FALSE))) -> x | BV16: =IF( INDIRECT( "BdCréneaux!"& INDIRECT("BdCréneaux!$Z"&MATCH(BV$6,BdCréneaux!$S$1:$Y$1,FALSE))& MATCH($A16,BdCréneaux!$L:$L,FALSE))=0,"", INDIRECT( "BdCréneaux!"& INDIRECT("BdCréneaux!$Z"&MATCH(BV$6,BdCréneaux!$S$1:$Y$1,FALSE))& MATCH($A16,BdCréneaux!$L:$L,FALSE))) ->  | BW16: =IF( INDIRECT( "BdCréneaux!"& INDIRECT("BdCréneaux!$Z"&MATCH(BW$6,BdCréneaux!$S$1:$Y$1,FALSE))& MATCH($A16,BdCréneaux!$L:$L,FALSE))=0,"", INDIRECT( "BdCréneaux!"& INDIRECT("BdCréneaux!$Z"&MATCH(BW$6,BdCréneaux!$S$1:$Y$1,FALSE))& MATCH($A16,BdCréneaux!$L:$L,FALSE))) ->  | BX16: =IF( INDIRECT( "BdCréneaux!"& INDIRECT("BdCréneaux!$Z"&MATCH(BX$6,BdCréneaux!$S$1:$Y$1,FALSE))& MATCH($A16,BdCréneaux!$L:$L,FALSE))=0,"", INDIRECT( "BdCréneaux!"& INDIRECT("BdCréneaux!$Z"&MATCH(BX$6,BdCréneaux!$S$1:$Y$1,FALSE))& MATCH($A16,BdCréneaux!$L:$L,FALSE))) ->  | BY16: =IF( INDIRECT( "BdCréneaux!"& INDIRECT("BdCréneaux!$Z"&MATCH(BY$6,BdCréneaux!$S$1:$Y$1,FALSE))& MATCH($A16,BdCréneaux!$L:$L,FALSE))=0,"", INDIRECT( "BdCréneaux!"& INDIRECT("BdCréneaux!$Z"&MATCH(BY$6,BdCréneaux!$S$1:$Y$1,FALSE))& MATCH($A16,BdCréneaux!$L:$L,FALSE))) ->  | BZ16: =IF( INDIRECT( "BdCréneaux!"& INDIRECT("BdCréneaux!$Z"&MATCH(BZ$6,BdCréneaux!$S$1:$Y$1,FALSE))& MATCH($A16,BdCréneaux!$L:$L,FALSE))=0,"", INDIRECT( "BdCréneaux!"& INDIRECT("BdCréneaux!$Z"&MATCH(BZ$6,BdCréneaux!$S$1:$Y$1,FALSE))& MATCH($A16,BdCréneaux!$L:$L,FALSE))) ->  | CA16: =IF( INDIRECT( "BdCréneaux!"& INDIRECT("BdCréneaux!$Z"&MATCH(CA$6,BdCréneaux!$S$1:$Y$1,FALSE))& MATCH($A16,BdCréneaux!$L:$L,FALSE))=0,"", INDIRECT( "BdCréneaux!"& INDIRECT("BdCréneaux!$Z"&MATCH(CA$6,BdCréneaux!$S$1:$Y$1,FALSE))& MATCH($A16,BdCréneaux!$L:$L,FALSE))) ->  | CB16: =IF( INDIRECT( "BdCréneaux!"& INDIRECT("BdCréneaux!$Z"&MATCH(CB$6,BdCréneaux!$S$1:$Y$1,FALSE))& MATCH($A16,BdCréneaux!$L:$L,FALSE))=0,"", INDIRECT( "BdCréneaux!"& INDIRECT("BdCréneaux!$Z"&MATCH(CB$6,BdCréneaux!$S$1:$Y$1,FALSE))& MATCH($A16,BdCréneaux!$L:$L,FALSE))) -> x | CC16: =IF( INDIRECT( "BdCréneaux!"& INDIRECT("BdCréneaux!$Z"&MATCH(CC$6,BdCréneaux!$S$1:$Y$1,FALSE))& MATCH($A16,BdCréneaux!$L:$L,FALSE))=0,"", INDIRECT( "BdCréneaux!"& INDIRECT("BdCréneaux!$Z"&MATCH(CC$6,BdCréneaux!$S$1:$Y$1,FALSE))& MATCH($A16,BdCréneaux!$L:$L,FALSE))) ->  | CD16: =IF( INDIRECT( "BdCréneaux!"& INDIRECT("BdCréneaux!$Z"&MATCH(CD$6,BdCréneaux!$S$1:$Y$1,FALSE))& MATCH($A16,BdCréneaux!$L:$L,FALSE))=0,"", INDIRECT( "BdCréneaux!"& INDIRECT("BdCréneaux!$Z"&MATCH(CD$6,BdCréneaux!$S$1:$Y$1,FALSE))& MATCH($A16,BdCréneaux!$L:$L,FALSE))) ->  | CE16: =IF( INDIRECT( "BdCréneaux!"& INDIRECT("BdCréneaux!$Z"&MATCH(CE$6,BdCréneaux!$S$1:$Y$1,FALSE))& MATCH($A16,BdCréneaux!$L:$L,FALSE))=0,"", INDIRECT( "BdCréneaux!"& INDIRECT("BdCréneaux!$Z"&MATCH(CE$6,BdCréneaux!$S$1:$Y$1,FALSE))& MATCH($A16,BdCréneaux!$L:$L,FALSE))) ->  | CF16: =IF( INDIRECT( "BdCréneaux!"& INDIRECT("BdCréneaux!$Z"&MATCH(CF$6,BdCréneaux!$S$1:$Y$1,FALSE))& MATCH($A16,BdCréneaux!$L:$L,FALSE))=0,"", INDIRECT( "BdCréneaux!"& INDIRECT("BdCréneaux!$Z"&MATCH(CF$6,BdCréneaux!$S$1:$Y$1,FALSE))& MATCH($A16,BdCréneaux!$L:$L,FALSE))) ->  | CG16: =IF( INDIRECT( "BdCréneaux!"& INDIRECT("BdCréneaux!$Z"&MATCH(CG$6,BdCréneaux!$S$1:$Y$1,FALSE))& MATCH($A16,BdCréneaux!$L:$L,FALSE))=0,"", INDIRECT( "BdCréneaux!"& INDIRECT("BdCréneaux!$Z"&MATCH(CG$6,BdCréneaux!$S$1:$Y$1,FALSE))& MATCH($A16,BdCréneaux!$L:$L,FALSE))) ->  | CH16: =IF( INDIRECT( "BdCréneaux!"& INDIRECT("BdCréneaux!$Z"&MATCH(CH$6,BdCréneaux!$S$1:$Y$1,FALSE))& MATCH($A16,BdCréneaux!$L:$L,FALSE))=0,"", INDIRECT( "BdCréneaux!"& INDIRECT("BdCréneaux!$Z"&MATCH(CH$6,BdCréneaux!$S$1:$Y$1,FALSE))& MATCH($A16,BdCréneaux!$L:$L,FALSE))) -> 
